Workbook

Sheet SSO Mathematica
A1: ='SSO-TLT Random'!AF7*100 -> 41.92718959 | B1: ='SSO-TLT Random'!AG7*100 -> -22.93765801 | D1: =MATCH(0,A:A,0) -> 2001 | F1: =Tables!F26*100 -> 40.63466499 | G1: =Tables!F27*100 -> -25.93084593 | H1: ='SPY-TLT Static'!Z2*100 -> 27.0113241 | I1: ='SPY-TLT Static'!AA1*100 -> -15.07754141 | K1: This needs a link to Wolfram Mathematica
A2: ='SSO-TLT Random'!AF8*100 -> 41.12220592 | B2: ='SSO-TLT Random'!AG8*100 -> -24.99795151 | F2: 0 | G2: 0
A3: ='SSO-TLT Random'!AF9*100 -> 40.52073329 | B3: ='SSO-TLT Random'!AG9*100 -> -25.37609538 | D3: =[1]!EVAL("Histogram",A1:INDIRECT("a"&D1-1),"ImageSize -> {330, 240}") -> ExcelGraphic[5] | F3: 0 | G3: 0
A4: ='SSO-TLT Random'!AF10*100 -> 42.01863251 | B4: ='SSO-TLT Random'!AG10*100 -> -24.97094828 | D4: =[1]!EVAL("Histogram",B1:INDIRECT("b"&D1-1),"ImageSize -> {330, 240}") -> ExcelGraphic[6] | F4: 0 | G4: 0
A5: ='SSO-TLT Random'!AF11*100 -> 42.20777473 | B5: ='SSO-TLT Random'!AG11*100 -> -25.59369852 | F5: =Tables!I26*100 -> 41.32122847 | G5: =Tables!I27*100 -> -24.79757268
A6: ='SSO-TLT Random'!AF12*100 -> 40.82857522 | B6: ='SSO-TLT Random'!AG12*100 -> -24.9626544 | F6: 0 | G6: 0
A7: ='SSO-TLT Random'!AF13*100 -> 40.96215304 | B7: ='SSO-TLT Random'!AG13*100 -> -24.58468938 | F7: 0 | G7: 0
A8: ='SSO-TLT Random'!AF14*100 -> 40.35248859 | B8: ='SSO-TLT Random'!AG14*100 -> -24.39277179 | D8: =[1]!EVAL("SmoothHistogram3D",A1:INDIRECT("b"&D1-1),"PlotRange -> {{38,44}, {-21,-28}}","Mesh->{11,13}","MeshFunctions -> {#1 &, #2 &}","ViewPoint -> {-5, 5, 1.5}","ImageSize -> {330, 240}") -> ExcelGraphic[8] | F8: 0 | G8: 0
A9: ='SSO-TLT Random'!AF15*100 -> 41.09916566 | B9: ='SSO-TLT Random'!AG15*100 -> -22.72934542 | D9: =[1]!EVAL("SmoothHistogram3D",A1:INDIRECT("b"&D1-1),"PlotRange -> {{38,44}, {-21,-28}}","Mesh->{11,13}","MeshFunctions -> {#1 &, #2 &}","ViewPoint -> {5,- 5, 3}","ImageSize -> {330, 240}") -> ExcelGraphic[7] | F9: =Tables!G26*100 -> 41.25231748 | G9: =Tables!G27*100 -> -25.9313445
A10: ='SSO-TLT Random'!AF16*100 -> 40.95317714 | B10: ='SSO-TLT Random'!AG16*100 -> -26.608518 | F10: 0 | G10: 0
A11: ='SSO-TLT Random'!AF17*100 -> 41.3406161 | B11: ='SSO-TLT Random'!AG17*100 -> -24.13523123 | D11: =[1]!EVAL("ScatterGraph",(A1:INDIRECT("b"&D1-1)),F1:G3,F4:G7,F17:G20,F7:G10,F12:G14) -> ExcelResult[2] | F11: 0 | G11: 0
A12: ='SSO-TLT Random'!AF18*100 -> 41.23467558 | B12: ='SSO-TLT Random'!AG18*100 -> -22.91912743 | F12: 0 | G12: 0
A13: ='SSO-TLT Random'!AF19*100 -> 41.91305989 | B13: ='SSO-TLT Random'!AG19*100 -> -23.66990815 | F13: =Tables!H26*100 -> 40.70028899 | G13: =Tables!H27*100 -> -24.79537454
A14: ='SSO-TLT Random'!AF20*100 -> 41.46062509 | B14: ='SSO-TLT Random'!AG20*100 -> -24.93981649 | F14: 0 | G14: 0
A15: ='SSO-TLT Random'!AF21*100 -> 41.82870131 | B15: ='SSO-TLT Random'!AG21*100 -> -24.45354447 | F15: 0 | G15: 0
A16: ='SSO-TLT Random'!AF22*100 -> 41.85969851 | B16: ='SSO-TLT Random'!AG22*100 -> -23.34123092 | F16: 0 | G16: 0
A17: ='SSO-TLT Random'!AF23*100 -> 40.93344719 | B17: ='SSO-TLT Random'!AG23*100 -> -25.06906759 | F17: 0 | G17: 0
A18: ='SSO-TLT Random'!AF24*100 -> 42.3249662 | B18: ='SSO-TLT Random'!AG24*100 -> -24.06703802 | F18: 0 | G18: 0
A19: ='SSO-TLT Random'!AF25*100 -> 41.39431594 | B19: ='SSO-TLT Random'!AG25*100 -> -24.32888883 | F19: 0 | G19: 0
A20: ='SSO-TLT Random'!AF26*100 -> 40.03294774 | B20: ='SSO-TLT Random'!AG26*100 -> -25.6977121 | F20: 40.31412759 | G20: -24.78754873
A21: ='SSO-TLT Random'!AF27*100 -> 40.5881561 | B21: ='SSO-TLT Random'!AG27*100 -> -25.31289977
A22: ='SSO-TLT Random'!AF28*100 -> 42.21694189 | B22: ='SSO-TLT Random'!AG28*100 -> -26.23103034
A23: ='SSO-TLT Random'!AF29*100 -> 41.07475839 | B23: ='SSO-TLT Random'!AG29*100 -> -25.79046409
A24: ='SSO-TLT Random'!AF30*100 -> 39.29570541 | B24: ='SSO-TLT Random'!AG30*100 -> -26.56906207
A25: ='SSO-TLT Random'!AF31*100 -> 41.96380684 | B25: ='SSO-TLT Random'!AG31*100 -> -24.21542935 | T25: CAGR | U25: D/Down
A26: ='SSO-TLT Random'!AF32*100 -> 41.09642462 | B26: ='SSO-TLT Random'!AG32*100 -> -23.91221624 | S26: Average | T26: 0.413930174 | U26: -0.2483843377
A27: ='SSO-TLT Random'!AF33*100 -> 40.15972319 | B27: ='SSO-TLT Random'!AG33*100 -> -22.64659795 | S27: Hi | T27: 0.4429594356 | U27: -0.2762550256
A28: ='SSO-TLT Random'!AF34*100 -> 40.95111525 | B28: ='SSO-TLT Random'!AG34*100 -> -23.34402185 | S28: Lo | T28: 0.3844046762 | U28: -0.2112279707
A29: ='SSO-TLT Random'!AF35*100 -> 42.00849848 | B29: ='SSO-TLT Random'!AG35*100 -> -23.97155064 | S29: Std Dev | T29: 0.008194109779 | U29: 0.01174277934
A30: ='SSO-TLT Random'!AF36*100 -> 40.87285332 | B30: ='SSO-TLT Random'!AG36*100 -> -23.15529624
A31: ='SSO-TLT Random'!AF37*100 -> 40.68450423 | B31: ='SSO-TLT Random'!AG37*100 -> -25.1813296
A32: ='SSO-TLT Random'!AF38*100 -> 41.53663809 | B32: ='SSO-TLT Random'!AG38*100 -> -25.20081778
A33: ='SSO-TLT Random'!AF39*100 -> 40.01232235 | B33: ='SSO-TLT Random'!AG39*100 -> -23.28355116
A34: ='SSO-TLT Random'!AF40*100 -> 41.58856728 | B34: ='SSO-TLT Random'!AG40*100 -> -24.66534056
A35: ='SSO-TLT Random'!AF41*100 -> 41.87992221 | B35: ='SSO-TLT Random'!AG41*100 -> -25.49731387
A36: ='SSO-TLT Random'!AF42*100 -> 41.89766785 | B36: ='SSO-TLT Random'!AG42*100 -> -25.53044741
A37: ='SSO-TLT Random'!AF43*100 -> 39.323468 | B37: ='SSO-TLT Random'!AG43*100 -> -23.2815508
A38: ='SSO-TLT Random'!AF44*100 -> 40.72464674 | B38: ='SSO-TLT Random'!AG44*100 -> -22.44938873
A39: ='SSO-TLT Random'!AF45*100 -> 40.33556022 | B39: ='SSO-TLT Random'!AG45*100 -> -24.48593788
A40: ='SSO-TLT Random'!AF46*100 -> 41.0046006 | B40: ='SSO-TLT Random'!AG46*100 -> -26.8015071
A41: ='SSO-TLT Random'!AF47*100 -> 41.01562678 | B41: ='SSO-TLT Random'!AG47*100 -> -24.25749179
A42: ='SSO-TLT Random'!AF48*100 -> 42.11454839 | B42: ='SSO-TLT Random'!AG48*100 -> -26.8119162
A43: ='SSO-TLT Random'!AF49*100 -> 40.30986963 | B43: ='SSO-TLT Random'!AG49*100 -> -23.97343545
A44: ='SSO-TLT Random'!AF50*100 -> 42.07528937 | B44: ='SSO-TLT Random'!AG50*100 -> -24.57038397
A45: ='SSO-TLT Random'!AF51*100 -> 41.46111458 | B45: ='SSO-TLT Random'!AG51*100 -> -26.16444824
A46: ='SSO-TLT Random'!AF52*100 -> 39.69159284 | B46: ='SSO-TLT Random'!AG52*100 -> -23.91253307
A47: ='SSO-TLT Random'!AF53*100 -> 40.90294065 | B47: ='SSO-TLT Random'!AG53*100 -> -22.90958949
A48: ='SSO-TLT Random'!AF54*100 -> 42.05343457 | B48: ='SSO-TLT Random'!AG54*100 -> -21.6452251
A49: ='SSO-TLT Random'!AF55*100 -> 41.2787299 | B49: ='SSO-TLT Random'!AG55*100 -> -26.48945357
A50: ='SSO-TLT Random'!AF56*100 -> 40.33090188 | B50: ='SSO-TLT Random'!AG56*100 -> -23.61446324
A51: ='SSO-TLT Random'!AF57*100 -> 42.17366638 | B51: ='SSO-TLT Random'!AG57*100 -> -24.01197997
A52: ='SSO-TLT Random'!AF58*100 -> 42.00638012 | B52: ='SSO-TLT Random'!AG58*100 -> -23.11349657
A53: ='SSO-TLT Random'!AF59*100 -> 41.87405779 | B53: ='SSO-TLT Random'!AG59*100 -> -24.89563201
A54: ='SSO-TLT Random'!AF60*100 -> 40.2321902 | B54: ='SSO-TLT Random'!AG60*100 -> -25.55209255
A55: ='SSO-TLT Random'!AF61*100 -> 40.28842998 | B55: ='SSO-TLT Random'!AG61*100 -> -23.20681325
A56: ='SSO-TLT Random'!AF62*100 -> 40.84714323 | B56: ='SSO-TLT Random'!AG62*100 -> -25.26999148
A57: ='SSO-TLT Random'!AF63*100 -> 41.20964261 | B57: ='SSO-TLT Random'!AG63*100 -> -26.73958706
A58: ='SSO-TLT Random'!AF64*100 -> 41.84070104 | B58: ='SSO-TLT Random'!AG64*100 -> -25.05477363
A59: ='SSO-TLT Random'!AF65*100 -> 41.63095183 | B59: ='SSO-TLT Random'!AG65*100 -> -26.78080212
A60: ='SSO-TLT Random'!AF66*100 -> 41.7962631 | B60: ='SSO-TLT Random'!AG66*100 -> -24.22267789
A61: ='SSO-TLT Random'!AF67*100 -> 40.69641038 | B61: ='SSO-TLT Random'!AG67*100 -> -22.59742303
A62: ='SSO-TLT Random'!AF68*100 -> 40.97124509 | B62: ='SSO-TLT Random'!AG68*100 -> -25.2868926
A63: ='SSO-TLT Random'!AF69*100 -> 42.48624862 | B63: ='SSO-TLT Random'!AG69*100 -> -25.55435753
A64: ='SSO-TLT Random'!AF70*100 -> 40.8776169 | B64: ='SSO-TLT Random'!AG70*100 -> -24.76048516
A65: ='SSO-TLT Random'!AF71*100 -> 41.77126332 | B65: ='SSO-TLT Random'!AG71*100 -> -25.05209749
A66: ='SSO-TLT Random'!AF72*100 -> 41.3226575 | B66: ='SSO-TLT Random'!AG72*100 -> -23.09313013
A67: ='SSO-TLT Random'!AF73*100 -> 41.1949419 | B67: ='SSO-TLT Random'!AG73*100 -> -27.22717283
A68: ='SSO-TLT Random'!AF74*100 -> 41.52916951 | B68: ='SSO-TLT Random'!AG74*100 -> -24.53067111
A69: ='SSO-TLT Random'!AF75*100 -> 42.41796617 | B69: ='SSO-TLT Random'!AG75*100 -> -26.45880834
A70: ='SSO-TLT Random'!AF76*100 -> 41.44908766 | B70: ='SSO-TLT Random'!AG76*100 -> -26.00384608
A71: ='SSO-TLT Random'!AF77*100 -> 40.9300311 | B71: ='SSO-TLT Random'!AG77*100 -> -25.79252118
A72: ='SSO-TLT Random'!AF78*100 -> 41.72040905 | B72: ='SSO-TLT Random'!AG78*100 -> -25.69499568
A73: ='SSO-TLT Random'!AF79*100 -> 40.93276759 | B73: ='SSO-TLT Random'!AG79*100 -> -24.17152656
A74: ='SSO-TLT Random'!AF80*100 -> 41.11991503 | B74: ='SSO-TLT Random'!AG80*100 -> -26.41859574
A75: ='SSO-TLT Random'!AF81*100 -> 41.77120783 | B75: ='SSO-TLT Random'!AG81*100 -> -25.54140089
A76: ='SSO-TLT Random'!AF82*100 -> 40.00668406 | B76: ='SSO-TLT Random'!AG82*100 -> -22.05192394
A77: ='SSO-TLT Random'!AF83*100 -> 40.86815631 | B77: ='SSO-TLT Random'!AG83*100 -> -24.65439247
A78: ='SSO-TLT Random'!AF84*100 -> 40.3498919 | B78: ='SSO-TLT Random'!AG84*100 -> -24.86532996
A79: ='SSO-TLT Random'!AF85*100 -> 41.42732129 | B79: ='SSO-TLT Random'!AG85*100 -> -22.8545101
A80: ='SSO-TLT Random'!AF86*100 -> 41.96277982 | B80: ='SSO-TLT Random'!AG86*100 -> -24.49706126
A81: ='SSO-TLT Random'!AF87*100 -> 40.57826206 | B81: ='SSO-TLT Random'!AG87*100 -> -26.18833733
A82: ='SSO-TLT Random'!AF88*100 -> 42.1272294 | B82: ='SSO-TLT Random'!AG88*100 -> -26.0948688
A83: ='SSO-TLT Random'!AF89*100 -> 39.73000989 | B83: ='SSO-TLT Random'!AG89*100 -> -25.68019372
A84: ='SSO-TLT Random'!AF90*100 -> 41.58407298 | B84: ='SSO-TLT Random'!AG90*100 -> -24.91726957
A85: ='SSO-TLT Random'!AF91*100 -> 42.24205428 | B85: ='SSO-TLT Random'!AG91*100 -> -24.33258595
A86: ='SSO-TLT Random'!AF92*100 -> 41.09371531 | B86: ='SSO-TLT Random'!AG92*100 -> -27.59467868
A87: ='SSO-TLT Random'!AF93*100 -> 41.5469493 | B87: ='SSO-TLT Random'!AG93*100 -> -24.06410077
A88: ='SSO-TLT Random'!AF94*100 -> 41.2963911 | B88: ='SSO-TLT Random'!AG94*100 -> -23.66116399
A89: ='SSO-TLT Random'!AF95*100 -> 41.04517524 | B89: ='SSO-TLT Random'!AG95*100 -> -25.96095936
A90: ='SSO-TLT Random'!AF96*100 -> 42.88076153 | B90: ='SSO-TLT Random'!AG96*100 -> -25.66389348
A91: ='SSO-TLT Random'!AF97*100 -> 42.07546556 | B91: ='SSO-TLT Random'!AG97*100 -> -23.9336271
A92: ='SSO-TLT Random'!AF98*100 -> 41.8167131 | B92: ='SSO-TLT Random'!AG98*100 -> -21.89841593
A93: ='SSO-TLT Random'!AF99*100 -> 39.37651207 | B93: ='SSO-TLT Random'!AG99*100 -> -25.36595433
A94: ='SSO-TLT Random'!AF100*100 -> 41.4684592 | B94: ='SSO-TLT Random'!AG100*100 -> -26.32808034
A95: ='SSO-TLT Random'!AF101*100 -> 41.14218791 | B95: ='SSO-TLT Random'!AG101*100 -> -25.44078771
A96: ='SSO-TLT Random'!AF102*100 -> 41.72322593 | B96: ='SSO-TLT Random'!AG102*100 -> -24.8169372
A97: ='SSO-TLT Random'!AF103*100 -> 42.05203576 | B97: ='SSO-TLT Random'!AG103*100 -> -24.70876934
A98: ='SSO-TLT Random'!AF104*100 -> 40.85369523 | B98: ='SSO-TLT Random'!AG104*100 -> -26.97508254
A99: ='SSO-TLT Random'!AF105*100 -> 40.62331471 | B99: ='SSO-TLT Random'!AG105*100 -> -23.0854516
A100: ='SSO-TLT Random'!AF106*100 -> 41.18115992 | B100: ='SSO-TLT Random'!AG106*100 -> -24.44832969
A101: ='SSO-TLT Random'!AF107*100 -> 40.98081997 | B101: ='SSO-TLT Random'!AG107*100 -> -25.83637485
A102: ='SSO-TLT Random'!AF108*100 -> 42.44989808 | B102: ='SSO-TLT Random'!AG108*100 -> -24.41994427
A103: ='SSO-TLT Random'!AF109*100 -> 41.74216418 | B103: ='SSO-TLT Random'!AG109*100 -> -24.7437141
A104: ='SSO-TLT Random'!AF110*100 -> 41.94439192 | B104: ='SSO-TLT Random'!AG110*100 -> -24.69597269
A105: ='SSO-TLT Random'!AF111*100 -> 41.72405698 | B105: ='SSO-TLT Random'!AG111*100 -> -24.0297767
A106: ='SSO-TLT Random'!AF112*100 -> 40.79047637 | B106: ='SSO-TLT Random'!AG112*100 -> -25.5366181
A107: ='SSO-TLT Random'!AF113*100 -> 42.27551723 | B107: ='SSO-TLT Random'!AG113*100 -> -26.24539105
A108: ='SSO-TLT Random'!AF114*100 -> 41.46385169 | B108: ='SSO-TLT Random'!AG114*100 -> -24.28937292
A109: ='SSO-TLT Random'!AF115*100 -> 41.20175401 | B109: ='SSO-TLT Random'!AG115*100 -> -26.77685682
A110: ='SSO-TLT Random'!AF116*100 -> 41.10663394 | B110: ='SSO-TLT Random'!AG116*100 -> -23.68064948
A111: ='SSO-TLT Random'!AF117*100 -> 42.79259098 | B111: ='SSO-TLT Random'!AG117*100 -> -24.17736824
A112: ='SSO-TLT Random'!AF118*100 -> 39.88650754 | B112: ='SSO-TLT Random'!AG118*100 -> -23.52769406
A113: ='SSO-TLT Random'!AF119*100 -> 39.47306404 | B113: ='SSO-TLT Random'!AG119*100 -> -25.46317619
A114: ='SSO-TLT Random'!AF120*100 -> 41.35446413 | B114: ='SSO-TLT Random'!AG120*100 -> -23.82861464
A115: ='SSO-TLT Random'!AF121*100 -> 39.84560345 | B115: ='SSO-TLT Random'!AG121*100 -> -24.89708811
A116: ='SSO-TLT Random'!AF122*100 -> 41.21471891 | B116: ='SSO-TLT Random'!AG122*100 -> -25.24499533
A117: ='SSO-TLT Random'!AF123*100 -> 41.37874476 | B117: ='SSO-TLT Random'!AG123*100 -> -25.14908136
A118: ='SSO-TLT Random'!AF124*100 -> 40.53830027 | B118: ='SSO-TLT Random'!AG124*100 -> -24.53885851
A119: ='SSO-TLT Random'!AF125*100 -> 43.09354553 | B119: ='SSO-TLT Random'!AG125*100 -> -23.56561001
A120: ='SSO-TLT Random'!AF126*100 -> 39.83206477 | B120: ='SSO-TLT Random'!AG126*100 -> -24.22534999
A121: ='SSO-TLT Random'!AF127*100 -> 41.38726297 | B121: ='SSO-TLT Random'!AG127*100 -> -25.65948176
A122: ='SSO-TLT Random'!AF128*100 -> 41.70263337 | B122: ='SSO-TLT Random'!AG128*100 -> -23.82427465
A123: ='SSO-TLT Random'!AF129*100 -> 40.97525544 | B123: ='SSO-TLT Random'!AG129*100 -> -25.29790821
A124: ='SSO-TLT Random'!AF130*100 -> 41.931796 | B124: ='SSO-TLT Random'!AG130*100 -> -25.56276817
A125: ='SSO-TLT Random'!AF131*100 -> 41.3406727 | B125: ='SSO-TLT Random'!AG131*100 -> -23.65267465
A126: ='SSO-TLT Random'!AF132*100 -> 41.06919666 | B126: ='SSO-TLT Random'!AG132*100 -> -25.65093541
A127: ='SSO-TLT Random'!AF133*100 -> 41.14206928 | B127: ='SSO-TLT Random'!AG133*100 -> -25.61571458
A128: ='SSO-TLT Random'!AF134*100 -> 41.71015706 | B128: ='SSO-TLT Random'!AG134*100 -> -23.59204266
A129: ='SSO-TLT Random'!AF135*100 -> 39.48671347 | B129: ='SSO-TLT Random'!AG135*100 -> -23.70283171
A130: ='SSO-TLT Random'!AF136*100 -> 41.07097196 | B130: ='SSO-TLT Random'!AG136*100 -> -22.03562912
A131: ='SSO-TLT Random'!AF137*100 -> 39.48898769 | B131: ='SSO-TLT Random'!AG137*100 -> -25.01538765
A132: ='SSO-TLT Random'!AF138*100 -> 42.47652615 | B132: ='SSO-TLT Random'!AG138*100 -> -24.0600262
A133: ='SSO-TLT Random'!AF139*100 -> 41.44653321 | B133: ='SSO-TLT Random'!AG139*100 -> -23.76951523
A134: ='SSO-TLT Random'!AF140*100 -> 40.93722052 | B134: ='SSO-TLT Random'!AG140*100 -> -25.64370144 | D134: =[1]!EVAL("Sgr",(A1:INDIRECT("b"&D1-1))) -> ExcelResult[3]
A135: ='SSO-TLT Random'!AF141*100 -> 41.55311199 | B135: ='SSO-TLT Random'!AG141*100 -> -24.60746112
A136: ='SSO-TLT Random'!AF142*100 -> 39.9113448 | B136: ='SSO-TLT Random'!AG142*100 -> -25.40605073
A137: ='SSO-TLT Random'!AF143*100 -> 40.04056462 | B137: ='SSO-TLT Random'!AG143*100 -> -22.86388006
A138: ='SSO-TLT Random'!AF144*100 -> 40.91580935 | B138: ='SSO-TLT Random'!AG144*100 -> -23.66834032
A139: ='SSO-TLT Random'!AF145*100 -> 39.68788361 | B139: ='SSO-TLT Random'!AG145*100 -> -24.73754916
A140: ='SSO-TLT Random'!AF146*100 -> 39.87685377 | B140: ='SSO-TLT Random'!AG146*100 -> -25.53791147
A141: ='SSO-TLT Random'!AF147*100 -> 41.36206356 | B141: ='SSO-TLT Random'!AG147*100 -> -22.95696918
A142: ='SSO-TLT Random'!AF148*100 -> 41.79298185 | B142: ='SSO-TLT Random'!AG148*100 -> -24.36253856
A143: ='SSO-TLT Random'!AF149*100 -> 42.5890576 | B143: ='SSO-TLT Random'!AG149*100 -> -25.25163196
A144: ='SSO-TLT Random'!AF150*100 -> 42.23986231 | B144: ='SSO-TLT Random'!AG150*100 -> -23.69273418
A145: ='SSO-TLT Random'!AF151*100 -> 42.36964201 | B145: ='SSO-TLT Random'!AG151*100 -> -24.59384588
A146: ='SSO-TLT Random'!AF152*100 -> 40.14651158 | B146: ='SSO-TLT Random'!AG152*100 -> -24.63428494
A147: ='SSO-TLT Random'!AF153*100 -> 39.58225673 | B147: ='SSO-TLT Random'!AG153*100 -> -25.82357488
A148: ='SSO-TLT Random'!AF154*100 -> 41.13662606 | B148: ='SSO-TLT Random'!AG154*100 -> -24.79880658
A149: ='SSO-TLT Random'!AF155*100 -> 41.44014582 | B149: ='SSO-TLT Random'!AG155*100 -> -23.73498021
A150: ='SSO-TLT Random'!AF156*100 -> 39.63659519 | B150: ='SSO-TLT Random'!AG156*100 -> -22.30859555
A151: ='SSO-TLT Random'!AF157*100 -> 41.05893814 | B151: ='SSO-TLT Random'!AG157*100 -> -26.57979836
A152: ='SSO-TLT Random'!AF158*100 -> 40.38380566 | B152: ='SSO-TLT Random'!AG158*100 -> -23.49336738
A153: ='SSO-TLT Random'!AF159*100 -> 41.56670262 | B153: ='SSO-TLT Random'!AG159*100 -> -24.59902889
A154: ='SSO-TLT Random'!AF160*100 -> 40.62473936 | B154: ='SSO-TLT Random'!AG160*100 -> -25.64388824
A155: ='SSO-TLT Random'!AF161*100 -> 40.73017964 | B155: ='SSO-TLT Random'!AG161*100 -> -24.46358574
A156: ='SSO-TLT Random'!AF162*100 -> 41.22027626 | B156: ='SSO-TLT Random'!AG162*100 -> -22.22998206
A157: ='SSO-TLT Random'!AF163*100 -> 41.70010949 | B157: ='SSO-TLT Random'!AG163*100 -> -23.9730132
A158: ='SSO-TLT Random'!AF164*100 -> 40.21135177 | B158: ='SSO-TLT Random'!AG164*100 -> -25.04982575
A159: ='SSO-TLT Random'!AF165*100 -> 41.80185841 | B159: ='SSO-TLT Random'!AG165*100 -> -25.33199441
A160: ='SSO-TLT Random'!AF166*100 -> 40.8891492 | B160: ='SSO-TLT Random'!AG166*100 -> -24.17566049
A161: ='SSO-TLT Random'!AF167*100 -> 42.02177479 | B161: ='SSO-TLT Random'!AG167*100 -> -25.19996658
A162: ='SSO-TLT Random'!AF168*100 -> 40.43567887 | B162: ='SSO-TLT Random'!AG168*100 -> -24.81672766
A163: ='SSO-TLT Random'!AF169*100 -> 41.08606838 | B163: ='SSO-TLT Random'!AG169*100 -> -23.53650006
A164: ='SSO-TLT Random'!AF170*100 -> 41.88795978 | B164: ='SSO-TLT Random'!AG170*100 -> -24.38611616
A165: ='SSO-TLT Random'!AF171*100 -> 41.21795072 | B165: ='SSO-TLT Random'!AG171*100 -> -24.34985828
A166: ='SSO-TLT Random'!AF172*100 -> 41.72122039 | B166: ='SSO-TLT Random'!AG172*100 -> -25.79051141
A167: ='SSO-TLT Random'!AF173*100 -> 42.19530258 | B167: ='SSO-TLT Random'!AG173*100 -> -26.17806506
A168: ='SSO-TLT Random'!AF174*100 -> 41.31725845 | B168: ='SSO-TLT Random'!AG174*100 -> -25.10256763
A169: ='SSO-TLT Random'!AF175*100 -> 43.06208546 | B169: ='SSO-TLT Random'!AG175*100 -> -26.0457512
A170: ='SSO-TLT Random'!AF176*100 -> 40.93047467 | B170: ='SSO-TLT Random'!AG176*100 -> -22.91956803
A171: ='SSO-TLT Random'!AF177*100 -> 41.74643297 | B171: ='SSO-TLT Random'!AG177*100 -> -25.24861875
A172: ='SSO-TLT Random'!AF178*100 -> 41.4568398 | B172: ='SSO-TLT Random'!AG178*100 -> -24.98861673
A173: ='SSO-TLT Random'!AF179*100 -> 41.13759647 | B173: ='SSO-TLT Random'!AG179*100 -> -23.18814021
A174: ='SSO-TLT Random'!AF180*100 -> 41.24234039 | B174: ='SSO-TLT Random'!AG180*100 -> -24.87558044
A175: ='SSO-TLT Random'!AF181*100 -> 39.69169805 | B175: ='SSO-TLT Random'!AG181*100 -> -27.20316888
A176: ='SSO-TLT Random'!AF182*100 -> 40.38984552 | B176: ='SSO-TLT Random'!AG182*100 -> -26.80276243
A177: ='SSO-TLT Random'!AF183*100 -> 40.65096862 | B177: ='SSO-TLT Random'!AG183*100 -> -25.23907396
A178: ='SSO-TLT Random'!AF184*100 -> 41.838367 | B178: ='SSO-TLT Random'!AG184*100 -> -24.58058587
A179: ='SSO-TLT Random'!AF185*100 -> 42.20528066 | B179: ='SSO-TLT Random'!AG185*100 -> -24.43571046
A180: ='SSO-TLT Random'!AF186*100 -> 42.17290237 | B180: ='SSO-TLT Random'!AG186*100 -> -25.46459121
A181: ='SSO-TLT Random'!AF187*100 -> 39.98591025 | B181: ='SSO-TLT Random'!AG187*100 -> -26.11588429
A182: ='SSO-TLT Random'!AF188*100 -> 41.31607642 | B182: ='SSO-TLT Random'!AG188*100 -> -24.27696021
A183: ='SSO-TLT Random'!AF189*100 -> 41.94833054 | B183: ='SSO-TLT Random'!AG189*100 -> -24.0794659
A184: ='SSO-TLT Random'!AF190*100 -> 41.98145121 | B184: ='SSO-TLT Random'!AG190*100 -> -26.73774447
A185: ='SSO-TLT Random'!AF191*100 -> 40.91048699 | B185: ='SSO-TLT Random'!AG191*100 -> -24.55228932
A186: ='SSO-TLT Random'!AF192*100 -> 41.23274047 | B186: ='SSO-TLT Random'!AG192*100 -> -24.37618542
A187: ='SSO-TLT Random'!AF193*100 -> 41.65111885 | B187: ='SSO-TLT Random'!AG193*100 -> -25.69762564
A188: ='SSO-TLT Random'!AF194*100 -> 41.27872631 | B188: ='SSO-TLT Random'!AG194*100 -> -23.73075114
A189: ='SSO-TLT Random'!AF195*100 -> 41.35280487 | B189: ='SSO-TLT Random'!AG195*100 -> -22.82190449
A190: ='SSO-TLT Random'!AF196*100 -> 41.29543141 | B190: ='SSO-TLT Random'!AG196*100 -> -24.64564517
A191: ='SSO-TLT Random'!AF197*100 -> 40.83120986 | B191: ='SSO-TLT Random'!AG197*100 -> -23.55538526
A192: ='SSO-TLT Random'!AF198*100 -> 42.38695442 | B192: ='SSO-TLT Random'!AG198*100 -> -25.10350667
A193: ='SSO-TLT Random'!AF199*100 -> 40.57098935 | B193: ='SSO-TLT Random'!AG199*100 -> -25.73869341
A194: ='SSO-TLT Random'!AF200*100 -> 39.50135486 | B194: ='SSO-TLT Random'!AG200*100 -> -25.78231797
A195: ='SSO-TLT Random'!AF201*100 -> 40.16433587 | B195: ='SSO-TLT Random'!AG201*100 -> -24.16668664
A196: ='SSO-TLT Random'!AF202*100 -> 41.36079835 | B196: ='SSO-TLT Random'!AG202*100 -> -26.06209913
A197: ='SSO-TLT Random'!AF203*100 -> 42.03708866 | B197: ='SSO-TLT Random'!AG203*100 -> -27.24779572
A198: ='SSO-TLT Random'!AF204*100 -> 40.9962889 | B198: ='SSO-TLT Random'!AG204*100 -> -25.35724905
A199: ='SSO-TLT Random'!AF205*100 -> 42.17202643 | B199: ='SSO-TLT Random'!AG205*100 -> -26.08697764
A200: ='SSO-TLT Random'!AF206*100 -> 41.12960311 | B200: ='SSO-TLT Random'!AG206*100 -> -24.99872684
... 2991 more rows

Sheet SPY Mathematica
A1: ='SPY-TLT Random'!AF7*100 -> 27.23763107 | B1: ='SPY-TLT Random'!AG7*100 -> -14.50768421 | D1: =MATCH(0,A:A,0) -> 2001 | F1: =Tables!F9*100 -> 26.84644374 | G1: =Tables!F10*100 -> -14.10396435 | K1: This needs a link to Wolfram Mathematica
A2: ='SPY-TLT Random'!AF8*100 -> 28.05082229 | B2: ='SPY-TLT Random'!AG8*100 -> -14.44261018 | F2: 0 | G2: 0
A3: ='SPY-TLT Random'!AF9*100 -> 26.63204467 | B3: ='SPY-TLT Random'!AG9*100 -> -14.68080534 | D3: =[1]!EVAL("Histogram",A1:INDIRECT("a"&D1-1),"ImageSize -> {330, 240}") -> ExcelGraphic[4] | F3: 0 | G3: 0 | I3: AxesLabel->{"%","N"}
A4: ='SPY-TLT Random'!AF10*100 -> 26.68091511 | B4: ='SPY-TLT Random'!AG10*100 -> -14.85249465 | D4: =[1]!EVAL("Histogram",B1:INDIRECT("b"&D1-1),"ImageSize -> {330, 240}") -> ExcelGraphic[1] | F4: 0 | G4: 0
A5: ='SPY-TLT Random'!AF11*100 -> 27.53039902 | B5: ='SPY-TLT Random'!AG11*100 -> -14.71747207 | F5: 0 | G5: 0
A6: ='SPY-TLT Random'!AF12*100 -> 27.18472773 | B6: ='SPY-TLT Random'!AG12*100 -> -15.18068096 | F6: 0 | G6: 0 | J6: AxesLabel->{"% CAGR","% DrawDown" }
A7: ='SPY-TLT Random'!AF13*100 -> 27.03336296 | B7: ='SPY-TLT Random'!AG13*100 -> -15.06096294 | F7: =Tables!I9*100 -> 27.0113241 | G7: =Tables!I10*100 -> -15.07754141
A8: ='SPY-TLT Random'!AF14*100 -> 27.23527447 | B8: ='SPY-TLT Random'!AG14*100 -> -15.06082424 | D8: =[1]!EVAL("SmoothHistogram3D",A1:INDIRECT("b"&D1-1),"PlotRange -> {{25,29}, {-12.5,-17.5}}","Mesh->{7,11}","MeshFunctions -> {#1 &, #2 &}","ViewPoint -> {-5, 5, 1.5}","ImageSize -> {330, 240}") -> ExcelGraphic[3] | F8: 0 | G8: 0
A9: ='SPY-TLT Random'!AF15*100 -> 27.57867609 | B9: ='SPY-TLT Random'!AG15*100 -> -15.1684706 | D9: =[1]!EVAL("SmoothHistogram3D",A1:INDIRECT("b"&D1-1),"PlotRange -> {{25,29}, {-12,-18}}","Mesh->{13,18}","MeshFunctions -> {#1 &, #2 &}","ViewPoint -> {5,- 5, 3}","ImageSize -> {300, 220}","ImageSize -> {330, 240}") -> ExcelGraphic[2] | F9: 0 | G9: 0
A10: ='SPY-TLT Random'!AF16*100 -> 26.66861193 | B10: ='SPY-TLT Random'!AG16*100 -> -14.26407539 | F10: 0 | G10: 0
A11: ='SPY-TLT Random'!AF17*100 -> 27.24520754 | B11: ='SPY-TLT Random'!AG17*100 -> -14.70170668 | D11: =[1]!EVAL("ScatterGraph",(A1:INDIRECT("b"&D1-1)),F1:G3,F4:G7,F18:G23,F8:G12,F13:G17) -> ExcelResult[1] | F11: 0 | G11: 0
A12: ='SPY-TLT Random'!AF18*100 -> 27.20271057 | B12: ='SPY-TLT Random'!AG18*100 -> -14.14755627 | F12: =Tables!G9*100 -> 27.08329926 | G12: =Tables!G10*100 -> -14.07403483
A13: ='SPY-TLT Random'!AF19*100 -> 26.73732047 | B13: ='SPY-TLT Random'!AG19*100 -> -14.98329632 | F13: 0 | G13: 0
A14: ='SPY-TLT Random'!AF20*100 -> 26.85698493 | B14: ='SPY-TLT Random'!AG20*100 -> -13.63795192 | F14: 0 | G14: 0
A15: ='SPY-TLT Random'!AF21*100 -> 27.57756248 | B15: ='SPY-TLT Random'!AG21*100 -> -15.02970792 | F15: 0 | G15: 0
A16: ='SPY-TLT Random'!AF22*100 -> 27.23175011 | B16: ='SPY-TLT Random'!AG22*100 -> -15.96779219 | F16: 0 | G16: 0
A17: ='SPY-TLT Random'!AF23*100 -> 26.77423391 | B17: ='SPY-TLT Random'!AG23*100 -> -15.07092817 | F17: =Tables!H9*100 -> 26.77336327 | G17: =Tables!H10*100 -> -14.57676745
A18: ='SPY-TLT Random'!AF24*100 -> 27.30288707 | B18: ='SPY-TLT Random'!AG24*100 -> -14.60942441 | F18: 0 | G18: 0
A19: ='SPY-TLT Random'!AF25*100 -> 27.06310792 | B19: ='SPY-TLT Random'!AG25*100 -> -13.86831159 | F19: 0 | G19: 0
A20: ='SPY-TLT Random'!AF26*100 -> 26.35283359 | B20: ='SPY-TLT Random'!AG26*100 -> -15.27471902 | F20: 0 | G20: 0
A21: ='SPY-TLT Random'!AF27*100 -> 26.87919803 | B21: ='SPY-TLT Random'!AG27*100 -> -16.12117066 | F21: 26.15025058 | G21: -15.13399746 | I21: 26.15025058 | J21: -15.13399746
A22: ='SPY-TLT Random'!AF28*100 -> 27.57662464 | B22: ='SPY-TLT Random'!AG28*100 -> -16.2776308 | F22: 0 | G22: 0
A23: ='SPY-TLT Random'!AF29*100 -> 26.78714079 | B23: ='SPY-TLT Random'!AG29*100 -> -15.04544193 | F23: 0 | G23: 0
A24: ='SPY-TLT Random'!AF30*100 -> 26.3142668 | B24: ='SPY-TLT Random'!AG30*100 -> -14.21737057
A25: ='SPY-TLT Random'!AF31*100 -> 27.81376365 | B25: ='SPY-TLT Random'!AG31*100 -> -13.88754796
A26: ='SPY-TLT Random'!AF32*100 -> 27.85575858 | B26: ='SPY-TLT Random'!AG32*100 -> -14.69323165
A27: ='SPY-TLT Random'!AF33*100 -> 27.11670804 | B27: ='SPY-TLT Random'!AG33*100 -> -14.65176052
A28: ='SPY-TLT Random'!AF34*100 -> 26.96387815 | B28: ='SPY-TLT Random'!AG34*100 -> -14.56272388
A29: ='SPY-TLT Random'!AF35*100 -> 27.49392508 | B29: ='SPY-TLT Random'!AG35*100 -> -14.90015992
A30: ='SPY-TLT Random'!AF36*100 -> 26.67426953 | B30: ='SPY-TLT Random'!AG36*100 -> -14.30308072
A31: ='SPY-TLT Random'!AF37*100 -> 27.31509422 | B31: ='SPY-TLT Random'!AG37*100 -> -14.55936614
A32: ='SPY-TLT Random'!AF38*100 -> 26.87872274 | B32: ='SPY-TLT Random'!AG38*100 -> -15.99949624
A33: ='SPY-TLT Random'!AF39*100 -> 27.42339108 | B33: ='SPY-TLT Random'!AG39*100 -> -14.4789687
A34: ='SPY-TLT Random'!AF40*100 -> 27.22179207 | B34: ='SPY-TLT Random'!AG40*100 -> -14.64462602
A35: ='SPY-TLT Random'!AF41*100 -> 26.97819069 | B35: ='SPY-TLT Random'!AG41*100 -> -13.92912117
A36: ='SPY-TLT Random'!AF42*100 -> 26.38158049 | B36: ='SPY-TLT Random'!AG42*100 -> -15.90557364
A37: ='SPY-TLT Random'!AF43*100 -> 26.75419373 | B37: ='SPY-TLT Random'!AG43*100 -> -14.30696395
A38: ='SPY-TLT Random'!AF44*100 -> 27.06685652 | B38: ='SPY-TLT Random'!AG44*100 -> -13.95025725
A39: ='SPY-TLT Random'!AF45*100 -> 27.13830435 | B39: ='SPY-TLT Random'!AG45*100 -> -16.03838183
A40: ='SPY-TLT Random'!AF46*100 -> 27.47497662 | B40: ='SPY-TLT Random'!AG46*100 -> -14.96744696
A41: ='SPY-TLT Random'!AF47*100 -> 27.81111266 | B41: ='SPY-TLT Random'!AG47*100 -> -15.64621367
A42: ='SPY-TLT Random'!AF48*100 -> 27.72655783 | B42: ='SPY-TLT Random'!AG48*100 -> -14.26358744
A43: ='SPY-TLT Random'!AF49*100 -> 27.64002898 | B43: ='SPY-TLT Random'!AG49*100 -> -15.04368196
A44: ='SPY-TLT Random'!AF50*100 -> 27.7219682 | B44: ='SPY-TLT Random'!AG50*100 -> -14.90258538
A45: ='SPY-TLT Random'!AF51*100 -> 26.47810873 | B45: ='SPY-TLT Random'!AG51*100 -> -15.17559762
A46: ='SPY-TLT Random'!AF52*100 -> 27.93030238 | B46: ='SPY-TLT Random'!AG52*100 -> -14.0920591
A47: ='SPY-TLT Random'!AF53*100 -> 26.34603619 | B47: ='SPY-TLT Random'!AG53*100 -> -15.61218808
A48: ='SPY-TLT Random'!AF54*100 -> 26.99240156 | B48: ='SPY-TLT Random'!AG54*100 -> -14.25694002
A49: ='SPY-TLT Random'!AF55*100 -> 26.7578592 | B49: ='SPY-TLT Random'!AG55*100 -> -14.37001377
A50: ='SPY-TLT Random'!AF56*100 -> 28.079854 | B50: ='SPY-TLT Random'!AG56*100 -> -14.03031568
A51: ='SPY-TLT Random'!AF57*100 -> 27.37630339 | B51: ='SPY-TLT Random'!AG57*100 -> -14.23929627
A52: ='SPY-TLT Random'!AF58*100 -> 27.08589702 | B52: ='SPY-TLT Random'!AG58*100 -> -14.43168416
A53: ='SPY-TLT Random'!AF59*100 -> 27.35449966 | B53: ='SPY-TLT Random'!AG59*100 -> -14.95082087
A54: ='SPY-TLT Random'!AF60*100 -> 26.84987713 | B54: ='SPY-TLT Random'!AG60*100 -> -15.34285321
A55: ='SPY-TLT Random'!AF61*100 -> 27.07531691 | B55: ='SPY-TLT Random'!AG61*100 -> -14.84744621
A56: ='SPY-TLT Random'!AF62*100 -> 27.71641864 | B56: ='SPY-TLT Random'!AG62*100 -> -15.58321024
A57: ='SPY-TLT Random'!AF63*100 -> 26.37041745 | B57: ='SPY-TLT Random'!AG63*100 -> -13.6010965
A58: ='SPY-TLT Random'!AF64*100 -> 27.97045632 | B58: ='SPY-TLT Random'!AG64*100 -> -15.06809421
A59: ='SPY-TLT Random'!AF65*100 -> 27.1183931 | B59: ='SPY-TLT Random'!AG65*100 -> -15.8559147
A60: ='SPY-TLT Random'!AF66*100 -> 27.17844198 | B60: ='SPY-TLT Random'!AG66*100 -> -14.81873633
A61: ='SPY-TLT Random'!AF67*100 -> 27.31220618 | B61: ='SPY-TLT Random'!AG67*100 -> -16.30710999
A62: ='SPY-TLT Random'!AF68*100 -> 27.33692679 | B62: ='SPY-TLT Random'!AG68*100 -> -14.09330315
A63: ='SPY-TLT Random'!AF69*100 -> 26.87326389 | B63: ='SPY-TLT Random'!AG69*100 -> -14.46223467
A64: ='SPY-TLT Random'!AF70*100 -> 27.34708922 | B64: ='SPY-TLT Random'!AG70*100 -> -14.72981176
A65: ='SPY-TLT Random'!AF71*100 -> 27.00550024 | B65: ='SPY-TLT Random'!AG71*100 -> -14.15007439
A66: ='SPY-TLT Random'!AF72*100 -> 26.9802633 | B66: ='SPY-TLT Random'!AG72*100 -> -15.08527442
A67: ='SPY-TLT Random'!AF73*100 -> 27.20784191 | B67: ='SPY-TLT Random'!AG73*100 -> -15.08262664
A68: ='SPY-TLT Random'!AF74*100 -> 27.18430151 | B68: ='SPY-TLT Random'!AG74*100 -> -15.04027646
A69: ='SPY-TLT Random'!AF75*100 -> 27.38478652 | B69: ='SPY-TLT Random'!AG75*100 -> -15.15188156
A70: ='SPY-TLT Random'!AF76*100 -> 26.80215539 | B70: ='SPY-TLT Random'!AG76*100 -> -15.44250556
A71: ='SPY-TLT Random'!AF77*100 -> 26.88397987 | B71: ='SPY-TLT Random'!AG77*100 -> -14.96867147
A72: ='SPY-TLT Random'!AF78*100 -> 27.84260909 | B72: ='SPY-TLT Random'!AG78*100 -> -14.01165234
A73: ='SPY-TLT Random'!AF79*100 -> 27.39792028 | B73: ='SPY-TLT Random'!AG79*100 -> -14.6716326
A74: ='SPY-TLT Random'!AF80*100 -> 27.50956299 | B74: ='SPY-TLT Random'!AG80*100 -> -14.72439094
A75: ='SPY-TLT Random'!AF81*100 -> 27.70639781 | B75: ='SPY-TLT Random'!AG81*100 -> -13.66223989
A76: ='SPY-TLT Random'!AF82*100 -> 27.17260596 | B76: ='SPY-TLT Random'!AG82*100 -> -14.95263802
A77: ='SPY-TLT Random'!AF83*100 -> 27.49820901 | B77: ='SPY-TLT Random'!AG83*100 -> -14.41679092
A78: ='SPY-TLT Random'!AF84*100 -> 27.64367213 | B78: ='SPY-TLT Random'!AG84*100 -> -14.99741158
A79: ='SPY-TLT Random'!AF85*100 -> 26.77091698 | B79: ='SPY-TLT Random'!AG85*100 -> -15.28299037
A80: ='SPY-TLT Random'!AF86*100 -> 27.10027696 | B80: ='SPY-TLT Random'!AG86*100 -> -14.97954133
A81: ='SPY-TLT Random'!AF87*100 -> 26.81057137 | B81: ='SPY-TLT Random'!AG87*100 -> -16.0461575
A82: ='SPY-TLT Random'!AF88*100 -> 26.73897316 | B82: ='SPY-TLT Random'!AG88*100 -> -14.16831588
A83: ='SPY-TLT Random'!AF89*100 -> 26.53477914 | B83: ='SPY-TLT Random'!AG89*100 -> -14.86236353
A84: ='SPY-TLT Random'!AF90*100 -> 26.80957345 | B84: ='SPY-TLT Random'!AG90*100 -> -15.40035905
A85: ='SPY-TLT Random'!AF91*100 -> 26.27573934 | B85: ='SPY-TLT Random'!AG91*100 -> -14.42811727
A86: ='SPY-TLT Random'!AF92*100 -> 26.85974703 | B86: ='SPY-TLT Random'!AG92*100 -> -14.79294466
A87: ='SPY-TLT Random'!AF93*100 -> 27.12957561 | B87: ='SPY-TLT Random'!AG93*100 -> -15.60541331
A88: ='SPY-TLT Random'!AF94*100 -> 27.34642499 | B88: ='SPY-TLT Random'!AG94*100 -> -14.70730608
A89: ='SPY-TLT Random'!AF95*100 -> 27.16164003 | B89: ='SPY-TLT Random'!AG95*100 -> -15.15322189
A90: ='SPY-TLT Random'!AF96*100 -> 27.12592019 | B90: ='SPY-TLT Random'!AG96*100 -> -16.04312616
A91: ='SPY-TLT Random'!AF97*100 -> 27.03905931 | B91: ='SPY-TLT Random'!AG97*100 -> -16.24488021
A92: ='SPY-TLT Random'!AF98*100 -> 27.46835291 | B92: ='SPY-TLT Random'!AG98*100 -> -15.25255229
A93: ='SPY-TLT Random'!AF99*100 -> 27.24591538 | B93: ='SPY-TLT Random'!AG99*100 -> -14.69795908
A94: ='SPY-TLT Random'!AF100*100 -> 27.08004205 | B94: ='SPY-TLT Random'!AG100*100 -> -14.86935525
A95: ='SPY-TLT Random'!AF101*100 -> 26.62827139 | B95: ='SPY-TLT Random'!AG101*100 -> -14.44189139
A96: ='SPY-TLT Random'!AF102*100 -> 27.72539014 | B96: ='SPY-TLT Random'!AG102*100 -> -15.13012832
A97: ='SPY-TLT Random'!AF103*100 -> 26.60024225 | B97: ='SPY-TLT Random'!AG103*100 -> -14.4292691
A98: ='SPY-TLT Random'!AF104*100 -> 26.66364272 | B98: ='SPY-TLT Random'!AG104*100 -> -14.66434021
A99: ='SPY-TLT Random'!AF105*100 -> 27.01998552 | B99: ='SPY-TLT Random'!AG105*100 -> -15.25831852
A100: ='SPY-TLT Random'!AF106*100 -> 27.39916714 | B100: ='SPY-TLT Random'!AG106*100 -> -15.18345311
A101: ='SPY-TLT Random'!AF107*100 -> 26.91731327 | B101: ='SPY-TLT Random'!AG107*100 -> -15.33232344
A102: ='SPY-TLT Random'!AF108*100 -> 27.33100463 | B102: ='SPY-TLT Random'!AG108*100 -> -14.35414034
A103: ='SPY-TLT Random'!AF109*100 -> 27.26264179 | B103: ='SPY-TLT Random'!AG109*100 -> -14.4947352
A104: ='SPY-TLT Random'!AF110*100 -> 27.38127039 | B104: ='SPY-TLT Random'!AG110*100 -> -15.8190206
A105: ='SPY-TLT Random'!AF111*100 -> 27.05314194 | B105: ='SPY-TLT Random'!AG111*100 -> -16.19944587
A106: ='SPY-TLT Random'!AF112*100 -> 26.78320075 | B106: ='SPY-TLT Random'!AG112*100 -> -14.52015586
A107: ='SPY-TLT Random'!AF113*100 -> 26.75144048 | B107: ='SPY-TLT Random'!AG113*100 -> -14.90216568
A108: ='SPY-TLT Random'!AF114*100 -> 26.09860675 | B108: ='SPY-TLT Random'!AG114*100 -> -14.14219838
A109: ='SPY-TLT Random'!AF115*100 -> 27.1830539 | B109: ='SPY-TLT Random'!AG115*100 -> -14.49970459
A110: ='SPY-TLT Random'!AF116*100 -> 26.80605729 | B110: ='SPY-TLT Random'!AG116*100 -> -14.51945153
A111: ='SPY-TLT Random'!AF117*100 -> 26.64282852 | B111: ='SPY-TLT Random'!AG117*100 -> -14.15983432
A112: ='SPY-TLT Random'!AF118*100 -> 27.76141126 | B112: ='SPY-TLT Random'!AG118*100 -> -14.45768919
A113: ='SPY-TLT Random'!AF119*100 -> 26.92015981 | B113: ='SPY-TLT Random'!AG119*100 -> -14.69806198
A114: ='SPY-TLT Random'!AF120*100 -> 27.349951 | B114: ='SPY-TLT Random'!AG120*100 -> -15.93266565
A115: ='SPY-TLT Random'!AF121*100 -> 27.35210923 | B115: ='SPY-TLT Random'!AG121*100 -> -15.26307427
A116: ='SPY-TLT Random'!AF122*100 -> 26.79247764 | B116: ='SPY-TLT Random'!AG122*100 -> -14.25442407
A117: ='SPY-TLT Random'!AF123*100 -> 26.198866 | B117: ='SPY-TLT Random'!AG123*100 -> -15.43908739
A118: ='SPY-TLT Random'!AF124*100 -> 26.80998302 | B118: ='SPY-TLT Random'!AG124*100 -> -14.40419417
A119: ='SPY-TLT Random'!AF125*100 -> 27.37218722 | B119: ='SPY-TLT Random'!AG125*100 -> -15.95226588
A120: ='SPY-TLT Random'!AF126*100 -> 26.80517469 | B120: ='SPY-TLT Random'!AG126*100 -> -15.24773537
A121: ='SPY-TLT Random'!AF127*100 -> 26.85134422 | B121: ='SPY-TLT Random'!AG127*100 -> -14.8486463
A122: ='SPY-TLT Random'!AF128*100 -> 27.30947821 | B122: ='SPY-TLT Random'!AG128*100 -> -14.94728219
A123: ='SPY-TLT Random'!AF129*100 -> 27.42454802 | B123: ='SPY-TLT Random'!AG129*100 -> -15.1428807
A124: ='SPY-TLT Random'!AF130*100 -> 27.64087293 | B124: ='SPY-TLT Random'!AG130*100 -> -14.33580226
A125: ='SPY-TLT Random'!AF131*100 -> 26.75770331 | B125: ='SPY-TLT Random'!AG131*100 -> -14.59415953
A126: ='SPY-TLT Random'!AF132*100 -> 27.27996645 | B126: ='SPY-TLT Random'!AG132*100 -> -15.5871642
A127: ='SPY-TLT Random'!AF133*100 -> 27.19781621 | B127: ='SPY-TLT Random'!AG133*100 -> -14.67984804
A128: ='SPY-TLT Random'!AF134*100 -> 27.00824582 | B128: ='SPY-TLT Random'!AG134*100 -> -14.28518725
A129: ='SPY-TLT Random'!AF135*100 -> 27.12170483 | B129: ='SPY-TLT Random'!AG135*100 -> -14.36754143
A130: ='SPY-TLT Random'!AF136*100 -> 28.12847885 | B130: ='SPY-TLT Random'!AG136*100 -> -14.54810095
A131: ='SPY-TLT Random'!AF137*100 -> 27.00477838 | B131: ='SPY-TLT Random'!AG137*100 -> -14.36104415
A132: ='SPY-TLT Random'!AF138*100 -> 26.93794426 | B132: ='SPY-TLT Random'!AG138*100 -> -13.94199095
A133: ='SPY-TLT Random'!AF139*100 -> 27.17398304 | B133: ='SPY-TLT Random'!AG139*100 -> -15.65434789
A134: ='SPY-TLT Random'!AF140*100 -> 27.01069247 | B134: ='SPY-TLT Random'!AG140*100 -> -14.82798566
A135: ='SPY-TLT Random'!AF141*100 -> 27.36338853 | B135: ='SPY-TLT Random'!AG141*100 -> -14.81118177
A136: ='SPY-TLT Random'!AF142*100 -> 27.13339384 | B136: ='SPY-TLT Random'!AG142*100 -> -15.23554664
A137: ='SPY-TLT Random'!AF143*100 -> 27.97866208 | B137: ='SPY-TLT Random'!AG143*100 -> -14.94907527
A138: ='SPY-TLT Random'!AF144*100 -> 27.1933175 | B138: ='SPY-TLT Random'!AG144*100 -> -13.77620009
A139: ='SPY-TLT Random'!AF145*100 -> 26.65060091 | B139: ='SPY-TLT Random'!AG145*100 -> -15.30850019
A140: ='SPY-TLT Random'!AF146*100 -> 27.24480346 | B140: ='SPY-TLT Random'!AG146*100 -> -16.14480826
A141: ='SPY-TLT Random'!AF147*100 -> 27.41064464 | B141: ='SPY-TLT Random'!AG147*100 -> -14.42019335
A142: ='SPY-TLT Random'!AF148*100 -> 27.00848259 | B142: ='SPY-TLT Random'!AG148*100 -> -14.4383985
A143: ='SPY-TLT Random'!AF149*100 -> 27.82765243 | B143: ='SPY-TLT Random'!AG149*100 -> -14.11790136
A144: ='SPY-TLT Random'!AF150*100 -> 27.21397321 | B144: ='SPY-TLT Random'!AG150*100 -> -14.23241668
A145: ='SPY-TLT Random'!AF151*100 -> 27.11559026 | B145: ='SPY-TLT Random'!AG151*100 -> -16.46423443
A146: ='SPY-TLT Random'!AF152*100 -> 26.90417726 | B146: ='SPY-TLT Random'!AG152*100 -> -15.76950721
A147: ='SPY-TLT Random'!AF153*100 -> 27.17951764 | B147: ='SPY-TLT Random'!AG153*100 -> -14.40591679
A148: ='SPY-TLT Random'!AF154*100 -> 27.54855591 | B148: ='SPY-TLT Random'!AG154*100 -> -15.1966976
A149: ='SPY-TLT Random'!AF155*100 -> 27.57337996 | B149: ='SPY-TLT Random'!AG155*100 -> -15.02184339
A150: ='SPY-TLT Random'!AF156*100 -> 27.04410847 | B150: ='SPY-TLT Random'!AG156*100 -> -13.62340602
A151: ='SPY-TLT Random'!AF157*100 -> 27.28113749 | B151: ='SPY-TLT Random'!AG157*100 -> -14.95028465
A152: ='SPY-TLT Random'!AF158*100 -> 26.84003884 | B152: ='SPY-TLT Random'!AG158*100 -> -15.19076654
A153: ='SPY-TLT Random'!AF159*100 -> 26.95495247 | B153: ='SPY-TLT Random'!AG159*100 -> -14.52002258
A154: ='SPY-TLT Random'!AF160*100 -> 27.0409343 | B154: ='SPY-TLT Random'!AG160*100 -> -14.22520956
A155: ='SPY-TLT Random'!AF161*100 -> 26.26141299 | B155: ='SPY-TLT Random'!AG161*100 -> -14.73584091
A156: ='SPY-TLT Random'!AF162*100 -> 27.32432413 | B156: ='SPY-TLT Random'!AG162*100 -> -14.5505393
A157: ='SPY-TLT Random'!AF163*100 -> 26.99036066 | B157: ='SPY-TLT Random'!AG163*100 -> -14.77404718
A158: ='SPY-TLT Random'!AF164*100 -> 26.38599832 | B158: ='SPY-TLT Random'!AG164*100 -> -14.52411177
A159: ='SPY-TLT Random'!AF165*100 -> 26.93716745 | B159: ='SPY-TLT Random'!AG165*100 -> -14.42157451
A160: ='SPY-TLT Random'!AF166*100 -> 27.59457965 | B160: ='SPY-TLT Random'!AG166*100 -> -14.30734856
A161: ='SPY-TLT Random'!AF167*100 -> 27.56679248 | B161: ='SPY-TLT Random'!AG167*100 -> -15.55028412
A162: ='SPY-TLT Random'!AF168*100 -> 26.92424807 | B162: ='SPY-TLT Random'!AG168*100 -> -14.24707034
A163: ='SPY-TLT Random'!AF169*100 -> 27.91336862 | B163: ='SPY-TLT Random'!AG169*100 -> -15.21907299
A164: ='SPY-TLT Random'!AF170*100 -> 26.62763816 | B164: ='SPY-TLT Random'!AG170*100 -> -15.67280346
A165: ='SPY-TLT Random'!AF171*100 -> 27.17754584 | B165: ='SPY-TLT Random'!AG171*100 -> -14.46843475
A166: ='SPY-TLT Random'!AF172*100 -> 26.28345461 | B166: ='SPY-TLT Random'!AG172*100 -> -15.33408269
A167: ='SPY-TLT Random'!AF173*100 -> 27.03451026 | B167: ='SPY-TLT Random'!AG173*100 -> -14.14288422
A168: ='SPY-TLT Random'!AF174*100 -> 26.9233407 | B168: ='SPY-TLT Random'!AG174*100 -> -14.97145359
A169: ='SPY-TLT Random'!AF175*100 -> 27.04223611 | B169: ='SPY-TLT Random'!AG175*100 -> -14.24304809
A170: ='SPY-TLT Random'!AF176*100 -> 26.79634001 | B170: ='SPY-TLT Random'!AG176*100 -> -13.94942327
A171: ='SPY-TLT Random'!AF177*100 -> 27.92647113 | B171: ='SPY-TLT Random'!AG177*100 -> -14.66523325
A172: ='SPY-TLT Random'!AF178*100 -> 27.43802472 | B172: ='SPY-TLT Random'!AG178*100 -> -15.71872562
A173: ='SPY-TLT Random'!AF179*100 -> 27.82278868 | B173: ='SPY-TLT Random'!AG179*100 -> -14.60010872
A174: ='SPY-TLT Random'!AF180*100 -> 27.17300995 | B174: ='SPY-TLT Random'!AG180*100 -> -14.24777449
A175: ='SPY-TLT Random'!AF181*100 -> 26.79801416 | B175: ='SPY-TLT Random'!AG181*100 -> -13.87520624
A176: ='SPY-TLT Random'!AF182*100 -> 27.00639908 | B176: ='SPY-TLT Random'!AG182*100 -> -14.64248323
A177: ='SPY-TLT Random'!AF183*100 -> 26.80539778 | B177: ='SPY-TLT Random'!AG183*100 -> -14.79228686
A178: ='SPY-TLT Random'!AF184*100 -> 26.56939624 | B178: ='SPY-TLT Random'!AG184*100 -> -15.21309281
A179: ='SPY-TLT Random'!AF185*100 -> 27.27827353 | B179: ='SPY-TLT Random'!AG185*100 -> -14.84415159
A180: ='SPY-TLT Random'!AF186*100 -> 27.189653 | B180: ='SPY-TLT Random'!AG186*100 -> -14.37510528
A181: ='SPY-TLT Random'!AF187*100 -> 27.68512448 | B181: ='SPY-TLT Random'!AG187*100 -> -14.81249505
A182: ='SPY-TLT Random'!AF188*100 -> 26.87462073 | B182: ='SPY-TLT Random'!AG188*100 -> -15.28402967
A183: ='SPY-TLT Random'!AF189*100 -> 26.97389321 | B183: ='SPY-TLT Random'!AG189*100 -> -15.23047716
A184: ='SPY-TLT Random'!AF190*100 -> 27.05003734 | B184: ='SPY-TLT Random'!AG190*100 -> -16.08364016
A185: ='SPY-TLT Random'!AF191*100 -> 28.01903959 | B185: ='SPY-TLT Random'!AG191*100 -> -14.74754504
A186: ='SPY-TLT Random'!AF192*100 -> 27.30608026 | B186: ='SPY-TLT Random'!AG192*100 -> -15.33423068
A187: ='SPY-TLT Random'!AF193*100 -> 26.8339366 | B187: ='SPY-TLT Random'!AG193*100 -> -15.31440635
A188: ='SPY-TLT Random'!AF194*100 -> 26.78525657 | B188: ='SPY-TLT Random'!AG194*100 -> -16.58281207
A189: ='SPY-TLT Random'!AF195*100 -> 26.64738137 | B189: ='SPY-TLT Random'!AG195*100 -> -13.99086287
A190: ='SPY-TLT Random'!AF196*100 -> 27.43131917 | B190: ='SPY-TLT Random'!AG196*100 -> -13.99204527
A191: ='SPY-TLT Random'!AF197*100 -> 27.23233899 | B191: ='SPY-TLT Random'!AG197*100 -> -15.78234944
A192: ='SPY-TLT Random'!AF198*100 -> 27.09236565 | B192: ='SPY-TLT Random'!AG198*100 -> -14.03550482
A193: ='SPY-TLT Random'!AF199*100 -> 26.65646636 | B193: ='SPY-TLT Random'!AG199*100 -> -15.46524413
A194: ='SPY-TLT Random'!AF200*100 -> 26.88710232 | B194: ='SPY-TLT Random'!AG200*100 -> -14.3996685
A195: ='SPY-TLT Random'!AF201*100 -> 26.79636519 | B195: ='SPY-TLT Random'!AG201*100 -> -15.3140613
A196: ='SPY-TLT Random'!AF202*100 -> 27.40140933 | B196: ='SPY-TLT Random'!AG202*100 -> -15.14351958
A197: ='SPY-TLT Random'!AF203*100 -> 26.708175 | B197: ='SPY-TLT Random'!AG203*100 -> -14.36205162
A198: ='SPY-TLT Random'!AF204*100 -> 27.02668404 | B198: ='SPY-TLT Random'!AG204*100 -> -15.58585072
A199: ='SPY-TLT Random'!AF205*100 -> 27.20680795 | B199: ='SPY-TLT Random'!AG205*100 -> -14.92874943
A200: ='SPY-TLT Random'!AF206*100 -> 27.27829129 | B200: ='SPY-TLT Random'!AG206*100 -> -14.95805814
... 2868 more rows

Sheet P123
B1: Best(SPY-TLT)*
B3: Symbol | C3: Open | D3: Close | E3: Days | F3: Cost | G3: Proceeds | H3: Return | I3: Pct | J3: Close Rank | K3: Note
B4: TLT | C4: 2002-08-01 | D4: 2002-09-03 | E4: 33 | F4: 19969.93 | G4: 21071.23 | H4: 1101.29 | I4: 0.0551 | J4: 29.23 | K4: Sell3 | N4: =C4 -> 2002-08-01 | O4: =B4 -> TLT | P4: TLT
B5: SPY | C5: 2002-09-03 | D5: 2002-10-28 | E5: 55 | F5: 21071.18 | G5: 21145.28 | H5: 74.11 | I5: 0.0035 | J5: 46.21 | K5: Sell2 | N5: =C5 -> 2002-09-03 | O5: =B5 -> SPY | P5: SPY
B6: TLT | C6: 2002-10-28 | D6: 2003-03-03 | E6: 126 | F6: 21205.35 | G6: 22342.28 | H6: 1136.93 | I6: 0.0536 | J6: 21.9 | K6: Sell3 | N6: 2002-10-28 | O6: TLT | P6: TLT
B7: SPY | C7: 2003-03-03 | D7: 2003-06-30 | E7: 119 | F7: 22820.55 | G7: 26354.45 | H7: 3533.9 | I7: 0.1549 | J7: 50 | K7: Sell1 | N7: 2003-03-03 | O7: SPY | P7: SPY
B8: TLT | C8: 2003-06-30 | D8: 2004-08-16 | E8: 413 | F8: 26551.32 | G8: 24822.57 | H8: -1728.75 | I8: -0.0651 | J8: 37.93 | K8: Sell3 | N8: 2003-06-30 | O8: TLT | P8: TLT
B9: SPY | C9: 2004-08-16 | D9: 2004-10-18 | E9: 63 | F9: 26346.6 | G9: 27130.04 | H9: 783.44 | I9: 0.0297 | J9: 63.13 | K9: Sell1 | N9: 2004-08-16 | O9: SPY | P9: SPY
B10: TLT | C10: 2004-10-18 | D10: 2004-10-25 | E10: 7 | F10: 27132.59 | G10: 27495.65 | H10: 363.06 | I10: 0.0134 | J10: 22.91 | K10: Sell3 | N10: 2004-10-18 | O10: TLT | P10: TLT
B11: SPY | C11: 2004-10-25 | D11: 2005-01-10 | E11: 77 | F11: 27461.18 | G11: 29695.28 | H11: 2234.09 | I11: 0.0814 | J11: 20.44 | K11: Sell1 | N11: 2004-10-25 | O11: SPY | P11: SPY
B12: TLT | C12: 2005-01-10 | D12: 2005-04-18 | E12: 98 | F12: 29975.05 | G12: 30782.96 | H12: 807.9 | I12: 0.027 | J12: 11.4 | K12: Sell3 | N12: 2005-01-10 | O12: TLT | P12: TLT
B13: SPY | C13: 2005-04-18 | D13: 2005-06-27 | E13: 70 | F13: 31164.25 | G13: 32357.37 | H13: 1193.12 | I13: 0.0383 | J13: 51.49 | K13: Sell1 | N13: 2005-04-18 | O13: SPY | P13: SPY
B14: TLT | C14: 2005-06-27 | D14: 2005-07-05 | E14: 8 | F14: 32386.65 | G14: 31627.51 | H14: -759.14 | I14: -0.0234 | J14: 99.01 | K14: Sell3 | N14: 2005-06-27 | O14: TLT | P14: TLT
B15: SPY | C15: 2005-07-05 | D15: 2005-08-29 | E15: 55 | F15: 31570.5 | G15: 31812.2 | H15: 241.7 | I15: 0.0077 | J15: 81.07 | K15: Sell1 | N15: 2005-07-05 | O15: SPY | P15: SPY
B16: TLT | C16: 2005-08-29 | D16: 2005-09-06 | E16: 8 | F16: 32132.01 | G16: 32113.53 | H16: -18.48 | I16: -0.0006 | J16: 94.66 | K16: Sell3 | N16: 2005-08-29 | O16: TLT | P16: TLT
B17: SPY | C17: 2005-09-06 | D17: 2006-01-03 | E17: 119 | F17: 32070.54 | G17: 32648.02 | H17: 577.48 | I17: 0.018 | J17: 83.69 | K17: Sell1 | N17: 2005-09-06 | O17: SPY | P17: SPY
B18: TLT | C18: 2006-01-03 | D18: 2006-09-25 | E18: 265 | F18: 32920.56 | G18: 32209.24 | H18: -711.32 | I18: -0.0216 | J18: 16.77 | K18: Sell3 | N18: 2006-01-03 | O18: TLT | P18: TLT
B19: SPY | C19: 2006-09-25 | D19: 2007-01-08 | E19: 105 | F19: 33284.65 | G19: 35453.67 | H19: 2169.02 | I19: 0.0652 | J19: 61.93 | K19: Sell1 | N19: 2006-09-25 | O19: SPY | P19: SSO
B20: TLT | C20: 2007-01-08 | D20: 2007-03-05 | E20: 56 | F20: 35541.09 | G20: 35895.8 | H20: 354.72 | I20: 0.01 | J20: 14.16 | K20: Sell3 | N20: 2007-01-08 | O20: TLT | P20: =O20 -> TLT
B21: SPY | C21: 2007-03-05 | D21: 2007-06-11 | E21: 98 | F21: 36172.89 | G21: 39456.33 | H21: 3283.44 | I21: 0.0908 | J21: 49.53 | K21: Sell1 | N21: 2007-03-05 | O21: SPY | P21: SSO
B22: TLT | C22: 2007-06-11 | D22: 2007-09-10 | E22: 91 | F22: 39737.83 | G22: 43127.2 | H22: 3389.37 | I22: 0.0853 | J22: 15.33 | K22: Sell3 | N22: 2007-06-11 | O22: TLT | P22: =O22 -> TLT
B23: SPY | C23: 2007-09-10 | D23: 2007-10-29 | E23: 49 | F23: 43409.82 | G23: 45844.62 | H23: 2434.8 | I23: 0.0561 | J23: 44.05 | K23: Sell1 | N23: 2007-09-10 | O23: SPY | P23: SSO
B24: TLT | C24: 2007-10-29 | D24: 2008-02-04 | E24: 98 | F24: 46048.65 | G24: 47810.41 | H24: 1761.75 | I24: 0.0383 | J24: 96.53 | K24: Sell3 | N24: 2007-10-29 | O24: TLT | P24: =O24 -> TLT
B25: SPY | C25: 2008-02-04 | D25: 2008-03-24 | E25: 49 | F25: 48651.57 | G25: 47171.05 | H25: -1480.52 | I25: -0.0304 | J25: 30.06 | K25: Sell1 | N25: 2008-02-04 | O25: SPY | P25: SSO
B26: TLT | C26: 2008-03-24 | D26: 2008-03-31 | E26: 7 | F26: 47296.37 | G26: 47278.21 | H26: -18.16 | I26: -0.0004 | J26: 99.13 | K26: Sell3 | N26: 2008-03-24 | O26: TLT | P26: =O26 -> TLT
B27: SPY | C27: 2008-03-31 | D27: 2008-05-27 | E27: 57 | F27: 47271 | G27: 49449.37 | H27: 2178.37 | I27: 0.0461 | J27: 71.26 | K27: Sell1 | N27: 2008-03-31 | O27: SPY | P27: SSO
B28: TLT | C28: 2008-05-27 | D28: 2008-12-22 | E28: 209 | F28: 49700.54 | G28: 66062.52 | H28: 16361.98 | I28: 0.3292 | J28: 33.29 | K28: Sell3 | N28: 2008-05-27 | O28: TLT | P28: =O28 -> TLT
B29: SPY | C29: 2008-12-22 | D29: 2009-02-09 | E29: 49 | F29: 67380.15 | G29: 67206.91 | H29: -173.23 | I29: -0.0026 | J29: 44.43 | K29: Sell2 | N29: 2008-12-22 | O29: SPY | P29: SSO
B30: TLT | C30: 2009-02-09 | D30: 2009-03-30 | E30: 49 | F30: 67196.16 | G30: 69063.26 | H30: 1867.09 | I30: 0.0278 | J30: 86.9 | K30: Sell3 | N30: 2009-02-09 | O30: TLT | P30: =O30 -> TLT
B31: SPY | C31: 2009-03-30 | D31: 2009-05-18 | E31: 49 | F31: 69198.67 | G31: 78721.88 | H31: 9523.2 | I31: 0.1376 | J31: 50.77 | K31: Sell2 | N31: 2009-03-30 | O31: SPY | P31: SSO
B32: TLT | C32: 2009-05-18 | D32: 2009-05-26 | E32: 8 | F32: 78745.82 | G32: 75250.67 | H32: -3495.15 | I32: -0.0444 | J32: 94.92 | K32: Sell3 | N32: 2009-05-18 | O32: TLT | P32: =O32 -> TLT
B33: SPY | C33: 2009-05-26 | D33: 2009-09-08 | E33: 105 | F33: 75265.03 | G33: 85788.05 | H33: 10523.02 | I33: 0.1398 | J33: 50.53 | K33: Sell1 | N33: 2009-05-26 | O33: SPY | P33: SSO
B34: TLT | C34: 2009-09-08 | D34: 2009-09-21 | E34: 6 | F34: 86223.56 | G34: 87225.74 | H34: 1002.18 | I34: 0.0116 | J34: 93.8 | K34: Sell3 | N34: 2009-09-08 | O34: TLT | P34: =O34 -> TLT
B35: SPY | C35: 2009-09-21 | D35: 2010-01-25 | E35: 126 | F35: 87171.36 | G35: 89926.28 | H35: 2754.92 | I35: 0.0316 | J35: 60.28 | K35: Sell1 | N35: 2009-09-21 | O35: SPY | P35: SSO
B36: TLT | C36: 2010-01-25 | D36: 2010-02-01 | E36: 7 | F36: 89960.77 | G36: 89472.64 | H36: -488.12 | I36: -0.0054 | J36: 14.12 | K36: Sell3 | N36: 2010-01-25 | O36: TLT | P36: =O36 -> TLT
B37: SPY | C37: 2010-02-01 | D37: 2010-05-03 | E37: 91 | F37: 89966.76 | G37: 99450.65 | H37: 9483.89 | I37: 0.1054 | J37: 68.98 | K37: Sell1 | N37: 2010-02-01 | O37: SPY | P37: SSO
B38: TLT | C38: 2010-05-03 | D38: 2010-06-14 | E38: 42 | F38: 100181.88 | G38: 105414.43 | H38: 5232.55 | I38: 0.0522 | J38: 96.71 | K38: Sell3 | N38: 2010-05-03 | O38: TLT | P38: =O38 -> TLT
B39: SPY | C39: 2010-06-14 | D39: 2010-08-16 | E39: 63 | F39: 105734.71 | G39: 103260.04 | H39: -2474.67 | I39: -0.0234 | J39: 52.49 | K39: Sell1 | N39: 2010-06-14 | O39: SPY | P39: SSO
B40: TLT | C40: 2010-08-16 | D40: 2010-08-23 | E40: 7 | F40: 103747.8 | G40: 104769.37 | H40: 1021.57 | I40: 0.0098 | J40: 25 | K40: Sell3 | N40: 2010-08-16 | O40: TLT | P40: =O40 -> TLT
B41: SPY | C41: 2010-08-23 | D41: 2010-11-22 | E41: 91 | F41: 104797.91 | G41: 115923.31 | H41: 11125.41 | I41: 0.1062 | J41: 44.65 | K41: Sell1 | N41: 2010-08-23 | O41: SPY | P41: SSO
B42: TLT | C42: 2010-11-22 | D42: 2010-11-29 | E42: 7 | F42: 116529.34 | G42: 117001.39 | H42: 472.05 | I42: 0.0041 | J42: 10.42 | K42: Sell3 | N42: 2010-11-22 | O42: TLT | P42: =O42 -> TLT
B43: SPY | C43: 2010-11-29 | D43: 2011-02-28 | E43: 91 | F43: 116947.68 | G43: 130726.4 | H43: 13778.72 | I43: 0.1178 | J43: 64.46 | K43: Sell1 | N43: 2010-11-29 | O43: SPY | P43: SSO
B44: TLT | C44: 2011-02-28 | D44: 2011-03-07 | E44: 7 | F44: 131381.86 | G44: 128357.74 | H44: -3024.12 | I44: -0.023 | J44: 70.42 | K44: Sell3 | N44: 2011-02-28 | O44: TLT | P44: =O44 -> TLT
B45: SPY | C45: 2011-03-07 | D45: 2011-05-23 | E45: 77 | F45: 128380.92 | G45: 128776.52 | H45: 395.59 | I45: 0.0031 | J45: 74.07 | K45: Sell1 | N45: 2011-03-07 | O45: SPY | P45: SSO
B46: TLT | C46: 2011-05-23 | D46: 2011-05-31 | E46: 8 | F46: 129772.92 | G46: 130236.17 | H46: 463.25 | I46: 0.0036 | J46: 12.76 | K46: Sell3 | N46: 2011-05-23 | O46: TLT | P46: =O46 -> TLT
B47: SPY | C47: 2011-05-31 | D47: 2011-08-01 | E47: 62 | F47: 130209.92 | G47: 124984.05 | H47: -5225.88 | I47: -0.0401 | J47: 75.29 | K47: Sell1 | N47: 2011-05-31 | O47: SPY | P47: SSO
B48: TLT | C48: 2011-08-01 | D48: 2011-09-26 | E48: 56 | F48: 125554.73 | G48: 152664.03 | H48: 27109.3 | I48: 0.2159 | J48: 25.58 | K48: Sell3 | N48: 2011-08-01 | O48: TLT | P48: =O48 -> TLT
B49: SPY | C49: 2011-09-26 | D49: 2011-11-14 | E49: 49 | F49: 153149.47 | G49: 168162.47 | H49: 15013 | I49: 0.098 | J49: 30.73 | K49: Sell2 | N49: 2011-09-26 | O49: SPY | P49: SSO
B50: TLT | C50: 2011-11-14 | D50: 2011-11-21 | E50: 7 | F50: 168156.88 | G50: 172726.94 | H50: 4570.06 | I50: 0.0272 | J50: 30.59 | K50: Sell3 | N50: 2011-11-14 | O50: TLT | P50: =O50 -> TLT
B51: SPY | C51: 2011-11-21 | D51: 2012-04-16 | E51: 147 | F51: 172730.56 | G51: 198077.36 | H51: 25346.8 | I51: 0.1467 | J51: 81.96 | K51: Sell1 | N51: 2011-11-21 | O51: SPY | P51: SSO
B52: TLT | C52: 2012-04-16 | D52: 2012-04-23 | E52: 7 | F52: 199126.33 | G52: 200455.5 | H52: 1329.17 | I52: 0.0067 | J52: 84.55 | K52: Sell3 | N52: 2012-04-16 | O52: TLT | P52: =O52 -> TLT
B53: SPY | C53: 2012-04-23 | D53: 2012-10-01 | E53: 161 | F53: 200472.17 | G53: 212425.84 | H53: 11953.67 | I53: 0.0596 | J53: 74.36 | K53: Sell1 | N53: 2012-04-23 | O53: SPY | P53: SSO
B54: TLT | C54: 2012-10-01 | D54: 2012-11-19 | E54: 49 | F54: 214356.55 | G54: 216742.09 | H54: 2385.55 | I54: 0.0111 | J54: 20.21 | K54: Sell3 | N54: 2012-10-01 | O54: TLT | P54: =O54 -> TLT
B55: SPY | C55: 2012-11-19 | D55: 2013-04-22 | E55: 154 | F55: 218320.42 | G55: 246139.66 | H55: 27819.23 | I55: 0.1274 | J55: 68.51 | K55: Sell1 | N55: 2012-11-19 | O55: SPY | P55: SSO
B56: TLT | C56: 2013-04-22 | D56: 2013-04-29 | E56: 7 | F56: 247806.31 | G56: 247844.19 | H56: 37.88 | I56: 0.0002 | J56: 58.67 | K56: Sell3 | N56: =C56 -> 2013-04-22 | O56: =B56 -> TLT | P56: =O56 -> TLT
B57: SPY | C57: 2013-04-29 | D57: 2013-06-17 | E57: 49 | F57: 247705.89 | G57: 255270.16 | H57: 7564.27 | I57: 0.0305 | J57: 86.77 | K57: Sell1 | N57: 2013-04-29 | O57: SPY | P57: SSO
B58: TLT | C58: 2013-06-17 | D58: 2013-06-24 | E58: 7 | F58: 256402.38 | G58: 244694.62 | H58: -11707.75 | I58: -0.0457 | J58: 55.66 | K58: Sell3 | N58: 2013-06-17 | O58: TLT | P58: =O58 -> TLT
B59: SPY | C59: 2013-06-24 | D59: 2013-08-19 | E59: 56 | F59: 244660.88 | G59: 257237.16 | H59: 12576.28 | I59: 0.0514 | J59: 78.7 | K59: Sell1 | N59: 2013-06-24 | O59: SPY | P59: SSO
B60: TLT | C60: 2013-08-19 | D60: 2013-08-26 | E60: 7 | F60: 257295.11 | G60: 261786 | H60: 4490.89 | I60: 0.0175 | J60: 8.87 | K60: Sell3 | N60: 2013-08-19 | O60: TLT | P60: =O60 -> TLT
B61: SPY | C61: 2013-08-26 | D61: 2013-12-16 | E61: 112 | F61: 261815.7 | G61: 281305.75 | H61: 19490.05 | I61: 0.0744 | J61: 71.38 | K61: Sell1 | N61: 2013-08-26 | O61: SPY | P61: SSO
B62: TLT | C62: 2013-12-16 | D62: 2013-12-23 | E62: 7 | F62: 282664.97 | G62: 284355.16 | H62: 1690.19 | I62: 0.006 | J62: 15.56 | K62: Sell3 | N62: 2013-12-16 | O62: TLT | P62: =O62 -> TLT
B63: SPY | C63: 2013-12-23 | N63: 2013-12-23 | O63: SPY | P63: SSO
F65: =F62/20000 -> 14.1332485
F66: =F65^(365.25/(C62-C4))-1 -> 0.2621568557
B81: 5 | C81: TLT | D81: 2002-08-01 | E81: =D82 -> 2002-09-03
B82: 6 | C82: SPY | D82: 2002-09-03 | E82: =D83 -> 2002-10-28
B83: 7 | C83: TLT | D83: 2002-10-28 | E83: 2003-03-03
B84: 8 | C84: SPY | D84: 2003-03-03 | E84: 2003-06-30
B85: 9 | C85: TLT | D85: 2003-06-30 | E85: 2004-08-16
B86: 10 | C86: SPY | D86: 2004-08-16 | E86: 2004-10-18
B87: 11 | C87: TLT | D87: 2004-10-18 | E87: 2004-10-25
B88: 12 | C88: SPY | D88: 2004-10-25 | E88: 2005-01-10
B89: 13 | C89: TLT | D89: 2005-01-10 | E89: 2005-04-18
B90: 14 | C90: SPY | D90: 2005-04-18 | E90: 2005-06-27
B91: 15 | C91: TLT | D91: 2005-06-27 | E91: 2005-07-05
B92: 16 | C92: SPY | D92: 2005-07-05 | E92: 2005-08-29
B93: 17 | C93: TLT | D93: 2005-08-29 | E93: 2005-09-06
B94: 18 | C94: SPY | D94: 2005-09-06 | E94: 2006-01-03
B95: 19 | C95: TLT | D95: 2006-01-03 | E95: 2006-09-25
B96: 20 | C96: SPY | D96: 2006-09-25 | E96: 2007-01-08
B97: 21 | C97: TLT | D97: 2007-01-08 | E97: 2007-03-05
B98: 22 | C98: SPY | D98: 2007-03-05 | E98: 2007-06-11
B99: 23 | C99: TLT | D99: 2007-06-11 | E99: 2007-09-10
B100: 24 | C100: SPY | D100: 2007-09-10 | E100: 2007-10-29
B101: 25 | C101: TLT | D101: 2007-10-29 | E101: 2008-02-04
B102: 26 | C102: SPY | D102: 2008-02-04 | E102: 2008-03-24
B103: 27 | C103: TLT | D103: 2008-03-24 | E103: 2008-03-31
B104: 28 | C104: SPY | D104: 2008-03-31 | E104: 2008-05-27
B105: 29 | C105: TLT | D105: 2008-05-27 | E105: 2008-12-22
B106: 30 | C106: SPY | D106: 2008-12-22 | E106: 2009-02-09
B107: 31 | C107: TLT | D107: 2009-02-09 | E107: 2009-03-30
B108: 32 | C108: SPY | D108: 2009-03-30 | E108: 2009-05-18
B109: 33 | C109: TLT | D109: 2009-05-18 | E109: 2009-05-26
B110: 34 | C110: SPY | D110: 2009-05-26 | E110: 2009-09-08
B111: 35 | C111: TLT | D111: 2009-09-08 | E111: 2009-09-21
B112: 36 | C112: SPY | D112: 2009-09-21 | E112: 2010-01-25
B113: 37 | C113: TLT | D113: 2010-01-25 | E113: 2010-02-01
B114: 38 | C114: SPY | D114: 2010-02-01 | E114: 2010-05-03
B115: 39 | C115: TLT | D115: 2010-05-03 | E115: 2010-06-14
B116: 40 | C116: SPY | D116: 2010-06-14 | E116: 2010-08-16
B117: 41 | C117: TLT | D117: 2010-08-16 | E117: 2010-08-23
B118: 42 | C118: SPY | D118: 2010-08-23 | E118: 2010-11-22
B119: 43 | C119: TLT | D119: 2010-11-22 | E119: 2010-11-29
B120: 44 | C120: SPY | D120: 2010-11-29 | E120: 2011-02-28
B121: 45 | C121: TLT | D121: 2011-02-28 | E121: 2011-03-07
B122: 46 | C122: SPY | D122: 2011-03-07 | E122: 2011-05-23
B123: 47 | C123: TLT | D123: 2011-05-23 | E123: 2011-05-31
B124: 48 | C124: SPY | D124: 2011-05-31 | E124: 2011-08-01
B125: 49 | C125: TLT | D125: 2011-08-01 | E125: 2011-09-26
B126: 50 | C126: SPY | D126: 2011-09-26 | E126: 2011-11-14
B127: 51 | C127: TLT | D127: 2011-11-14 | E127: 2011-11-21
B128: 52 | C128: SPY | D128: 2011-11-21 | E128: 2012-04-16
B129: 53 | C129: TLT | D129: 2012-04-16 | E129: 2012-04-23
B130: 54 | C130: SPY | D130: 2012-04-23 | E130: 2012-10-01
B131: 55 | C131: TLT | D131: 2012-10-01 | E131: 2012-11-19
B132: 56 | C132: SPY | D132: 2012-11-19 | E132: 2013-04-22
B133: 57 | C133: TLT | D133: 2013-04-22 | E133: 2013-04-29
B134: 58 | C134: SPY | D134: 2013-04-29 | E134: 2013-06-17
B135: 59 | C135: TLT | D135: 2013-06-17 | E135: 2013-06-24
B136: 60 | C136: SPY | D136: 2013-06-24 | E136: 2013-08-19
B137: 61 | C137: TLT | D137: 2013-08-19 | E137: 2013-08-26
B138: 62 | C138: SPY | D138: 2013-08-26 | E138: 2013-12-16
B139: 63 | C139: TLT | D139: 2013-12-16 | E139: 2013-12-23
B140: 64 | C140: SPY | D140: 2013-12-23

Sheet SSO-TLT Random
D1: Today's | E1: 4 | F1: 4 | K1: Slippage and fee | L1: 0 | M1: 0 | N1: Dividends | Q1: Dividends | Y1: =Y6/Y2 -> 275.4062242 | Z1: =(VLOOKUP(MAX(B:B)-3,X:Z,3)/Z6) -> 56.34286409 | AA1: =MIN(AB:AB) -> -0.2605064283 | AF1: Row | AG1: 2007
D2: ETF | E2: 3 | F2: 3 | H2: 13 | I2: 13 | J2: 15 | K2: 15 | L2: 10 | P2: =IF(COLUMN(O5)<27,"",CHAR(64+FLOOR((COLUMN(O5)-1)/26,1)))&CHAR(65+MOD((COLUMN(O5)-1),26)) -> O | Q2: should be | T2: Todays | U2: Todays | Y2: =VLOOKUP(X6,INDIRECT(Y$3&"!A:R"),7) -> 72.62 | Z2: =Z1^(365.25/(MAX(B:B)-B7))-1 -> 0.4221728501 | AA2: =MATCH(AA1,AB:AB,0) -> 1645 | AD2: CAGR | AE2: D/Down | AF2: Count | AG2: 2000
D3: Signal | E3: Day+1 | F3: Day+2 | G3: Day+1 | H3: Day+1 | I3: Day+2 | J3: Split+1 | K3: Spli+2 | L3: Day+1 | M3: Day+2 | N3: =SUM(O:O) -> 23617.927 | Q3: atleast | T3: Cash End | U3: Cash for | Y3: SPY | AA3: =MAX(AK:AK) -> 0 | AC3: Average | AD3: =AVERAGE(AF7:AF1951) -> 0.4124650128 | AE3: =AVERAGE(AG7:AG1951) -> -0.2484292489
D4: you | E4: Price | F4: Price | G4: qty | H4: div. | I4: div. | L4: Buy | M4: sell | P4: delay | Q4: 50 | T4: After sell | U4: Buying | V4: After buy | Y4: SPY | Z4: Model | AA4: Max | AC4: Hi | AD4: =MAX(AF7:AF1951) -> 0.4421040044 | AE4: =MIN(AG7:AG1951) -> -0.2759467868 | AF4: CAGR | AG4: D/Down
B5: SPY!A | C5: 3 | D5: buy | J5: @buy | K5: @sell | N5: /share | O5: value | P5: 14 | Q5: before | U5: After Dividend | V5: and Div. | AA5: =MATCH(AA1,AB:AB,0) -> 1645 | AC5: Lo | AD5: =MIN(AF7:AF1951) -> 0.3848368838 | AE5: =MAX(AG7:AG1951) -> -0.2123947281
B6: =INDIRECT(B$5&ROW()+1) -> 2002-07-31 | D6: tomorrow | P6: days | Q6: reinvesting | T6: =U6 -> 20000 | U6: 20000 | X6: =X7 -> 2002-07-31 | Y6: 20000 | Z6: =T6 -> 20000 | AA6: 0 | AC6: Std Dev | AD6: =STDEVP(AF7:AF28952) -> 0.008149861553 | AE6: =STDEVP(AG7:AG28952) -> 0.01182204018 | AF6: =Z2 -> 0.4221728501 | AG6: =AA1 -> -0.2605064283
A7: =IF(D6=D7,A6+1,1) -> 1 | B7: =INDIRECT(B$5&ROW()) -> 2002-07-31 | D7: =VLOOKUP(B8,'P123'!N:T,$C$5) -> TLT | E7: =RAND()*(VLOOKUP(B8,INDIRECT(D7&"!A:q"),E$1)-VLOOKUP(B8,INDIRECT(D7&"!A:q"),E$2))+VLOOKUP(B8,INDIRECT(D7&"!A:q"),E$2) -> 82.67221626 | F7: =RAND()*(VLOOKUP(B9,INDIRECT(D7&"!A:q"),F$1)-VLOOKUP(B9,INDIRECT(D7&"!A:q"),F$2))+VLOOKUP(B9,INDIRECT(D7&"!A:q"),F$2) -> 84.09801835 | G7: =IF(D7=D6,G6,INT((T8*(1-L$1)-L$2)/E7)) -> 241 | H7: =VLOOKUP(B8,INDIRECT(D7&"!A:q"),H$2) -> 0 | I7: =VLOOKUP(B9,INDIRECT(D7&"!A:q"),H$2) -> 0 | J7: =IF(D6=D7,J6,VLOOKUP(B8,INDIRECT(D7&"!A:q"),J$2)) -> 1 | K7: =IF(D6=D7,K6,VLOOKUP(B9,INDIRECT(D7&"!A:q"),K$2)) -> 1 | P7: =IF(ROW()>P$5+7,INDIRECT(P$2&ROW()-P$5),0) -> 0 | V7: =U6 -> 20000 | X7: =B7 -> 2002-07-31 | Y7: =VLOOKUP(X6,INDIRECT(Y$3&"!A:R"),7)*$Y$1 -> 20000 | AF7: 0.4192718959 | AG7: -0.2293765801
A8: 2 | B8: =INDIRECT(B$5&ROW()) -> 2002-08-01 | D8: =VLOOKUP(B9,'P123'!N:T,$C$5) -> TLT | E8: =RAND()*(VLOOKUP(B9,INDIRECT(D8&"!A:q"),E$1)-VLOOKUP(B9,INDIRECT(D8&"!A:q"),E$2))+VLOOKUP(B9,INDIRECT(D8&"!A:q"),E$2) -> 83.04555114 | F8: =RAND()*(VLOOKUP(B10,INDIRECT(D8&"!A:q"),F$1)-VLOOKUP(B10,INDIRECT(D8&"!A:q"),F$2))+VLOOKUP(B10,INDIRECT(D8&"!A:q"),F$2) -> 84.21767295 | G8: =IF(D8=D7,G7,INT((T9*(1-L$1)-L$2)/E8))+Q9 -> 241 | H8: =VLOOKUP(B9,INDIRECT(D8&"!A:q"),H$2) -> 0 | I8: 0 | J8: 1 | K8: 1 | L8: =IF(D6=D7,0,G7*E7*(1+L$1)+$L$2) -> 19934.00412 | P8: 0 | T8: =V7+M8 -> 20000 | U8: =T8+P8 -> 20000 | V8: =U8-L8-R8 -> 65.99588125 | X8: 2002-08-01 | Y8: =VLOOKUP(X7,INDIRECT(Y$3&"!A:R"),7)*$Y$1 -> 20000 | Z8: =E7*G7+V8 -> 19990 | AA8: =IF(Z8>AA6,Z8,AA6) -> 19990 | AB8: =Z8/AA8-1 -> 0 | AD8: =AD3+3*AD6 -> 0.4369145974 | AE8: =AE3+3*AE6 -> -0.2129631283 | AF8: 0.4112220592 | AG8: -0.2499795151
A9: 3 | B9: 2002-08-02 | D9: =VLOOKUP(B10,'P123'!N:T,$C$5) -> TLT | E9: 84.3610776 | F9: 83.62095452 | G9: 241 | H9: 0 | I9: 0 | J9: 1 | K9: 1 | L9: 0 | M9: =IF(D7=D8,0,(K7/J7)*G7*F7/(1+$M$1)-$L$2) -> 0 | N9: =IF(I7<>H7,I7-H7,0) -> 0 | O9: =G7*N9 -> 0 | P9: 0 | Q9: =IF(AND(U9>Q$4,D8=D7),INT((U9*(1-L$1)-L$2)/E8),0) -> 0 | R9: =IF(Q9>0,Q9*E8+$L$2,0) -> 0 | T9: 65.99588125 | U9: 65.99588125 | V9: 65.99588125 | X9: 2002-08-02 | Y9: 19476.72817 | Z9: 20079.97371 | AA9: 20079.97371 | AB9: 0 | AD9: =AD3-3*AD6 -> 0.3880154281 | AE9: =AE3-3*AE6 -> -0.2838953694 | AF9: 0.4052073329 | AG9: -0.2537609538
A10: 4 | B10: 2002-08-05 | D10: =VLOOKUP(B11,'P123'!N:T,$C$5) -> TLT | E10: 83.31961867 | F10: 83.62444369 | G10: 241 | H10: 0 | I10: 0 | J10: 1 | K10: 1 | L10: 0 | M10: 0 | N10: 0 | O10: 0 | P10: 0 | Q10: 0 | R10: =IF(Q10>0,Q10*E9+$L$2,0) -> 0 | T10: 65.99588125 | U10: 65.99588125 | V10: 65.99588125 | X10: 2002-08-05 | Y10: 19041.58634 | Z10: 20397.01558 | AA10: 20397.01558 | AB10: 0 | AF10: 0.4201863251 | AG10: -0.2497094828
A11: 5 | B11: 2002-08-06 | D11: =VLOOKUP(B12,'P123'!N:T,$C$5) -> TLT | E11: 83.70039197 | F11: 83.44195226 | G11: 241 | H11: 0 | I11: 0 | J11: 1 | K11: 1 | L11: 0 | M11: 0 | N11: 0 | O11: 0 | P11: 0 | Q11: 0 | R11: 0 | T11: 65.99588125 | U11: 65.99588125 | V11: 65.99588125 | X11: 2002-08-06 | Y11: 18377.85734 | Z11: 20146.02398 | AA11: 20146.02398 | AB11: 0 | AF11: 0.4220777473 | AG11: -0.2559369852
A12: 6 | B12: 2002-08-07 | D12: =VLOOKUP(B13,'P123'!N:T,$C$5) -> TLT | E12: 83.58402274 | F12: 84.64112145 | G12: 241 | H12: 0 | I12: 0 | J12: 1 | K12: 1 | L12: 0 | M12: 0 | N12: 0 | O12: 0 | P12: 0 | Q12: 0 | R12: 0 | T12: 65.99588125 | U12: 65.99588125 | V12: 65.99588125 | X12: 2002-08-07 | Y12: 18997.52134 | Z12: 20237.79035 | AA12: 20397.01558 | AB12: -0.007806300594 | AF12: 0.4082857522 | AG12: -0.249626544
A13: 7 | B13: 2002-08-08 | D13: =VLOOKUP(B14,'P123'!N:T,$C$5) -> TLT | E13: 84.71514337 | F13: 85.80210117 | G13: 241 | H13: 0 | I13: 0 | J13: 1 | K13: 1 | L13: 0 | M13: 0 | N13: 0 | O13: 0 | P13: 0 | Q13: 0 | R13: 0 | T13: 65.99588125 | U13: 65.99588125 | V13: 65.99588125 | X13: 2002-08-08 | Y13: 19328.00881 | Z13: 20209.74536 | AA13: 20209.74536 | AB13: 0 | AF13: 0.4096215304 | AG13: -0.2458468938
A14: 8 | B14: 2002-08-09 | D14: =VLOOKUP(B15,'P123'!N:T,$C$5) -> TLT | E14: 86.58219436 | F14: 85.53381298 | G14: 241 | H14: 0 | I14: 0 | J14: 1 | K14: 1 | L14: 0 | M14: 0 | N14: 0 | O14: 0 | P14: 0 | Q14: 0 | R14: 0 | T14: 65.99588125 | U14: 65.99588125 | V14: 65.99588125 | X14: 2002-08-09 | Y14: 19953.18094 | Z14: 20482.34543 | AA14: 20482.34543 | AB14: 0 | AF14: 0.4035248859 | AG14: -0.2439277179
A15: 9 | B15: 2002-08-12 | D15: =VLOOKUP(B16,'P123'!N:T,$C$5) -> TLT | E15: 85.64953112 | F15: 87.07307212 | G15: 241 | H15: 0 | I15: 0 | J15: 1 | K15: 1 | L15: 0 | M15: 0 | N15: 0 | O15: 0 | P15: 0 | Q15: 0 | R15: 0 | T15: 65.99588125 | U15: 65.99588125 | V15: 65.99588125 | X15: 2002-08-12 | Y15: 20027.54062 | Z15: 20932.30472 | AA15: 20932.30472 | AB15: 0 | AF15: 0.4109916566 | AG15: -0.2272934542
A16: 10 | B16: 2002-08-13 | D16: =VLOOKUP(B17,'P123'!N:T,$C$5) -> TLT | E16: 87.80429428 | F16: 85.93064929 | G16: 241 | H16: 0 | I16: 0 | J16: 1 | K16: 1 | L16: 0 | M16: 0 | N16: 0 | O16: 0 | P16: 0 | Q16: 0 | R16: 0 | T16: 65.99588125 | U16: 65.99588125 | V16: 65.99588125 | X16: 2002-08-13 | Y16: 19881.57532 | Z16: 20707.53288 | AA16: 20707.53288 | AB16: 0 | AF16: 0.4095317714 | AG16: -0.26608518
A17: 11 | B17: 2002-08-14 | D17: =VLOOKUP(B18,'P123'!N:T,$C$5) -> TLT | E17: 86.2287387 | F17: 85.19808037 | G17: 241 | H17: 0 | I17: 0 | J17: 1 | K17: 1 | L17: 0 | M17: 0 | N17: 0 | O17: 0 | P17: 0 | Q17: 0 | R17: 0 | T17: 65.99588125 | U17: 65.99588125 | V17: 65.99588125 | X17: 2002-08-14 | Y17: 19518.03911 | Z17: 21226.8308 | AA17: 21226.8308 | AB17: 0 | AF17: 0.413406161 | AG17: -0.2413523123
A18: 12 | B18: 2002-08-15 | D18: =VLOOKUP(B19,'P123'!N:T,$C$5) -> TLT | E18: 85.42410793 | F18: 84.83895344 | G18: 241 | H18: 0 | I18: =VLOOKUP(B20,INDIRECT(D18&"!A:q"),I$2) -> 0 | J18: 1 | K18: 1 | L18: 0 | M18: 0 | N18: 0 | O18: 0 | P18: 0 | Q18: 0 | R18: 0 | T18: 65.99588125 | U18: 65.99588125 | V18: 65.99588125 | X18: 2002-08-15 | Y18: 20231.34123 | Z18: 20847.12191 | AA18: 20847.12191 | AB18: 0 | AF18: 0.4123467558 | AG18: -0.2291912743
A19: 13 | B19: 2002-08-16 | D19: =VLOOKUP(B20,'P123'!N:T,$C$5) -> TLT | E19: 85.28704745 | F19: 85.83568176 | G19: 241 | H19: 0 | I19: =VLOOKUP(B21,INDIRECT(D19&"!A:q"),H$2) -> 0 | J19: 1 | K19: 1 | L19: 0 | M19: 0 | N19: 0 | O19: 0 | P19: 0 | Q19: 0 | R19: 0 | T19: 65.99588125 | U19: 65.99588125 | V19: 65.99588125 | X19: 2002-08-16 | Y19: 20512.25558 | Z19: 20653.20589 | AA19: 21226.8308 | AB19: -0.02702357766 | AF19: 0.4191305989 | AG19: -0.2366990815
A20: 14 | B20: 2002-08-19 | D20: =VLOOKUP(B21,'P123'!N:T,$C$5) -> TLT | E20: 86.01384812 | F20: 85.96230865 | G20: 241 | H20: 0 | I20: 0 | J20: 1 | K20: 1 | L20: 0 | M20: 0 | N20: 0 | O20: 0 | P20: 0 | Q20: 0 | R20: 0 | T20: 65.99588125 | U20: 65.99588125 | V20: 65.99588125 | X20: 2002-08-19 | Y20: 20451.66621 | Z20: 20620.17432 | AA20: 20847.12191 | AB20: -0.01088627932 | AF20: 0.4146062509 | AG20: -0.2493981649
A21: 15 | B21: 2002-08-20 | D21: =VLOOKUP(B22,'P123'!N:T,$C$5) -> TLT | E21: 85.66799819 | F21: 85.11530321 | G21: 241 | H21: 0 | I21: 0 | J21: 1 | K21: 1 | L21: 0 | M21: 0 | N21: 0 | O21: 0 | P21: 0 | Q21: 0 | R21: 0 | T21: 65.99588125 | U21: 65.99588125 | V21: 65.99588125 | X21: 2002-08-20 | Y21: 20930.87304 | Z21: 20795.33328 | AA21: 21226.8308 | AB21: -0.02032792973 | AF21: 0.4182870131 | AG21: -0.2445354447
A22: 16 | B22: 2002-08-21 | D22: =VLOOKUP(B23,'P123'!N:T,$C$5) -> TLT | E22: 85.43224021 | F22: 85.59549001 | G22: 241 | H22: 0 | I22: 0 | J22: 1 | K22: 1 | L22: 0 | M22: 0 | N22: 0 | O22: 0 | P22: 0 | Q22: 0 | R22: 0 | T22: 65.99588125 | U22: 65.99588125 | V22: 65.99588125 | X22: 2002-08-21 | Y22: 20707.794 | Z22: 20711.98344 | AA22: 20847.12191 | AB22: -0.006482355905 | AF22: 0.4185969851 | AG22: -0.2334123092
A23: 17 | B23: 2002-08-22 | D23: =VLOOKUP(B24,'P123'!N:T,$C$5) -> TLT | E23: 85.90594379 | F23: 86.16978293 | G23: 241 | H23: 0 | I23: 0 | J23: 1 | K23: 1 | L23: 0 | M23: 0 | N23: 0 | O23: 0 | P23: 0 | Q23: 0 | R23: 0 | T23: 65.99588125 | U23: 65.99588125 | V23: 65.99588125 | X23: 2002-08-22 | Y23: 21005.23272 | Z23: 20655.16577 | AA23: 21226.8308 | AB23: -0.02693124741 | AF23: 0.4093344719 | AG23: -0.2506906759
A24: 18 | B24: 2002-08-23 | D24: =VLOOKUP(B25,'P123'!N:T,$C$5) -> TLT | E24: 85.8605073 | F24: 85.29022878 | G24: 241 | H24: 0 | I24: 0 | J24: 1 | K24: 1 | L24: 0 | M24: 0 | N24: 0 | O24: 0 | P24: 0 | Q24: 0 | R24: 0 | T24: 65.99588125 | U24: 65.99588125 | V24: 65.99588125 | X24: 2002-08-23 | Y24: 21209.03332 | Z24: 20769.32833 | AA24: 20847.12191 | AB24: -0.003731621829 | AF24: 0.423249662 | AG24: -0.2406703802
A25: 19 | B25: 2002-08-26 | D25: =VLOOKUP(B26,'P123'!N:T,$C$5) -> TLT | E25: 85.24664396 | F25: 86.14755847 | G25: 241 | H25: 0 | I25: 0 | J25: 1 | K25: 1 | L25: 0 | M25: 0 | N25: 0 | O25: 0 | P25: 0 | Q25: 0 | R25: 0 | T25: 65.99588125 | U25: 65.99588125 | V25: 65.99588125 | X25: 2002-08-26 | Y25: 20754.61305 | Z25: 20758.37814 | AA25: 21226.8308 | AB25: -0.02206889319 | AF25: 0.4139431594 | AG25: -0.2432888883
A26: 20 | B26: 2002-08-27 | D26: =VLOOKUP(B27,'P123'!N:T,$C$5) -> TLT | E26: 86.17364018 | F26: 86.58345109 | G26: 241 | H26: 0 | I26: 0 | J26: 1 | K26: 1 | L26: 0 | M26: 0 | N26: 0 | O26: 0 | P26: 0 | Q26: 0 | R26: 0 | T26: 65.99588125 | U26: 65.99588125 | V26: 65.99588125 | X26: 2002-08-27 | Y26: 20897.82429 | Z26: 20610.43707 | AA26: 20847.12191 | AB26: -0.0113533578 | AF26: 0.4003294774 | AG26: -0.256977121
A27: 21 | B27: 2002-08-28 | D27: =VLOOKUP(B28,'P123'!N:T,$C$5) -> TLT | E27: 86.49644225 | F27: 86.84426197 | G27: 241 | H27: 0 | I27: 0 | J27: 1 | K27: 1 | L27: 0 | M27: 0 | N27: 0 | O27: 0 | P27: 0 | Q27: 0 | R27: 0 | T27: 65.99588125 | U27: 65.99588125 | V27: 65.99588125 | X27: 2002-08-28 | Y27: 20658.22088 | Z27: 20833.84316 | AA27: 21226.8308 | AB27: -0.01851372173 | AF27: 0.405881561 | AG27: -0.2531289977
A28: 22 | B28: 2002-08-29 | D28: =VLOOKUP(B29,'P123'!N:T,$C$5) -> TLT | E28: 86.54751258 | F28: 87.86951169 | G28: 241 | H28: 0 | I28: 0.373 | J28: 1 | K28: 1 | L28: 0 | M28: 0 | N28: 0 | O28: 0 | P28: 0 | Q28: 0 | R28: 0 | T28: 65.99588125 | U28: 65.99588125 | V28: 65.99588125 | X28: 2002-08-29 | Y28: 20206.55467 | Z28: 20911.63846 | AA28: 20911.63846 | AB28: 0 | AF28: 0.4221694189 | AG28: -0.2623103034
A29: 1 | B29: 2002-08-30 | D29: =VLOOKUP(B30,'P123'!N:T,$C$5) -> SPY | E29: 88.8525298 | F29: 88.58563068 | G29: 238 | H29: 0 | I29: 0 | J29: 1 | K29: 1 | L29: 0 | M29: 0 | N29: 0 | O29: 0 | P29: 0 | Q29: 0 | R29: 0 | T29: 65.99588125 | U29: 65.99588125 | V29: 65.99588125 | X29: 2002-08-30 | Y29: 20214.81685 | Z29: 20923.94641 | AA29: 21226.8308 | AB29: -0.01426894073 | AF29: 0.4107475839 | AG29: -0.2579046409
A30: 2 | B30: 2002-09-03 | D30: =VLOOKUP(B31,'P123'!N:T,$C$5) -> SPY | E30: 88.2652181 | F30: 88.69240944 | G30: 238 | H30: 0 | I30: 0 | J30: 1 | K30: 1 | L30: 21156.90209 | M30: 21166.55232 | N30: 0.373 | O30: 89.893 | P30: 0 | Q30: 0 | R30: 0 | T30: 21232.5482 | U30: 21232.5482 | V30: 75.64610636 | X30: 2002-09-03 | Y30: 20134.94905 | Z30: 21222.5482 | AA30: 21222.5482 | AB30: 0 | AF30: 0.3929570541 | AG30: -0.2656906207
A31: 3 | B31: 2002-09-04 | D31: =VLOOKUP(B32,'P123'!N:T,$C$5) -> SPY | E31: 89.04719412 | F31: 90.46386904 | G31: 238 | H31: 0 | I31: 0 | J31: 1 | K31: 1 | L31: 0 | M31: 0 | N31: 0 | O31: 0 | P31: 0 | Q31: 0 | R31: 0 | T31: 75.64610636 | U31: 75.64610636 | V31: 75.64610636 | X31: 2002-09-04 | Y31: 19366.56568 | Z31: 21082.76801 | AA31: 21226.8308 | AB31: -0.006786825197 | AF31: 0.4196380684 | AG31: -0.2421542935
A32: 4 | B32: 2002-09-05 | D32: =VLOOKUP(B33,'P123'!N:T,$C$5) -> SPY | E32: 89.7215612 | F32: 89.68321629 | G32: 238 | H32: 0 | I32: 0 | J32: 1 | K32: 1 | L32: 0 | M32: 0 | N32: 0 | O32: 0 | P32: 0 | Q32: 0 | R32: 0 | T32: 75.64610636 | U32: 75.64610636 | V32: 75.64610636 | X32: 2002-09-05 | Y32: 19644.72597 | Z32: 21268.87831 | AA32: 21268.87831 | AB32: 0 | AF32: 0.4109642462 | AG32: -0.2391221624
A33: 5 | B33: 2002-09-06 | D33: =VLOOKUP(B34,'P123'!N:T,$C$5) -> SPY | E33: 89.03867608 | F33: 91.34599024 | G33: 238 | H33: 0 | I33: 0 | J33: 1 | K33: 1 | L33: 0 | M33: 0 | N33: 0 | O33: 0 | P33: 0 | Q33: 0 | R33: 0 | T33: 75.64610636 | U33: 75.64610636 | V33: 75.64610636 | X33: 2002-09-06 | Y33: 19476.72817 | Z33: 21429.37767 | AA33: 21429.37767 | AB33: 0 | AF33: 0.4015972319 | AG33: -0.2264659795
A34: 6 | B34: 2002-09-09 | D34: =VLOOKUP(B35,'P123'!N:T,$C$5) -> SPY | E34: 91.0755006 | F34: 92.67104834 | G34: 238 | H34: 0 | I34: 0 | J34: 1 | K34: 1 | L34: 0 | M34: 0 | N34: 0 | O34: 0 | P34: 0 | Q34: 0 | R34: 0 | T34: 75.64610636 | U34: 75.64610636 | V34: 75.64610636 | X34: 2002-09-09 | Y34: 19743.87221 | Z34: 21266.85101 | AA34: 21268.87831 | AB34: -9.531736206e-05 | AF34: 0.4095111525 | AG34: -0.2334402185
A35: 7 | B35: 2002-09-10 | D35: =VLOOKUP(B36,'P123'!N:T,$C$5) -> SPY | E35: 92.09963461 | F35: 90.16467975 | G35: 238 | H35: 0 | I35: 0 | J35: 1 | K35: 1 | L35: 0 | M35: 0 | N35: 0 | O35: 0 | P35: 0 | Q35: 0 | R35: 0 | T35: 75.64610636 | U35: 75.64610636 | V35: 75.64610636 | X35: 2002-09-10 | Y35: 19889.83751 | Z35: 21751.61525 | AA35: 21751.61525 | AB35: 0 | AF35: 0.4200849848 | AG35: -0.2397155064
A36: 8 | B36: 2002-09-11 | D36: =VLOOKUP(B37,'P123'!N:T,$C$5) -> SPY | E36: 89.71808856 | F36: 88.98584735 | G36: 238 | H36: 0 | I36: 0 | J36: 1 | K36: 1 | L36: 0 | M36: 0 | N36: 0 | O36: 0 | P36: 0 | Q36: 0 | R36: 0 | T36: 75.64610636 | U36: 75.64610636 | V36: 75.64610636 | X36: 2002-09-11 | Y36: 20118.42468 | Z36: 21995.35914 | AA36: 21995.35914 | AB36: 0 | AF36: 0.4087285332 | AG36: -0.2315529624
A37: 9 | B37: 2002-09-12 | D37: =VLOOKUP(B38,'P123'!N:T,$C$5) -> SPY | E37: 88.69484368 | F37: 88.91846416 | G37: 238 | H37: 0 | I37: 0 | J37: 1 | K37: 1 | L37: 0 | M37: 0 | N37: 0 | O37: 0 | P37: 0 | Q37: 0 | R37: 0 | T37: 75.64610636 | U37: 75.64610636 | V37: 75.64610636 | X37: 2002-09-12 | Y37: 19991.73781 | Z37: 21428.55118 | AA37: 21751.61525 | AB37: -0.01485241722 | AF37: 0.4068450423 | AG37: -0.251813296
A38: 10 | B38: 2002-09-13 | D38: =VLOOKUP(B39,'P123'!N:T,$C$5) -> SPY | E38: 88.47022091 | F38: 88.26813059 | G38: 238 | H38: 0 | I38: 0 | J38: 1 | K38: 1 | L38: 0 | M38: 0 | N38: 0 | O38: 0 | P38: 0 | Q38: 0 | R38: 0 | T38: 75.64610636 | U38: 75.64610636 | V38: 75.64610636 | X38: 2002-09-13 | Y38: 19625.44754 | Z38: 21185.0189 | AA38: 21995.35914 | AB38: -0.03684141893 | AF38: 0.4153663809 | AG38: -0.2520081778
A39: 11 | B39: 2002-09-16 | D39: =VLOOKUP(B40,'P123'!N:T,$C$5) -> SPY | E39: 88.31096067 | F39: 86.39281381 | G39: 238 | H39: 0 | I39: 0 | J39: 1 | K39: 1 | L39: 0 | M39: 0 | N39: 0 | O39: 0 | P39: 0 | Q39: 0 | R39: 0 | T39: 75.64610636 | U39: 75.64610636 | V39: 75.64610636 | X39: 2002-09-16 | Y39: 19672.26659 | Z39: 21131.55868 | AA39: 21751.61525 | AB39: -0.02850623086 | AF39: 0.4001232235 | AG39: -0.2328355116
A40: 12 | B40: 2002-09-17 | D40: =VLOOKUP(B41,'P123'!N:T,$C$5) -> SPY | E40: 87.92436862 | F40: 86.48854141 | G40: 238 | H40: 0 | I40: 0 | J40: 1 | K40: 1 | L40: 0 | M40: 0 | N40: 0 | O40: 0 | P40: 0 | Q40: 0 | R40: 0 | T40: 75.64610636 | U40: 75.64610636 | V40: 75.64610636 | X40: 2002-09-17 | Y40: 19721.83971 | Z40: 21093.65474 | AA40: 21995.35914 | AB40: -0.04099521145 | AF40: 0.4158856728 | AG40: -0.2466534056
A41: 13 | B41: 2002-09-18 | D41: =VLOOKUP(B42,'P123'!N:T,$C$5) -> SPY | E41: 86.65041855 | F41: 84.32947567 | G41: 238 | H41: 0 | I41: 0.378 | J41: 1 | K41: 1 | L41: 0 | M41: 0 | N41: 0 | O41: 0 | P41: 0 | Q41: 0 | R41: 0 | T41: 75.64610636 | U41: 75.64610636 | V41: 75.64610636 | X41: 2002-09-18 | Y41: 19267.41944 | Z41: 21001.64584 | AA41: 21751.61525 | AB41: -0.03447879169 | AF41: 0.4187992221 | AG41: -0.2549731387
A42: 14 | B42: 2002-09-19 | D42: =VLOOKUP(B43,'P123'!N:T,$C$5) -> SPY | E42: 84.94926203 | F42: 82.81613726 | G42: 238 | H42: 0.378 | I42: 0.378 | J42: 1 | K42: 1 | L42: 0 | M42: 0 | N42: 0 | O42: 0 | P42: 0 | Q42: 0 | R42: 0 | T42: 75.64610636 | U42: 75.64610636 | V42: 75.64610636 | X42: 2002-09-19 | Y42: 19074.63509 | Z42: 20698.44572 | AA42: 21995.35914 | AB42: -0.05896304821 | AF42: 0.4189766785 | AG42: -0.2553044741
A43: 15 | B43: 2002-09-20 | D43: =VLOOKUP(B44,'P123'!N:T,$C$5) -> SPY | E43: 83.3753286 | F43: 82.79523364 | G43: 239 | H43: 0.378 | I43: 0.378 | J43: 1 | K43: 1 | L43: 0 | M43: 0 | N43: 0.378 | O43: 89.964 | P43: 0 | Q43: 0 | R43: 0 | T43: 75.64610636 | U43: 75.64610636 | V43: 75.64610636 | X43: 2002-09-20 | Y43: 18581.65795 | Z43: 20293.57047 | AA43: 21751.61525 | AB43: -0.06703156352 | AF43: 0.39323468 | AG43: -0.232815508
A44: 16 | B44: 2002-09-23 | D44: =VLOOKUP(B45,'P123'!N:T,$C$5) -> SPY | E44: 82.3534604 | F44: 84.35965435 | G44: 239 | H44: 0.378 | I44: 0.378 | J44: 1 | K44: 1 | L44: 0 | M44: 0 | N44: 0 | O44: 0 | P44: 89.893 | Q44: 1 | R44: 93.3753286 | T44: 75.64610636 | U44: 165.5391064 | V44: 72.16377776 | X44: 2002-09-23 | Y44: 18587.16607 | Z44: 19998.86731 | AA44: 21995.35914 | AB44: -0.09076877622 | AF44: 0.4072464674 | AG44: -0.2244938873
A45: 17 | B45: 2002-09-24 | D45: =VLOOKUP(B46,'P123'!N:T,$C$5) -> SPY | E45: 82.99968572 | F45: 85.27020669 | G45: 239 | H45: 0.378 | I45: 0.378 | J45: 1 | K45: 1 | L45: 0 | M45: 0 | N45: 0 | O45: 0 | P45: 0 | Q45: 0 | R45: 0 | T45: 72.16377776 | U45: 72.16377776 | V45: 72.16377776 | X45: 2002-09-24 | Y45: 18435.69265 | Z45: 19754.64081 | AA45: 21751.61525 | AB45: -0.09180809845 | AF45: 0.4033556022 | AG45: -0.2448593788
A46: 18 | B46: 2002-09-25 | D46: =VLOOKUP(B47,'P123'!N:T,$C$5) -> SPY | E46: 85.32661525 | F46: 84.36413517 | G46: 239 | H46: 0.378 | I46: 0.378 | J46: 1 | K46: 1 | L46: 0 | M46: 0 | N46: 0 | O46: 0 | P46: 0 | Q46: 0 | R46: 0 | T46: 72.16377776 | U46: 72.16377776 | V46: 72.16377776 | X46: 2002-09-25 | Y46: 18138.25392 | Z46: 19909.08866 | AA46: 21995.35914 | AB46: -0.09485048488 | AF46: 0.410046006 | AG46: -0.268015071
A47: 19 | B47: 2002-09-26 | D47: =VLOOKUP(B48,'P123'!N:T,$C$5) -> SPY | E47: 84.67795142 | F47: 81.78909277 | G47: 239 | H47: 0.378 | I47: 0.378 | J47: 1 | K47: 1 | L47: 0 | M47: 0 | N47: 0 | O47: 0 | P47: 0 | Q47: 0 | R47: 0 | T47: 72.16377776 | U47: 72.16377776 | V47: 72.16377776 | X47: 2002-09-26 | Y47: 18587.16607 | Z47: 20465.22482 | AA47: 21751.61525 | AB47: -0.05913999546 | AF47: 0.4101562678 | AG47: -0.2425749179
A48: 20 | B48: 2002-09-27 | D48: =VLOOKUP(B49,'P123'!N:T,$C$5) -> SPY | E48: 81.41981308 | F48: 83.13185781 | G48: 239 | H48: 0.378 | I48: 0.378 | J48: 1 | K48: 1 | L48: 0 | M48: 0 | N48: 0 | O48: 0 | P48: 0 | Q48: 0 | R48: 0 | T48: 72.16377776 | U48: 72.16377776 | V48: 72.16377776 | X48: 2002-09-27 | Y48: 18892.86698 | Z48: 20310.19417 | AA48: 21995.35914 | AB48: -0.07661456968 | AF48: 0.4211454839 | AG48: -0.268119162
A49: 21 | B49: 2002-09-30 | D49: =VLOOKUP(B50,'P123'!N:T,$C$5) -> SPY | E49: 84.97495931 | F49: 84.24120229 | G49: 239 | H49: 0.378 | I49: 0.378 | J49: 1 | K49: 1 | L49: 0 | M49: 0 | N49: 0 | O49: 0 | P49: 0 | Q49: 0 | R49: 0 | T49: 72.16377776 | U49: 72.16377776 | V49: 72.16377776 | X49: 2002-09-30 | Y49: 18234.6461 | Z49: 19531.4991 | AA49: 21751.61525 | AB49: -0.1020667256 | AF49: 0.4030986963 | AG49: -0.2397343545
A50: 22 | B50: 2002-10-01 | D50: =VLOOKUP(B51,'P123'!N:T,$C$5) -> SPY | E50: 82.7113533 | F50: 84.37815653 | G50: 239 | H50: 0.378 | I50: 0.378 | J50: 1 | K50: 1 | L50: 0 | M50: 0 | N50: 0 | O50: 0 | P50: 0 | Q50: 0 | R50: 0 | T50: 72.16377776 | U50: 72.16377776 | V50: 72.16377776 | X50: 2002-10-01 | Y50: 18025.33737 | Z50: 20381.17905 | AA50: 21995.35914 | AB50: -0.07338730318 | AF50: 0.4207528937 | AG50: -0.2457038397
A51: 23 | B51: 2002-10-02 | D51: =VLOOKUP(B52,'P123'!N:T,$C$5) -> SPY | E51: 82.31200154 | F51: 82.00961319 | G51: 239 | H51: 0.378 | I51: 0.378 | J51: 1 | K51: 1 | L51: 0 | M51: 0 | N51: 0 | O51: 0 | P51: 0 | Q51: 0 | R51: 0 | T51: 72.16377776 | U51: 72.16377776 | V51: 72.16377776 | X51: 2002-10-02 | Y51: 18890.11292 | Z51: 19840.17722 | AA51: 21751.61525 | AB51: -0.08787568238 | AF51: 0.4146111458 | AG51: -0.2616444824
A52: 24 | B52: 2002-10-03 | D52: =VLOOKUP(B53,'P123'!N:T,$C$5) -> SPY | E52: 82.63769073 | F52: 79.81745479 | G52: 239 | H52: 0.378 | I52: 0.378 | J52: 1 | K52: 1 | L52: 0 | M52: 0 | N52: 0 | O52: 0 | P52: 0 | Q52: 0 | R52: 0 | T52: 72.16377776 | U52: 72.16377776 | V52: 72.16377776 | X52: 2002-10-03 | Y52: 18322.77609 | Z52: 19744.73215 | AA52: 21995.35914 | AB52: -0.102322812 | AF52: 0.3969159284 | AG52: -0.2391253307
A53: 25 | B53: 2002-10-04 | D53: =VLOOKUP(B54,'P123'!N:T,$C$5) -> SPY | E53: 78.575057 | F53: 80.5010143 | G53: 239 | H53: 0.378 | I53: 0.378 | J53: 1 | K53: 1 | L53: 0 | M53: 0 | N53: 0 | O53: 0 | P53: 0 | Q53: 0 | R53: 0 | T53: 72.16377776 | U53: 72.16377776 | V53: 72.16377776 | X53: 2002-10-04 | Y53: 18138.25392 | Z53: 19822.57186 | AA53: 21751.61525 | AB53: -0.08868506384 | AF53: 0.4090294065 | AG53: -0.2290958949
A54: 26 | B54: 2002-10-07 | D54: =VLOOKUP(B55,'P123'!N:T,$C$5) -> SPY | E54: 80.86490729 | F54: 78.58954741 | G54: 239 | H54: 0.378 | I54: 0.378 | J54: 1 | K54: 1 | L54: 0 | M54: 0 | N54: 0 | O54: 0 | P54: 0 | Q54: 0 | R54: 0 | T54: 72.16377776 | U54: 72.16377776 | V54: 72.16377776 | X54: 2002-10-07 | Y54: 17805.01239 | Z54: 18851.6024 | AA54: 21995.35914 | AB54: -0.1429281842 | AF54: 0.4205343457 | AG54: -0.216452251
A55: 27 | B55: 2002-10-08 | D55: =VLOOKUP(B56,'P123'!N:T,$C$5) -> SPY | E55: 79.16561668 | F55: 79.3289178 | G55: 239 | H55: 0.378 | I55: 0.378 | J55: 1 | K55: 1 | L55: 0 | M55: 0 | N55: 0 | O55: 0 | P55: 0 | Q55: 0 | R55: 0 | T55: 72.16377776 | U55: 72.16377776 | V55: 72.16377776 | X55: 2002-10-08 | Y55: 17438.72212 | Z55: 19398.87662 | AA55: 21751.61525 | AB55: -0.1081638582 | AF55: 0.412787299 | AG55: -0.2648945357
A56: 28 | B56: 2002-10-09 | D56: =VLOOKUP(B57,'P123'!N:T,$C$5) -> SPY | E56: 79.00684798 | F56: 83.31889825 | G56: 240 | H56: 0.378 | I56: 0.378 | J56: 1 | K56: 1 | L56: 0 | M56: 0 | N56: 0 | O56: 0 | P56: 0 | Q56: 0 | R56: 0 | T56: 72.16377776 | U56: 72.16377776 | V56: 72.16377776 | X56: 2002-10-09 | Y56: 17711.37428 | Z56: 18992.74616 | AA56: 21995.35914 | AB56: -0.136511205 | AF56: 0.4033090188 | AG56: -0.2361446324
A57: 29 | B57: 2002-10-10 | D57: =VLOOKUP(B58,'P123'!N:T,$C$5) -> SPY | E57: 83.66132948 | F57: 83.86956791 | G57: 240 | H57: 0.378 | I57: 0.378 | J57: 1 | K57: 1 | L57: 0 | M57: 0 | N57: 0 | O57: 0 | P57: 89.964 | Q57: 1 | R57: 89.00684798 | T57: 72.16377776 | U57: 162.1277778 | V57: 73.12092978 | X57: 2002-10-10 | Y57: 17210.13495 | Z57: 19034.76444 | AA57: 21751.61525 | AB57: -0.1249034048 | AF57: 0.4217366638 | AG57: -0.2401197997
A58: 30 | B58: 2002-10-11 | D58: =VLOOKUP(B59,'P123'!N:T,$C$5) -> SPY | E58: 84.24105862 | F58: 88.5810871 | G58: 240 | H58: 0.378 | I58: 0.378 | J58: 1 | K58: 1 | L58: 0 | M58: 0 | N58: 0 | O58: 0 | P58: 0 | Q58: 0 | R58: 0 | T58: 73.12092978 | U58: 73.12092978 | V58: 73.12092978 | X58: 2002-10-11 | Y58: 17769.20958 | Z58: 20151.84 | AA58: 21995.35914 | AB58: -0.08381400494 | AF58: 0.4200638012 | AG58: -0.2311349657
A59: 31 | B59: 2002-10-14 | D59: =VLOOKUP(B60,'P123'!N:T,$C$5) -> SPY | E59: 88.52010841 | F59: 86.38566232 | G59: 240 | H59: 0.378 | I59: 0.378 | J59: 1 | K59: 1 | L59: 0 | M59: 0 | N59: 0 | O59: 0 | P59: 0 | Q59: 0 | R59: 0 | T59: 73.12092978 | U59: 73.12092978 | V59: 73.12092978 | X59: 2002-10-14 | Y59: 18545.85514 | Z59: 20290.975 | AA59: 21751.61525 | AB59: -0.06715088662 | AF59: 0.4187405779 | AG59: -0.2489563201
A60: 32 | B60: 2002-10-15 | D60: =VLOOKUP(B61,'P123'!N:T,$C$5) -> SPY | E60: 86.48639445 | F60: 88.92528917 | G60: 240 | H60: 0.378 | I60: 0.378 | J60: 1 | K60: 1 | L60: 0 | M60: 0 | N60: 0 | O60: 0 | P60: 0 | Q60: 0 | R60: 0 | T60: 73.12092978 | U60: 73.12092978 | V60: 73.12092978 | X60: 2002-10-15 | Y60: 18650.5095 | Z60: 21317.94695 | AA60: 21995.35914 | AB60: -0.03079796019 | AF60: 0.402321902 | AG60: -0.2555209255
A61: 33 | B61: 2002-10-16 | D61: =VLOOKUP(B62,'P123'!N:T,$C$5) -> SPY | E61: 88.27935969 | F61: 88.47087898 | G61: 240 | H61: 0.378 | I61: 0.378 | J61: 1 | K61: 1 | L61: 0 | M61: 0 | N61: 0 | O61: 0 | P61: 0 | Q61: 0 | R61: 0 | T61: 73.12092978 | U61: 73.12092978 | V61: 73.12092978 | X61: 2002-10-16 | Y61: 19545.57973 | Z61: 20829.8556 | AA61: 21751.61525 | AB61: -0.04237660702 | AF61: 0.4028842998 | AG61: -0.2320681325
A62: 34 | B62: 2002-10-17 | D62: =VLOOKUP(B63,'P123'!N:T,$C$5) -> SPY | E62: 88.36054693 | F62: 89.51658619 | G62: 240 | H62: 0.378 | I62: 0.378 | J62: 1 | K62: 1 | L62: 0 | M62: 0 | N62: 0 | O62: 0 | P62: 0 | Q62: 0 | R62: 0 | T62: 73.12092978 | U62: 73.12092978 | V62: 73.12092978 | X62: 2002-10-17 | Y62: 19071.88102 | Z62: 21260.16725 | AA62: 21995.35914 | AB62: -0.03342486406 | AF62: 0.4084714323 | AG62: -0.2526999148
A63: 35 | B63: 2002-10-18 | D63: =VLOOKUP(B64,'P123'!N:T,$C$5) -> SPY | E63: 88.06404048 | F63: 89.60035868 | G63: 240 | H63: 0.378 | I63: 0.378 | J63: 1 | K63: 1 | L63: 0 | M63: 0 | N63: 0 | O63: 0 | P63: 0 | Q63: 0 | R63: 0 | T63: 73.12092978 | U63: 73.12092978 | V63: 73.12092978 | X63: 2002-10-18 | Y63: 19451.94161 | Z63: 21279.65219 | AA63: 21751.61525 | AB63: -0.02169783942 | AF63: 0.4120964261 | AG63: -0.2673958706
A64: 36 | B64: 2002-10-21 | D64: =VLOOKUP(B65,'P123'!N:T,$C$5) -> SPY | E64: 89.80938761 | F64: 88.26587233 | G64: 240 | H64: 0.378 | I64: 0.378 | J64: 1 | K64: 1 | L64: 0 | M64: 0 | N64: 0 | O64: 0 | P64: 0 | Q64: 0 | R64: 0 | T64: 73.12092978 | U64: 73.12092978 | V64: 73.12092978 | X64: 2002-10-21 | Y64: 19534.56348 | Z64: 21208.49065 | AA64: 21995.35914 | AB64: -0.03577429645 | AF64: 0.4184070104 | AG64: -0.2505477363
A65: 37 | B65: 2002-10-22 | D65: =VLOOKUP(B66,'P123'!N:T,$C$5) -> SPY | E65: 89.43195608 | F65: 89.7202884 | G65: 240 | H65: 0.378 | I65: 0.378 | J65: 1 | K65: 1 | L65: 0 | M65: 0 | N65: 0 | O65: 0 | P65: 0 | Q65: 0 | R65: 0 | T65: 73.12092978 | U65: 73.12092978 | V65: 73.12092978 | X65: 2002-10-22 | Y65: 19870.55907 | Z65: 21627.37396 | AA65: 21751.61525 | AB65: -0.005711819148 | AF65: 0.4163095183 | AG65: -0.2678080212
A66: 38 | B66: 2002-10-23 | D66: =VLOOKUP(B67,'P123'!N:T,$C$5) -> SPY | E66: 89.80448932 | F66: 88.92148836 | G66: 240 | H66: 0.378 | I66: 0.378 | J66: 1 | K66: 1 | L66: 0 | M66: 0 | N66: 0 | O66: 0 | P66: 0 | Q66: 0 | R66: 0 | T66: 73.12092978 | U66: 73.12092978 | V66: 73.12092978 | X66: 2002-10-23 | Y66: 19727.34784 | Z66: 21536.79039 | AA66: 21995.35914 | AB66: -0.02084843229 | AF66: 0.417962631 | AG66: -0.2422267789
A67: 39 | B67: 2002-10-24 | D67: =VLOOKUP(B68,'P123'!N:T,$C$5) -> SPY | E67: 88.08521726 | F67: 90.89562751 | G67: 240 | H67: 0.378 | I67: 0.378 | J67: 1 | K67: 1 | L67: 0 | M67: 0 | N67: 0 | O67: 0 | P67: 0 | Q67: 0 | R67: 0 | T67: 73.12092978 | U67: 73.12092978 | V67: 73.12092978 | X67: 2002-10-24 | Y67: 19876.0672 | Z67: 21626.19837 | AA67: 21751.61525 | AB67: -0.005765865244 | AF67: 0.4069641038 | AG67: -0.2259742303
A68: 1 | B68: 2002-10-25 | D68: =VLOOKUP(B69,'P123'!N:T,$C$5) -> TLT | E68: 85.45160327 | F68: 85.94280607 | G68: 255 | H68: 0.716 | I68: 0.716 | J68: 1 | K68: 1 | L68: 0 | M68: 0 | N68: 0 | O68: 0 | P68: 0 | Q68: 0 | R68: 0 | T68: 73.12092978 | U68: 73.12092978 | V68: 73.12092978 | X68: 2002-10-25 | Y68: 19471.22005 | Z68: 21213.57307 | AA68: 21995.35914 | AB68: -0.03554322832 | AF68: 0.4097124509 | AG68: -0.252868926
A69: 2 | B69: 2002-10-28 | D69: =VLOOKUP(B70,'P123'!N:T,$C$5) -> TLT | E69: 86.47938106 | F69: 86.11518787 | G69: 255 | H69: 0.716 | I69: 0.716 | J69: 1 | K69: 1 | L69: 21800.15883 | M69: 21804.9506 | N69: 0 | O69: 0 | P69: 0 | Q69: 0 | R69: 0 | T69: 21878.07153 | U69: 21878.07153 | V69: 77.91269991 | X69: 2002-10-28 | Y69: 19876.0672 | Z69: 21868.07153 | AA69: 21868.07153 | AB69: 0 | AF69: 0.4248624862 | AG69: -0.2555435753
A70: 3 | B70: 2002-10-29 | D70: =VLOOKUP(B71,'P123'!N:T,$C$5) -> TLT | E70: 86.62331665 | F70: 86.39238496 | G70: 255 | H70: 0.716 | I70: 0.716 | J70: 1 | K70: 1 | L70: 0 | M70: 0 | N70: 0 | O70: 0 | P70: 0 | Q70: 0 | R70: 0 | T70: 77.91269991 | U70: 77.91269991 | V70: 77.91269991 | X70: 2002-10-29 | Y70: 19746.62627 | Z70: 22130.15487 | AA70: 22130.15487 | AB70: 0 | AF70: 0.408776169 | AG70: -0.2476048516
A71: =IF(D70=D71,A70+1,1) -> 4 | B71: 2002-10-30 | D71: =VLOOKUP(B72,'P123'!N:T,$C$5) -> TLT | E71: 86.60859884 | F71: 86.92579133 | G71: 255 | H71: 0.716 | I71: 1.105 | J71: =IF(D70=D71,J70,VLOOKUP(B72,INDIRECT(D71&"!A:q"),J$2)) -> 1 | K71: =IF(D70=D71,K70,VLOOKUP(B73,INDIRECT(D71&"!A:q"),K$2)) -> 1 | L71: 0 | M71: 0 | N71: 0 | O71: 0 | P71: =IF(ROW()>P$5+7,INDIRECT(P$2&ROW()-P$5),0) -> 0 | Q71: 0 | R71: 0 | T71: 77.91269991 | U71: 77.91269991 | V71: 77.91269991 | X71: =B71 -> 2002-10-30 | Y71: 19518.03911 | Z71: 22166.85844 | AA71: 22166.85844 | AB71: 0 | AF71: 0.4177126332 | AG71: -0.2505209749
A72: 5 | B72: =INDIRECT(B$5&ROW()) -> 2002-10-31 | D72: =VLOOKUP(B73,'P123'!N:T,$C$5) -> TLT | E72: =RAND()*(VLOOKUP(B73,INDIRECT(D72&"!A:q"),E$1)-VLOOKUP(B73,INDIRECT(D72&"!A:q"),E$2))+VLOOKUP(B73,INDIRECT(D72&"!A:q"),E$2) -> 85.98082399 | F72: =RAND()*(VLOOKUP(B74,INDIRECT(D72&"!A:q"),F$1)-VLOOKUP(B74,INDIRECT(D72&"!A:q"),F$2))+VLOOKUP(B74,INDIRECT(D72&"!A:q"),F$2) -> 85.33325308 | G72: =IF(D72=D71,G71,INT((T73*(1-L$1)-L$2)/E72))+Q73 -> 255 | H72: =VLOOKUP(B73,INDIRECT(D72&"!A:q"),H$2) -> 1.105 | I72: 1.105 | J72: 1 | K72: 1 | L72: =IF(D70=D71,0,G71*E71*(1+L$1)+$L$2) -> 0 | M72: 0 | N72: 0 | O72: 0 | P72: 0 | Q72: 0 | R72: 0 | T72: =V71+M72 -> 77.91269991 | U72: =T72+P72 -> 77.91269991 | V72: =U72-L72-R72 -> 77.91269991 | X72: 2002-10-31 | Y72: =VLOOKUP(X71,INDIRECT(Y$3&"!A:R"),7)*$Y$1 -> 19708.0694 | Z72: =E71*G71+V72 -> 22163.1054 | AA72: =IF(Z72>AA70,Z72,AA70) -> 22163.1054 | AB72: =Z72/AA72-1 -> 0 | AF72: 0.413226575 | AG72: -0.2309313013
A73: 6 | B73: 2002-11-01 | D73: =VLOOKUP(B74,'P123'!N:T,$C$5) -> TLT | E73: 85.52129352 | F73: 85.19320142 | G73: 255 | H73: 1.105 | I73: 1.105 | J73: 1 | K73: 1 | L73: 0 | M73: =IF(D71=D72,0,(K71/J71)*G71*F71/(1+$M$1)-$L$2) -> 0 | N73: =IF(I71<>H71,I71-H71,0) -> 0.389 | O73: =G71*N73 -> 99.195 | P73: 0 | Q73: =IF(AND(U73>Q$4,D72=D71),INT((U73*(1-L$1)-L$2)/E72),0) -> 0 | R73: 0 | T73: 77.91269991 | U73: 77.91269991 | V73: 77.91269991 | X73: 2002-11-01 | Y73: 19507.02286 | Z73: 22003.02282 | AA73: 22166.85844 | AB73: -0.007391016959 | AF73: 0.411949419 | AG73: -0.2722717283
A74: 7 | B74: 2002-11-04 | D74: =VLOOKUP(B75,'P123'!N:T,$C$5) -> TLT | E74: 85.31534826 | F74: 85.35812059 | G74: 255 | H74: 1.105 | I74: 1.105 | J74: 1 | K74: 1 | L74: 0 | M74: 0 | N74: 0 | O74: 0 | P74: 0 | Q74: 0 | R74: =IF(Q74>0,Q74*E73+$L$2,0) -> 0 | T74: 77.91269991 | U74: 77.91269991 | V74: 77.91269991 | X74: 2002-11-04 | Y74: 19892.59157 | Z74: 21885.84255 | AA74: 22163.1054 | AB74: -0.01251010867 | AF74: 0.4152916951 | AG74: -0.2453067111
A75: 8 | B75: 2002-11-05 | D75: =VLOOKUP(B76,'P123'!N:T,$C$5) -> TLT | E75: 85.09850909 | F75: 87.28653275 | G75: 255 | H75: 1.105 | I75: 1.105 | J75: 1 | K75: 1 | L75: 0 | M75: 0 | N75: 0 | O75: 0 | P75: 0 | Q75: 0 | R75: 0 | T75: 77.91269991 | U75: 77.91269991 | V75: 77.91269991 | X75: 2002-11-05 | Y75: 20082.62187 | Z75: 21833.32651 | AA75: 22166.85844 | AB75: -0.01504642347 | AF75: 0.4241796617 | AG75: -0.2645880834
A76: 9 | B76: 2002-11-06 | D76: =VLOOKUP(B77,'P123'!N:T,$C$5) -> TLT | E76: 87.68341246 | F76: 88.04402641 | G76: 255 | H76: 1.105 | I76: 1.105 | J76: 1 | K76: 1 | L76: 0 | M76: 0 | N76: 0 | O76: 0 | P76: 0 | Q76: 0 | R76: 0 | T76: 77.91269991 | U76: 77.91269991 | V76: 77.91269991 | X76: 2002-11-06 | Y76: 20242.35748 | Z76: 21778.03252 | AA76: 22163.1054 | AB76: -0.01737450047 | AF76: 0.4144908766 | AG76: -0.2600384608
A77: 10 | B77: 2002-11-07 | D77: =VLOOKUP(B78,'P123'!N:T,$C$5) -> TLT | E77: 88.4224088 | F77: 88.40228848 | G77: 255 | H77: 1.105 | I77: 1.105 | J77: 1 | K77: 1 | L77: 0 | M77: 0 | N77: 0 | O77: 0 | P77: 0 | Q77: 0 | R77: 0 | T77: 77.91269991 | U77: 77.91269991 | V77: 77.91269991 | X77: 2002-11-07 | Y77: 20503.99339 | Z77: 22437.18288 | AA77: 22437.18288 | AB77: 0 | AF77: 0.409300311 | AG77: -0.2579252118
A78: 11 | B78: 2002-11-08 | D78: =VLOOKUP(B79,'P123'!N:T,$C$5) -> TLT | E78: 88.89105029 | F78: 88.3778281 | G78: 255 | H78: 1.105 | I78: 1.105 | J78: 1 | K78: 1 | L78: 0 | M78: 0 | N78: 0 | O78: 0 | P78: 0 | Q78: 0 | R78: 0 | T78: 77.91269991 | U78: 77.91269991 | V78: 77.91269991 | X78: 2002-11-08 | Y78: 20000 | Z78: 22625.62694 | AA78: 22625.62694 | AB78: 0 | AF78: 0.4172040905 | AG78: -0.2569499568
A79: 12 | B79: 2002-11-11 | D79: =VLOOKUP(B80,'P123'!N:T,$C$5) -> TLT | E79: 88.85294004 | F79: 88.49864204 | G79: 255 | H79: 1.105 | I79: 1.105 | J79: 1 | K79: 1 | L79: 0 | M79: 0 | N79: 0 | O79: 0 | P79: 0 | Q79: 0 | R79: 0 | T79: 77.91269991 | U79: 77.91269991 | V79: 77.91269991 | X79: 2002-11-11 | Y79: 19754.88846 | Z79: 22745.13052 | AA79: 22745.13052 | AB79: 0 | AF79: 0.4093276759 | AG79: -0.2417152656
A80: 13 | B80: 2002-11-12 | D80: =VLOOKUP(B81,'P123'!N:T,$C$5) -> TLT | E80: 88.47460285 | F80: 87.20350591 | G80: 255 | H80: 1.105 | I80: 1.105 | J80: 1 | K80: 1 | L80: 0 | M80: 0 | N80: 0 | O80: 0 | P80: 0 | Q80: 0 | R80: 0 | T80: 77.91269991 | U80: 77.91269991 | V80: 77.91269991 | X80: 2002-11-12 | Y80: 19449.18755 | Z80: 22735.41241 | AA80: 22735.41241 | AB80: 0 | AF80: 0.4111991503 | AG80: -0.2641859574
A81: 14 | B81: 2002-11-13 | D81: =VLOOKUP(B82,'P123'!N:T,$C$5) -> TLT | E81: 87.16798029 | F81: 87.05322669 | G81: 255 | H81: 1.105 | I81: 1.105 | J81: 1 | K81: 1 | L81: 0 | M81: 0 | N81: 0 | O81: 0 | P81: 0 | Q81: 0 | R81: 0 | T81: 77.91269991 | U81: 77.91269991 | V81: 77.91269991 | X81: 2002-11-13 | Y81: 19603.41504 | Z81: 22638.93643 | AA81: 22745.13052 | AB81: -0.004668871674 | AF81: 0.4177120783 | AG81: -0.2554140089
A82: 15 | B82: 2002-11-14 | D82: =VLOOKUP(B83,'P123'!N:T,$C$5) -> TLT | E82: 87.13753084 | F82: 87.1332523 | G82: 255 | H82: 1.105 | I82: 1.105 | J82: 1 | K82: 1 | L82: 0 | M82: 0 | N82: 0 | O82: 0 | P82: 0 | Q82: 0 | R82: 0 | T82: 77.91269991 | U82: 77.91269991 | V82: 77.91269991 | X82: 2002-11-14 | Y82: 19622.69347 | Z82: 22305.74767 | AA82: 22735.41241 | AB82: -0.01889847999 | AF82: 0.4000668406 | AG82: -0.2205192394
A83: 16 | B83: 2002-11-15 | D83: =VLOOKUP(B84,'P123'!N:T,$C$5) -> TLT | E83: 86.9972896 | F83: 88.1387707 | G83: 255 | H83: 1.105 | I83: =VLOOKUP(B85,INDIRECT(D83&"!A:q"),H$2) -> 1.105 | J83: 1 | K83: 1 | L83: 0 | M83: 0 | N83: 0 | O83: 0 | P83: 0 | Q83: 0 | R83: 0 | T83: 77.91269991 | U83: 77.91269991 | V83: 77.91269991 | X83: 2002-11-15 | Y83: 19994.49188 | Z83: 22297.98307 | AA83: 22745.13052 | AB83: -0.01965904119 | AF83: 0.4086815631 | AG83: -0.2465439247
A84: 17 | B84: 2002-11-18 | D84: =VLOOKUP(B85,'P123'!N:T,$C$5) -> TLT | E84: 87.65935334 | F84: 87.93657112 | G84: 255 | H84: 1.105 | I84: 1.105 | J84: 1 | K84: 1 | L84: 0 | M84: 0 | N84: 0 | O84: 0 | P84: 0 | Q84: 0 | R84: 0 | T84: 77.91269991 | U84: 77.91269991 | V84: 77.91269991 | X84: 2002-11-18 | Y84: 20143.21124 | Z84: 22262.22155 | AA84: 22735.41241 | AB84: -0.02081294383 | AF84: 0.403498919 | AG84: -0.2486532996
A85: 18 | B85: 2002-11-19 | D85: =VLOOKUP(B86,'P123'!N:T,$C$5) -> TLT | E85: 87.72609553 | F85: 86.4938383 | G85: 255 | H85: 1.105 | I85: 1.105 | J85: 1 | K85: 1 | L85: 0 | M85: 0 | N85: 0 | O85: 0 | P85: 0 | Q85: 0 | R85: 0 | T85: 77.91269991 | U85: 77.91269991 | V85: 77.91269991 | X85: 2002-11-19 | Y85: 19939.41063 | Z85: 22431.0478 | AA85: 22745.13052 | AB85: -0.01380878957 | AF85: 0.4142732129 | AG85: -0.228545101
A86: 19 | B86: 2002-11-20 | D86: =VLOOKUP(B87,'P123'!N:T,$C$5) -> TLT | E86: 85.89009703 | F86: 85.90153938 | G86: 256 | H86: 1.105 | I86: 1.105 | J86: 1 | K86: 1 | L86: 0 | M86: 0 | N86: 0 | O86: 0 | P86: 0 | Q86: 0 | R86: 0 | T86: 77.91269991 | U86: 77.91269991 | V86: 77.91269991 | X86: 2002-11-20 | Y86: 19911.87001 | Z86: 22448.06706 | AA86: 22735.41241 | AB86: -0.01263866891 | AF86: 0.4196277982 | AG86: -0.2449706126
A87: 20 | B87: 2002-11-21 | D87: =VLOOKUP(B88,'P123'!N:T,$C$5) -> TLT | E87: 86.03992673 | F87: 86.10559008 | G87: 256 | H87: 1.105 | I87: 1.105 | J87: 1 | K87: 1 | L87: 0 | M87: 0 | N87: 0 | O87: 0 | P87: 99.195 | Q87: 1 | R87: 95.89009703 | T87: 77.91269991 | U87: 177.1076999 | V87: 81.21760288 | X87: 2002-11-21 | Y87: 20355.27403 | Z87: 22069.08244 | AA87: 22745.13052 | AB87: -0.02972276113 | AF87: 0.4057826206 | AG87: -0.2618833733
A88: 21 | B88: 2002-11-22 | D88: =VLOOKUP(B89,'P123'!N:T,$C$5) -> TLT | E88: 86.26632977 | F88: 86.33177339 | G88: 256 | H88: 1.105 | I88: 1.105 | J88: 1 | K88: 1 | L88: 0 | M88: 0 | N88: 0 | O88: 0 | P88: 0 | Q88: 0 | R88: 0 | T88: 81.21760288 | U88: 81.21760288 | V88: 81.21760288 | X88: 2002-11-22 | Y88: 20735.33462 | Z88: 22107.43885 | AA88: 22735.41241 | AB88: -0.02762094449 | AF88: 0.421272294 | AG88: -0.260948688
A89: 22 | B89: 2002-11-25 | D89: =VLOOKUP(B90,'P123'!N:T,$C$5) -> TLT | E89: 86.85177156 | F89: 85.37286645 | G89: 256 | H89: 1.105 | I89: 1.105 | J89: 1 | K89: 1 | L89: 0 | M89: 0 | N89: 0 | O89: 0 | P89: 0 | Q89: 0 | R89: 0 | T89: 81.21760288 | U89: 81.21760288 | V89: 81.21760288 | X89: 2002-11-25 | Y89: 20586.61526 | Z89: 22165.39802 | AA89: 22745.13052 | AB89: -0.02548820283 | AF89: 0.3973000989 | AG89: -0.2568019372
A90: 23 | B90: 2002-11-26 | D90: =VLOOKUP(B91,'P123'!N:T,$C$5) -> TLT | E90: 86.27544916 | F90: 85.35400669 | G90: 256 | H90: 1.105 | I90: 1.105 | J90: 1 | K90: 1 | L90: 0 | M90: 0 | N90: 0 | O90: 0 | P90: 0 | Q90: 0 | R90: 0 | T90: 81.21760288 | U90: 81.21760288 | V90: 81.21760288 | X90: 2002-11-26 | Y90: 20600.38557 | Z90: 22315.27112 | AA90: 22735.41241 | AB90: -0.01847959826 | AF90: 0.4158407298 | AG90: -0.2491726957
A91: 24 | B91: 2002-11-27 | D91: =VLOOKUP(B92,'P123'!N:T,$C$5) -> TLT | E91: 85.32122236 | F91: 84.46808846 | G91: 256 | H91: 1.105 | I91: 1.494 | J91: 1 | K91: 1 | L91: 0 | M91: 0 | N91: 0 | O91: 0 | P91: 0 | Q91: 0 | R91: 0 | T91: 81.21760288 | U91: 81.21760288 | V91: 81.21760288 | X91: 2002-11-27 | Y91: 20209.30873 | Z91: 22167.73259 | AA91: 22745.13052 | AB91: -0.02538556268 | AF91: 0.4224205428 | AG91: -0.2433258595
A92: 25 | B92: 2002-11-29 | D92: =VLOOKUP(B93,'P123'!N:T,$C$5) -> TLT | E92: 84.93489359 | F92: 85.30246961 | G92: 256 | H92: 1.494 | I92: 1.494 | J92: 1 | K92: 1 | L92: 0 | M92: 0 | N92: 0 | O92: 0 | P92: 0 | Q92: 0 | R92: 0 | T92: 81.21760288 | U92: 81.21760288 | V92: 81.21760288 | X92: 2002-11-29 | Y92: 20776.64555 | Z92: 21923.45053 | AA92: 22735.41241 | AB92: -0.03571353226 | AF92: 0.4109371531 | AG92: -0.2759467868
A93: 26 | B93: 2002-12-02 | D93: =VLOOKUP(B94,'P123'!N:T,$C$5) -> TLT | E93: 85.39146809 | F93: 85.98832828 | G93: 256 | H93: 1.494 | I93: 1.494 | J93: 1 | K93: 1 | L93: 0 | M93: 0 | N93: 0.389 | O93: 99.584 | P93: 0 | Q93: 0 | R93: 0 | T93: 81.21760288 | U93: 81.21760288 | V93: 81.21760288 | X93: 2002-12-02 | Y93: 20710.54806 | Z93: 21824.55036 | AA93: 22745.13052 | AB93: -0.04047372516 | AF93: 0.415469493 | AG93: -0.2406410077
A94: 27 | B94: 2002-12-03 | D94: =VLOOKUP(B95,'P123'!N:T,$C$5) -> TLT | E94: 85.58798544 | F94: 85.79511393 | G94: 256 | H94: 1.494 | I94: 1.494 | J94: 1 | K94: 1 | L94: 0 | M94: 0 | N94: 0 | O94: 0 | P94: 0 | Q94: 0 | R94: 0 | T94: 81.21760288 | U94: 81.21760288 | V94: 81.21760288 | X94: 2002-12-03 | Y94: 20743.59681 | Z94: 21941.43343 | AA94: 22735.41241 | AB94: -0.03492256756 | AF94: 0.412963911 | AG94: -0.2366116399
A95: 28 | B95: 2002-12-04 | D95: =VLOOKUP(B96,'P123'!N:T,$C$5) -> TLT | E95: 86.18166993 | F95: 86.44379819 | G95: 256 | H95: 1.494 | I95: 1.494 | J95: 1 | K95: 1 | L95: 0 | M95: 0 | N95: 0 | O95: 0 | P95: 0 | Q95: 0 | R95: 0 | T95: 81.21760288 | U95: 81.21760288 | V95: 81.21760288 | X95: 2002-12-04 | Y95: 20465.43652 | Z95: 21991.74188 | AA95: 22745.13052 | AB95: -0.03312307426 | AF95: 0.4104517524 | AG95: -0.2596095936
A96: 29 | B96: 2002-12-05 | D96: =VLOOKUP(B97,'P123'!N:T,$C$5) -> TLT | E96: 85.78935118 | F96: 86.23413771 | G96: 256 | H96: 1.494 | I96: 1.494 | J96: 1 | K96: 1 | L96: 0 | M96: 0 | N96: 0 | O96: 0 | P96: 0 | Q96: 0 | R96: 0 | T96: 81.21760288 | U96: 81.21760288 | V96: 81.21760288 | X96: 2002-12-05 | Y96: 20374.55246 | Z96: 22143.7251 | AA96: 22735.41241 | AB96: -0.02602492078 | AF96: 0.4288076153 | AG96: -0.2566389348
A97: 30 | B97: 2002-12-06 | D97: =VLOOKUP(B98,'P123'!N:T,$C$5) -> TLT | E97: 86.77769126 | F97: 86.88521913 | G97: 256 | H97: 1.494 | I97: 1.494 | J97: 1 | K97: 1 | L97: 0 | M97: 0 | N97: 0 | O97: 0 | P97: 0 | Q97: 0 | R97: 0 | T97: 81.21760288 | U97: 81.21760288 | V97: 81.21760288 | X97: 2002-12-06 | Y97: 20148.71936 | Z97: 22043.2915 | AA97: 22745.13052 | AB97: -0.03085667142 | AF97: 0.4207546556 | AG97: -0.239336271
A98: 31 | B98: 2002-12-09 | D98: =VLOOKUP(B99,'P123'!N:T,$C$5) -> TLT | E98: 86.90841533 | F98: 87.34537687 | G98: 256 | H98: 1.494 | I98: 1.494 | J98: 1 | K98: 1 | L98: 0 | M98: 0 | N98: 0 | O98: 0 | P98: 0 | Q98: 0 | R98: 0 | T98: 81.21760288 | U98: 81.21760288 | V98: 81.21760288 | X98: 2002-12-09 | Y98: 20280.91435 | Z98: 22296.30657 | AA98: 22735.41241 | AB98: -0.01931374006 | AF98: 0.418167131 | AG98: -0.2189841593
A99: 32 | B99: 2002-12-10 | D99: =VLOOKUP(B100,'P123'!N:T,$C$5) -> TLT | E99: 86.99722007 | F99: 87.49718538 | G99: 256 | H99: 1.494 | I99: 1.494 | J99: 1 | K99: 1 | L99: 0 | M99: 0 | N99: 0 | O99: 0 | P99: 0 | Q99: 0 | R99: 0 | T99: 81.21760288 | U99: 81.21760288 | V99: 81.21760288 | X99: 2002-12-10 | Y99: 19721.83971 | Z99: 22329.77193 | AA99: 22745.13052 | AB99: -0.01826142946 | AF99: 0.3937651207 | AG99: -0.2536595433
A100: 33 | B100: 2002-12-11 | D100: =VLOOKUP(B101,'P123'!N:T,$C$5) -> TLT | E100: 87.24851939 | F100: 86.62636637 | G100: 256 | H100: 1.494 | I100: 1.494 | J100: 1 | K100: 1 | L100: 0 | M100: 0 | N100: 0 | O100: 0 | P100: 0 | Q100: 0 | R100: 0 | T100: 81.21760288 | U100: 81.21760288 | V100: 81.21760288 | X100: 2002-12-11 | Y100: 19988.98375 | Z100: 22352.50594 | AA100: 22735.41241 | AB100: -0.01684185279 | AF100: 0.414684592 | AG100: -0.2632808034
A101: 34 | B101: 2002-12-12 | D101: =VLOOKUP(B102,'P123'!N:T,$C$5) -> TLT | E101: 86.84435069 | F101: 86.86164076 | G101: 256 | H101: 1.494 | I101: 1.494 | J101: 1 | K101: 1 | L101: 0 | M101: 0 | N101: 0 | O101: 0 | P101: 0 | Q101: 0 | R101: 0 | T101: 81.21760288 | U101: 81.21760288 | V101: 81.21760288 | X101: 2002-12-12 | Y101: 20005.50812 | Z101: 22416.83857 | AA101: 22745.13052 | AB101: -0.01443350503 | AF101: 0.4114218791 | AG101: -0.2544078771
A102: 35 | B102: 2002-12-13 | D102: =VLOOKUP(B103,'P123'!N:T,$C$5) -> TLT | E102: 86.72235602 | F102: 86.28606363 | G102: 256 | H102: 1.494 | I102: 1.494 | J102: 1 | K102: 1 | L102: 0 | M102: 0 | N102: 0 | O102: 0 | P102: 0 | Q102: 0 | R102: 0 | T102: 81.21760288 | U102: 81.21760288 | V102: 81.21760288 | X102: 2002-12-13 | Y102: 20002.75406 | Z102: 22313.37138 | AA102: 22735.41241 | AB102: -0.01856315701 | AF102: 0.4172322593 | AG102: -0.248169372
A103: 36 | B103: 2002-12-16 | D103: =VLOOKUP(B104,'P123'!N:T,$C$5) -> TLT | E103: 86.34246802 | F103: 86.37293222 | G103: 256 | H103: 1.494 | I103: 1.494 | J103: 1 | K103: 1 | L103: 0 | M103: 0 | N103: 0 | O103: 0 | P103: 0 | Q103: 0 | R103: 0 | T103: 81.21760288 | U103: 81.21760288 | V103: 81.21760288 | X103: 2002-12-16 | Y103: 19688.79097 | Z103: 22282.14074 | AA103: 22745.13052 | AB103: -0.02035555604 | AF103: 0.4205203576 | AG103: -0.2470876934
A104: 37 | B104: 2002-12-17 | D104: =VLOOKUP(B105,'P123'!N:T,$C$5) -> TLT | E104: 86.48118058 | F104: 87.41281188 | G104: 256 | H104: 1.494 | I104: 1.494 | J104: 1 | K104: 1 | L104: 0 | M104: 0 | N104: 0 | O104: 0 | P104: 0 | Q104: 0 | R104: 0 | T104: 81.21760288 | U104: 81.21760288 | V104: 81.21760288 | X104: 2002-12-17 | Y104: 20198.29248 | Z104: 22184.88942 | AA104: 22735.41241 | AB104: -0.02421433947 | AF104: 0.4085369523 | AG104: -0.2697508254
A105: 38 | B105: 2002-12-18 | D105: =VLOOKUP(B106,'P123'!N:T,$C$5) -> TLT | E105: 87.05649604 | F105: 87.5345956 | G105: 256 | H105: 1.494 | I105: 1.494 | J105: 1 | K105: 1 | L105: 0 | M105: 0 | N105: 0 | O105: 0 | P105: 0 | Q105: 0 | R105: 0 | T105: 81.21760288 | U105: 81.21760288 | V105: 81.21760288 | X105: 2002-12-18 | Y105: 20022.0325 | Z105: 22220.39983 | AA105: 22745.13052 | AB105: -0.02307002333 | AF105: 0.4062331471 | AG105: -0.230854516
A106: 39 | B106: 2002-12-19 | D106: =VLOOKUP(B107,'P123'!N:T,$C$5) -> TLT | E106: 87.42304384 | F106: 87.28280918 | G106: 257 | H106: 1.494 | I106: 1.494 | J106: 1 | K106: 1 | L106: 0 | M106: 0 | N106: 0 | O106: 0 | P106: 0 | Q106: 0 | R106: 0 | T106: 81.21760288 | U106: 81.21760288 | V106: 81.21760288 | X106: 2002-12-19 | Y106: 19787.93721 | Z106: 22367.68059 | AA106: 22735.41241 | AB106: -0.0161744073 | AF106: 0.4118115992 | AG106: -0.2444832969
A107: 40 | B107: 2002-12-20 | D107: =VLOOKUP(B108,'P123'!N:T,$C$5) -> TLT | E107: 87.10465204 | F107: 88.064079 | G107: 257 | H107: 1.494 | I107: 1.494 | J107: 1 | K107: 1 | L107: 0 | M107: 0 | N107: 0 | O107: 0 | P107: 99.584 | Q107: 1 | R107: 97.42304384 | T107: 81.21760288 | U107: 180.8016029 | V107: 83.37855904 | X107: 2002-12-20 | Y107: 19647.48003 | Z107: 22551.10083 | AA107: 22745.13052 | AB107: -0.008530603777 | AF107: 0.4098081997 | AG107: -0.2583637485
A108: 41 | B108: 2002-12-23 | D108: =VLOOKUP(B109,'P123'!N:T,$C$5) -> TLT | E108: 87.86161944 | F108: 87.82427947 | G108: 257 | H108: 1.494 | I108: 1.494 | J108: 1 | K108: 1 | L108: 0 | M108: 0 | N108: 0 | O108: 0 | P108: 0 | Q108: 0 | R108: 0 | T108: 83.37855904 | U108: 83.37855904 | V108: 83.37855904 | X108: 2002-12-23 | Y108: 19928.39438 | Z108: 22469.27413 | AA108: 22735.41241 | AB108: -0.01170589174 | AF108: 0.4244989808 | AG108: -0.2441994427
A109: 42 | B109: 2002-12-24 | D109: =VLOOKUP(B110,'P123'!N:T,$C$5) -> TLT | E109: 88.03554985 | F109: 88.93103343 | G109: 257 | H109: 1.494 | I109: 1.494 | J109: 1 | K109: 1 | L109: 0 | M109: 0 | N109: 0 | O109: 0 | P109: 0 | Q109: 0 | R109: 0 | T109: 83.37855904 | U109: 83.37855904 | V109: 83.37855904 | X109: 2002-12-24 | Y109: 19933.90251 | Z109: 22663.81475 | AA109: 22745.13052 | AB109: -0.003575084746 | AF109: 0.4174216418 | AG109: -0.247437141
A110: 43 | B110: 2002-12-26 | D110: =VLOOKUP(B111,'P123'!N:T,$C$5) -> TLT | E110: 88.38400125 | F110: 88.70107379 | G110: 257 | H110: 1.494 | I110: 1.494 | J110: 1 | K110: 1 | L110: 0 | M110: 0 | N110: 0 | O110: 0 | P110: 0 | Q110: 0 | R110: 0 | T110: 83.37855904 | U110: 83.37855904 | V110: 83.37855904 | X110: 2002-12-26 | Y110: 19787.93721 | Z110: 22708.51487 | AA110: 22735.41241 | AB110: -0.001183068108 | AF110: 0.4194439192 | AG110: -0.2469597269
A111: 44 | B111: 2002-12-27 | D111: =VLOOKUP(B112,'P123'!N:T,$C$5) -> TLT | E111: 89.03285202 | F111: 89.0075092 | G111: 257 | H111: 1.494 | I111: 1.94 | J111: 1 | K111: 1 | L111: 0 | M111: 0 | N111: 0 | O111: 0 | P111: 0 | Q111: 0 | R111: 0 | T111: 83.37855904 | U111: 83.37855904 | V111: 83.37855904 | X111: 2002-12-27 | Y111: 19796.19939 | Z111: 22798.06688 | AA111: 22798.06688 | AB111: 0 | AF111: 0.4172405698 | AG111: -0.240297767
A112: 45 | B112: 2002-12-30 | D112: =VLOOKUP(B113,'P123'!N:T,$C$5) -> TLT | E112: 88.92010139 | F112: 86.43333977 | G112: 257 | H112: 1.94 | I112: 1.94 | J112: 1 | K112: 1 | L112: 0 | M112: 0 | N112: 0 | O112: 0 | P112: 0 | Q112: 0 | R112: 0 | T112: 83.37855904 | U112: 83.37855904 | V112: 83.37855904 | X112: 2002-12-30 | Y112: 19350.04131 | Z112: 22964.82153 | AA112: 22964.82153 | AB112: 0 | AF112: 0.4079047637 | AG112: -0.255366181
A113: 46 | B113: 2002-12-31 | D113: =VLOOKUP(B114,'P123'!N:T,$C$5) -> TLT | E113: 86.37148887 | F113: 86.45592915 | G113: 257 | H113: 1.94 | I113: 1.94 | J113: 1 | K113: 1 | L113: 0 | M113: 0 | N113: 0.446 | O113: 114.622 | P113: 0 | Q113: 0 | R113: 0 | T113: 83.37855904 | U113: 83.37855904 | V113: 83.37855904 | X113: 2002-12-31 | Y113: 19512.53098 | Z113: 22935.84462 | AA113: 22935.84462 | AB113: 0 | AF113: 0.4227551723 | AG113: -0.2624539105
A114: 47 | B114: 2003-01-02 | D114: =VLOOKUP(B115,'P123'!N:T,$C$5) -> TLT | E114: 86.50850364 | F114: 86.27485595 | G114: 257 | H114: 1.94 | I114: 1.94 | J114: 1 | K114: 1 | L114: 0 | M114: 0 | N114: 0 | O114: 0 | P114: 0 | Q114: 0 | R114: 0 | T114: 83.37855904 | U114: 83.37855904 | V114: 83.37855904 | X114: 2003-01-02 | Y114: 19540.07161 | Z114: 22280.8512 | AA114: 22964.82153 | AB114: -0.02978339404 | AF114: 0.4146385169 | AG114: -0.2428937292
A115: 48 | B115: 2003-01-03 | D115: =VLOOKUP(B116,'P123'!N:T,$C$5) -> TLT | E115: 86.25683865 | F115: 86.67645846 | G115: 257 | H115: 1.94 | I115: 1.94 | J115: 1 | K115: 1 | L115: 0 | M115: 0 | N115: 0 | O115: 0 | P115: 0 | Q115: 0 | R115: 0 | T115: 83.37855904 | U115: 83.37855904 | V115: 83.37855904 | X115: 2003-01-03 | Y115: 20167.9978 | Z115: 22316.064 | AA115: 22935.84462 | AB115: -0.02702235875 | AF115: 0.4120175401 | AG115: -0.2677685682
A116: 49 | B116: 2003-01-06 | D116: =VLOOKUP(B117,'P123'!N:T,$C$5) -> TLT | E116: 86.32808051 | F116: 87.02872321 | G116: 257 | H116: 1.94 | I116: 1.94 | J116: 1 | K116: 1 | L116: 0 | M116: 0 | N116: 0 | O116: 0 | P116: 0 | Q116: 0 | R116: 0 | T116: 83.37855904 | U116: 83.37855904 | V116: 83.37855904 | X116: 2003-01-06 | Y116: 20228.58717 | Z116: 22251.38609 | AA116: 22964.82153 | AB116: -0.03106644811 | AF116: 0.4110663394 | AG116: -0.2368064948
A117: 50 | B117: 2003-01-07 | D117: =VLOOKUP(B118,'P123'!N:T,$C$5) -> TLT | E117: 86.92343919 | F117: 85.61084658 | G117: 257 | H117: 1.94 | I117: 1.94 | J117: 1 | K117: 1 | L117: 0 | M117: 0 | N117: 0 | O117: 0 | P117: 0 | Q117: 0 | R117: 0 | T117: 83.37855904 | U117: 83.37855904 | V117: 83.37855904 | X117: 2003-01-07 | Y117: 20586.61526 | Z117: 22269.69525 | AA117: 22935.84462 | AB117: -0.02904403036 | AF117: 0.4279259098 | AG117: -0.2417736824
A118: 51 | B118: 2003-01-08 | D118: =VLOOKUP(B119,'P123'!N:T,$C$5) -> TLT | E118: 86.04941833 | F118: 85.74697844 | G118: 257 | H118: 1.94 | I118: 1.94 | J118: 1 | K118: 1 | L118: 0 | M118: 0 | N118: 0 | O118: 0 | P118: 0 | Q118: 0 | R118: 0 | T118: 83.37855904 | U118: 83.37855904 | V118: 83.37855904 | X118: 2003-01-08 | Y118: 20534.28807 | Z118: 22422.70243 | AA118: 22964.82153 | AB118: -0.02360650163 | AF118: 0.3988650754 | AG118: -0.2352769406
A119: 52 | B119: 2003-01-09 | D119: =VLOOKUP(B120,'P123'!N:T,$C$5) -> TLT | E119: 85.81184346 | F119: 85.51679843 | G119: 257 | H119: 1.94 | I119: 1.94 | J119: 1 | K119: 1 | L119: 0 | M119: 0 | N119: 0 | O119: 0 | P119: 0 | Q119: 0 | R119: 0 | T119: 83.37855904 | U119: 83.37855904 | V119: 83.37855904 | X119: 2003-01-09 | Y119: 20239.60342 | Z119: 22198.07907 | AA119: 22935.84462 | AB119: -0.03216648701 | AF119: 0.3947306404 | AG119: -0.2546317619
A120: 53 | B120: 2003-01-10 | D120: =VLOOKUP(B121,'P123'!N:T,$C$5) -> TLT | E120: 85.76302494 | F120: 85.97538701 | G120: 257 | H120: 1.94 | I120: 1.94 | J120: 1 | K120: 1 | L120: 0 | M120: 0 | N120: 0 | O120: 0 | P120: 0 | Q120: 0 | R120: 0 | T120: 83.37855904 | U120: 83.37855904 | V120: 83.37855904 | X120: 2003-01-10 | Y120: 20553.56651 | Z120: 22137.02233 | AA120: 22964.82153 | AB120: -0.03604640248 | AF120: 0.4135446413 | AG120: -0.2382861464
A121: 54 | B121: 2003-01-13 | D121: =VLOOKUP(B122,'P123'!N:T,$C$5) -> TLT | E121: 86.07829122 | F121: 86.34086976 | G121: 257 | H121: 1.94 | I121: 1.94 | J121: 1 | K121: 1 | L121: 0 | M121: 0 | N121: 0 | O121: 0 | P121: 0 | Q121: 0 | R121: 0 | T121: 83.37855904 | U121: 83.37855904 | V121: 83.37855904 | X121: 2003-01-13 | Y121: 20608.64776 | Z121: 22124.47597 | AA121: 22935.84462 | AB121: -0.03537557312 | AF121: 0.3984560345 | AG121: -0.2489708811
A122: 55 | B122: 2003-01-14 | D122: =VLOOKUP(B123,'P123'!N:T,$C$5) -> TLT | E122: 86.39029736 | F122: 86.37748094 | G122: 257 | H122: 1.94 | I122: 1.94 | J122: 1 | K122: 1 | L122: 0 | M122: 0 | N122: 0 | O122: 0 | P122: 0 | Q122: 0 | R122: 0 | T122: 83.37855904 | U122: 83.37855904 | V122: 83.37855904 | X122: 2003-01-14 | Y122: 20603.13963 | Z122: 22205.4994 | AA122: 22964.82153 | AB122: -0.03306457771 | AF122: 0.4121471891 | AG122: -0.2524499533
A123: 56 | B123: 2003-01-15 | D123: =VLOOKUP(B124,'P123'!N:T,$C$5) -> TLT | E123: 86.23267885 | F123: 87.01275385 | G123: 257 | H123: 1.94 | I123: 1.94 | J123: 1 | K123: 1 | L123: 0 | M123: 0 | N123: 0 | O123: 0 | P123: 0 | Q123: 0 | R123: 0 | T123: 83.37855904 | U123: 83.37855904 | V123: 83.37855904 | X123: 2003-01-15 | Y123: 20669.23712 | Z123: 22285.68498 | AA123: 22935.84462 | AB123: -0.02834688003 | AF123: 0.4137874476 | AG123: -0.2514908136
A124: 57 | B124: 2003-01-16 | D124: =VLOOKUP(B125,'P123'!N:T,$C$5) -> TLT | E124: 87.04069586 | F124: 86.86267235 | G124: 257 | H124: 1.94 | I124: 1.94 | J124: 1 | K124: 1 | L124: 0 | M124: 0 | N124: 0 | O124: 0 | P124: 0 | Q124: 0 | R124: 0 | T124: 83.37855904 | U124: 83.37855904 | V124: 83.37855904 | X124: 2003-01-16 | Y124: 20462.68246 | Z124: 22245.17702 | AA124: 22964.82153 | AB124: -0.03133682118 | AF124: 0.4053830027 | AG124: -0.2453885851
A125: 58 | B125: 2003-01-17 | D125: =VLOOKUP(B126,'P123'!N:T,$C$5) -> TLT | E125: 87.3357394 | F125: 87.78010214 | G125: 257 | H125: 1.94 | I125: 1.94 | J125: 1 | K125: 1 | L125: 0 | M125: 0 | N125: 0 | O125: 0 | P125: 0 | Q125: 0 | R125: 0 | T125: 83.37855904 | U125: 83.37855904 | V125: 83.37855904 | X125: 2003-01-17 | Y125: 20377.30653 | Z125: 22452.8374 | AA125: 22935.84462 | AB125: -0.02105905536 | AF125: 0.4309354553 | AG125: -0.2356561001
A126: 59 | B126: 2003-01-21 | D126: =VLOOKUP(B127,'P123'!N:T,$C$5) -> TLT | E126: 87.70453401 | F126: 87.53141995 | G126: 259 | H126: 1.94 | I126: 1.94 | J126: 1 | K126: 1 | L126: 0 | M126: 0 | N126: 0 | O126: 0 | P126: 0 | Q126: 0 | R126: 0 | T126: 83.37855904 | U126: 83.37855904 | V126: 83.37855904 | X126: 2003-01-21 | Y126: 20077.11374 | Z126: 22528.66358 | AA126: 22964.82153 | AB126: -0.01899243776 | AF126: 0.3983206477 | AG126: -0.2422534999
A127: 60 | B127: 2003-01-22 | D127: =VLOOKUP(B128,'P123'!N:T,$C$5) -> TLT | E127: 87.33454314 | F127: 87.7942237 | G127: 259 | H127: 1.94 | I127: 1.94 | J127: 1 | K127: 1 | L127: 0 | M127: 0 | N127: 0 | O127: 0 | P127: 114.622 | Q127: 2 | R127: 185.409068 | T127: 83.37855904 | U127: 198.000559 | V127: 12.59149101 | X127: 2003-01-22 | Y127: 19765.90471 | Z127: 22728.0658 | AA127: 22935.84462 | AB127: -0.009059130842 | AF127: 0.4138726297 | AG127: -0.2565948176
A128: 61 | B128: 2003-01-23 | D128: =VLOOKUP(B129,'P123'!N:T,$C$5) -> TLT | E128: 87.75209562 | F128: 87.82145212 | G128: 259 | H128: 1.94 | I128: 1.94 | J128: 1 | K128: 1 | L128: 0 | M128: 0 | N128: 0 | O128: 0 | P128: 0 | Q128: 0 | R128: 0 | T128: 12.59149101 | U128: 12.59149101 | V128: 12.59149101 | X128: 2003-01-23 | Y128: 19526.30129 | Z128: 22632.23816 | AA128: 22964.82153 | AB128: -0.01448229692 | AF128: 0.4170263337 | AG128: -0.2382427465
A129: 62 | B129: 2003-01-24 | D129: =VLOOKUP(B130,'P123'!N:T,$C$5) -> TLT | E129: 87.79430172 | F129: 87.58305515 | G129: 259 | H129: 1.94 | I129: 1.94 | J129: 1 | K129: 1 | L129: 0 | M129: 0 | N129: 0 | O129: 0 | P129: 0 | Q129: 0 | R129: 0 | T129: 12.59149101 | U129: 12.59149101 | V129: 12.59149101 | X129: 2003-01-24 | Y129: 19644.72597 | Z129: 22740.38426 | AA129: 22935.84462 | AB129: -0.008522047632 | AF129: 0.4097525544 | AG129: -0.2529790821
A130: 63 | B130: 2003-01-27 | D130: =VLOOKUP(B131,'P123'!N:T,$C$5) -> TLT | E130: 87.31800391 | F130: 87.26788121 | G130: 259 | H130: 1.94 | I130: 1.94 | J130: 1 | K130: 1 | L130: 0 | M130: 0 | N130: 0 | O130: 0 | P130: 0 | Q130: 0 | R130: 0 | T130: 12.59149101 | U130: 12.59149101 | V130: 12.59149101 | X130: 2003-01-27 | Y130: 19129.71633 | Z130: 22751.31564 | AA130: 22964.82153 | AB130: -0.009297084706 | AF130: 0.41931796 | AG130: -0.2556276817
A131: 64 | B131: 2003-01-28 | D131: =VLOOKUP(B132,'P123'!N:T,$C$5) -> TLT | E131: 87.33604446 | F131: 87.33480286 | G131: 259 | H131: 1.94 | I131: 1.94 | J131: 1 | K131: 1 | L131: 0 | M131: 0 | N131: 0 | O131: 0 | P131: 0 | Q131: 0 | R131: 0 | T131: 12.59149101 | U131: 12.59149101 | V131: 12.59149101 | X131: 2003-01-28 | Y131: 18868.08042 | Z131: 22627.9545 | AA131: 22935.84462 | AB131: -0.01342397097 | AF131: 0.413406727 | AG131: -0.2365267465
A132: 65 | B132: 2003-01-29 | D132: =VLOOKUP(B133,'P123'!N:T,$C$5) -> TLT | E132: 87.80576005 | F132: 87.93037671 | G132: 259 | H132: 1.94 | I132: 1.94 | J132: 1 | K132: 1 | L132: 0 | M132: 0 | N132: 0 | O132: 0 | P132: 0 | Q132: 0 | R132: 0 | T132: 12.59149101 | U132: 12.59149101 | V132: 12.59149101 | X132: 2003-01-29 | Y132: 19008.53759 | Z132: 22632.62701 | AA132: 22964.82153 | AB132: -0.0144653648 | AF132: 0.4106919666 | AG132: -0.2565093541
A133: 66 | B133: 2003-01-30 | D133: =VLOOKUP(B134,'P123'!N:T,$C$5) -> TLT | E133: 88.04783471 | F133: 87.45955774 | G133: 259 | H133: 1.94 | I133: 2.248 | J133: 1 | K133: 1 | L133: 0 | M133: 0 | N133: 0 | O133: 0 | P133: 0 | Q133: 0 | R133: 0 | T133: 12.59149101 | U133: 12.59149101 | V133: 12.59149101 | X133: 2003-01-30 | Y133: 19151.74883 | Z133: 22754.28334 | AA133: 22935.84462 | AB133: -0.007916049157 | AF133: 0.4114206928 | AG133: -0.2561571458
A134: 67 | B134: 2003-01-31 | D134: =VLOOKUP(B135,'P123'!N:T,$C$5) -> TLT | E134: 87.42607595 | F134: 88.11167498 | G134: 259 | H134: 2.248 | I134: 2.248 | J134: 1 | K134: 1 | L134: 0 | M134: 0 | N134: 0 | O134: 0 | P134: 0 | Q134: 0 | R134: 0 | T134: 12.59149101 | U134: 12.59149101 | V134: 12.59149101 | X134: 2003-01-31 | Y134: 18697.32856 | Z134: 22816.98068 | AA134: 22964.82153 | AB134: -0.006437709422 | AF134: 0.4171015706 | AG134: -0.2359204266
A135: =IF(D134=D135,A134+1,1) -> 68 | B135: 2003-02-03 | D135: =VLOOKUP(B136,'P123'!N:T,$C$5) -> TLT | E135: 88.25417606 | F135: 87.44305473 | G135: 259 | H135: 2.248 | I135: 2.248 | J135: =IF(D134=D135,J134,VLOOKUP(B136,INDIRECT(D135&"!A:q"),J$2)) -> 1 | K135: =IF(D134=D135,K134,VLOOKUP(B137,INDIRECT(D135&"!A:q"),K$2)) -> 1 | L135: 0 | M135: 0 | N135: 0.308 | O135: 79.772 | P135: =IF(ROW()>P$5+7,INDIRECT(P$2&ROW()-P$5),0) -> 0 | Q135: 0 | R135: 0 | T135: 12.59149101 | U135: 12.59149101 | V135: 12.59149101 | X135: =B135 -> 2003-02-03 | Y135: 19058.11071 | Z135: 22655.94516 | AA135: 22935.84462 | AB135: -0.01220358174 | AF135: 0.3948671347 | AG135: -0.2370283171
A136: 69 | B136: =INDIRECT(B$5&ROW()) -> 2003-02-04 | D136: =VLOOKUP(B137,'P123'!N:T,$C$5) -> TLT | E136: =RAND()*(VLOOKUP(B137,INDIRECT(D136&"!A:q"),E$1)-VLOOKUP(B137,INDIRECT(D136&"!A:q"),E$2))+VLOOKUP(B137,INDIRECT(D136&"!A:q"),E$2) -> 87.89558086 | F136: =RAND()*(VLOOKUP(B138,INDIRECT(D136&"!A:q"),F$1)-VLOOKUP(B138,INDIRECT(D136&"!A:q"),F$2))+VLOOKUP(B138,INDIRECT(D136&"!A:q"),F$2) -> 88.10489978 | G136: =IF(D136=D135,G135,INT((T137*(1-L$1)-L$2)/E136))+Q137 -> 259 | H136: =VLOOKUP(B137,INDIRECT(D136&"!A:q"),H$2) -> 2.248 | I136: 2.248 | J136: 1 | K136: 1 | L136: =IF(D134=D135,0,G135*E135*(1+L$1)+$L$2) -> 0 | M136: 0 | N136: 0 | O136: 0 | P136: 0 | Q136: 0 | R136: 0 | T136: =V135+M136 -> 12.59149101 | U136: =T136+P136 -> 12.59149101 | V136: =U136-L136-R136 -> 12.59149101 | X136: 2003-02-04 | Y136: =VLOOKUP(X135,INDIRECT(Y$3&"!A:R"),7)*$Y$1 -> 19096.66758 | Z136: =E135*G135+V136 -> 22870.42309 | AA136: =IF(Z136>AA134,Z136,AA134) -> 22964.82153 | AB136: =Z136/AA136-1 -> -0.004110567009 | AF136: 0.4107097196 | AG136: -0.2203562912
A137: 70 | B137: 2003-02-05 | D137: =VLOOKUP(B138,'P123'!N:T,$C$5) -> TLT | E137: 87.88211576 | F137: 87.95574571 | G137: 259 | H137: 2.248 | I137: 2.248 | J137: 1 | K137: 1 | L137: 0 | M137: =IF(D135=D136,0,(K135/J135)*G135*F135/(1+$M$1)-$L$2) -> 0 | N137: =IF(I135<>H135,I135-H135,0) -> 0 | O137: =G135*N137 -> 0 | P137: 0 | Q137: =IF(AND(U137>Q$4,D136=D135),INT((U137*(1-L$1)-L$2)/E136),0) -> 0 | R137: 0 | T137: 12.59149101 | U137: 12.59149101 | V137: 12.59149101 | X137: 2003-02-05 | Y137: 18906.63729 | Z137: 22777.54693 | AA137: 22935.84462 | AB137: -0.006901759524 | AF137: 0.3948898769 | AG137: -0.2501538765
A138: 71 | B138: 2003-02-06 | D138: =VLOOKUP(B139,'P123'!N:T,$C$5) -> TLT | E138: 87.86379484 | F138: 87.69117032 | G138: 259 | H138: 2.248 | I138: 2.248 | J138: 1 | K138: 1 | L138: 0 | M138: 0 | N138: 0 | O138: 0 | P138: 0 | Q138: 0 | R138: =IF(Q138>0,Q138*E137+$L$2,0) -> 0 | T138: 12.59149101 | U138: 12.59149101 | V138: 12.59149101 | X138: 2003-02-06 | Y138: 18790.96668 | Z138: 22774.05947 | AA138: 22964.82153 | AB138: -0.008306707479 | AF138: 0.4247652615 | AG138: -0.240600262
A139: 72 | B139: 2003-02-07 | D139: =VLOOKUP(B140,'P123'!N:T,$C$5) -> TLT | E139: 88.23909858 | F139: 87.59930916 | G139: 259 | H139: 2.248 | I139: 2.248 | J139: 1 | K139: 1 | L139: 0 | M139: 0 | N139: 0 | O139: 0 | P139: 0 | Q139: 0 | R139: 0 | T139: 12.59149101 | U139: 12.59149101 | V139: 12.59149101 | X139: 2003-02-07 | Y139: 18702.83668 | Z139: 22769.31435 | AA139: 22935.84462 | AB139: -0.007260698938 | AF139: 0.4144653321 | AG139: -0.2376951523
A140: 73 | B140: 2003-02-10 | D140: =VLOOKUP(B141,'P123'!N:T,$C$5) -> TLT | E140: 87.56437882 | F140: 87.89545875 | G140: 259 | H140: 2.248 | I140: 2.248 | J140: 1 | K140: 1 | L140: 0 | M140: 0 | N140: 0 | O140: 0 | P140: 0 | Q140: 0 | R140: 0 | T140: 12.59149101 | U140: 12.59149101 | V140: 12.59149101 | X140: 2003-02-10 | Y140: 18474.24952 | Z140: 22866.51802 | AA140: 22964.82153 | AB140: -0.004280612565 | AF140: 0.4093722052 | AG140: -0.2564370144
A141: 74 | B141: 2003-02-11 | D141: =VLOOKUP(B142,'P123'!N:T,$C$5) -> TLT | E141: 87.74240461 | F141: 88.48266794 | G141: 259 | H141: 2.248 | I141: 2.248 | J141: 1 | K141: 1 | L141: 0 | M141: 0 | N141: 0 | O141: 0 | P141: 0 | Q141: 0 | R141: 0 | T141: 12.59149101 | U141: 12.59149101 | V141: 12.59149101 | X141: 2003-02-11 | Y141: 18603.69044 | Z141: 22691.76561 | AA141: 22935.84462 | AB141: -0.01064181485 | AF141: 0.4155311199 | AG141: -0.2460746112
A142: 75 | B142: 2003-02-12 | D142: =VLOOKUP(B143,'P123'!N:T,$C$5) -> TLT | E142: 88.65642903 | F142: 87.74756728 | G142: 259 | H142: 2.248 | I142: 2.248 | J142: 1 | K142: 1 | L142: 0 | M142: 0 | N142: 0 | O142: 0 | P142: 0 | Q142: 0 | R142: 0 | T142: 12.59149101 | U142: 12.59149101 | V142: 12.59149101 | X142: 2003-02-12 | Y142: 18477.00358 | Z142: 22737.87429 | AA142: 22964.82153 | AB142: -0.009882386524 | AF142: 0.399113448 | AG142: -0.2540605073
A143: 76 | B143: 2003-02-13 | D143: =VLOOKUP(B144,'P123'!N:T,$C$5) -> TLT | E143: 88.35409755 | F143: 87.65323603 | G143: 259 | H143: 2.248 | I143: 2.248 | J143: 1 | K143: 1 | L143: 0 | M143: 0 | N143: 0 | O143: 0 | P143: 0 | Q143: 0 | R143: 0 | T143: 12.59149101 | U143: 12.59149101 | V143: 12.59149101 | X143: 2003-02-13 | Y143: 18182.31892 | Z143: 22974.60661 | AA143: 22974.60661 | AB143: 0 | AF143: 0.4004056462 | AG143: -0.2286388006
A144: 77 | B144: 2003-02-14 | D144: =VLOOKUP(B145,'P123'!N:T,$C$5) -> TLT | E144: 87.65078863 | F144: 88.66138991 | G144: 259 | H144: 2.248 | I144: 2.248 | J144: 1 | K144: 1 | L144: 0 | M144: 0 | N144: 0 | O144: 0 | P144: 0 | Q144: 0 | R144: 0 | T144: 12.59149101 | U144: 12.59149101 | V144: 12.59149101 | X144: 2003-02-14 | Y144: 18237.40017 | Z144: 22896.30276 | AA144: 22964.82153 | AB144: -0.002983640478 | AF144: 0.4091580935 | AG144: -0.2366834032
A145: 78 | B145: 2003-02-18 | D145: =VLOOKUP(B146,'P123'!N:T,$C$5) -> TLT | E145: 88.57644295 | F145: 88.62860716 | G145: 259 | H145: 2.248 | I145: 2.248 | J145: 1 | K145: 1 | L145: 0 | M145: 0 | N145: 0 | O145: 0 | P145: 0 | Q145: 0 | R145: 0 | T145: 12.59149101 | U145: 12.59149101 | V145: 12.59149101 | X145: 2003-02-18 | Y145: 18633.98513 | Z145: 22714.14575 | AA145: 22974.60661 | AB145: -0.01133690193 | AF145: 0.3968788361 | AG145: -0.2473754916
A146: 79 | B146: 2003-02-19 | D146: =VLOOKUP(B147,'P123'!N:T,$C$5) -> TLT | E146: 88.62789454 | F146: 88.58540649 | G146: 259 | H146: 2.248 | I146: 2.248 | J146: 1 | K146: 1 | L146: 0 | M146: 0 | N146: 0 | O146: 0 | P146: 0 | Q146: 0 | R146: 0 | T146: 12.59149101 | U146: 12.59149101 | V146: 12.59149101 | X146: 2003-02-19 | Y146: 18961.71853 | Z146: 22953.89022 | AA146: 22964.82153 | AB146: -0.000476002508 | AF146: 0.3987685377 | AG146: -0.2553791147
A147: 80 | B147: 2003-02-20 | D147: =VLOOKUP(B148,'P123'!N:T,$C$5) -> TLT | E147: 88.21760738 | F147: 88.65441164 | G147: 259 | H147: 2.248 | I147: =VLOOKUP(B149,INDIRECT(D147&"!A:q"),H$2) -> 2.248 | J147: 1 | K147: 1 | L147: 0 | M147: 0 | N147: 0 | O147: 0 | P147: 0 | Q147: 0 | R147: 0 | T147: 12.59149101 | U147: 12.59149101 | V147: 12.59149101 | X147: 2003-02-20 | Y147: 18862.57229 | Z147: 22967.21618 | AA147: 22974.60661 | AB147: -0.0003216782207 | AF147: 0.4136206356 | AG147: -0.2295696918
A148: 81 | B148: 2003-02-21 | D148: =VLOOKUP(B149,'P123'!N:T,$C$5) -> TLT | E148: 88.74605136 | F148: 89.45323688 | G148: 259 | H148: 2.248 | I148: 2.248 | J148: 1 | K148: 1 | L148: 0 | M148: 0 | N148: 0 | O148: 0 | P148: 0 | Q148: 0 | R148: 0 | T148: 12.59149101 | U148: 12.59149101 | V148: 12.59149101 | X148: 2003-02-21 | Y148: 18675.29606 | Z148: 22860.9518 | AA148: 22964.82153 | AB148: -0.004522992951 | AF148: 0.4179298185 | AG148: -0.2436253856
A149: 82 | B149: 2003-02-24 | D149: =VLOOKUP(B150,'P123'!N:T,$C$5) -> TLT | E149: 89.09967182 | F149: 89.54659305 | G149: 259 | H149: 2.248 | I149: 2.248 | J149: 1 | K149: 1 | L149: 0 | M149: 0 | N149: 0 | O149: 0 | P149: 79.772 | Q149: 0 | R149: 0 | T149: 12.59149101 | U149: 92.36349101 | V149: 92.36349101 | X149: 2003-02-24 | Y149: 18862.57229 | Z149: 23077.59079 | AA149: 23077.59079 | AB149: 0 | AF149: 0.425890576 | AG149: -0.2525163196
A150: 83 | B150: 2003-02-25 | D150: =VLOOKUP(B151,'P123'!N:T,$C$5) -> TLT | E150: 89.42603724 | F150: 89.81637179 | G150: 259 | H150: 2.248 | I150: 2.248 | J150: 1 | K150: 1 | L150: 0 | M150: 0 | N150: 0 | O150: 0 | P150: 0 | Q150: 0 | R150: 0 | T150: 92.36349101 | U150: 92.36349101 | V150: 92.36349101 | X150: 2003-02-25 | Y150: 18556.87139 | Z150: 23169.17849 | AA150: 23169.17849 | AB150: 0 | AF150: 0.4223986231 | AG150: -0.2369273418
A151: 84 | B151: 2003-02-26 | D151: =VLOOKUP(B152,'P123'!N:T,$C$5) -> TLT | E151: 89.54916599 | F151: 90.13540971 | G151: 259 | H151: 2.248 | I151: 2.248 | J151: 1 | K151: 1 | L151: 0 | M151: 0 | N151: 0 | O151: 0 | P151: 0 | Q151: 0 | R151: 0 | T151: 92.36349101 | U151: 92.36349101 | V151: 92.36349101 | X151: 2003-02-26 | Y151: 18705.59075 | Z151: 23253.70714 | AA151: 23253.70714 | AB151: 0 | AF151: 0.4236964201 | AG151: -0.2459384588
A152: 85 | B152: 2003-02-27 | D152: =VLOOKUP(B153,'P123'!N:T,$C$5) -> TLT | E152: 90.15212869 | F152: 90.15026164 | G152: 259 | H152: 2.248 | I152: 2.588 | J152: 1 | K152: 1 | L152: 0 | M152: 0 | N152: 0 | O152: 0 | P152: 0 | Q152: 0 | R152: 0 | T152: 92.36349101 | U152: 92.36349101 | V152: 92.36349101 | X152: 2003-02-27 | Y152: 18432.93858 | Z152: 23285.59748 | AA152: 23285.59748 | AB152: 0 | AF152: 0.4014651158 | AG152: -0.2463428494
A153: 1 | B153: 2003-02-28 | D153: =VLOOKUP(B154,'P123'!N:T,$C$5) -> SPY | E153: 85.50136228 | F153: 82.71026366 | G153: 273 | H153: 0.814 | I153: 0.814 | J153: 1 | K153: 1 | L153: 0 | M153: 0 | N153: 0 | O153: 0 | P153: 0 | Q153: 0 | R153: 0 | T153: 92.36349101 | U153: 92.36349101 | V153: 92.36349101 | X153: 2003-02-28 | Y153: 18678.05012 | Z153: 23441.76482 | AA153: 23441.76482 | AB153: 0 | AF153: 0.3958225673 | AG153: -0.2582357488
A154: 2 | B154: 2003-03-03 | D154: =VLOOKUP(B155,'P123'!N:T,$C$5) -> SPY | E154: 82.92957495 | F154: 83.14136735 | G154: 273 | H154: 0.814 | I154: 0.814 | J154: 1 | K154: 1 | L154: 23351.8719 | M154: 23338.91777 | N154: 0.34 | O154: 88.06 | P154: 0 | Q154: 0 | R154: 0 | T154: 23431.28126 | U154: 23431.28126 | V154: 79.40935289 | X154: 2003-03-03 | Y154: 18801.98292 | Z154: 23421.28126 | AA154: 23421.28126 | AB154: 0 | AF154: 0.4113662606 | AG154: -0.2479880658
A155: 3 | B155: 2003-03-04 | D155: =VLOOKUP(B156,'P123'!N:T,$C$5) -> SPY | E155: 82.92825218 | F155: 83.01546022 | G155: 273 | H155: 0.814 | I155: 0.814 | J155: 1 | K155: 1 | L155: 0 | M155: 0 | N155: 0 | O155: 0 | P155: 0 | Q155: 0 | R155: 0 | T155: 79.40935289 | U155: 79.40935289 | V155: 79.40935289 | X155: 2003-03-04 | Y155: 18622.96888 | Z155: 22719.18331 | AA155: 23441.76482 | AB155: -0.03082453535 | AF155: 0.4144014582 | AG155: -0.2373498021
A156: 4 | B156: 2003-03-05 | D156: =VLOOKUP(B157,'P123'!N:T,$C$5) -> SPY | E156: 83.46529271 | F156: 82.56193144 | G156: 273 | H156: 0.814 | I156: 0.814 | J156: 1 | K156: 1 | L156: 0 | M156: 0 | N156: 0 | O156: 0 | P156: 0 | Q156: 0 | R156: 0 | T156: 79.40935289 | U156: 79.40935289 | V156: 79.40935289 | X156: 2003-03-05 | Y156: 18325.53016 | Z156: 22718.8222 | AA156: 23421.28126 | AB156: -0.02999234116 | AF156: 0.3963659519 | AG156: -0.2230859555
A157: 5 | B157: 2003-03-06 | D157: =VLOOKUP(B158,'P123'!N:T,$C$5) -> SPY | E157: 82.65053704 | F157: 81.9331676 | G157: 273 | H157: 0.814 | I157: 0.814 | J157: 1 | K157: 1 | L157: 0 | M157: 0 | N157: 0 | O157: 0 | P157: 0 | Q157: 0 | R157: 0 | T157: 79.40935289 | U157: 79.40935289 | V157: 79.40935289 | X157: 2003-03-06 | Y157: 18479.75764 | Z157: 22865.43426 | AA157: 23441.76482 | AB157: -0.02458563012 | AF157: 0.4105893814 | AG157: -0.2657979836
A158: 6 | B158: 2003-03-07 | D158: =VLOOKUP(B159,'P123'!N:T,$C$5) -> SPY | E158: 82.04489338 | F158: 80.51435762 | G158: 273 | H158: 0.814 | I158: 0.814 | J158: 1 | K158: 1 | L158: 0 | M158: 0 | N158: 0 | O158: 0 | P158: 0 | Q158: 0 | R158: 0 | T158: 79.40935289 | U158: 79.40935289 | V158: 79.40935289 | X158: 2003-03-07 | Y158: 18325.53016 | Z158: 22643.00596 | AA158: 23421.28126 | AB158: -0.03322940721 | AF158: 0.4038380566 | AG158: -0.2349336738
A159: 7 | B159: 2003-03-10 | D159: =VLOOKUP(B160,'P123'!N:T,$C$5) -> SPY | E159: 80.79197113 | F159: 80.67372889 | G159: 273 | H159: 0.814 | I159: 0.814 | J159: 1 | K159: 1 | L159: 0 | M159: 0 | N159: 0 | O159: 0 | P159: 0 | Q159: 0 | R159: 0 | T159: 79.40935289 | U159: 79.40935289 | V159: 79.40935289 | X159: 2003-03-10 | Y159: 18452.21702 | Z159: 22477.66525 | AA159: 23441.76482 | AB159: -0.04112743147 | AF159: 0.4156670262 | AG159: -0.2459902889
A160: 8 | B160: 2003-03-11 | D160: =VLOOKUP(B161,'P123'!N:T,$C$5) -> SPY | E160: 80.38638675 | F160: 83.77444407 | G160: 273 | H160: 0.814 | I160: 0.814 | J160: 1 | K160: 1 | L160: 0 | M160: 0 | N160: 0 | O160: 0 | P160: 0 | Q160: 0 | R160: 0 | T160: 79.40935289 | U160: 79.40935289 | V160: 79.40935289 | X160: 2003-03-11 | Y160: 18008.813 | Z160: 22135.61747 | AA160: 23421.28126 | AB160: -0.05489297412 | AF160: 0.4062473936 | AG160: -0.2564388824
A161: 9 | B161: 2003-03-12 | D161: =VLOOKUP(B162,'P123'!N:T,$C$5) -> SPY | E161: 83.37199893 | F161: 84.25568559 | G161: 273 | H161: 0.814 | I161: 0.814 | J161: 1 | K161: 1 | L161: 0 | M161: 0 | N161: 0 | O161: 0 | P161: 0 | Q161: 0 | R161: 0 | T161: 79.40935289 | U161: 79.40935289 | V161: 79.40935289 | X161: 2003-03-12 | Y161: 17832.55302 | Z161: 22024.89294 | AA161: 23441.76482 | AB161: -0.06044220206 | AF161: 0.4073017964 | AG161: -0.2446358574
A162: 10 | B162: 2003-03-13 | D162: =VLOOKUP(B163,'P123'!N:T,$C$5) -> SPY | E162: 84.03859332 | F162: 85.4976118 | G162: 273 | H162: 0.814 | I162: 0.814 | J162: 1 | K162: 1 | L162: 0 | M162: 0 | N162: 0 | O162: 0 | P162: 0 | Q162: 0 | R162: 0 | T162: 79.40935289 | U162: 79.40935289 | V162: 79.40935289 | X162: 2003-03-13 | Y162: 17950.97769 | Z162: 22839.96506 | AA162: 23421.28126 | AB162: -0.02481999982 | AF162: 0.4122027626 | AG162: -0.2222998206
A163: 11 | B163: 2003-03-14 | D163: =VLOOKUP(B164,'P123'!N:T,$C$5) -> SPY | E163: 85.1333012 | F163: 86.29208228 | G163: 273 | H163: 0.814 | I163: 0.814 | J163: 1 | K163: 1 | L163: 0 | M163: 0 | N163: 0 | O163: 0 | P163: 0 | Q163: 0 | R163: 0 | T163: 79.40935289 | U163: 79.40935289 | V163: 79.40935289 | X163: 2003-03-14 | Y163: 18570.6417 | Z163: 23021.94533 | AA163: 23441.76482 | AB163: -0.01790903948 | AF163: 0.4170010949 | AG163: -0.239730132
A164: 12 | B164: 2003-03-17 | D164: =VLOOKUP(B165,'P123'!N:T,$C$5) -> SPY | E164: 86.57155849 | F164: 87.09695785 | G164: 273 | H164: 0.814 | I164: 0.814 | J164: 1 | K164: 1 | L164: 0 | M164: 0 | N164: 0 | O164: 0 | P164: 0 | Q164: 0 | R164: 0 | T164: 79.40935289 | U164: 79.40935289 | V164: 79.40935289 | X164: 2003-03-17 | Y164: 18631.23107 | Z164: 23320.80058 | AA164: 23421.28126 | AB164: -0.004290144324 | AF164: 0.4021135177 | AG164: -0.2504982575
A165: 13 | B165: 2003-03-18 | D165: =VLOOKUP(B166,'P123'!N:T,$C$5) -> SPY | E165: 87.67886265 | F165: 87.99511028 | G165: 273 | H165: 0.814 | I165: 0.814 | J165: 1 | K165: 1 | L165: 0 | M165: 0 | N165: 0 | O165: 0 | P165: 0 | Q165: 0 | R165: 0 | T165: 79.40935289 | U165: 79.40935289 | V165: 79.40935289 | X165: 2003-03-18 | Y165: 19217.84632 | Z165: 23713.44482 | AA165: 23713.44482 | AB165: 0 | AF165: 0.4180185841 | AG165: -0.2533199441
A166: 14 | B166: 2003-03-19 | D166: =VLOOKUP(B167,'P123'!N:T,$C$5) -> SPY | E166: 88.2988508 | F166: 88.17992531 | G166: 273 | H166: 0.814 | I166: 1.168 | J166: 1 | K166: 1 | L166: 0 | M166: 0 | N166: 0 | O166: 0 | P166: 0 | Q166: 0 | R166: 0 | T166: 79.40935289 | U166: 79.40935289 | V166: 79.40935289 | X166: 2003-03-19 | Y166: 19330.76288 | Z166: 24015.73886 | AA166: 24015.73886 | AB166: 0 | AF166: 0.408891492 | AG166: -0.2417566049
A167: 15 | B167: 2003-03-20 | D167: =VLOOKUP(B168,'P123'!N:T,$C$5) -> SPY | E167: 89.36594242 | F167: 86.68329804 | G167: 274 | H167: 1.168 | I167: 1.168 | J167: 1 | K167: 1 | L167: 0 | M167: 0 | N167: 0 | O167: 0 | P167: 0 | Q167: 0 | R167: 0 | T167: 79.40935289 | U167: 79.40935289 | V167: 79.40935289 | X167: 2003-03-20 | Y167: 19479.48224 | Z167: 24184.99562 | AA167: 24184.99562 | AB167: 0 | AF167: 0.4202177479 | AG167: -0.2519996658
A168: 16 | B168: 2003-03-21 | D168: =VLOOKUP(B169,'P123'!N:T,$C$5) -> SPY | E168: 86.47389351 | F168: 87.75970224 | G168: 274 | H168: 1.168 | I168: 1.168 | J168: 1 | K168: 1 | L168: 0 | M168: 0 | N168: 0.354 | O168: 96.642 | P168: 88.06 | Q168: 1 | R168: 99.36594242 | T168: 79.40935289 | U168: 167.4693529 | V168: 68.10341047 | X168: 2003-03-21 | Y168: 19520.79317 | Z168: 24554.37163 | AA168: 24554.37163 | AB168: 0 | AF168: 0.4043567887 | AG168: -0.2481672766
A169: 17 | B169: 2003-03-24 | D169: =VLOOKUP(B170,'P123'!N:T,$C$5) -> SPY | E169: 87.97337007 | F169: 86.85078621 | G169: 274 | H169: 1.168 | I169: 1.168 | J169: 1 | K169: 1 | L169: 0 | M169: 0 | N169: 0 | O169: 0 | P169: 0 | Q169: 0 | R169: 0 | T169: 68.10341047 | U169: 68.10341047 | V169: 68.10341047 | X169: 2003-03-24 | Y169: 19936.65657 | Z169: 23761.95023 | AA169: 24184.99562 | AB169: -0.0174920598 | AF169: 0.4108606838 | AG169: -0.2353650006
A170: 18 | B170: 2003-03-25 | D170: =VLOOKUP(B171,'P123'!N:T,$C$5) -> SPY | E170: 87.68907986 | F170: 87.17202651 | G170: 274 | H170: 1.168 | I170: 1.168 | J170: 1 | K170: 1 | L170: 0 | M170: 0 | N170: 0 | O170: 0 | P170: 0 | Q170: 0 | R170: 0 | T170: 68.10341047 | U170: 68.10341047 | V170: 68.10341047 | X170: 2003-03-25 | Y170: 19275.68163 | Z170: 24172.80681 | AA170: 24554.37163 | AB170: -0.01553958829 | AF170: 0.4188795978 | AG170: -0.2438611616
A171: 19 | B171: 2003-03-26 | D171: =VLOOKUP(B172,'P123'!N:T,$C$5) -> SPY | E171: 86.95762555 | F171: 86.44861527 | G171: 274 | H171: 1.168 | I171: 1.168 | J171: 1 | K171: 1 | L171: 0 | M171: 0 | N171: 0 | O171: 0 | P171: 0 | Q171: 0 | R171: 0 | T171: 68.10341047 | U171: 68.10341047 | V171: 68.10341047 | X171: 2003-03-26 | Y171: 19460.2038 | Z171: 24094.91129 | AA171: 24184.99562 | AB171: -0.00372480239 | AF171: 0.4121795072 | AG171: -0.2434985828
A172: 20 | B172: 2003-03-27 | D172: =VLOOKUP(B173,'P123'!N:T,$C$5) -> SPY | E172: 86.34556348 | F172: 84.97557768 | G172: 274 | H172: 1.168 | I172: 1.168 | J172: 1 | K172: 1 | L172: 0 | M172: 0 | N172: 0 | O172: 0 | P172: 0 | Q172: 0 | R172: 0 | T172: 68.10341047 | U172: 68.10341047 | V172: 68.10341047 | X172: 2003-03-27 | Y172: 19361.05756 | Z172: 23894.49281 | AA172: 24554.37163 | AB172: -0.026874189 | AF172: 0.4172122039 | AG172: -0.2579051141
A173: 21 | B173: 2003-03-28 | D173: =VLOOKUP(B174,'P123'!N:T,$C$5) -> SPY | E173: 85.19943282 | F173: 86.24055803 | G173: 274 | H173: 1.168 | I173: 1.168 | J173: 1 | K173: 1 | L173: 0 | M173: 0 | N173: 0 | O173: 0 | P173: 0 | Q173: 0 | R173: 0 | T173: 68.10341047 | U173: 68.10341047 | V173: 68.10341047 | X173: 2003-03-28 | Y173: 19377.58193 | Z173: 23726.7878 | AA173: 24184.99562 | AB173: -0.01894595413 | AF173: 0.4219530258 | AG173: -0.2617806506
A174: 22 | B174: 2003-03-31 | D174: =VLOOKUP(B175,'P123'!N:T,$C$5) -> SPY | E174: 85.26145901 | F174: 87.7765112 | G174: 274 | H174: 1.168 | I174: 1.168 | J174: 1 | K174: 1 | L174: 0 | M174: 0 | N174: 0 | O174: 0 | P174: 0 | Q174: 0 | R174: 0 | T174: 68.10341047 | U174: 68.10341047 | V174: 68.10341047 | X174: 2003-03-31 | Y174: 19278.43569 | Z174: 23412.748 | AA174: 24554.37163 | AB174: -0.04649370176 | AF174: 0.4131725845 | AG174: -0.2510256763
A175: 23 | B175: 2003-04-01 | D175: =VLOOKUP(B176,'P123'!N:T,$C$5) -> SPY | E175: 88.70393696 | F175: 88.74155906 | G175: 274 | H175: 1.168 | I175: 1.168 | J175: 1 | K175: 1 | L175: 0 | M175: 0 | N175: 0 | O175: 0 | P175: 0 | Q175: 0 | R175: 0 | T175: 68.10341047 | U175: 68.10341047 | V175: 68.10341047 | X175: 2003-04-01 | Y175: 18840.5398 | Z175: 23429.74318 | AA175: 24184.99562 | AB175: -0.03122814052 | AF175: 0.4306208546 | AG175: -0.260457512
A176: 24 | B176: 2003-04-02 | D176: =VLOOKUP(B177,'P123'!N:T,$C$5) -> SPY | E176: 87.75308875 | F176: 88.36351441 | G176: 274 | H176: 1.168 | I176: 1.168 | J176: 1 | K176: 1 | L176: 0 | M176: 0 | N176: 0 | O176: 0 | P176: 0 | Q176: 0 | R176: 0 | T176: 68.10341047 | U176: 68.10341047 | V176: 68.10341047 | X176: 2003-04-02 | Y176: 19129.71633 | Z176: 24372.98214 | AA176: 24554.37163 | AB176: -0.007387258768 | AF176: 0.4093047467 | AG176: -0.2291956803
A177: 25 | B177: 2003-04-03 | D177: =VLOOKUP(B178,'P123'!N:T,$C$5) -> SPY | E177: 88.18157549 | F177: 90.53775444 | G177: 274 | H177: 1.168 | I177: 1.168 | J177: 1 | K177: 1 | L177: 0 | M177: 0 | N177: 0 | O177: 0 | P177: 0 | Q177: 0 | R177: 0 | T177: 68.10341047 | U177: 68.10341047 | V177: 68.10341047 | X177: 2003-04-03 | Y177: 19592.39879 | Z177: 24112.44973 | AA177: 24184.99562 | AB177: -0.002999624033 | AF177: 0.4174643297 | AG177: -0.2524861875
A178: 26 | B178: 2003-04-04 | D178: =VLOOKUP(B179,'P123'!N:T,$C$5) -> SPY | E178: 88.82973102 | F178: 87.84602912 | G178: 274 | H178: 1.168 | I178: 1.168 | J178: 1 | K178: 1 | L178: 0 | M178: 0 | N178: 0 | O178: 0 | P178: 0 | Q178: 0 | R178: 0 | T178: 68.10341047 | U178: 68.10341047 | V178: 68.10341047 | X178: 2003-04-04 | Y178: 19498.76067 | Z178: 24229.8551 | AA178: 24554.37163 | AB178: -0.01321624284 | AF178: 0.414568398 | AG178: -0.2498861673
A179: 27 | B179: 2003-04-07 | D179: =VLOOKUP(B180,'P123'!N:T,$C$5) -> SPY | E179: 88.5121015 | F179: 87.39423127 | G179: 274 | H179: 1.168 | I179: 1.168 | J179: 1 | K179: 1 | L179: 0 | M179: 0 | N179: 0 | O179: 0 | P179: 0 | Q179: 0 | R179: 0 | T179: 68.10341047 | U179: 68.10341047 | V179: 68.10341047 | X179: 2003-04-07 | Y179: 19614.43129 | Z179: 24407.44971 | AA179: 24407.44971 | AB179: 0 | AF179: 0.4113759647 | AG179: -0.2318814021
A180: 28 | B180: 2003-04-08 | D180: =VLOOKUP(B181,'P123'!N:T,$C$5) -> SPY | E180: 87.41636289 | F180: 86.24285474 | G180: 274 | H180: 1.168 | I180: 1.168 | J180: 1 | K180: 1 | L180: 0 | M180: 0 | N180: 0 | O180: 0 | P180: 0 | Q180: 0 | R180: 0 | T180: 68.10341047 | U180: 68.10341047 | V180: 68.10341047 | X180: 2003-04-08 | Y180: 19578.62848 | Z180: 24320.41922 | AA180: 24554.37163 | AB180: -0.009527933233 | AF180: 0.4124234039 | AG180: -0.2487558044
A181: 29 | B181: 2003-04-09 | D181: =VLOOKUP(B182,'P123'!N:T,$C$5) -> SPY | E181: 86.97981765 | F181: 87.72935357 | G181: 275 | H181: 1.168 | I181: 1.168 | J181: 1 | K181: 1 | L181: 0 | M181: 0 | N181: 0 | O181: 0 | P181: 0 | Q181: 0 | R181: 0 | T181: 68.10341047 | U181: 68.10341047 | V181: 68.10341047 | X181: 2003-04-09 | Y181: 19608.92316 | Z181: 24020.18684 | AA181: 24407.44971 | AB181: -0.01586658471 | AF181: 0.3969169805 | AG181: -0.2720316888
A182: 30 | B182: 2003-04-10 | D182: =VLOOKUP(B183,'P123'!N:T,$C$5) -> SPY | E182: 87.27747953 | F182: 88.61210599 | G182: 275 | H182: 1.168 | I182: 1.168 | J182: 1 | K182: 1 | L182: 0 | M182: 0 | N182: 0 | O182: 0 | P182: 96.642 | Q182: 1 | R182: 96.97981765 | T182: 68.10341047 | U182: 164.7454105 | V182: 67.76559281 | X182: 2003-04-10 | Y182: 19350.04131 | Z182: 23987.21545 | AA182: 24554.37163 | AB182: -0.02309797193 | AF182: 0.4038984552 | AG182: -0.2680276243
A183: 31 | B183: 2003-04-11 | D183: =VLOOKUP(B184,'P123'!N:T,$C$5) -> SPY | E183: 87.75778086 | F183: 88.61109119 | G183: 275 | H183: 1.168 | I183: 1.168 | J183: 1 | K183: 1 | L183: 0 | M183: 0 | N183: 0 | O183: 0 | P183: 0 | Q183: 0 | R183: 0 | T183: 67.76559281 | U183: 67.76559281 | V183: 67.76559281 | X183: 2003-04-11 | Y183: 19457.44974 | Z183: 24069.07246 | AA183: 24407.44971 | AB183: -0.01386368709 | AF183: 0.4065096862 | AG183: -0.2523907396
A184: 32 | B184: 2003-04-14 | D184: =VLOOKUP(B185,'P123'!N:T,$C$5) -> SPY | E184: 89.63590099 | F184: 88.42562291 | G184: 275 | H184: 1.168 | I184: 1.168 | J184: 1 | K184: 1 | L184: 0 | M184: 0 | N184: 0 | O184: 0 | P184: 0 | Q184: 0 | R184: 0 | T184: 67.76559281 | U184: 67.76559281 | V184: 67.76559281 | X184: 2003-04-14 | Y184: 19377.58193 | Z184: 24201.15533 | AA184: 24554.37163 | AB184: -0.01438506799 | AF184: 0.41838367 | AG184: -0.2458058587
A185: 33 | B185: 2003-04-15 | D185: =VLOOKUP(B186,'P123'!N:T,$C$5) -> SPY | E185: 89.43250869 | F185: 88.43766536 | G185: 275 | H185: 1.168 | I185: 1.168 | J185: 1 | K185: 1 | L185: 0 | M185: 0 | N185: 0 | O185: 0 | P185: 0 | Q185: 0 | R185: 0 | T185: 67.76559281 | U185: 67.76559281 | V185: 67.76559281 | X185: 2003-04-15 | Y185: 19776.92096 | Z185: 24717.63837 | AA185: 24717.63837 | AB185: 0 | AF185: 0.4220528066 | AG185: -0.2443571046
A186: 34 | B186: 2003-04-16 | D186: =VLOOKUP(B187,'P123'!N:T,$C$5) -> SPY | E186: 89.02328594 | F186: 89.54506583 | G186: 275 | H186: 1.168 | I186: 1.168 | J186: 1 | K186: 1 | L186: 0 | M186: 0 | N186: 0 | O186: 0 | P186: 0 | Q186: 0 | R186: 0 | T186: 67.76559281 | U186: 67.76559281 | V186: 67.76559281 | X186: 2003-04-16 | Y186: 19961.44313 | Z186: 24661.70548 | AA186: 24661.70548 | AB186: 0 | AF186: 0.4217290237 | AG186: -0.2546459121
A187: 35 | B187: 2003-04-17 | D187: =VLOOKUP(B188,'P123'!N:T,$C$5) -> SPY | E187: 89.83950585 | F187: 90.59650701 | G187: 275 | H187: 1.168 | I187: 1.168 | J187: 1 | K187: 1 | L187: 0 | M187: 0 | N187: 0 | O187: 0 | P187: 0 | Q187: 0 | R187: 0 | T187: 67.76559281 | U187: 67.76559281 | V187: 67.76559281 | X187: 2003-04-17 | Y187: 19622.69347 | Z187: 24549.16923 | AA187: 24717.63837 | AB187: -0.006815745778 | AF187: 0.3998591025 | AG187: -0.2611588429
A188: 36 | B188: 2003-04-21 | D188: =VLOOKUP(B189,'P123'!N:T,$C$5) -> SPY | E188: 89.72167967 | F188: 91.6593325 | G188: 275 | H188: 1.168 | I188: 1.168 | J188: 1 | K188: 1 | L188: 0 | M188: 0 | N188: 0 | O188: 0 | P188: 0 | Q188: 0 | R188: 0 | T188: 67.76559281 | U188: 67.76559281 | V188: 67.76559281 | X188: 2003-04-21 | Y188: 19914.62407 | Z188: 24773.6297 | AA188: 24773.6297 | AB188: 0 | AF188: 0.4131607642 | AG188: -0.2427696021
A189: 37 | B189: 2003-04-22 | D189: =VLOOKUP(B190,'P123'!N:T,$C$5) -> SPY | E189: 92.32381745 | F189: 91.79686333 | G189: 275 | H189: 1.168 | I189: 1.168 | J189: 1 | K189: 1 | L189: 0 | M189: 0 | N189: 0 | O189: 0 | P189: 0 | Q189: 0 | R189: 0 | T189: 67.76559281 | U189: 67.76559281 | V189: 67.76559281 | X189: 2003-04-22 | Y189: 19933.90251 | Z189: 24741.2275 | AA189: 24741.2275 | AB189: 0 | AF189: 0.4194833054 | AG189: -0.240794659
A190: 38 | B190: 2003-04-23 | D190: =VLOOKUP(B191,'P123'!N:T,$C$5) -> SPY | E190: 91.6869793 | F190: 90.91376189 | G190: 275 | H190: 1.168 | I190: 1.168 | J190: 1 | K190: 1 | L190: 0 | M190: 0 | N190: 0 | O190: 0 | P190: 0 | Q190: 0 | R190: 0 | T190: 67.76559281 | U190: 67.76559281 | V190: 67.76559281 | X190: 2003-04-23 | Y190: 20308.45497 | Z190: 25456.81539 | AA190: 25456.81539 | AB190: 0 | AF190: 0.4198145121 | AG190: -0.2673774447
A191: 39 | B191: 2003-04-24 | D191: =VLOOKUP(B192,'P123'!N:T,$C$5) -> SPY | E191: 90.52960735 | F191: 92.12337221 | G191: 275 | H191: 1.168 | I191: 1.168 | J191: 1 | K191: 1 | L191: 0 | M191: 0 | N191: 0 | O191: 0 | P191: 0 | Q191: 0 | R191: 0 | T191: 67.76559281 | U191: 67.76559281 | V191: 67.76559281 | X191: 2003-04-24 | Y191: 20495.7312 | Z191: 25281.6849 | AA191: 25281.6849 | AB191: 0 | AF191: 0.4091048699 | AG191: -0.2455228932
A192: 40 | B192: 2003-04-25 | D192: =VLOOKUP(B193,'P123'!N:T,$C$5) -> SPY | E192: 91.65442477 | F192: 91.47539612 | G192: 275 | H192: 1.168 | I192: 1.168 | J192: 1 | K192: 1 | L192: 0 | M192: 0 | N192: 0 | O192: 0 | P192: 0 | Q192: 0 | R192: 0 | T192: 67.76559281 | U192: 67.76559281 | V192: 67.76559281 | X192: 2003-04-25 | Y192: 20313.9631 | Z192: 24963.40761 | AA192: 25456.81539 | AB192: -0.01938214862 | AF192: 0.4123274047 | AG192: -0.2437618542
A193: 41 | B193: 2003-04-28 | D193: =VLOOKUP(B194,'P123'!N:T,$C$5) -> SPY | E193: 91.88691627 | F193: 91.8303946 | G193: 275 | H193: 1.168 | I193: 1.168 | J193: 1 | K193: 1 | L193: 0 | M193: 0 | N193: 0 | O193: 0 | P193: 0 | Q193: 0 | R193: 0 | T193: 67.76559281 | U193: 67.76559281 | V193: 67.76559281 | X193: 2003-04-28 | Y193: 20063.34343 | Z193: 25272.73241 | AA193: 25281.6849 | AB193: -0.0003541099286 | AF193: 0.4165111885 | AG193: -0.2569762564
A194: 42 | B194: 2003-04-29 | D194: =VLOOKUP(B195,'P123'!N:T,$C$5) -> SPY | E194: 92.39987235 | F194: 92.4864712 | G194: 275 | H194: 1.168 | I194: 1.168 | J194: 1 | K194: 1 | L194: 0 | M194: 0 | N194: 0 | O194: 0 | P194: 0 | Q194: 0 | R194: 0 | T194: 67.76559281 | U194: 67.76559281 | V194: 67.76559281 | X194: 2003-04-29 | Y194: 20410.35527 | Z194: 25336.66757 | AA194: 25456.81539 | AB194: -0.004719672264 | AF194: 0.4127872631 | AG194: -0.2373075114
A195: 43 | B195: 2003-04-30 | D195: =VLOOKUP(B196,'P123'!N:T,$C$5) -> SPY | E195: 92.51392795 | F195: 92.09037911 | G195: 275 | H195: 1.168 | I195: 1.168 | J195: 1 | K195: 1 | L195: 0 | M195: 0 | N195: 0 | O195: 0 | P195: 0 | Q195: 0 | R195: 0 | T195: 67.76559281 | U195: 67.76559281 | V195: 67.76559281 | X195: 2003-04-30 | Y195: 20479.20683 | Z195: 25477.73049 | AA195: 25477.73049 | AB195: 0 | AF195: 0.4135280487 | AG195: -0.2282190449
A196: 44 | B196: 2003-05-01 | D196: =VLOOKUP(B197,'P123'!N:T,$C$5) -> SPY | E196: 92.06119825 | F196: 92.98762613 | G196: 275 | H196: 1.168 | I196: 1.168 | J196: 1 | K196: 1 | L196: 0 | M196: 0 | N196: 0 | O196: 0 | P196: 0 | Q196: 0 | R196: 0 | T196: 67.76559281 | U196: 67.76559281 | V196: 67.76559281 | X196: 2003-05-01 | Y196: 20435.14183 | Z196: 25509.09578 | AA196: 25509.09578 | AB196: 0 | AF196: 0.4129543141 | AG196: -0.2464564517
A197: 45 | B197: 2003-05-02 | D197: =VLOOKUP(B198,'P123'!N:T,$C$5) -> SPY | E197: 92.53829807 | F197: 94.02940774 | G197: 275 | H197: 1.168 | I197: 1.168 | J197: 1 | K197: 1 | L197: 0 | M197: 0 | N197: 0 | O197: 0 | P197: 0 | Q197: 0 | R197: 0 | T197: 67.76559281 | U197: 67.76559281 | V197: 67.76559281 | X197: 2003-05-02 | Y197: 20432.38777 | Z197: 25384.59511 | AA197: 25477.73049 | AB197: -0.003655560198 | AF197: 0.4083120986 | AG197: -0.2355538526
A198: 46 | B198: 2003-05-05 | D198: =VLOOKUP(B199,'P123'!N:T,$C$5) -> SPY | E198: 93.88627491 | F198: 93.48057704 | G198: 275 | H198: 1.168 | I198: 1.168 | J198: 1 | K198: 1 | L198: 0 | M198: 0 | N198: 0 | O198: 0 | P198: 0 | Q198: 0 | R198: 0 | T198: 67.76559281 | U198: 67.76559281 | V198: 67.76559281 | X198: 2003-05-05 | Y198: 20724.31837 | Z198: 25515.79756 | AA198: 25515.79756 | AB198: 0 | AF198: 0.4238695442 | AG198: -0.2510350667
A199: =IF(D198=D199,A198+1,1) -> 47 | B199: 2003-05-06 | D199: =VLOOKUP(B200,'P123'!N:T,$C$5) -> SPY | E199: 93.83004238 | F199: 92.85881557 | G199: 275 | H199: 1.168 | I199: 1.168 | J199: =IF(D198=D199,J198,VLOOKUP(B200,INDIRECT(D199&"!A:q"),J$2)) -> 1 | K199: =IF(D198=D199,K198,VLOOKUP(B201,INDIRECT(D199&"!A:q"),K$2)) -> 1 | L199: 0 | M199: 0 | N199: 0 | O199: 0 | P199: =IF(ROW()>P$5+7,INDIRECT(P$2&ROW()-P$5),0) -> 0 | Q199: 0 | R199: 0 | T199: 67.76559281 | U199: 67.76559281 | V199: 67.76559281 | X199: =B199 -> 2003-05-06 | Y199: 20685.7615 | Z199: 25886.49119 | AA199: 25886.49119 | AB199: 0 | AF199: 0.4057098935 | AG199: -0.2573869341
A200: 48 | B200: =INDIRECT(B$5&ROW()) -> 2003-05-07 | D200: =VLOOKUP(B201,'P123'!N:T,$C$5) -> SPY | E200: =RAND()*(VLOOKUP(B201,INDIRECT(D200&"!A:q"),E$1)-VLOOKUP(B201,INDIRECT(D200&"!A:q"),E$2))+VLOOKUP(B201,INDIRECT(D200&"!A:q"),E$2) -> 92.89717028 | F200: =RAND()*(VLOOKUP(B202,INDIRECT(D200&"!A:q"),F$1)-VLOOKUP(B202,INDIRECT(D200&"!A:q"),F$2))+VLOOKUP(B202,INDIRECT(D200&"!A:q"),F$2) -> 93.70260193 | G200: =IF(D200=D199,G199,INT((T201*(1-L$1)-L$2)/E200))+Q201 -> 275 | H200: =VLOOKUP(B201,INDIRECT(D200&"!A:q"),H$2) -> 1.168 | I200: 1.168 | J200: 1 | K200: 1 | L200: =IF(D198=D199,0,G199*E199*(1+L$1)+$L$2) -> 0 | M200: 0 | N200: 0 | O200: 0 | P200: 0 | Q200: 0 | R200: 0 | T200: =V199+M200 -> 67.76559281 | U200: =T200+P200 -> 67.76559281 | V200: =U200-L200-R200 -> 67.76559281 | X200: 2003-05-07 | Y200: =VLOOKUP(X199,INDIRECT(Y$3&"!A:R"),7)*$Y$1 -> 20881.29992 | Z200: =E199*G199+V200 -> 25871.02725 | AA200: =IF(Z200>AA198,Z200,AA198) -> 25871.02725 | AB200: =Z200/AA200-1 -> 0 | AF200: 0.3950135486 | AG200: -0.2578231797
... 2689 more rows

Sheet SPY-TLT Random
D1: Today's | E1: 4 | F1: 4 | K1: Slippage and fee | L1: 0 | M1: 0 | N1: Dividends | Q1: Dividends | Y1: =Y6/Y2 -> 275.4062242 | Z1: =(VLOOKUP(MAX(B:B)-3,X:Z,3)/Z6) -> 15.0937368 | AA1: =MIN(AB:AB) -> -0.1561124948 | AF1: Row | AG1: 2007
D2: ETF | E2: 3 | F2: 3 | H2: 13 | I2: 13 | J2: 15 | K2: 15 | L2: 10 | P2: =IF(COLUMN(O5)<27,"",CHAR(64+FLOOR((COLUMN(O5)-1)/26,1)))&CHAR(65+MOD((COLUMN(O5)-1),26)) -> O | Q2: should be | T2: Todays | U2: Todays | Y2: =VLOOKUP(X6,INDIRECT(Y$3&"!A:R"),7) -> 72.62 | Z2: =Z1^(365.25/(MAX(B:B)-B7))-1 -> 0.2675907959 | AA2: =MATCH(AA1,AB:AB,0) -> 56 | AD2: CAGR | AE2: D/Down | AF2: Count | AG2: 2000
D3: Signal | E3: Day+1 | F3: Day+2 | G3: Day+1 | H3: Day+1 | I3: Day+2 | J3: Split+1 | K3: Spli+2 | L3: Day+1 | M3: Day+2 | N3: =SUM(O:O) -> 23214.429 | Q3: atleast | T3: Cash End | U3: Cash for | Y3: SPY | AA3: =MAX(AK:AK) -> 0 | AC3: Average | AD3: =AVERAGE(AF7:AF1951) -> 0.270924327 | AE3: =AVERAGE(AG7:AG1951) -> -0.1483863743
D4: you | E4: Price | F4: Price | G4: qty | H4: div. | I4: div. | L4: Buy | M4: sell | P4: delay | Q4: 50 | T4: After sell | U4: Buying | V4: After buy | Y4: SPY | Z4: Model | AA4: Max | AC4: Hi | AD4: =MAX(AF7:AF1951) -> 0.2853116007 | AE4: =MIN(AG7:AG1951) -> -0.1687737903 | AF4: CAGR | AG4: D/Down
B5: SPY!A | C5: 2 | D5: buy | J5: @buy | K5: @sell | N5: /share | O5: value | P5: 14 | Q5: before | U5: After Dividend | V5: and Div. | AA5: =MATCH(AA1,AB:AB,0) -> 56 | AC5: Lo | AD5: =MIN(AF7:AF1951) -> 0.2560779439 | AE5: =MAX(AG7:AG1951) -> -0.132977636
B6: =INDIRECT(B$5&ROW()+1) -> 2002-07-31 | D6: tomorrow | P6: days | Q6: reinvesting | T6: =U6 -> 20000 | U6: 20000 | X6: =X7 -> 2002-07-31 | Y6: 20000 | Z6: =T6 -> 20000 | AA6: 0 | AC6: Std Dev | AD6: =STDEVP(AF7:AF28952) -> 0.004672675558 | AE6: =STDEVP(AG7:AG28952) -> 0.006311039028 | AF6: =Z2 -> 0.2675907959 | AG6: =AA1 -> -0.1561124948
A7: =IF(D6=D7,A6+1,1) -> 1 | B7: =INDIRECT(B$5&ROW()) -> 2002-07-31 | D7: =VLOOKUP(B8,'P123'!N:T,$C$5) -> TLT | E7: =RAND()*(VLOOKUP(B8,INDIRECT(D7&"!A:q"),E$1)-VLOOKUP(B8,INDIRECT(D7&"!A:q"),E$2))+VLOOKUP(B8,INDIRECT(D7&"!A:q"),E$2) -> 82.70660362 | F7: =RAND()*(VLOOKUP(B9,INDIRECT(D7&"!A:q"),F$1)-VLOOKUP(B9,INDIRECT(D7&"!A:q"),F$2))+VLOOKUP(B9,INDIRECT(D7&"!A:q"),F$2) -> 83.90637588 | G7: =IF(D7=D6,G6,INT((T8*(1-L$1)-L$2)/E7)) -> 241 | H7: =VLOOKUP(B8,INDIRECT(D7&"!A:q"),H$2) -> 0 | I7: =VLOOKUP(B9,INDIRECT(D7&"!A:q"),H$2) -> 0 | J7: =IF(D6=D7,J6,VLOOKUP(B8,INDIRECT(D7&"!A:q"),J$2)) -> 1 | K7: =IF(D6=D7,K6,VLOOKUP(B9,INDIRECT(D7&"!A:q"),K$2)) -> 1 | P7: =IF(ROW()>P$5+7,INDIRECT(P$2&ROW()-P$5),0) -> 0 | V7: =U6 -> 20000 | X7: =B7 -> 2002-07-31 | Y7: =VLOOKUP(X6,INDIRECT(Y$3&"!A:R"),7)*$Y$1 -> 20000 | AF7: 0.2723763107 | AG7: -0.1450768421
A8: 2 | B8: =INDIRECT(B$5&ROW()) -> 2002-08-01 | D8: =VLOOKUP(B9,'P123'!N:T,$C$5) -> TLT | E8: =RAND()*(VLOOKUP(B9,INDIRECT(D8&"!A:q"),E$1)-VLOOKUP(B9,INDIRECT(D8&"!A:q"),E$2))+VLOOKUP(B9,INDIRECT(D8&"!A:q"),E$2) -> 83.79443074 | F8: =RAND()*(VLOOKUP(B10,INDIRECT(D8&"!A:q"),F$1)-VLOOKUP(B10,INDIRECT(D8&"!A:q"),F$2))+VLOOKUP(B10,INDIRECT(D8&"!A:q"),F$2) -> 84.02817421 | G8: =IF(D8=D7,G7,INT((T9*(1-L$1)-L$2)/E8))+Q9 -> 241 | H8: =VLOOKUP(B9,INDIRECT(D8&"!A:q"),H$2) -> 0 | I8: 0 | J8: 1 | K8: 1 | L8: =IF(D6=D7,0,G7*E7*(1+L$1)+$L$2) -> 19942.29147 | P8: 0 | T8: =V7+M8 -> 20000 | U8: =T8+P8 -> 20000 | V8: =U8-L8-R8 -> 57.70852745 | X8: 2002-08-01 | Y8: =VLOOKUP(X7,INDIRECT(Y$3&"!A:R"),7)*$Y$1 -> 20000 | Z8: =E7*G7+V8 -> 19990 | AA8: =IF(Z8>AA6,Z8,AA6) -> 19990 | AB8: =Z8/AA8-1 -> 0 | AD8: =AD3+3*AD6 -> 0.2849423537 | AE8: =AE3+3*AE6 -> -0.1294532572 | AF8: 0.2805082229 | AG8: -0.1444261018
A9: 3 | B9: 2002-08-02 | D9: =VLOOKUP(B10,'P123'!N:T,$C$5) -> TLT | E9: 84.36669792 | F9: 83.75555295 | G9: 241 | H9: 0 | I9: 0 | J9: 1 | K9: 1 | L9: 0 | M9: =IF(D7=D8,0,(K7/J7)*G7*F7/(1+$M$1)-$L$2) -> 0 | N9: =IF(I7<>H7,I7-H7,0) -> 0 | O9: =G7*N9 -> 0 | P9: 0 | Q9: =IF(AND(U9>Q$4,D8=D7),INT((U9*(1-L$1)-L$2)/E8),0) -> 0 | R9: =IF(Q9>0,Q9*E8+$L$2,0) -> 0 | T9: 57.70852745 | U9: 57.70852745 | V9: 57.70852745 | X9: 2002-08-02 | Y9: 19476.72817 | Z9: 20252.16634 | AA9: 20252.16634 | AB9: 0 | AD9: =AD3-3*AD6 -> 0.2569063004 | AE9: =AE3-3*AE6 -> -0.1673194914 | AF9: 0.2663204467 | AG9: -0.1468080534
A10: 4 | B10: 2002-08-05 | D10: =VLOOKUP(B11,'P123'!N:T,$C$5) -> TLT | E10: 83.86223647 | F10: 84.07634912 | G10: 241 | H10: 0 | I10: 0 | J10: 1 | K10: 1 | L10: 0 | M10: 0 | N10: 0 | O10: 0 | P10: 0 | Q10: 0 | R10: =IF(Q10>0,Q10*E9+$L$2,0) -> 0 | T10: 57.70852745 | U10: 57.70852745 | V10: 57.70852745 | X10: 2002-08-05 | Y10: 19041.58634 | Z10: 20390.08273 | AA10: 20390.08273 | AB10: 0 | AF10: 0.2668091511 | AG10: -0.1485249465
A11: 5 | B11: 2002-08-06 | D11: =VLOOKUP(B12,'P123'!N:T,$C$5) -> TLT | E11: 83.67928417 | F11: 83.41644575 | G11: 241 | H11: 0 | I11: 0 | J11: 1 | K11: 1 | L11: 0 | M11: 0 | N11: 0 | O11: 0 | P11: 0 | Q11: 0 | R11: 0 | T11: 57.70852745 | U11: 57.70852745 | V11: 57.70852745 | X11: 2002-08-06 | Y11: 18377.85734 | Z11: 20268.50752 | AA11: 20268.50752 | AB11: 0 | AF11: 0.2753039902 | AG11: -0.1471747207
A12: 6 | B12: 2002-08-07 | D12: =VLOOKUP(B13,'P123'!N:T,$C$5) -> TLT | E12: 83.73807805 | F12: 84.5814826 | G12: 241 | H12: 0 | I12: 0 | J12: 1 | K12: 1 | L12: 0 | M12: 0 | N12: 0 | O12: 0 | P12: 0 | Q12: 0 | R12: 0 | T12: 57.70852745 | U12: 57.70852745 | V12: 57.70852745 | X12: 2002-08-07 | Y12: 18997.52134 | Z12: 20224.41601 | AA12: 20390.08273 | AB12: -0.008124867133 | AF12: 0.2718472773 | AG12: -0.1518068096
A13: 7 | B13: 2002-08-08 | D13: =VLOOKUP(B14,'P123'!N:T,$C$5) -> TLT | E13: 84.78299027 | F13: 86.15110486 | G13: 241 | H13: 0 | I13: 0 | J13: 1 | K13: 1 | L13: 0 | M13: 0 | N13: 0 | O13: 0 | P13: 0 | Q13: 0 | R13: 0 | T13: 57.70852745 | U13: 57.70852745 | V13: 57.70852745 | X13: 2002-08-08 | Y13: 19328.00881 | Z13: 20238.58534 | AA13: 20268.50752 | AB13: -0.001476289213 | AF13: 0.2703336296 | AG13: -0.1506096294
A14: 8 | B14: 2002-08-09 | D14: =VLOOKUP(B15,'P123'!N:T,$C$5) -> TLT | E14: 85.34927368 | F14: 85.78981083 | G14: 241 | H14: 0 | I14: 0 | J14: 1 | K14: 1 | L14: 0 | M14: 0 | N14: 0 | O14: 0 | P14: 0 | Q14: 0 | R14: 0 | T14: 57.70852745 | U14: 57.70852745 | V14: 57.70852745 | X14: 2002-08-09 | Y14: 19953.18094 | Z14: 20490.40918 | AA14: 20490.40918 | AB14: 0 | AF14: 0.2723527447 | AG14: -0.1506082424
A15: 9 | B15: 2002-08-12 | D15: =VLOOKUP(B16,'P123'!N:T,$C$5) -> TLT | E15: 85.75021134 | F15: 87.08546879 | G15: 241 | H15: 0 | I15: 0 | J15: 1 | K15: 1 | L15: 0 | M15: 0 | N15: 0 | O15: 0 | P15: 0 | Q15: 0 | R15: 0 | T15: 57.70852745 | U15: 57.70852745 | V15: 57.70852745 | X15: 2002-08-12 | Y15: 20027.54062 | Z15: 20626.88349 | AA15: 20626.88349 | AB15: 0 | AF15: 0.2757867609 | AG15: -0.151684706
A16: 10 | B16: 2002-08-13 | D16: =VLOOKUP(B17,'P123'!N:T,$C$5) -> TLT | E16: 86.97757433 | F16: 85.94755507 | G16: 241 | H16: 0 | I16: 0 | J16: 1 | K16: 1 | L16: 0 | M16: 0 | N16: 0 | O16: 0 | P16: 0 | Q16: 0 | R16: 0 | T16: 57.70852745 | U16: 57.70852745 | V16: 57.70852745 | X16: 2002-08-13 | Y16: 19881.57532 | Z16: 20723.50946 | AA16: 20723.50946 | AB16: 0 | AF16: 0.2666861193 | AG16: -0.1426407539
A17: 11 | B17: 2002-08-14 | D17: =VLOOKUP(B18,'P123'!N:T,$C$5) -> TLT | E17: 85.87373091 | F17: 85.68420203 | G17: 241 | H17: 0 | I17: 0 | J17: 1 | K17: 1 | L17: 0 | M17: 0 | N17: 0 | O17: 0 | P17: 0 | Q17: 0 | R17: 0 | T17: 57.70852745 | U17: 57.70852745 | V17: 57.70852745 | X17: 2002-08-14 | Y17: 19518.03911 | Z17: 21019.30394 | AA17: 21019.30394 | AB17: 0 | AF17: 0.2724520754 | AG17: -0.1470170668
A18: 12 | B18: 2002-08-15 | D18: =VLOOKUP(B19,'P123'!N:T,$C$5) -> TLT | E18: 85.19825829 | F18: 85.01691116 | G18: 241 | H18: 0 | I18: =VLOOKUP(B20,INDIRECT(D18&"!A:q"),I$2) -> 0 | J18: 1 | K18: 1 | L18: 0 | M18: 0 | N18: 0 | O18: 0 | P18: 0 | Q18: 0 | R18: 0 | T18: 57.70852745 | U18: 57.70852745 | V18: 57.70852745 | X18: 2002-08-15 | Y18: 20231.34123 | Z18: 20753.27768 | AA18: 20753.27768 | AB18: 0 | AF18: 0.2720271057 | AG18: -0.1414755627
A19: 13 | B19: 2002-08-16 | D19: =VLOOKUP(B20,'P123'!N:T,$C$5) -> TLT | E19: 84.88563292 | F19: 86.23498932 | G19: 241 | H19: 0 | I19: =VLOOKUP(B21,INDIRECT(D19&"!A:q"),H$2) -> 0 | J19: 1 | K19: 1 | L19: 0 | M19: 0 | N19: 0 | O19: 0 | P19: 0 | Q19: 0 | R19: 0 | T19: 57.70852745 | U19: 57.70852745 | V19: 57.70852745 | X19: 2002-08-16 | Y19: 20512.25558 | Z19: 20590.48878 | AA19: 21019.30394 | AB19: -0.02040101645 | AF19: 0.2673732047 | AG19: -0.1498329632
A20: 14 | B20: 2002-08-19 | D20: =VLOOKUP(B21,'P123'!N:T,$C$5) -> TLT | E20: 86.27836997 | F20: 85.77543993 | G20: 241 | H20: 0 | I20: 0 | J20: 1 | K20: 1 | L20: 0 | M20: 0 | N20: 0 | O20: 0 | P20: 0 | Q20: 0 | R20: 0 | T20: 57.70852745 | U20: 57.70852745 | V20: 57.70852745 | X20: 2002-08-19 | Y20: 20451.66621 | Z20: 20515.14606 | AA20: 20753.27768 | AB20: -0.01147440989 | AF20: 0.2685698493 | AG20: -0.1363795192
A21: 15 | B21: 2002-08-20 | D21: =VLOOKUP(B22,'P123'!N:T,$C$5) -> TLT | E21: 85.72020831 | F21: 85.10481035 | G21: 241 | H21: 0 | I21: 0 | J21: 1 | K21: 1 | L21: 0 | M21: 0 | N21: 0 | O21: 0 | P21: 0 | Q21: 0 | R21: 0 | T21: 57.70852745 | U21: 57.70852745 | V21: 57.70852745 | X21: 2002-08-20 | Y21: 20930.87304 | Z21: 20850.79569 | AA21: 21019.30394 | AB21: -0.008016833038 | AF21: 0.2757756248 | AG21: -0.1502970792
A22: 16 | B22: 2002-08-21 | D22: =VLOOKUP(B23,'P123'!N:T,$C$5) -> TLT | E22: 85.37164208 | F22: 85.30243041 | G22: 241 | H22: 0 | I22: 0 | J22: 1 | K22: 1 | L22: 0 | M22: 0 | N22: 0 | O22: 0 | P22: 0 | Q22: 0 | R22: 0 | T22: 57.70852745 | U22: 57.70852745 | V22: 57.70852745 | X22: 2002-08-21 | Y22: 20707.794 | Z22: 20716.27873 | AA22: 20753.27768 | AB22: -0.001782800129 | AF22: 0.2723175011 | AG22: -0.1596779219
A23: 17 | B23: 2002-08-22 | D23: =VLOOKUP(B24,'P123'!N:T,$C$5) -> TLT | E23: 85.87040425 | F23: 85.76514584 | G23: 241 | H23: 0 | I23: 0 | J23: 1 | K23: 1 | L23: 0 | M23: 0 | N23: 0 | O23: 0 | P23: 0 | Q23: 0 | R23: 0 | T23: 57.70852745 | U23: 57.70852745 | V23: 57.70852745 | X23: 2002-08-22 | Y23: 21005.23272 | Z23: 20632.27427 | AA23: 21019.30394 | AB23: -0.01841305839 | AF23: 0.2677423391 | AG23: -0.1507092817
A24: 18 | B24: 2002-08-23 | D24: =VLOOKUP(B25,'P123'!N:T,$C$5) -> TLT | E24: 85.82736555 | F24: 85.60877835 | G24: 241 | H24: 0 | I24: 0 | J24: 1 | K24: 1 | L24: 0 | M24: 0 | N24: 0 | O24: 0 | P24: 0 | Q24: 0 | R24: 0 | T24: 57.70852745 | U24: 57.70852745 | V24: 57.70852745 | X24: 2002-08-23 | Y24: 21209.03332 | Z24: 20752.47595 | AA24: 20753.27768 | AB24: -3.863120372e-05 | AF24: 0.2730288707 | AG24: -0.1460942441
A25: 19 | B25: 2002-08-26 | D25: =VLOOKUP(B26,'P123'!N:T,$C$5) -> TLT | E25: 85.45322634 | F25: 86.16737156 | G25: 241 | H25: 0 | I25: 0 | J25: 1 | K25: 1 | L25: 0 | M25: 0 | N25: 0 | O25: 0 | P25: 0 | Q25: 0 | R25: 0 | T25: 57.70852745 | U25: 57.70852745 | V25: 57.70852745 | X25: 2002-08-26 | Y25: 20754.61305 | Z25: 20742.10363 | AA25: 21019.30394 | AB25: -0.01318789224 | AF25: 0.2706310792 | AG25: -0.1386831159
A26: 20 | B26: 2002-08-27 | D26: =VLOOKUP(B27,'P123'!N:T,$C$5) -> TLT | E26: 86.07742013 | F26: 86.4260645 | G26: 241 | H26: 0 | I26: 0 | J26: 1 | K26: 1 | L26: 0 | M26: 0 | N26: 0 | O26: 0 | P26: 0 | Q26: 0 | R26: 0 | T26: 57.70852745 | U26: 57.70852745 | V26: 57.70852745 | X26: 2002-08-27 | Y26: 20897.82429 | Z26: 20651.93608 | AA26: 20753.27768 | AB26: -0.004883161252 | AF26: 0.2635283359 | AG26: -0.1527471902
A27: 21 | B27: 2002-08-28 | D27: =VLOOKUP(B28,'P123'!N:T,$C$5) -> TLT | E27: 86.48413738 | F27: 86.96862718 | G27: 241 | H27: 0 | I27: 0 | J27: 1 | K27: 1 | L27: 0 | M27: 0 | N27: 0 | O27: 0 | P27: 0 | Q27: 0 | R27: 0 | T27: 57.70852745 | U27: 57.70852745 | V27: 57.70852745 | X27: 2002-08-28 | Y27: 20658.22088 | Z27: 20802.36678 | AA27: 21019.30394 | AB27: -0.0103208537 | AF27: 0.2687919803 | AG27: -0.1612117066
A28: 22 | B28: 2002-08-29 | D28: =VLOOKUP(B29,'P123'!N:T,$C$5) -> TLT | E28: 86.87148171 | F28: 87.5306643 | G28: 241 | H28: 0 | I28: 0.373 | J28: 1 | K28: 1 | L28: 0 | M28: 0 | N28: 0 | O28: 0 | P28: 0 | Q28: 0 | R28: 0 | T28: 57.70852745 | U28: 57.70852745 | V28: 57.70852745 | X28: 2002-08-29 | Y28: 20206.55467 | Z28: 20900.38563 | AA28: 20900.38563 | AB28: 0 | AF28: 0.2757662464 | AG28: -0.162776308
A29: 1 | B29: 2002-08-30 | D29: =VLOOKUP(B30,'P123'!N:T,$C$5) -> SPY | E29: 88.22565086 | F29: 89.74061702 | G29: 239 | H29: 0 | I29: 0 | J29: 1 | K29: 1 | L29: 0 | M29: 0 | N29: 0 | O29: 0 | P29: 0 | Q29: 0 | R29: 0 | T29: 57.70852745 | U29: 57.70852745 | V29: 57.70852745 | X29: 2002-08-30 | Y29: 20214.81685 | Z29: 20993.73562 | AA29: 21019.30394 | AB29: -0.001216420862 | AF29: 0.2678714079 | AG29: -0.1504544193
A30: 2 | B30: 2002-09-03 | D30: =VLOOKUP(B31,'P123'!N:T,$C$5) -> SPY | E30: 89.15871985 | F30: 87.572306 | G30: 239 | H30: 0 | I30: 0 | J30: 1 | K30: 1 | L30: 21095.93056 | M30: 21084.8901 | N30: 0.373 | O30: 89.893 | P30: 0 | Q30: 0 | R30: 0 | T30: 21142.59862 | U30: 21142.59862 | V30: 46.66806808 | X30: 2002-09-03 | Y30: 20134.94905 | Z30: 21132.59862 | AA30: 21132.59862 | AB30: 0 | AF30: 0.263142668 | AG30: -0.1421737057
A31: 3 | B31: 2002-09-04 | D31: =VLOOKUP(B32,'P123'!N:T,$C$5) -> SPY | E31: 87.62386831 | F31: 89.43395199 | G31: 239 | H31: 0 | I31: 0 | J31: 1 | K31: 1 | L31: 0 | M31: 0 | N31: 0 | O31: 0 | P31: 0 | Q31: 0 | R31: 0 | T31: 46.66806808 | U31: 46.66806808 | V31: 46.66806808 | X31: 2002-09-04 | Y31: 19366.56568 | Z31: 21355.60211 | AA31: 21355.60211 | AB31: 0 | AF31: 0.2781376365 | AG31: -0.1388754796
A32: 4 | B32: 2002-09-05 | D32: =VLOOKUP(B33,'P123'!N:T,$C$5) -> SPY | E32: 89.5157444 | F32: 89.09331679 | G32: 239 | H32: 0 | I32: 0 | J32: 1 | K32: 1 | L32: 0 | M32: 0 | N32: 0 | O32: 0 | P32: 0 | Q32: 0 | R32: 0 | T32: 46.66806808 | U32: 46.66806808 | V32: 46.66806808 | X32: 2002-09-05 | Y32: 19644.72597 | Z32: 20988.77259 | AA32: 21132.59862 | AB32: -0.00680588476 | AF32: 0.2785575858 | AG32: -0.1469323165
A33: 5 | B33: 2002-09-06 | D33: =VLOOKUP(B34,'P123'!N:T,$C$5) -> SPY | E33: 90.84943409 | F33: 91.2590389 | G33: 239 | H33: 0 | I33: 0 | J33: 1 | K33: 1 | L33: 0 | M33: 0 | N33: 0 | O33: 0 | P33: 0 | Q33: 0 | R33: 0 | T33: 46.66806808 | U33: 46.66806808 | V33: 46.66806808 | X33: 2002-09-06 | Y33: 19476.72817 | Z33: 21440.93098 | AA33: 21440.93098 | AB33: 0 | AF33: 0.2711670804 | AG33: -0.1465176052
A34: 6 | B34: 2002-09-09 | D34: =VLOOKUP(B35,'P123'!N:T,$C$5) -> SPY | E34: 90.82665926 | F34: 91.74015219 | G34: 239 | H34: 0 | I34: 0 | J34: 1 | K34: 1 | L34: 0 | M34: 0 | N34: 0 | O34: 0 | P34: 0 | Q34: 0 | R34: 0 | T34: 46.66806808 | U34: 46.66806808 | V34: 46.66806808 | X34: 2002-09-09 | Y34: 19743.87221 | Z34: 21759.68282 | AA34: 21759.68282 | AB34: 0 | AF34: 0.2696387815 | AG34: -0.1456272388
A35: 7 | B35: 2002-09-10 | D35: =VLOOKUP(B36,'P123'!N:T,$C$5) -> SPY | E35: 93.09743561 | F35: 89.74305099 | G35: 239 | H35: 0 | I35: 0 | J35: 1 | K35: 1 | L35: 0 | M35: 0 | N35: 0 | O35: 0 | P35: 0 | Q35: 0 | R35: 0 | T35: 46.66806808 | U35: 46.66806808 | V35: 46.66806808 | X35: 2002-09-10 | Y35: 19889.83751 | Z35: 21754.23963 | AA35: 21754.23963 | AB35: 0 | AF35: 0.2749392508 | AG35: -0.1490015992
A36: 8 | B36: 2002-09-11 | D36: =VLOOKUP(B37,'P123'!N:T,$C$5) -> SPY | E36: 90.72730609 | F36: 89.86657065 | G36: 239 | H36: 0 | I36: 0 | J36: 1 | K36: 1 | L36: 0 | M36: 0 | N36: 0 | O36: 0 | P36: 0 | Q36: 0 | R36: 0 | T36: 46.66806808 | U36: 46.66806808 | V36: 46.66806808 | X36: 2002-09-11 | Y36: 20118.42468 | Z36: 22296.95518 | AA36: 22296.95518 | AB36: 0 | AF36: 0.2667426953 | AG36: -0.1430308072
A37: 9 | B37: 2002-09-12 | D37: =VLOOKUP(B38,'P123'!N:T,$C$5) -> SPY | E37: 89.54797428 | F37: 89.71157103 | G37: 239 | H37: 0 | I37: 0 | J37: 1 | K37: 1 | L37: 0 | M37: 0 | N37: 0 | O37: 0 | P37: 0 | Q37: 0 | R37: 0 | T37: 46.66806808 | U37: 46.66806808 | V37: 46.66806808 | X37: 2002-09-12 | Y37: 19991.73781 | Z37: 21730.49422 | AA37: 21754.23963 | AB37: -0.001091530032 | AF37: 0.2731509422 | AG37: -0.1455936614
A38: 10 | B38: 2002-09-13 | D38: =VLOOKUP(B39,'P123'!N:T,$C$5) -> SPY | E38: 89.45374463 | F38: 88.8969805 | G38: 239 | H38: 0 | I38: 0 | J38: 1 | K38: 1 | L38: 0 | M38: 0 | N38: 0 | O38: 0 | P38: 0 | Q38: 0 | R38: 0 | T38: 46.66806808 | U38: 46.66806808 | V38: 46.66806808 | X38: 2002-09-13 | Y38: 19625.44754 | Z38: 21448.63392 | AA38: 22296.95518 | AB38: -0.03804650683 | AF38: 0.2687872274 | AG38: -0.1599949624
A39: 11 | B39: 2002-09-16 | D39: =VLOOKUP(B40,'P123'!N:T,$C$5) -> SPY | E39: 90.04889095 | F39: 87.26588462 | G39: 239 | H39: 0 | I39: 0 | J39: 1 | K39: 1 | L39: 0 | M39: 0 | N39: 0 | O39: 0 | P39: 0 | Q39: 0 | R39: 0 | T39: 46.66806808 | U39: 46.66806808 | V39: 46.66806808 | X39: 2002-09-16 | Y39: 19672.26659 | Z39: 21426.11303 | AA39: 21754.23963 | AB39: -0.01508334017 | AF39: 0.2742339108 | AG39: -0.144789687
A40: 12 | B40: 2002-09-17 | D40: =VLOOKUP(B41,'P123'!N:T,$C$5) -> SPY | E40: 86.98578502 | F40: 85.79365092 | G40: 239 | H40: 0 | I40: 0 | J40: 1 | K40: 1 | L40: 0 | M40: 0 | N40: 0 | O40: 0 | P40: 0 | Q40: 0 | R40: 0 | T40: 46.66806808 | U40: 46.66806808 | V40: 46.66806808 | X40: 2002-09-17 | Y40: 19721.83971 | Z40: 21568.353 | AA40: 22296.95518 | AB40: -0.03267720498 | AF40: 0.2722179207 | AG40: -0.1464462602
A41: 13 | B41: 2002-09-18 | D41: =VLOOKUP(B42,'P123'!N:T,$C$5) -> SPY | E41: 85.62821579 | F41: 84.06027177 | G41: 239 | H41: 0 | I41: 0.378 | J41: 1 | K41: 1 | L41: 0 | M41: 0 | N41: 0 | O41: 0 | P41: 0 | Q41: 0 | R41: 0 | T41: 46.66806808 | U41: 46.66806808 | V41: 46.66806808 | X41: 2002-09-18 | Y41: 19267.41944 | Z41: 20836.27069 | AA41: 21754.23963 | AB41: -0.04219724324 | AF41: 0.2697819069 | AG41: -0.1392912117
A42: 14 | B42: 2002-09-19 | D42: =VLOOKUP(B43,'P123'!N:T,$C$5) -> SPY | E42: 84.08276251 | F42: 82.82927832 | G42: 239 | H42: 0.378 | I42: 0.378 | J42: 1 | K42: 1 | L42: 0 | M42: 0 | N42: 0 | O42: 0 | P42: 0 | Q42: 0 | R42: 0 | T42: 46.66806808 | U42: 46.66806808 | V42: 46.66806808 | X42: 2002-09-19 | Y42: 19074.63509 | Z42: 20511.81164 | AA42: 22296.95518 | AB42: -0.08006221135 | AF42: 0.2638158049 | AG42: -0.1590557364
A43: 15 | B43: 2002-09-20 | D43: =VLOOKUP(B44,'P123'!N:T,$C$5) -> SPY | E43: 83.11356106 | F43: 81.96188414 | G43: 240 | H43: 0.378 | I43: 0.378 | J43: 1 | K43: 1 | L43: 0 | M43: 0 | N43: 0.378 | O43: 90.342 | P43: 0 | Q43: 0 | R43: 0 | T43: 46.66806808 | U43: 46.66806808 | V43: 46.66806808 | X43: 2002-09-20 | Y43: 18581.65795 | Z43: 20142.44831 | AA43: 21754.23963 | AB43: -0.07409090597 | AF43: 0.2675419373 | AG43: -0.1430696395
A44: 16 | B44: 2002-09-23 | D44: =VLOOKUP(B45,'P123'!N:T,$C$5) -> SPY | E44: 83.39437505 | F44: 82.87551132 | G44: 240 | H44: 0.378 | I44: 0.378 | J44: 1 | K44: 1 | L44: 0 | M44: 0 | N44: 0 | O44: 0 | P44: 89.893 | Q44: 1 | R44: 93.11356106 | T44: 46.66806808 | U44: 136.5610681 | V44: 43.44750702 | X44: 2002-09-23 | Y44: 18587.16607 | Z44: 19990.70216 | AA44: 22296.95518 | AB44: -0.1034335406 | AF44: 0.2706685652 | AG44: -0.1395025725
A45: 17 | B45: 2002-09-24 | D45: =VLOOKUP(B46,'P123'!N:T,$C$5) -> SPY | E45: 82.6268186 | F45: 84.88557948 | G45: 240 | H45: 0.378 | I45: 0.378 | J45: 1 | K45: 1 | L45: 0 | M45: 0 | N45: 0 | O45: 0 | P45: 0 | Q45: 0 | R45: 0 | T45: 43.44750702 | U45: 43.44750702 | V45: 43.44750702 | X45: 2002-09-24 | Y45: 18435.69265 | Z45: 20058.09752 | AA45: 21754.23963 | AB45: -0.07796834731 | AF45: 0.2713830435 | AG45: -0.1603838183
A46: 18 | B46: 2002-09-25 | D46: =VLOOKUP(B47,'P123'!N:T,$C$5) -> SPY | E46: 84.47725029 | F46: 83.6180989 | G46: 240 | H46: 0.378 | I46: 0.378 | J46: 1 | K46: 1 | L46: 0 | M46: 0 | N46: 0 | O46: 0 | P46: 0 | Q46: 0 | R46: 0 | T46: 43.44750702 | U46: 43.44750702 | V46: 43.44750702 | X46: 2002-09-25 | Y46: 18138.25392 | Z46: 19873.88397 | AA46: 22296.95518 | AB46: -0.1086727398 | AF46: 0.2747497662 | AG46: -0.1496744696
A47: 19 | B47: 2002-09-26 | D47: =VLOOKUP(B48,'P123'!N:T,$C$5) -> SPY | E47: 84.24939967 | F47: 81.84431488 | G47: 240 | H47: 0.378 | I47: 0.378 | J47: 1 | K47: 1 | L47: 0 | M47: 0 | N47: 0 | O47: 0 | P47: 0 | Q47: 0 | R47: 0 | T47: 43.44750702 | U47: 43.44750702 | V47: 43.44750702 | X47: 2002-09-26 | Y47: 18587.16607 | Z47: 20317.98758 | AA47: 21754.23963 | AB47: -0.06602170784 | AF47: 0.2781111266 | AG47: -0.1564621367
A48: 20 | B48: 2002-09-27 | D48: =VLOOKUP(B49,'P123'!N:T,$C$5) -> SPY | E48: 81.61929745 | F48: 83.6052611 | G48: 240 | H48: 0.378 | I48: 0.378 | J48: 1 | K48: 1 | L48: 0 | M48: 0 | N48: 0 | O48: 0 | P48: 0 | Q48: 0 | R48: 0 | T48: 43.44750702 | U48: 43.44750702 | V48: 43.44750702 | X48: 2002-09-27 | Y48: 18892.86698 | Z48: 20263.30343 | AA48: 22296.95518 | AB48: -0.09120759926 | AF48: 0.2772655783 | AG48: -0.1426358744
A49: 21 | B49: 2002-09-30 | D49: =VLOOKUP(B50,'P123'!N:T,$C$5) -> SPY | E49: 83.65046056 | F49: 84.44777356 | G49: 240 | H49: 0.378 | I49: 0.378 | J49: 1 | K49: 1 | L49: 0 | M49: 0 | N49: 0 | O49: 0 | P49: 0 | Q49: 0 | R49: 0 | T49: 43.44750702 | U49: 43.44750702 | V49: 43.44750702 | X49: 2002-09-30 | Y49: 18234.6461 | Z49: 19632.0789 | AA49: 21754.23963 | AB49: -0.09755159321 | AF49: 0.2764002898 | AG49: -0.1504368196
A50: 22 | B50: 2002-10-01 | D50: =VLOOKUP(B51,'P123'!N:T,$C$5) -> SPY | E50: 85.37222873 | F50: 83.86556313 | G50: 240 | H50: 0.378 | I50: 0.378 | J50: 1 | K50: 1 | L50: 0 | M50: 0 | N50: 0 | O50: 0 | P50: 0 | Q50: 0 | R50: 0 | T50: 43.44750702 | U50: 43.44750702 | V50: 43.44750702 | X50: 2002-10-01 | Y50: 18025.33737 | Z50: 20119.55804 | AA50: 22296.95518 | AB50: -0.09765446086 | AF50: 0.277219682 | AG50: -0.1490258538
A51: 23 | B51: 2002-10-02 | D51: =VLOOKUP(B52,'P123'!N:T,$C$5) -> SPY | E51: 83.66050782 | F51: 79.60723542 | G51: 240 | H51: 0.378 | I51: 0.378 | J51: 1 | K51: 1 | L51: 0 | M51: 0 | N51: 0 | O51: 0 | P51: 0 | Q51: 0 | R51: 0 | T51: 43.44750702 | U51: 43.44750702 | V51: 43.44750702 | X51: 2002-10-02 | Y51: 18890.11292 | Z51: 20532.7824 | AA51: 21754.23963 | AB51: -0.05614800831 | AF51: 0.2647810873 | AG51: -0.1517559762
A52: 24 | B52: 2002-10-03 | D52: =VLOOKUP(B53,'P123'!N:T,$C$5) -> SPY | E52: 82.49489153 | F52: 78.78294092 | G52: 240 | H52: 0.378 | I52: 0.378 | J52: 1 | K52: 1 | L52: 0 | M52: 0 | N52: 0 | O52: 0 | P52: 0 | Q52: 0 | R52: 0 | T52: 43.44750702 | U52: 43.44750702 | V52: 43.44750702 | X52: 2002-10-03 | Y52: 18322.77609 | Z52: 20121.96938 | AA52: 22296.95518 | AB52: -0.09754631422 | AF52: 0.2793030238 | AG52: -0.140920591
A53: 25 | B53: 2002-10-04 | D53: =VLOOKUP(B54,'P123'!N:T,$C$5) -> SPY | E53: 78.58843685 | F53: 78.85701351 | G53: 240 | H53: 0.378 | I53: 0.378 | J53: 1 | K53: 1 | L53: 0 | M53: 0 | N53: 0 | O53: 0 | P53: 0 | Q53: 0 | R53: 0 | T53: 43.44750702 | U53: 43.44750702 | V53: 43.44750702 | X53: 2002-10-04 | Y53: 18138.25392 | Z53: 19842.22147 | AA53: 21754.23963 | AB53: -0.08789174839 | AF53: 0.2634603619 | AG53: -0.1561218808
A54: 26 | B54: 2002-10-07 | D54: =VLOOKUP(B55,'P123'!N:T,$C$5) -> SPY | E54: 78.20957145 | F54: 78.17171534 | G54: 240 | H54: 0.378 | I54: 0.378 | J54: 1 | K54: 1 | L54: 0 | M54: 0 | N54: 0 | O54: 0 | P54: 0 | Q54: 0 | R54: 0 | T54: 43.44750702 | U54: 43.44750702 | V54: 43.44750702 | X54: 2002-10-07 | Y54: 17805.01239 | Z54: 18904.67235 | AA54: 22296.95518 | AB54: -0.1521410795 | AF54: 0.2699240156 | AG54: -0.1425694002
A55: 27 | B55: 2002-10-08 | D55: =VLOOKUP(B56,'P123'!N:T,$C$5) -> SPY | E55: 78.21947656 | F55: 80.32535223 | G55: 240 | H55: 0.378 | I55: 0.378 | J55: 1 | K55: 1 | L55: 0 | M55: 0 | N55: 0 | O55: 0 | P55: 0 | Q55: 0 | R55: 0 | T55: 43.44750702 | U55: 43.44750702 | V55: 43.44750702 | X55: 2002-10-08 | Y55: 17438.72212 | Z55: 18813.74465 | AA55: 21754.23963 | AB55: -0.1351688235 | AF55: 0.267578592 | AG55: -0.1437001377
A56: 28 | B56: 2002-10-09 | D56: =VLOOKUP(B57,'P123'!N:T,$C$5) -> SPY | E56: 79.80004601 | F56: 83.2402387 | G56: 241 | H56: 0.378 | I56: 0.378 | J56: 1 | K56: 1 | L56: 0 | M56: 0 | N56: 0 | O56: 0 | P56: 0 | Q56: 0 | R56: 0 | T56: 43.44750702 | U56: 43.44750702 | V56: 43.44750702 | X56: 2002-10-09 | Y56: 17711.37428 | Z56: 18816.12188 | AA56: 22296.95518 | AB56: -0.1561124948 | AF56: 0.28079854 | AG56: -0.1403031568
A57: 29 | B57: 2002-10-10 | D57: =VLOOKUP(B58,'P123'!N:T,$C$5) -> SPY | E57: 83.12397705 | F57: 84.09633836 | G57: 241 | H57: 0.378 | I57: 0.378 | J57: 1 | K57: 1 | L57: 0 | M57: 0 | N57: 0 | O57: 0 | P57: 90.342 | Q57: 1 | R57: 89.80004601 | T57: 43.44750702 | U57: 133.789507 | V57: 43.98946101 | X57: 2002-10-10 | Y57: 17210.13495 | Z57: 19275.80055 | AA57: 21754.23963 | AB57: -0.1139290145 | AF57: 0.2737630339 | AG57: -0.1423929627
A58: 30 | B58: 2002-10-11 | D58: =VLOOKUP(B59,'P123'!N:T,$C$5) -> SPY | E58: 83.67791661 | F58: 88.20969404 | G58: 241 | H58: 0.378 | I58: 0.378 | J58: 1 | K58: 1 | L58: 0 | M58: 0 | N58: 0 | O58: 0 | P58: 0 | Q58: 0 | R58: 0 | T58: 43.98946101 | U58: 43.98946101 | V58: 43.98946101 | X58: 2002-10-11 | Y58: 17769.20958 | Z58: 20076.86793 | AA58: 22296.95518 | AB58: -0.09956907706 | AF58: 0.2708589702 | AG58: -0.1443168416
A59: 31 | B59: 2002-10-14 | D59: =VLOOKUP(B60,'P123'!N:T,$C$5) -> SPY | E59: 87.8254375 | F59: 87.69706727 | G59: 241 | H59: 0.378 | I59: 0.378 | J59: 1 | K59: 1 | L59: 0 | M59: 0 | N59: 0 | O59: 0 | P59: 0 | Q59: 0 | R59: 0 | T59: 43.98946101 | U59: 43.98946101 | V59: 43.98946101 | X59: 2002-10-14 | Y59: 18545.85514 | Z59: 20210.36736 | AA59: 21754.23963 | AB59: -0.07096879932 | AF59: 0.2735449966 | AG59: -0.1495082087
A60: 32 | B60: 2002-10-15 | D60: =VLOOKUP(B61,'P123'!N:T,$C$5) -> SPY | E60: 86.46866425 | F60: 88.23876948 | G60: 241 | H60: 0.378 | I60: 0.378 | J60: 1 | K60: 1 | L60: 0 | M60: 0 | N60: 0 | O60: 0 | P60: 0 | Q60: 0 | R60: 0 | T60: 43.98946101 | U60: 43.98946101 | V60: 43.98946101 | X60: 2002-10-15 | Y60: 18650.5095 | Z60: 21209.9199 | AA60: 22296.95518 | AB60: -0.04875263336 | AF60: 0.2684987713 | AG60: -0.1534285321
A61: 33 | B61: 2002-10-16 | D61: =VLOOKUP(B62,'P123'!N:T,$C$5) -> SPY | E61: 89.24103596 | F61: 87.81699008 | G61: 241 | H61: 0.378 | I61: 0.378 | J61: 1 | K61: 1 | L61: 0 | M61: 0 | N61: 0 | O61: 0 | P61: 0 | Q61: 0 | R61: 0 | T61: 43.98946101 | U61: 43.98946101 | V61: 43.98946101 | X61: 2002-10-16 | Y61: 19545.57973 | Z61: 20882.93755 | AA61: 21754.23963 | AB61: -0.04005205878 | AF61: 0.2707531691 | AG61: -0.1484744621
A62: 34 | B62: 2002-10-17 | D62: =VLOOKUP(B63,'P123'!N:T,$C$5) -> SPY | E62: 87.56375531 | F62: 88.61449104 | G62: 241 | H62: 0.378 | I62: 0.378 | J62: 1 | K62: 1 | L62: 0 | M62: 0 | N62: 0 | O62: 0 | P62: 0 | Q62: 0 | R62: 0 | T62: 43.98946101 | U62: 43.98946101 | V62: 43.98946101 | X62: 2002-10-17 | Y62: 19071.88102 | Z62: 21551.07913 | AA62: 22296.95518 | AB62: -0.03345192412 | AF62: 0.2771641864 | AG62: -0.1558321024
A63: 35 | B63: 2002-10-18 | D63: =VLOOKUP(B64,'P123'!N:T,$C$5) -> SPY | E63: 89.29009125 | F63: 88.89235244 | G63: 241 | H63: 0.378 | I63: 0.378 | J63: 1 | K63: 1 | L63: 0 | M63: 0 | N63: 0 | O63: 0 | P63: 0 | Q63: 0 | R63: 0 | T63: 43.98946101 | U63: 43.98946101 | V63: 43.98946101 | X63: 2002-10-18 | Y63: 19451.94161 | Z63: 21146.85449 | AA63: 21754.23963 | AB63: -0.02792031116 | AF63: 0.2637041745 | AG63: -0.136010965
A64: 36 | B64: 2002-10-21 | D64: =VLOOKUP(B65,'P123'!N:T,$C$5) -> SPY | E64: 89.30860079 | F64: 89.43274289 | G64: 241 | H64: 0.378 | I64: 0.378 | J64: 1 | K64: 1 | L64: 0 | M64: 0 | N64: 0 | O64: 0 | P64: 0 | Q64: 0 | R64: 0 | T64: 43.98946101 | U64: 43.98946101 | V64: 43.98946101 | X64: 2002-10-21 | Y64: 19534.56348 | Z64: 21562.90145 | AA64: 22296.95518 | AB64: -0.03292170262 | AF64: 0.2797045632 | AG64: -0.1506809421
A65: 37 | B65: 2002-10-22 | D65: =VLOOKUP(B66,'P123'!N:T,$C$5) -> SPY | E65: 88.11363086 | F65: 90.71140089 | G65: 241 | H65: 0.378 | I65: 0.378 | J65: 1 | K65: 1 | L65: 0 | M65: 0 | N65: 0 | O65: 0 | P65: 0 | Q65: 0 | R65: 0 | T65: 43.98946101 | U65: 43.98946101 | V65: 43.98946101 | X65: 2002-10-22 | Y65: 19870.55907 | Z65: 21567.36225 | AA65: 21754.23963 | AB65: -0.008590388911 | AF65: 0.271183931 | AG65: -0.158559147
A66: 38 | B66: 2002-10-23 | D66: =VLOOKUP(B67,'P123'!N:T,$C$5) -> SPY | E66: 89.54405456 | F66: 89.26051418 | G66: 241 | H66: 0.378 | I66: 0.378 | J66: 1 | K66: 1 | L66: 0 | M66: 0 | N66: 0 | O66: 0 | P66: 0 | Q66: 0 | R66: 0 | T66: 43.98946101 | U66: 43.98946101 | V66: 43.98946101 | X66: 2002-10-23 | Y66: 19727.34784 | Z66: 21279.3745 | AA66: 22296.95518 | AB66: -0.04563765204 | AF66: 0.2717844198 | AG66: -0.1481873633
A67: 39 | B67: 2002-10-24 | D67: =VLOOKUP(B68,'P123'!N:T,$C$5) -> SPY | E67: 90.06007892 | F67: 89.30767358 | G67: 241 | H67: 0.378 | I67: 0.378 | J67: 1 | K67: 1 | L67: 0 | M67: 0 | N67: 0 | O67: 0 | P67: 0 | Q67: 0 | R67: 0 | T67: 43.98946101 | U67: 43.98946101 | V67: 43.98946101 | X67: 2002-10-24 | Y67: 19876.0672 | Z67: 21624.10661 | AA67: 21754.23963 | AB67: -0.005981961281 | AF67: 0.2731220618 | AG67: -0.1630710999
A68: 1 | B68: 2002-10-25 | D68: =VLOOKUP(B69,'P123'!N:T,$C$5) -> TLT | E68: 85.4214482 | F68: 86.05821761 | G68: 252 | H68: 0.716 | I68: 0.716 | J68: 1 | K68: 1 | L68: 0 | M68: 0 | N68: 0 | O68: 0 | P68: 0 | Q68: 0 | R68: 0 | T68: 43.98946101 | U68: 43.98946101 | V68: 43.98946101 | X68: 2002-10-25 | Y68: 19471.22005 | Z68: 21748.46848 | AA68: 22296.95518 | AB68: -0.02459917484 | AF68: 0.2733692679 | AG68: -0.1409330315
A69: 2 | B69: 2002-10-28 | D69: =VLOOKUP(B70,'P123'!N:T,$C$5) -> TLT | E69: 86.04670802 | F69: 86.37560441 | G69: 252 | H69: 0.716 | I69: 0.716 | J69: 1 | K69: 1 | L69: 21536.20495 | M69: 21513.14933 | N69: 0 | O69: 0 | P69: 0 | Q69: 0 | R69: 0 | T69: 21557.13879 | U69: 21557.13879 | V69: 20.9338461 | X69: 2002-10-28 | Y69: 19876.0672 | Z69: 21547.13879 | AA69: 21754.23963 | AB69: -0.009520021884 | AF69: 0.2687326389 | AG69: -0.1446223467
A70: 3 | B70: 2002-10-29 | D70: =VLOOKUP(B71,'P123'!N:T,$C$5) -> TLT | E70: 86.08118406 | F70: 86.49649844 | G70: 252 | H70: 0.716 | I70: 0.716 | J70: 1 | K70: 1 | L70: 0 | M70: 0 | N70: 0 | O70: 0 | P70: 0 | Q70: 0 | R70: 0 | T70: 20.9338461 | U70: 20.9338461 | V70: 20.9338461 | X70: 2002-10-29 | Y70: 19746.62627 | Z70: 21704.70427 | AA70: 22296.95518 | AB70: -0.02656196359 | AF70: 0.2734708922 | AG70: -0.1472981176
A71: =IF(D70=D71,A70+1,1) -> 4 | B71: 2002-10-30 | D71: =VLOOKUP(B72,'P123'!N:T,$C$5) -> TLT | E71: 86.85918662 | F71: 86.23807775 | G71: 252 | H71: 0.716 | I71: 1.105 | J71: =IF(D70=D71,J70,VLOOKUP(B72,INDIRECT(D71&"!A:q"),J$2)) -> 1 | K71: =IF(D70=D71,K70,VLOOKUP(B73,INDIRECT(D71&"!A:q"),K$2)) -> 1 | L71: 0 | M71: 0 | N71: 0 | O71: 0 | P71: =IF(ROW()>P$5+7,INDIRECT(P$2&ROW()-P$5),0) -> 0 | Q71: 0 | R71: 0 | T71: 20.9338461 | U71: 20.9338461 | V71: 20.9338461 | X71: =B71 -> 2002-10-30 | Y71: 19518.03911 | Z71: 21713.39223 | AA71: 21754.23963 | AB71: -0.001877675401 | AF71: 0.2700550024 | AG71: -0.1415007439
A72: 5 | B72: =INDIRECT(B$5&ROW()) -> 2002-10-31 | D72: =VLOOKUP(B73,'P123'!N:T,$C$5) -> TLT | E72: =RAND()*(VLOOKUP(B73,INDIRECT(D72&"!A:q"),E$1)-VLOOKUP(B73,INDIRECT(D72&"!A:q"),E$2))+VLOOKUP(B73,INDIRECT(D72&"!A:q"),E$2) -> 86.50407415 | F72: =RAND()*(VLOOKUP(B74,INDIRECT(D72&"!A:q"),F$1)-VLOOKUP(B74,INDIRECT(D72&"!A:q"),F$2))+VLOOKUP(B74,INDIRECT(D72&"!A:q"),F$2) -> 85.31435369 | G72: =IF(D72=D71,G71,INT((T73*(1-L$1)-L$2)/E72))+Q73 -> 252 | H72: =VLOOKUP(B73,INDIRECT(D72&"!A:q"),H$2) -> 1.105 | I72: 1.105 | J72: 1 | K72: 1 | L72: =IF(D70=D71,0,G71*E71*(1+L$1)+$L$2) -> 0 | M72: 0 | N72: 0 | O72: 0 | P72: 0 | Q72: 0 | R72: 0 | T72: =V71+M72 -> 20.9338461 | U72: =T72+P72 -> 20.9338461 | V72: =U72-L72-R72 -> 20.9338461 | X72: 2002-10-31 | Y72: =VLOOKUP(X71,INDIRECT(Y$3&"!A:R"),7)*$Y$1 -> 19708.0694 | Z72: =E71*G71+V72 -> 21909.44887 | AA72: =IF(Z72>AA70,Z72,AA70) -> 22296.95518 | AB72: =Z72/AA72-1 -> -0.01737933731 | AF72: 0.269802633 | AG72: -0.1508527442
A73: 6 | B73: 2002-11-01 | D73: =VLOOKUP(B74,'P123'!N:T,$C$5) -> TLT | E73: 85.30498451 | F73: 85.15817224 | G73: 252 | H73: 1.105 | I73: 1.105 | J73: 1 | K73: 1 | L73: 0 | M73: =IF(D71=D72,0,(K71/J71)*G71*F71/(1+$M$1)-$L$2) -> 0 | N73: =IF(I71<>H71,I71-H71,0) -> 0.389 | O73: =G71*N73 -> 98.028 | P73: 0 | Q73: =IF(AND(U73>Q$4,D72=D71),INT((U73*(1-L$1)-L$2)/E72),0) -> 0 | R73: 0 | T73: 20.9338461 | U73: 20.9338461 | V73: 20.9338461 | X73: 2002-11-01 | Y73: 19507.02286 | Z73: 21819.96053 | AA73: 21819.96053 | AB73: 0 | AF73: 0.2720784191 | AG73: -0.1508262664
A74: 7 | B74: 2002-11-04 | D74: =VLOOKUP(B75,'P123'!N:T,$C$5) -> TLT | E74: 85.38294329 | F74: 85.9773551 | G74: 252 | H74: 1.105 | I74: 1.105 | J74: 1 | K74: 1 | L74: 0 | M74: 0 | N74: 0 | O74: 0 | P74: 0 | Q74: 0 | R74: =IF(Q74>0,Q74*E73+$L$2,0) -> 0 | T74: 20.9338461 | U74: 20.9338461 | V74: 20.9338461 | X74: 2002-11-04 | Y74: 19892.59157 | Z74: 21517.78994 | AA74: 22296.95518 | AB74: -0.03494491655 | AF74: 0.2718430151 | AG74: -0.1504027646
A75: 8 | B75: 2002-11-05 | D75: =VLOOKUP(B76,'P123'!N:T,$C$5) -> TLT | E75: 85.9441585 | F75: 87.15165495 | G75: 252 | H75: 1.105 | I75: 1.105 | J75: 1 | K75: 1 | L75: 0 | M75: 0 | N75: 0 | O75: 0 | P75: 0 | Q75: 0 | R75: 0 | T75: 20.9338461 | U75: 20.9338461 | V75: 20.9338461 | X75: 2002-11-05 | Y75: 20082.62187 | Z75: 21537.43556 | AA75: 21819.96053 | AB75: -0.01294800589 | AF75: 0.2738478652 | AG75: -0.1515188156
A76: 9 | B76: 2002-11-06 | D76: =VLOOKUP(B77,'P123'!N:T,$C$5) -> TLT | E76: 87.18119892 | F76: 88.39284969 | G76: 252 | H76: 1.105 | I76: 1.105 | J76: 1 | K76: 1 | L76: 0 | M76: 0 | N76: 0 | O76: 0 | P76: 0 | Q76: 0 | R76: 0 | T76: 20.9338461 | U76: 20.9338461 | V76: 20.9338461 | X76: 2002-11-06 | Y76: 20242.35748 | Z76: 21678.86179 | AA76: 22296.95518 | AB76: -0.02772097748 | AF76: 0.2680215539 | AG76: -0.1544250556
A77: 10 | B77: 2002-11-07 | D77: =VLOOKUP(B78,'P123'!N:T,$C$5) -> TLT | E77: 88.63987481 | F77: 88.69322258 | G77: 252 | H77: 1.105 | I77: 1.105 | J77: 1 | K77: 1 | L77: 0 | M77: 0 | N77: 0 | O77: 0 | P77: 0 | Q77: 0 | R77: 0 | T77: 20.9338461 | U77: 20.9338461 | V77: 20.9338461 | X77: 2002-11-07 | Y77: 20503.99339 | Z77: 21990.59597 | AA77: 21990.59597 | AB77: 0 | AF77: 0.2688397987 | AG77: -0.1496867147
A78: 11 | B78: 2002-11-08 | D78: =VLOOKUP(B79,'P123'!N:T,$C$5) -> TLT | E78: 88.66267063 | F78: 89.01450389 | G78: 252 | H78: 1.105 | I78: 1.105 | J78: 1 | K78: 1 | L78: 0 | M78: 0 | N78: 0 | O78: 0 | P78: 0 | Q78: 0 | R78: 0 | T78: 20.9338461 | U78: 20.9338461 | V78: 20.9338461 | X78: 2002-11-08 | Y78: 20000 | Z78: 22358.1823 | AA78: 22358.1823 | AB78: 0 | AF78: 0.2784260909 | AG78: -0.1401165234
A79: 12 | B79: 2002-11-11 | D79: =VLOOKUP(B80,'P123'!N:T,$C$5) -> TLT | E79: 88.81993179 | F79: 88.0525362 | G79: 252 | H79: 1.105 | I79: 1.105 | J79: 1 | K79: 1 | L79: 0 | M79: 0 | N79: 0 | O79: 0 | P79: 0 | Q79: 0 | R79: 0 | T79: 20.9338461 | U79: 20.9338461 | V79: 20.9338461 | X79: 2002-11-11 | Y79: 19754.88846 | Z79: 22363.92684 | AA79: 22363.92684 | AB79: 0 | AF79: 0.2739792028 | AG79: -0.146716326
A80: 13 | B80: 2002-11-12 | D80: =VLOOKUP(B81,'P123'!N:T,$C$5) -> TLT | E80: 88.40127467 | F80: 87.51392237 | G80: 252 | H80: 1.105 | I80: 1.105 | J80: 1 | K80: 1 | L80: 0 | M80: 0 | N80: 0 | O80: 0 | P80: 0 | Q80: 0 | R80: 0 | T80: 20.9338461 | U80: 20.9338461 | V80: 20.9338461 | X80: 2002-11-12 | Y80: 19449.18755 | Z80: 22403.55666 | AA80: 22403.55666 | AB80: 0 | AF80: 0.2750956299 | AG80: -0.1472439094
A81: 14 | B81: 2002-11-13 | D81: =VLOOKUP(B82,'P123'!N:T,$C$5) -> TLT | E81: 87.14807285 | F81: 86.74340182 | G81: 252 | H81: 1.105 | I81: 1.105 | J81: 1 | K81: 1 | L81: 0 | M81: 0 | N81: 0 | O81: 0 | P81: 0 | Q81: 0 | R81: 0 | T81: 20.9338461 | U81: 20.9338461 | V81: 20.9338461 | X81: 2002-11-13 | Y81: 19603.41504 | Z81: 22298.05506 | AA81: 22363.92684 | AB81: -0.002945447921 | AF81: 0.2770639781 | AG81: -0.1366223989
A82: 15 | B82: 2002-11-14 | D82: =VLOOKUP(B83,'P123'!N:T,$C$5) -> TLT | E82: 86.910775 | F82: 87.23860972 | G82: 252 | H82: 1.105 | I82: 1.105 | J82: 1 | K82: 1 | L82: 0 | M82: 0 | N82: 0 | O82: 0 | P82: 0 | Q82: 0 | R82: 0 | T82: 20.9338461 | U82: 20.9338461 | V82: 20.9338461 | X82: 2002-11-14 | Y82: 19622.69347 | Z82: 21982.2482 | AA82: 22403.55666 | AB82: -0.01880542715 | AF82: 0.2717260596 | AG82: -0.1495263802
A83: 16 | B83: 2002-11-15 | D83: =VLOOKUP(B84,'P123'!N:T,$C$5) -> TLT | E83: 86.99582343 | F83: 87.90606419 | G83: 252 | H83: 1.105 | I83: =VLOOKUP(B85,INDIRECT(D83&"!A:q"),H$2) -> 1.105 | J83: 1 | K83: 1 | L83: 0 | M83: 0 | N83: 0 | O83: 0 | P83: 0 | Q83: 0 | R83: 0 | T83: 20.9338461 | U83: 20.9338461 | V83: 20.9338461 | X83: 2002-11-15 | Y83: 19994.49188 | Z83: 21922.44915 | AA83: 22363.92684 | AB83: -0.01974061631 | AF83: 0.2749820901 | AG83: -0.1441679092
A84: 17 | B84: 2002-11-18 | D84: =VLOOKUP(B85,'P123'!N:T,$C$5) -> TLT | E84: 87.6904896 | F84: 88.03218064 | G84: 252 | H84: 1.105 | I84: 1.105 | J84: 1 | K84: 1 | L84: 0 | M84: 0 | N84: 0 | O84: 0 | P84: 0 | Q84: 0 | R84: 0 | T84: 20.9338461 | U84: 20.9338461 | V84: 20.9338461 | X84: 2002-11-18 | Y84: 20143.21124 | Z84: 21943.88135 | AA84: 22403.55666 | AB84: -0.02051796127 | AF84: 0.2764367213 | AG84: -0.1499741158
A85: 18 | B85: 2002-11-19 | D85: =VLOOKUP(B86,'P123'!N:T,$C$5) -> TLT | E85: 87.1315512 | F85: 86.3658021 | G85: 252 | H85: 1.105 | I85: 1.105 | J85: 1 | K85: 1 | L85: 0 | M85: 0 | N85: 0 | O85: 0 | P85: 0 | Q85: 0 | R85: 0 | T85: 20.9338461 | U85: 20.9338461 | V85: 20.9338461 | X85: 2002-11-19 | Y85: 19939.41063 | Z85: 22118.93723 | AA85: 22363.92684 | AB85: -0.01095467802 | AF85: 0.2677091698 | AG85: -0.1528299037
A86: 19 | B86: 2002-11-20 | D86: =VLOOKUP(B87,'P123'!N:T,$C$5) -> TLT | E86: 86.22760504 | F86: 86.26989117 | G86: 253 | H86: 1.105 | I86: 1.105 | J86: 1 | K86: 1 | L86: 0 | M86: 0 | N86: 0 | O86: 0 | P86: 0 | Q86: 0 | R86: 0 | T86: 20.9338461 | U86: 20.9338461 | V86: 20.9338461 | X86: 2002-11-20 | Y86: 19911.87001 | Z86: 21978.08475 | AA86: 22403.55666 | AB86: -0.01899126626 | AF86: 0.2710027696 | AG86: -0.1497954133
A87: 20 | B87: 2002-11-21 | D87: =VLOOKUP(B88,'P123'!N:T,$C$5) -> TLT | E87: 86.13521592 | F87: 86.36847566 | G87: 253 | H87: 1.105 | I87: 1.105 | J87: 1 | K87: 1 | L87: 0 | M87: 0 | N87: 0 | O87: 0 | P87: 98.028 | Q87: 1 | R87: 96.22760504 | T87: 20.9338461 | U87: 118.9618461 | V87: 22.73424106 | X87: 2002-11-21 | Y87: 20355.27403 | Z87: 21838.31832 | AA87: 22363.92684 | AB87: -0.02350251506 | AF87: 0.2681057137 | AG87: -0.160461575
A88: 21 | B88: 2002-11-22 | D88: =VLOOKUP(B89,'P123'!N:T,$C$5) -> TLT | E88: 86.08879871 | F88: 86.77047421 | G88: 253 | H88: 1.105 | I88: 1.105 | J88: 1 | K88: 1 | L88: 0 | M88: 0 | N88: 0 | O88: 0 | P88: 0 | Q88: 0 | R88: 0 | T88: 22.73424106 | U88: 22.73424106 | V88: 22.73424106 | X88: 2002-11-22 | Y88: 20735.33462 | Z88: 21814.94387 | AA88: 22403.55666 | AB88: -0.02627318505 | AF88: 0.2673897316 | AG88: -0.1416831588
A89: 22 | B89: 2002-11-25 | D89: =VLOOKUP(B90,'P123'!N:T,$C$5) -> TLT | E89: 86.82366675 | F89: 86.21706071 | G89: 253 | H89: 1.105 | I89: 1.105 | J89: 1 | K89: 1 | L89: 0 | M89: 0 | N89: 0 | O89: 0 | P89: 0 | Q89: 0 | R89: 0 | T89: 22.73424106 | U89: 22.73424106 | V89: 22.73424106 | X89: 2002-11-25 | Y89: 20586.61526 | Z89: 21803.20032 | AA89: 22363.92684 | AB89: -0.02507281177 | AF89: 0.2653477914 | AG89: -0.1486236353
A90: 23 | B90: 2002-11-26 | D90: =VLOOKUP(B91,'P123'!N:T,$C$5) -> TLT | E90: 86.04591041 | F90: 85.25292502 | G90: 253 | H90: 1.105 | I90: 1.105 | J90: 1 | K90: 1 | L90: 0 | M90: 0 | N90: 0 | O90: 0 | P90: 0 | Q90: 0 | R90: 0 | T90: 22.73424106 | U90: 22.73424106 | V90: 22.73424106 | X90: 2002-11-26 | Y90: 20600.38557 | Z90: 21989.12193 | AA90: 22403.55666 | AB90: -0.01849861316 | AF90: 0.2680957345 | AG90: -0.1540035905
A91: 24 | B91: 2002-11-27 | D91: =VLOOKUP(B92,'P123'!N:T,$C$5) -> TLT | E91: 85.5157784 | F91: 84.57155151 | G91: 253 | H91: 1.105 | I91: 1.494 | J91: 1 | K91: 1 | L91: 0 | M91: 0 | N91: 0 | O91: 0 | P91: 0 | Q91: 0 | R91: 0 | T91: 22.73424106 | U91: 22.73424106 | V91: 22.73424106 | X91: 2002-11-27 | Y91: 20209.30873 | Z91: 21792.34957 | AA91: 22363.92684 | AB91: -0.02555800124 | AF91: 0.2627573934 | AG91: -0.1442811727
A92: 25 | B92: 2002-11-29 | D92: =VLOOKUP(B93,'P123'!N:T,$C$5) -> TLT | E92: 84.86351991 | F92: 85.15795726 | G92: 253 | H92: 1.494 | I92: 1.494 | J92: 1 | K92: 1 | L92: 0 | M92: 0 | N92: 0 | O92: 0 | P92: 0 | Q92: 0 | R92: 0 | T92: 22.73424106 | U92: 22.73424106 | V92: 22.73424106 | X92: 2002-11-29 | Y92: 20776.64555 | Z92: 21658.22618 | AA92: 22403.55666 | AB92: -0.0332683998 | AF92: 0.2685974703 | AG92: -0.1479294466
A93: 26 | B93: 2002-12-02 | D93: =VLOOKUP(B94,'P123'!N:T,$C$5) -> TLT | E93: 85.16334955 | F93: 85.70187026 | G93: 253 | H93: 1.494 | I93: 1.494 | J93: 1 | K93: 1 | L93: 0 | M93: 0 | N93: 0.389 | O93: 98.417 | P93: 0 | Q93: 0 | R93: 0 | T93: 22.73424106 | U93: 22.73424106 | V93: 22.73424106 | X93: 2002-12-02 | Y93: 20710.54806 | Z93: 21493.20478 | AA93: 22363.92684 | AB93: -0.03893422085 | AF93: 0.2712957561 | AG93: -0.1560541331
A94: 27 | B94: 2002-12-03 | D94: =VLOOKUP(B95,'P123'!N:T,$C$5) -> TLT | E94: 85.85587963 | F94: 85.84909735 | G94: 253 | H94: 1.494 | I94: 1.494 | J94: 1 | K94: 1 | L94: 0 | M94: 0 | N94: 0 | O94: 0 | P94: 0 | Q94: 0 | R94: 0 | T94: 22.73424106 | U94: 22.73424106 | V94: 22.73424106 | X94: 2002-12-03 | Y94: 20743.59681 | Z94: 21569.06168 | AA94: 22403.55666 | AB94: -0.03724832589 | AF94: 0.2734642499 | AG94: -0.1470730608
A95: 28 | B95: 2002-12-04 | D95: =VLOOKUP(B96,'P123'!N:T,$C$5) -> TLT | E95: 85.46895463 | F95: 86.90075455 | G95: 253 | H95: 1.494 | I95: 1.494 | J95: 1 | K95: 1 | L95: 0 | M95: 0 | N95: 0 | O95: 0 | P95: 0 | Q95: 0 | R95: 0 | T95: 22.73424106 | U95: 22.73424106 | V95: 22.73424106 | X95: 2002-12-04 | Y95: 20465.43652 | Z95: 21744.27179 | AA95: 22363.92684 | AB95: -0.02770779308 | AF95: 0.2716164003 | AG95: -0.1515322189
A96: 29 | B96: 2002-12-05 | D96: =VLOOKUP(B97,'P123'!N:T,$C$5) -> TLT | E96: 87.03678673 | F96: 86.81461274 | G96: 253 | H96: 1.494 | I96: 1.494 | J96: 1 | K96: 1 | L96: 0 | M96: 0 | N96: 0 | O96: 0 | P96: 0 | Q96: 0 | R96: 0 | T96: 22.73424106 | U96: 22.73424106 | V96: 22.73424106 | X96: 2002-12-05 | Y96: 20374.55246 | Z96: 21646.37976 | AA96: 22403.55666 | AB96: -0.03379717366 | AF96: 0.2712592019 | AG96: -0.1604312616
A97: 30 | B97: 2002-12-06 | D97: =VLOOKUP(B98,'P123'!N:T,$C$5) -> TLT | E97: 86.27965744 | F97: 86.87163716 | G97: 253 | H97: 1.494 | I97: 1.494 | J97: 1 | K97: 1 | L97: 0 | M97: 0 | N97: 0 | O97: 0 | P97: 0 | Q97: 0 | R97: 0 | T97: 22.73424106 | U97: 22.73424106 | V97: 22.73424106 | X97: 2002-12-06 | Y97: 20148.71936 | Z97: 22043.04128 | AA97: 22363.92684 | AB97: -0.01434835498 | AF97: 0.2703905931 | AG97: -0.1624488021
A98: 31 | B98: 2002-12-09 | D98: =VLOOKUP(B99,'P123'!N:T,$C$5) -> TLT | E98: 86.8950207 | F98: 87.36935088 | G98: 253 | H98: 1.494 | I98: 1.494 | J98: 1 | K98: 1 | L98: 0 | M98: 0 | N98: 0 | O98: 0 | P98: 0 | Q98: 0 | R98: 0 | T98: 22.73424106 | U98: 22.73424106 | V98: 22.73424106 | X98: 2002-12-09 | Y98: 20280.91435 | Z98: 21851.48757 | AA98: 22403.55666 | AB98: -0.02464202859 | AF98: 0.2746835291 | AG98: -0.1525255229
A99: 32 | B99: 2002-12-10 | D99: =VLOOKUP(B100,'P123'!N:T,$C$5) -> TLT | E99: 87.54925915 | F99: 87.09500283 | G99: 253 | H99: 1.494 | I99: 1.494 | J99: 1 | K99: 1 | L99: 0 | M99: 0 | N99: 0 | O99: 0 | P99: 0 | Q99: 0 | R99: 0 | T99: 22.73424106 | U99: 22.73424106 | V99: 22.73424106 | X99: 2002-12-10 | Y99: 19721.83971 | Z99: 22007.17448 | AA99: 22363.92684 | AB99: -0.01595213439 | AF99: 0.2724591538 | AG99: -0.1469795908
A100: 33 | B100: 2002-12-11 | D100: =VLOOKUP(B101,'P123'!N:T,$C$5) -> TLT | E100: 87.26143692 | F100: 87.0842038 | G100: 253 | H100: 1.494 | I100: 1.494 | J100: 1 | K100: 1 | L100: 0 | M100: 0 | N100: 0 | O100: 0 | P100: 0 | Q100: 0 | R100: 0 | T100: 22.73424106 | U100: 22.73424106 | V100: 22.73424106 | X100: 2002-12-11 | Y100: 19988.98375 | Z100: 22172.69681 | AA100: 22403.55666 | AB100: -0.01030460725 | AF100: 0.2708004205 | AG100: -0.1486935525
A101: 34 | B101: 2002-12-12 | D101: =VLOOKUP(B102,'P123'!N:T,$C$5) -> TLT | E101: 86.93518152 | F101: 86.46519279 | G101: 253 | H101: 1.494 | I101: 1.494 | J101: 1 | K101: 1 | L101: 0 | M101: 0 | N101: 0 | O101: 0 | P101: 0 | Q101: 0 | R101: 0 | T101: 22.73424106 | U101: 22.73424106 | V101: 22.73424106 | X101: 2002-12-12 | Y101: 20005.50812 | Z101: 22099.87778 | AA101: 22363.92684 | AB101: -0.0118069185 | AF101: 0.2662827139 | AG101: -0.1444189139
A102: 35 | B102: 2002-12-13 | D102: =VLOOKUP(B103,'P123'!N:T,$C$5) -> TLT | E102: 86.26543867 | F102: 85.89491183 | G102: 253 | H102: 1.494 | I102: 1.494 | J102: 1 | K102: 1 | L102: 0 | M102: 0 | N102: 0 | O102: 0 | P102: 0 | Q102: 0 | R102: 0 | T102: 22.73424106 | U102: 22.73424106 | V102: 22.73424106 | X102: 2002-12-13 | Y102: 20002.75406 | Z102: 22017.33517 | AA102: 22403.55666 | AB102: -0.01723929363 | AF102: 0.2772539014 | AG102: -0.1513012832
A103: 36 | B103: 2002-12-16 | D103: =VLOOKUP(B104,'P123'!N:T,$C$5) -> TLT | E103: 85.80758478 | F103: 86.31542902 | G103: 253 | H103: 1.494 | I103: 1.494 | J103: 1 | K103: 1 | L103: 0 | M103: 0 | N103: 0 | O103: 0 | P103: 0 | Q103: 0 | R103: 0 | T103: 22.73424106 | U103: 22.73424106 | V103: 22.73424106 | X103: 2002-12-16 | Y103: 19688.79097 | Z103: 21847.89022 | AA103: 22363.92684 | AB103: -0.02307450849 | AF103: 0.2660024225 | AG103: -0.144292691
A104: 37 | B104: 2002-12-17 | D104: =VLOOKUP(B105,'P123'!N:T,$C$5) -> TLT | E104: 86.25473834 | F104: 87.23535405 | G104: 253 | H104: 1.494 | I104: 1.494 | J104: 1 | K104: 1 | L104: 0 | M104: 0 | N104: 0 | O104: 0 | P104: 0 | Q104: 0 | R104: 0 | T104: 22.73424106 | U104: 22.73424106 | V104: 22.73424106 | X104: 2002-12-17 | Y104: 20198.29248 | Z104: 21732.05319 | AA104: 22403.55666 | AB104: -0.02997307419 | AF104: 0.2666364272 | AG104: -0.1466434021
A105: 38 | B105: 2002-12-18 | D105: =VLOOKUP(B106,'P123'!N:T,$C$5) -> TLT | E105: 87.44189712 | F105: 87.21387906 | G105: 253 | H105: 1.494 | I105: 1.494 | J105: 1 | K105: 1 | L105: 0 | M105: 0 | N105: 0 | O105: 0 | P105: 0 | Q105: 0 | R105: 0 | T105: 22.73424106 | U105: 22.73424106 | V105: 22.73424106 | X105: 2002-12-18 | Y105: 20022.0325 | Z105: 21845.18304 | AA105: 22363.92684 | AB105: -0.02319555987 | AF105: 0.2701998552 | AG105: -0.1525831852
A106: 39 | B106: 2002-12-19 | D106: =VLOOKUP(B107,'P123'!N:T,$C$5) -> TLT | E106: 87.3713698 | F106: 86.38654279 | G106: 254 | H106: 1.494 | I106: 1.494 | J106: 1 | K106: 1 | L106: 0 | M106: 0 | N106: 0 | O106: 0 | P106: 0 | Q106: 0 | R106: 0 | T106: 22.73424106 | U106: 22.73424106 | V106: 22.73424106 | X106: 2002-12-19 | Y106: 19787.93721 | Z106: 22145.53421 | AA106: 22403.55666 | AB106: -0.01151703049 | AF106: 0.2739916714 | AG106: -0.1518345311
A107: 40 | B107: 2002-12-20 | D107: =VLOOKUP(B108,'P123'!N:T,$C$5) -> TLT | E107: 87.16993296 | F107: 88.01171063 | G107: 254 | H107: 1.494 | I107: 1.494 | J107: 1 | K107: 1 | L107: 0 | M107: 0 | N107: 0 | O107: 0 | P107: 98.417 | Q107: 1 | R107: 97.3713698 | T107: 22.73424106 | U107: 121.1512411 | V107: 23.77987126 | X107: 2002-12-20 | Y107: 19647.48003 | Z107: 22216.1078 | AA107: 22363.92684 | AB107: -0.006609708766 | AF107: 0.2691731327 | AG107: -0.1533232344
A108: 41 | B108: 2002-12-23 | D108: =VLOOKUP(B109,'P123'!N:T,$C$5) -> TLT | E108: 88.05511319 | F108: 87.92297058 | G108: 254 | H108: 1.494 | I108: 1.494 | J108: 1 | K108: 1 | L108: 0 | M108: 0 | N108: 0 | O108: 0 | P108: 0 | Q108: 0 | R108: 0 | T108: 23.77987126 | U108: 23.77987126 | V108: 23.77987126 | X108: 2002-12-23 | Y108: 19928.39438 | Z108: 22164.94284 | AA108: 22403.55666 | AB108: -0.01065071136 | AF108: 0.2733100463 | AG108: -0.1435414034
A109: 42 | B109: 2002-12-24 | D109: =VLOOKUP(B110,'P123'!N:T,$C$5) -> TLT | E109: 87.74271364 | F109: 88.37109364 | G109: 254 | H109: 1.494 | I109: 1.494 | J109: 1 | K109: 1 | L109: 0 | M109: 0 | N109: 0 | O109: 0 | P109: 0 | Q109: 0 | R109: 0 | T109: 23.77987126 | U109: 23.77987126 | V109: 23.77987126 | X109: 2002-12-24 | Y109: 19933.90251 | Z109: 22389.77862 | AA109: 22389.77862 | AB109: 0 | AF109: 0.2726264179 | AG109: -0.144947352
A110: 43 | B110: 2002-12-26 | D110: =VLOOKUP(B111,'P123'!N:T,$C$5) -> TLT | E110: 88.72490343 | F110: 88.8679952 | G110: 254 | H110: 1.494 | I110: 1.494 | J110: 1 | K110: 1 | L110: 0 | M110: 0 | N110: 0 | O110: 0 | P110: 0 | Q110: 0 | R110: 0 | T110: 23.77987126 | U110: 23.77987126 | V110: 23.77987126 | X110: 2002-12-26 | Y110: 19787.93721 | Z110: 22310.42914 | AA110: 22403.55666 | AB110: -0.004156818632 | AF110: 0.2738127039 | AG110: -0.158190206
A111: 44 | B111: 2002-12-27 | D111: =VLOOKUP(B112,'P123'!N:T,$C$5) -> TLT | E111: 88.71441805 | F111: 89.28946398 | G111: 254 | H111: 1.494 | I111: 1.94 | J111: 1 | K111: 1 | L111: 0 | M111: 0 | N111: 0 | O111: 0 | P111: 0 | Q111: 0 | R111: 0 | T111: 23.77987126 | U111: 23.77987126 | V111: 23.77987126 | X111: 2002-12-27 | Y111: 19796.19939 | Z111: 22559.90534 | AA111: 22559.90534 | AB111: 0 | AF111: 0.2705314194 | AG111: -0.1619944587
A112: 45 | B112: 2002-12-30 | D112: =VLOOKUP(B113,'P123'!N:T,$C$5) -> TLT | E112: 88.61421763 | F112: 86.33043295 | G112: 254 | H112: 1.94 | I112: 1.94 | J112: 1 | K112: 1 | L112: 0 | M112: 0 | N112: 0 | O112: 0 | P112: 0 | Q112: 0 | R112: 0 | T112: 23.77987126 | U112: 23.77987126 | V112: 23.77987126 | X112: 2002-12-30 | Y112: 19350.04131 | Z112: 22557.24206 | AA112: 22557.24206 | AB112: 0 | AF112: 0.2678320075 | AG112: -0.1452015586
A113: 46 | B113: 2002-12-31 | D113: =VLOOKUP(B114,'P123'!N:T,$C$5) -> TLT | E113: 87.77282825 | F113: 85.86887056 | G113: 254 | H113: 1.94 | I113: 1.94 | J113: 1 | K113: 1 | L113: 0 | M113: 0 | N113: 0.446 | O113: 113.284 | P113: 0 | Q113: 0 | R113: 0 | T113: 23.77987126 | U113: 23.77987126 | V113: 23.77987126 | X113: 2002-12-31 | Y113: 19512.53098 | Z113: 22531.79115 | AA113: 22559.90534 | AB113: -0.0012462017 | AF113: 0.2675144048 | AG113: -0.1490216568
A114: 47 | B114: 2003-01-02 | D114: =VLOOKUP(B115,'P123'!N:T,$C$5) -> TLT | E114: 86.165595 | F114: 85.83970502 | G114: 254 | H114: 1.94 | I114: 1.94 | J114: 1 | K114: 1 | L114: 0 | M114: 0 | N114: 0 | O114: 0 | P114: 0 | Q114: 0 | R114: 0 | T114: 23.77987126 | U114: 23.77987126 | V114: 23.77987126 | X114: 2003-01-02 | Y114: 19540.07161 | Z114: 22318.07825 | AA114: 22557.24206 | AB114: -0.01060252887 | AF114: 0.2609860675 | AG114: -0.1414219838
A115: 48 | B115: 2003-01-03 | D115: =VLOOKUP(B116,'P123'!N:T,$C$5) -> TLT | E115: 85.82237931 | F115: 86.61707834 | G115: 254 | H115: 1.94 | I115: 1.94 | J115: 1 | K115: 1 | L115: 0 | M115: 0 | N115: 0 | O115: 0 | P115: 0 | Q115: 0 | R115: 0 | T115: 23.77987126 | U115: 23.77987126 | V115: 23.77987126 | X115: 2003-01-03 | Y115: 20167.9978 | Z115: 21909.841 | AA115: 22559.90534 | AB115: -0.02881502959 | AF115: 0.271830539 | AG115: -0.1449970459
A116: 49 | B116: 2003-01-06 | D116: =VLOOKUP(B117,'P123'!N:T,$C$5) -> TLT | E116: 86.28465838 | F116: 86.90276774 | G116: 254 | H116: 1.94 | I116: 1.94 | J116: 1 | K116: 1 | L116: 0 | M116: 0 | N116: 0 | O116: 0 | P116: 0 | Q116: 0 | R116: 0 | T116: 23.77987126 | U116: 23.77987126 | V116: 23.77987126 | X116: 2003-01-06 | Y116: 20228.58717 | Z116: 21822.66422 | AA116: 22557.24206 | AB116: -0.03256505552 | AF116: 0.2680605729 | AG116: -0.1451945153
A117: 50 | B117: 2003-01-07 | D117: =VLOOKUP(B118,'P123'!N:T,$C$5) -> TLT | E117: 87.0988738 | F117: 85.1404164 | G117: 254 | H117: 1.94 | I117: 1.94 | J117: 1 | K117: 1 | L117: 0 | M117: 0 | N117: 0 | O117: 0 | P117: 0 | Q117: 0 | R117: 0 | T117: 23.77987126 | U117: 23.77987126 | V117: 23.77987126 | X117: 2003-01-07 | Y117: 20586.61526 | Z117: 21940.0831 | AA117: 22559.90534 | AB117: -0.02747450552 | AF117: 0.2664282852 | AG117: -0.1415983432
A118: 51 | B118: 2003-01-08 | D118: =VLOOKUP(B119,'P123'!N:T,$C$5) -> TLT | E118: 85.9131732 | F118: 85.90329449 | G118: 254 | H118: 1.94 | I118: 1.94 | J118: 1 | K118: 1 | L118: 0 | M118: 0 | N118: 0 | O118: 0 | P118: 0 | Q118: 0 | R118: 0 | T118: 23.77987126 | U118: 23.77987126 | V118: 23.77987126 | X118: 2003-01-08 | Y118: 20534.28807 | Z118: 22146.89382 | AA118: 22557.24206 | AB118: -0.01819141886 | AF118: 0.2776141126 | AG118: -0.1445768919
A119: 52 | B119: 2003-01-09 | D119: =VLOOKUP(B120,'P123'!N:T,$C$5) -> TLT | E119: 85.68882347 | F119: 85.46557993 | G119: 254 | H119: 1.94 | I119: 1.94 | J119: 1 | K119: 1 | L119: 0 | M119: 0 | N119: 0 | O119: 0 | P119: 0 | Q119: 0 | R119: 0 | T119: 23.77987126 | U119: 23.77987126 | V119: 23.77987126 | X119: 2003-01-09 | Y119: 20239.60342 | Z119: 21845.72586 | AA119: 22559.90534 | AB119: -0.03165702464 | AF119: 0.2692015981 | AG119: -0.1469806198
A120: 53 | B120: 2003-01-10 | D120: =VLOOKUP(B121,'P123'!N:T,$C$5) -> TLT | E120: 85.4565624 | F120: 86.06923045 | G120: 254 | H120: 1.94 | I120: 1.94 | J120: 1 | K120: 1 | L120: 0 | M120: 0 | N120: 0 | O120: 0 | P120: 0 | Q120: 0 | R120: 0 | T120: 23.77987126 | U120: 23.77987126 | V120: 23.77987126 | X120: 2003-01-10 | Y120: 20553.56651 | Z120: 21788.74103 | AA120: 22557.24206 | AB120: -0.03406892662 | AF120: 0.27349951 | AG120: -0.1593266565
A121: 54 | B121: 2003-01-13 | D121: =VLOOKUP(B122,'P123'!N:T,$C$5) -> TLT | E121: 86.22630721 | F121: 86.58587145 | G121: 254 | H121: 1.94 | I121: 1.94 | J121: 1 | K121: 1 | L121: 0 | M121: 0 | N121: 0 | O121: 0 | P121: 0 | Q121: 0 | R121: 0 | T121: 23.77987126 | U121: 23.77987126 | V121: 23.77987126 | X121: 2003-01-13 | Y121: 20608.64776 | Z121: 21729.74672 | AA121: 22559.90534 | AB121: -0.03679796568 | AF121: 0.2735210923 | AG121: -0.1526307427
A122: 55 | B122: 2003-01-14 | D122: =VLOOKUP(B123,'P123'!N:T,$C$5) -> TLT | E122: 86.2959841 | F122: 86.21199187 | G122: 254 | H122: 1.94 | I122: 1.94 | J122: 1 | K122: 1 | L122: 0 | M122: 0 | N122: 0 | O122: 0 | P122: 0 | Q122: 0 | R122: 0 | T122: 23.77987126 | U122: 23.77987126 | V122: 23.77987126 | X122: 2003-01-14 | Y122: 20603.13963 | Z122: 21925.2619 | AA122: 22557.24206 | AB122: -0.02801672967 | AF122: 0.2679247764 | AG122: -0.1425442407
A123: 56 | B123: 2003-01-15 | D123: =VLOOKUP(B124,'P123'!N:T,$C$5) -> TLT | E123: 85.9908865 | F123: 87.04794035 | G123: 254 | H123: 1.94 | I123: 1.94 | J123: 1 | K123: 1 | L123: 0 | M123: 0 | N123: 0 | O123: 0 | P123: 0 | Q123: 0 | R123: 0 | T123: 23.77987126 | U123: 23.77987126 | V123: 23.77987126 | X123: 2003-01-15 | Y123: 20669.23712 | Z123: 21942.95983 | AA123: 22559.90534 | AB123: -0.02734699019 | AF123: 0.26198866 | AG123: -0.1543908739
A124: 57 | B124: 2003-01-16 | D124: =VLOOKUP(B125,'P123'!N:T,$C$5) -> TLT | E124: 87.04703187 | F124: 86.96314872 | G124: 254 | H124: 1.94 | I124: 1.94 | J124: 1 | K124: 1 | L124: 0 | M124: 0 | N124: 0 | O124: 0 | P124: 0 | Q124: 0 | R124: 0 | T124: 23.77987126 | U124: 23.77987126 | V124: 23.77987126 | X124: 2003-01-16 | Y124: 20462.68246 | Z124: 21865.46504 | AA124: 22557.24206 | AB124: -0.03066762377 | AF124: 0.2680998302 | AG124: -0.1440419417
A125: 58 | B125: 2003-01-17 | D125: =VLOOKUP(B126,'P123'!N:T,$C$5) -> TLT | E125: 87.15167509 | F125: 87.6069981 | G125: 254 | H125: 1.94 | I125: 1.94 | J125: 1 | K125: 1 | L125: 0 | M125: 0 | N125: 0 | O125: 0 | P125: 0 | Q125: 0 | R125: 0 | T125: 23.77987126 | U125: 23.77987126 | V125: 23.77987126 | X125: 2003-01-17 | Y125: 20377.30653 | Z125: 22133.72597 | AA125: 22559.90534 | AB125: -0.01889100903 | AF125: 0.2737218722 | AG125: -0.1595226588
A126: 59 | B126: 2003-01-21 | D126: =VLOOKUP(B127,'P123'!N:T,$C$5) -> TLT | E126: 87.89499477 | F126: 87.69983839 | G126: 255 | H126: 1.94 | I126: 1.94 | J126: 1 | K126: 1 | L126: 0 | M126: 0 | N126: 0 | O126: 0 | P126: 0 | Q126: 0 | R126: 0 | T126: 23.77987126 | U126: 23.77987126 | V126: 23.77987126 | X126: 2003-01-21 | Y126: 20077.11374 | Z126: 22160.30534 | AA126: 22557.24206 | AB126: -0.0175968636 | AF126: 0.2680517469 | AG126: -0.1524773537
A127: 60 | B127: 2003-01-22 | D127: =VLOOKUP(B128,'P123'!N:T,$C$5) -> TLT | E127: 87.6430268 | F127: 88.08262269 | G127: 255 | H127: 1.94 | I127: 1.94 | J127: 1 | K127: 1 | L127: 0 | M127: 0 | N127: 0 | O127: 0 | P127: 113.284 | Q127: 1 | R127: 97.89499477 | T127: 23.77987126 | U127: 137.0638713 | V127: 39.16887649 | X127: 2003-01-22 | Y127: 19765.90471 | Z127: 22452.39254 | AA127: 22559.90534 | AB127: -0.00476565833 | AF127: 0.2685134422 | AG127: -0.148486463
A128: 61 | B128: 2003-01-23 | D128: =VLOOKUP(B129,'P123'!N:T,$C$5) -> TLT | E128: 88.18282335 | F128: 87.65559527 | G128: 255 | H128: 1.94 | I128: 1.94 | J128: 1 | K128: 1 | L128: 0 | M128: 0 | N128: 0 | O128: 0 | P128: 0 | Q128: 0 | R128: 0 | T128: 39.16887649 | U128: 39.16887649 | V128: 39.16887649 | X128: 2003-01-23 | Y128: 19526.30129 | Z128: 22388.14071 | AA128: 22557.24206 | AB128: -0.007496543431 | AF128: 0.2730947821 | AG128: -0.1494728219
A129: 62 | B129: 2003-01-24 | D129: =VLOOKUP(B130,'P123'!N:T,$C$5) -> TLT | E129: 87.79179607 | F129: 87.7798191 | G129: 255 | H129: 1.94 | I129: 1.94 | J129: 1 | K129: 1 | L129: 0 | M129: 0 | N129: 0 | O129: 0 | P129: 0 | Q129: 0 | R129: 0 | T129: 39.16887649 | U129: 39.16887649 | V129: 39.16887649 | X129: 2003-01-24 | Y129: 19644.72597 | Z129: 22525.78883 | AA129: 22559.90534 | AB129: -0.001512263088 | AF129: 0.2742454802 | AG129: -0.151428807
A130: 63 | B130: 2003-01-27 | D130: =VLOOKUP(B131,'P123'!N:T,$C$5) -> TLT | E130: 87.31868386 | F130: 87.59172885 | G130: 255 | H130: 1.94 | I130: 1.94 | J130: 1 | K130: 1 | L130: 0 | M130: 0 | N130: 0 | O130: 0 | P130: 0 | Q130: 0 | R130: 0 | T130: 39.16887649 | U130: 39.16887649 | V130: 39.16887649 | X130: 2003-01-27 | Y130: 19129.71633 | Z130: 22426.07687 | AA130: 22557.24206 | AB130: -0.005814770301 | AF130: 0.2764087293 | AG130: -0.1433580226
A131: 64 | B131: 2003-01-28 | D131: =VLOOKUP(B132,'P123'!N:T,$C$5) -> TLT | E131: 87.78036935 | F131: 87.45845493 | G131: 255 | H131: 1.94 | I131: 1.94 | J131: 1 | K131: 1 | L131: 0 | M131: 0 | N131: 0 | O131: 0 | P131: 0 | Q131: 0 | R131: 0 | T131: 39.16887649 | U131: 39.16887649 | V131: 39.16887649 | X131: 2003-01-28 | Y131: 18868.08042 | Z131: 22305.43326 | AA131: 22559.90534 | AB131: -0.01127983815 | AF131: 0.2675770331 | AG131: -0.1459415953
A132: 65 | B132: 2003-01-29 | D132: =VLOOKUP(B133,'P123'!N:T,$C$5) -> TLT | E132: 87.76204341 | F132: 87.74730912 | G132: 255 | H132: 1.94 | I132: 1.94 | J132: 1 | K132: 1 | L132: 0 | M132: 0 | N132: 0 | O132: 0 | P132: 0 | Q132: 0 | R132: 0 | T132: 39.16887649 | U132: 39.16887649 | V132: 39.16887649 | X132: 2003-01-29 | Y132: 19008.53759 | Z132: 22423.16306 | AA132: 22557.24206 | AB132: -0.005943944526 | AF132: 0.2727996645 | AG132: -0.155871642
A133: 66 | B133: 2003-01-30 | D133: =VLOOKUP(B134,'P123'!N:T,$C$5) -> TLT | E133: 87.72405068 | F133: 87.35572189 | G133: 255 | H133: 1.94 | I133: 2.248 | J133: 1 | K133: 1 | L133: 0 | M133: 0 | N133: 0 | O133: 0 | P133: 0 | Q133: 0 | R133: 0 | T133: 39.16887649 | U133: 39.16887649 | V133: 39.16887649 | X133: 2003-01-30 | Y133: 19151.74883 | Z133: 22418.48995 | AA133: 22559.90534 | AB133: -0.006268439281 | AF133: 0.2719781621 | AG133: -0.1467984804
A134: 67 | B134: 2003-01-31 | D134: =VLOOKUP(B135,'P123'!N:T,$C$5) -> TLT | E134: 87.40423457 | F134: 88.17353715 | G134: 255 | H134: 2.248 | I134: 2.248 | J134: 1 | K134: 1 | L134: 0 | M134: 0 | N134: 0 | O134: 0 | P134: 0 | Q134: 0 | R134: 0 | T134: 39.16887649 | U134: 39.16887649 | V134: 39.16887649 | X134: 2003-01-31 | Y134: 18697.32856 | Z134: 22408.8018 | AA134: 22557.24206 | AB134: -0.00658060301 | AF134: 0.2700824582 | AG134: -0.1428518725
A135: =IF(D134=D135,A134+1,1) -> 68 | B135: 2003-02-03 | D135: =VLOOKUP(B136,'P123'!N:T,$C$5) -> TLT | E135: 88.16720791 | F135: 88.29807956 | G135: 255 | H135: 2.248 | I135: 2.248 | J135: =IF(D134=D135,J134,VLOOKUP(B136,INDIRECT(D135&"!A:q"),J$2)) -> 1 | K135: =IF(D134=D135,K134,VLOOKUP(B137,INDIRECT(D135&"!A:q"),K$2)) -> 1 | L135: 0 | M135: 0 | N135: 0.308 | O135: 78.54 | P135: =IF(ROW()>P$5+7,INDIRECT(P$2&ROW()-P$5),0) -> 0 | Q135: 0 | R135: 0 | T135: 39.16887649 | U135: 39.16887649 | V135: 39.16887649 | X135: =B135 -> 2003-02-03 | Y135: 19058.11071 | Z135: 22327.24869 | AA135: 22559.90534 | AB135: -0.0103128381 | AF135: 0.2712170483 | AG135: -0.1436754143
A136: 69 | B136: =INDIRECT(B$5&ROW()) -> 2003-02-04 | D136: =VLOOKUP(B137,'P123'!N:T,$C$5) -> TLT | E136: =RAND()*(VLOOKUP(B137,INDIRECT(D136&"!A:q"),E$1)-VLOOKUP(B137,INDIRECT(D136&"!A:q"),E$2))+VLOOKUP(B137,INDIRECT(D136&"!A:q"),E$2) -> 87.82082394 | F136: =RAND()*(VLOOKUP(B138,INDIRECT(D136&"!A:q"),F$1)-VLOOKUP(B138,INDIRECT(D136&"!A:q"),F$2))+VLOOKUP(B138,INDIRECT(D136&"!A:q"),F$2) -> 87.96918848 | G136: =IF(D136=D135,G135,INT((T137*(1-L$1)-L$2)/E136))+Q137 -> 255 | H136: =VLOOKUP(B137,INDIRECT(D136&"!A:q"),H$2) -> 2.248 | I136: 2.248 | J136: 1 | K136: 1 | L136: =IF(D134=D135,0,G135*E135*(1+L$1)+$L$2) -> 0 | M136: 0 | N136: 0 | O136: 0 | P136: 0 | Q136: 0 | R136: 0 | T136: =V135+M136 -> 39.16887649 | U136: =T136+P136 -> 39.16887649 | V136: =U136-L136-R136 -> 39.16887649 | X136: 2003-02-04 | Y136: =VLOOKUP(X135,INDIRECT(Y$3&"!A:R"),7)*$Y$1 -> 19096.66758 | Z136: =E135*G135+V136 -> 22521.80689 | AA136: =IF(Z136>AA134,Z136,AA134) -> 22557.24206 | AB136: =Z136/AA136-1 -> -0.001570899543 | AF136: 0.2812847885 | AG136: -0.1454810095
A137: 70 | B137: 2003-02-05 | D137: =VLOOKUP(B138,'P123'!N:T,$C$5) -> TLT | E137: 87.99857331 | F137: 88.24420338 | G137: 255 | H137: 2.248 | I137: 2.248 | J137: 1 | K137: 1 | L137: 0 | M137: =IF(D135=D136,0,(K135/J135)*G135*F135/(1+$M$1)-$L$2) -> 0 | N137: =IF(I135<>H135,I135-H135,0) -> 0 | O137: =G135*N137 -> 0 | P137: 0 | Q137: =IF(AND(U137>Q$4,D136=D135),INT((U137*(1-L$1)-L$2)/E136),0) -> 0 | R137: 0 | T137: 39.16887649 | U137: 39.16887649 | V137: 39.16887649 | X137: 2003-02-05 | Y137: 18906.63729 | Z137: 22433.47898 | AA137: 22559.90534 | AB137: -0.005604028843 | AF137: 0.2700477838 | AG137: -0.1436104415
A138: 71 | B138: 2003-02-06 | D138: =VLOOKUP(B139,'P123'!N:T,$C$5) -> TLT | E138: 88.17152576 | F138: 87.74565192 | G138: 255 | H138: 2.248 | I138: 2.248 | J138: 1 | K138: 1 | L138: 0 | M138: 0 | N138: 0 | O138: 0 | P138: 0 | Q138: 0 | R138: =IF(Q138>0,Q138*E137+$L$2,0) -> 0 | T138: 39.16887649 | U138: 39.16887649 | V138: 39.16887649 | X138: 2003-02-06 | Y138: 18790.96668 | Z138: 22478.80507 | AA138: 22557.24206 | AB138: -0.003477241764 | AF138: 0.2693794426 | AG138: -0.1394199095
A139: 72 | B139: 2003-02-07 | D139: =VLOOKUP(B140,'P123'!N:T,$C$5) -> TLT | E139: 87.77793682 | F139: 87.78303479 | G139: 255 | H139: 2.248 | I139: 2.248 | J139: 1 | K139: 1 | L139: 0 | M139: 0 | N139: 0 | O139: 0 | P139: 0 | Q139: 0 | R139: 0 | T139: 39.16887649 | U139: 39.16887649 | V139: 39.16887649 | X139: 2003-02-07 | Y139: 18702.83668 | Z139: 22522.90794 | AA139: 22559.90534 | AB139: -0.001639962448 | AF139: 0.2717398304 | AG139: -0.1565434789
A140: 73 | B140: 2003-02-10 | D140: =VLOOKUP(B141,'P123'!N:T,$C$5) -> TLT | E140: 87.55904121 | F140: 88.03607207 | G140: 255 | H140: 2.248 | I140: 2.248 | J140: 1 | K140: 1 | L140: 0 | M140: 0 | N140: 0 | O140: 0 | P140: 0 | Q140: 0 | R140: 0 | T140: 39.16887649 | U140: 39.16887649 | V140: 39.16887649 | X140: 2003-02-10 | Y140: 18474.24952 | Z140: 22422.54277 | AA140: 22557.24206 | AB140: -0.005971443203 | AF140: 0.2701069247 | AG140: -0.1482798566
A141: 74 | B141: 2003-02-11 | D141: =VLOOKUP(B142,'P123'!N:T,$C$5) -> TLT | E141: 87.81653104 | F141: 88.49514963 | G141: 255 | H141: 2.248 | I141: 2.248 | J141: 1 | K141: 1 | L141: 0 | M141: 0 | N141: 0 | O141: 0 | P141: 0 | Q141: 0 | R141: 0 | T141: 39.16887649 | U141: 39.16887649 | V141: 39.16887649 | X141: 2003-02-11 | Y141: 18603.69044 | Z141: 22366.72438 | AA141: 22559.90534 | AB141: -0.008563021636 | AF141: 0.2736338853 | AG141: -0.1481118177
A142: 75 | B142: 2003-02-12 | D142: =VLOOKUP(B143,'P123'!N:T,$C$5) -> TLT | E142: 88.85324589 | F142: 87.62561004 | G142: 255 | H142: 2.248 | I142: 2.248 | J142: 1 | K142: 1 | L142: 0 | M142: 0 | N142: 0 | O142: 0 | P142: 0 | Q142: 0 | R142: 0 | T142: 39.16887649 | U142: 39.16887649 | V142: 39.16887649 | X142: 2003-02-12 | Y142: 18477.00358 | Z142: 22432.38429 | AA142: 22557.24206 | AB142: -0.005535152065 | AF142: 0.2713339384 | AG142: -0.1523554664
A143: 76 | B143: 2003-02-13 | D143: =VLOOKUP(B144,'P123'!N:T,$C$5) -> TLT | E143: 87.95682494 | F143: 87.61508408 | G143: 255 | H143: 2.248 | I143: 2.248 | J143: 1 | K143: 1 | L143: 0 | M143: 0 | N143: 0 | O143: 0 | P143: 0 | Q143: 0 | R143: 0 | T143: 39.16887649 | U143: 39.16887649 | V143: 39.16887649 | X143: 2003-02-13 | Y143: 18182.31892 | Z143: 22696.74658 | AA143: 22696.74658 | AB143: 0 | AF143: 0.2797866208 | AG143: -0.1494907527
A144: 77 | B144: 2003-02-14 | D144: =VLOOKUP(B145,'P123'!N:T,$C$5) -> TLT | E144: 87.4695355 | F144: 88.5867958 | G144: 255 | H144: 2.248 | I144: 2.248 | J144: 1 | K144: 1 | L144: 0 | M144: 0 | N144: 0 | O144: 0 | P144: 0 | Q144: 0 | R144: 0 | T144: 39.16887649 | U144: 39.16887649 | V144: 39.16887649 | X144: 2003-02-14 | Y144: 18237.40017 | Z144: 22468.15924 | AA144: 22557.24206 | AB144: -0.003949189313 | AF144: 0.271933175 | AG144: -0.1377620009
A145: 78 | B145: 2003-02-18 | D145: =VLOOKUP(B146,'P123'!N:T,$C$5) -> TLT | E145: 88.28021846 | F145: 88.51518721 | G145: 255 | H145: 2.248 | I145: 2.248 | J145: 1 | K145: 1 | L145: 0 | M145: 0 | N145: 0 | O145: 0 | P145: 0 | Q145: 0 | R145: 0 | T145: 39.16887649 | U145: 39.16887649 | V145: 39.16887649 | X145: 2003-02-18 | Y145: 18633.98513 | Z145: 22343.90043 | AA145: 22696.74658 | AB145: -0.01554611133 | AF145: 0.2665060091 | AG145: -0.1530850019
A146: 79 | B146: 2003-02-19 | D146: =VLOOKUP(B147,'P123'!N:T,$C$5) -> TLT | E146: 88.55233726 | F146: 88.66130402 | G146: 255 | H146: 2.248 | I146: 2.248 | J146: 1 | K146: 1 | L146: 0 | M146: 0 | N146: 0 | O146: 0 | P146: 0 | Q146: 0 | R146: 0 | T146: 39.16887649 | U146: 39.16887649 | V146: 39.16887649 | X146: 2003-02-19 | Y146: 18961.71853 | Z146: 22550.62458 | AA146: 22557.24206 | AB146: -0.0002933635403 | AF146: 0.2724480346 | AG146: -0.1614480826
A147: 80 | B147: 2003-02-20 | D147: =VLOOKUP(B148,'P123'!N:T,$C$5) -> TLT | E147: 88.34323276 | F147: 88.66921331 | G147: 255 | H147: 2.248 | I147: =VLOOKUP(B149,INDIRECT(D147&"!A:q"),H$2) -> 2.248 | J147: 1 | K147: 1 | L147: 0 | M147: 0 | N147: 0 | O147: 0 | P147: 0 | Q147: 0 | R147: 0 | T147: 39.16887649 | U147: 39.16887649 | V147: 39.16887649 | X147: 2003-02-20 | Y147: 18862.57229 | Z147: 22620.01488 | AA147: 22696.74658 | AB147: -0.00338073562 | AF147: 0.2741064464 | AG147: -0.1442019335
A148: 81 | B148: 2003-02-21 | D148: =VLOOKUP(B149,'P123'!N:T,$C$5) -> TLT | E148: 88.73625486 | F148: 89.42400523 | G148: 256 | H148: 2.248 | I148: 2.248 | J148: 1 | K148: 1 | L148: 0 | M148: 0 | N148: 0 | O148: 0 | P148: 0 | Q148: 0 | R148: 0 | T148: 39.16887649 | U148: 39.16887649 | V148: 39.16887649 | X148: 2003-02-21 | Y148: 18675.29606 | Z148: 22566.69323 | AA148: 22566.69323 | AB148: 0 | AF148: 0.2700848259 | AG148: -0.144383985
A149: 82 | B149: 2003-02-24 | D149: =VLOOKUP(B150,'P123'!N:T,$C$5) -> TLT | E149: 89.15692131 | F149: 89.18040647 | G149: 256 | H149: 2.248 | I149: 2.248 | J149: 1 | K149: 1 | L149: 0 | M149: 0 | N149: 0 | O149: 0 | P149: 78.54 | Q149: 1 | R149: 98.73625486 | T149: 39.16887649 | U149: 117.7088765 | V149: 18.97262163 | X149: 2003-02-24 | Y149: 18862.57229 | Z149: 22735.45387 | AA149: 22735.45387 | AB149: 0 | AF149: 0.2782765243 | AG149: -0.1411790136
A150: 83 | B150: 2003-02-25 | D150: =VLOOKUP(B151,'P123'!N:T,$C$5) -> TLT | E150: 89.71534103 | F150: 89.65028339 | G150: 256 | H150: 2.248 | I150: 2.248 | J150: 1 | K150: 1 | L150: 0 | M150: 0 | N150: 0 | O150: 0 | P150: 0 | Q150: 0 | R150: 0 | T150: 18.97262163 | U150: 18.97262163 | V150: 18.97262163 | X150: 2003-02-25 | Y150: 18556.87139 | Z150: 22843.14448 | AA150: 22843.14448 | AB150: 0 | AF150: 0.2721397321 | AG150: -0.1423241668
A151: 84 | B151: 2003-02-26 | D151: =VLOOKUP(B152,'P123'!N:T,$C$5) -> TLT | E151: 89.39427956 | F151: 90.53723743 | G151: 256 | H151: 2.248 | I151: 2.248 | J151: 1 | K151: 1 | L151: 0 | M151: 0 | N151: 0 | O151: 0 | P151: 0 | Q151: 0 | R151: 0 | T151: 18.97262163 | U151: 18.97262163 | V151: 18.97262163 | X151: 2003-02-26 | Y151: 18705.59075 | Z151: 22986.09993 | AA151: 22986.09993 | AB151: 0 | AF151: 0.2711559026 | AG151: -0.1646423443
A152: 85 | B152: 2003-02-27 | D152: =VLOOKUP(B153,'P123'!N:T,$C$5) -> TLT | E152: 89.81389935 | F152: 90.22663715 | G152: 256 | H152: 2.248 | I152: 2.588 | J152: 1 | K152: 1 | L152: 0 | M152: 0 | N152: 0 | O152: 0 | P152: 0 | Q152: 0 | R152: 0 | T152: 18.97262163 | U152: 18.97262163 | V152: 18.97262163 | X152: 2003-02-27 | Y152: 18432.93858 | Z152: 22903.90819 | AA152: 22903.90819 | AB152: 0 | AF152: 0.2690417726 | AG152: -0.1576950721
A153: 1 | B153: 2003-02-28 | D153: =VLOOKUP(B154,'P123'!N:T,$C$5) -> SPY | E153: 84.82223336 | F153: 83.61136709 | G153: 272 | H153: 0.814 | I153: 0.814 | J153: 1 | K153: 1 | L153: 0 | M153: 0 | N153: 0 | O153: 0 | P153: 0 | Q153: 0 | R153: 0 | T153: 18.97262163 | U153: 18.97262163 | V153: 18.97262163 | X153: 2003-02-28 | Y153: 18678.05012 | Z153: 23011.33085 | AA153: 23011.33085 | AB153: 0 | AF153: 0.2717951764 | AG153: -0.1440591679
A154: 2 | B154: 2003-03-03 | D154: =VLOOKUP(B155,'P123'!N:T,$C$5) -> SPY | E154: 83.90230574 | F154: 83.07632982 | G154: 272 | H154: 0.814 | I154: 0.814 | J154: 1 | K154: 1 | L154: 23081.64748 | M154: 23088.01911 | N154: 0.34 | O154: 87.04 | P154: 0 | Q154: 0 | R154: 0 | T154: 23106.99173 | U154: 23106.99173 | V154: 25.34425581 | X154: 2003-03-03 | Y154: 18801.98292 | Z154: 23096.99173 | AA154: 23096.99173 | AB154: 0 | AF154: 0.2754855591 | AG154: -0.151966976
A155: 3 | B155: 2003-03-04 | D155: =VLOOKUP(B156,'P123'!N:T,$C$5) -> SPY | E155: 83.24018598 | F155: 82.89102583 | G155: 272 | H155: 0.814 | I155: 0.814 | J155: 1 | K155: 1 | L155: 0 | M155: 0 | N155: 0 | O155: 0 | P155: 0 | Q155: 0 | R155: 0 | T155: 25.34425581 | U155: 25.34425581 | V155: 25.34425581 | X155: 2003-03-04 | Y155: 18622.96888 | Z155: 22846.77142 | AA155: 23011.33085 | AB155: -0.007151235129 | AF155: 0.2757337996 | AG155: -0.1502184339
A156: 4 | B156: 2003-03-05 | D156: =VLOOKUP(B157,'P123'!N:T,$C$5) -> SPY | E156: 82.53109384 | F156: 81.69371154 | G156: 272 | H156: 0.814 | I156: 0.814 | J156: 1 | K156: 1 | L156: 0 | M156: 0 | N156: 0 | O156: 0 | P156: 0 | Q156: 0 | R156: 0 | T156: 25.34425581 | U156: 25.34425581 | V156: 25.34425581 | X156: 2003-03-05 | Y156: 18325.53016 | Z156: 22666.67484 | AA156: 23096.99173 | AB156: -0.01863086294 | AF156: 0.2704410847 | AG156: -0.1362340602
A157: 5 | B157: 2003-03-06 | D157: =VLOOKUP(B158,'P123'!N:T,$C$5) -> SPY | E157: 83.59262262 | F157: 82.17558848 | G157: 272 | H157: 0.814 | I157: 0.814 | J157: 1 | K157: 1 | L157: 0 | M157: 0 | N157: 0 | O157: 0 | P157: 0 | Q157: 0 | R157: 0 | T157: 25.34425581 | U157: 25.34425581 | V157: 25.34425581 | X157: 2003-03-06 | Y157: 18479.75764 | Z157: 22473.80178 | AA157: 23011.33085 | AB157: -0.02335932148 | AF157: 0.2728113749 | AG157: -0.1495028465
A158: 6 | B158: 2003-03-07 | D158: =VLOOKUP(B159,'P123'!N:T,$C$5) -> SPY | E158: 82.27870383 | F158: 81.18358151 | G158: 272 | H158: 0.814 | I158: 0.814 | J158: 1 | K158: 1 | L158: 0 | M158: 0 | N158: 0 | O158: 0 | P158: 0 | Q158: 0 | R158: 0 | T158: 25.34425581 | U158: 25.34425581 | V158: 25.34425581 | X158: 2003-03-07 | Y158: 18325.53016 | Z158: 22762.53761 | AA158: 23096.99173 | AB158: -0.01448041924 | AF158: 0.2684003884 | AG158: -0.1519076654
A159: 7 | B159: 2003-03-10 | D159: =VLOOKUP(B160,'P123'!N:T,$C$5) -> SPY | E159: 81.99929197 | F159: 80.86959913 | G159: 272 | H159: 0.814 | I159: 0.814 | J159: 1 | K159: 1 | L159: 0 | M159: 0 | N159: 0 | O159: 0 | P159: 0 | Q159: 0 | R159: 0 | T159: 25.34425581 | U159: 25.34425581 | V159: 25.34425581 | X159: 2003-03-10 | Y159: 18452.21702 | Z159: 22405.1517 | AA159: 23011.33085 | AB159: -0.02634263793 | AF159: 0.2695495247 | AG159: -0.1452002258
A160: 8 | B160: 2003-03-11 | D160: =VLOOKUP(B161,'P123'!N:T,$C$5) -> SPY | E160: 80.278015 | F160: 83.68949328 | G160: 272 | H160: 0.814 | I160: 0.814 | J160: 1 | K160: 1 | L160: 0 | M160: 0 | N160: 0 | O160: 0 | P160: 0 | Q160: 0 | R160: 0 | T160: 25.34425581 | U160: 25.34425581 | V160: 25.34425581 | X160: 2003-03-11 | Y160: 18008.813 | Z160: 22329.15167 | AA160: 23096.99173 | AB160: -0.03324415874 | AF160: 0.270409343 | AG160: -0.1422520956
A161: 9 | B161: 2003-03-12 | D161: =VLOOKUP(B162,'P123'!N:T,$C$5) -> SPY | E161: 82.1343598 | F161: 83.82276894 | G161: 272 | H161: 0.814 | I161: 0.814 | J161: 1 | K161: 1 | L161: 0 | M161: 0 | N161: 0 | O161: 0 | P161: 0 | Q161: 0 | R161: 0 | T161: 25.34425581 | U161: 25.34425581 | V161: 25.34425581 | X161: 2003-03-12 | Y161: 17832.55302 | Z161: 21860.96434 | AA161: 23011.33085 | AB161: -0.04999130761 | AF161: 0.2626141299 | AG161: -0.1473584091
A162: 10 | B162: 2003-03-13 | D162: =VLOOKUP(B163,'P123'!N:T,$C$5) -> SPY | E162: 84.00231161 | F162: 83.22705934 | G162: 272 | H162: 0.814 | I162: 0.814 | J162: 1 | K162: 1 | L162: 0 | M162: 0 | N162: 0 | O162: 0 | P162: 0 | Q162: 0 | R162: 0 | T162: 25.34425581 | U162: 25.34425581 | V162: 25.34425581 | X162: 2003-03-13 | Y162: 17950.97769 | Z162: 22365.89012 | AA162: 23096.99173 | AB162: -0.03165354254 | AF162: 0.2732432413 | AG162: -0.145505393
A163: 11 | B163: 2003-03-14 | D163: =VLOOKUP(B164,'P123'!N:T,$C$5) -> SPY | E163: 86.74664094 | F163: 86.93917419 | G163: 272 | H163: 0.814 | I163: 0.814 | J163: 1 | K163: 1 | L163: 0 | M163: 0 | N163: 0 | O163: 0 | P163: 0 | Q163: 0 | R163: 0 | T163: 25.34425581 | U163: 25.34425581 | V163: 25.34425581 | X163: 2003-03-14 | Y163: 18570.6417 | Z163: 22873.97301 | AA163: 23011.33085 | AB163: -0.005969139404 | AF163: 0.2699036066 | AG163: -0.1477404718
A164: 12 | B164: 2003-03-17 | D164: =VLOOKUP(B165,'P123'!N:T,$C$5) -> SPY | E164: 86.8691107 | F164: 87.39055921 | G164: 272 | H164: 0.814 | I164: 0.814 | J164: 1 | K164: 1 | L164: 0 | M164: 0 | N164: 0 | O164: 0 | P164: 0 | Q164: 0 | R164: 0 | T164: 25.34425581 | U164: 25.34425581 | V164: 25.34425581 | X164: 2003-03-17 | Y164: 18631.23107 | Z164: 23620.43059 | AA164: 23620.43059 | AB164: 0 | AF164: 0.2638599832 | AG164: -0.1452411177
A165: 13 | B165: 2003-03-18 | D165: =VLOOKUP(B166,'P123'!N:T,$C$5) -> SPY | E165: 87.49512714 | F165: 88.24553248 | G165: 272 | H165: 0.814 | I165: 0.814 | J165: 1 | K165: 1 | L165: 0 | M165: 0 | N165: 0 | O165: 0 | P165: 0 | Q165: 0 | R165: 0 | T165: 25.34425581 | U165: 25.34425581 | V165: 25.34425581 | X165: 2003-03-18 | Y165: 19217.84632 | Z165: 23653.74236 | AA165: 23653.74236 | AB165: 0 | AF165: 0.2693716745 | AG165: -0.1442157451
A166: 14 | B166: 2003-03-19 | D166: =VLOOKUP(B167,'P123'!N:T,$C$5) -> SPY | E166: 86.53191696 | F166: 88.5278749 | G166: 272 | H166: 0.814 | I166: 1.168 | J166: 1 | K166: 1 | L166: 0 | M166: 0 | N166: 0 | O166: 0 | P166: 0 | Q166: 0 | R166: 0 | T166: 25.34425581 | U166: 25.34425581 | V166: 25.34425581 | X166: 2003-03-19 | Y166: 19330.76288 | Z166: 23824.01884 | AA166: 23824.01884 | AB166: 0 | AF166: 0.2759457965 | AG166: -0.1430734856
A167: 15 | B167: 2003-03-20 | D167: =VLOOKUP(B168,'P123'!N:T,$C$5) -> SPY | E167: 88.34133337 | F167: 86.81984267 | G167: 273 | H167: 1.168 | I167: 1.168 | J167: 1 | K167: 1 | L167: 0 | M167: 0 | N167: 0 | O167: 0 | P167: 0 | Q167: 0 | R167: 0 | T167: 25.34425581 | U167: 25.34425581 | V167: 25.34425581 | X167: 2003-03-20 | Y167: 19479.48224 | Z167: 23562.02567 | AA167: 23653.74236 | AB167: -0.003877470857 | AF167: 0.2756679248 | AG167: -0.1555028412
A168: 16 | B168: 2003-03-21 | D168: =VLOOKUP(B169,'P123'!N:T,$C$5) -> SPY | E168: 87.61300505 | F168: 88.20824202 | G168: 273 | H168: 1.168 | I168: 1.168 | J168: 1 | K168: 1 | L168: 0 | M168: 0 | N168: 0.354 | O168: 96.288 | P168: 87.04 | Q168: 1 | R168: 98.34133337 | T168: 25.34425581 | U168: 112.3842558 | V168: 14.04292244 | X168: 2003-03-21 | Y168: 19520.79317 | Z168: 24131.22693 | AA168: 24131.22693 | AB168: 0 | AF168: 0.2692424807 | AG168: -0.1424707034
A169: 17 | B169: 2003-03-24 | D169: =VLOOKUP(B170,'P123'!N:T,$C$5) -> SPY | E169: 87.26434592 | F169: 87.22874688 | G169: 273 | H169: 1.168 | I169: 1.168 | J169: 1 | K169: 1 | L169: 0 | M169: 0 | N169: 0 | O169: 0 | P169: 0 | Q169: 0 | R169: 0 | T169: 14.04292244 | U169: 14.04292244 | V169: 14.04292244 | X169: 2003-03-24 | Y169: 19936.65657 | Z169: 23932.3933 | AA169: 23932.3933 | AB169: 0 | AF169: 0.2791336862 | AG169: -0.1521907299
A170: 18 | B170: 2003-03-25 | D170: =VLOOKUP(B171,'P123'!N:T,$C$5) -> SPY | E170: 87.62821653 | F170: 86.68492917 | G170: 273 | H170: 1.168 | I170: 1.168 | J170: 1 | K170: 1 | L170: 0 | M170: 0 | N170: 0 | O170: 0 | P170: 0 | Q170: 0 | R170: 0 | T170: 14.04292244 | U170: 14.04292244 | V170: 14.04292244 | X170: 2003-03-25 | Y170: 19275.68163 | Z170: 23837.20936 | AA170: 24131.22693 | AB170: -0.01218411211 | AF170: 0.2662763816 | AG170: -0.1567280346
A171: 19 | B171: 2003-03-26 | D171: =VLOOKUP(B172,'P123'!N:T,$C$5) -> SPY | E171: 86.033508 | F171: 86.71743272 | G171: 273 | H171: 1.168 | I171: 1.168 | J171: 1 | K171: 1 | L171: 0 | M171: 0 | N171: 0 | O171: 0 | P171: 0 | Q171: 0 | R171: 0 | T171: 14.04292244 | U171: 14.04292244 | V171: 14.04292244 | X171: 2003-03-26 | Y171: 19460.2038 | Z171: 23936.54604 | AA171: 23936.54604 | AB171: 0 | AF171: 0.2717754584 | AG171: -0.1446843475
A172: 20 | B172: 2003-03-27 | D172: =VLOOKUP(B173,'P123'!N:T,$C$5) -> SPY | E172: 86.84820319 | F172: 85.53649733 | G172: 273 | H172: 1.168 | I172: 1.168 | J172: 1 | K172: 1 | L172: 0 | M172: 0 | N172: 0 | O172: 0 | P172: 0 | Q172: 0 | R172: 0 | T172: 14.04292244 | U172: 14.04292244 | V172: 14.04292244 | X172: 2003-03-27 | Y172: 19361.05756 | Z172: 23501.19061 | AA172: 24131.22693 | AB172: -0.0261087564 | AF172: 0.2628345461 | AG172: -0.1533408269
A173: 21 | B173: 2003-03-28 | D173: =VLOOKUP(B174,'P123'!N:T,$C$5) -> SPY | E173: 84.55944894 | F173: 85.33901171 | G173: 273 | H173: 1.168 | I173: 1.168 | J173: 1 | K173: 1 | L173: 0 | M173: 0 | N173: 0 | O173: 0 | P173: 0 | Q173: 0 | R173: 0 | T173: 14.04292244 | U173: 14.04292244 | V173: 14.04292244 | X173: 2003-03-28 | Y173: 19377.58193 | Z173: 23723.60239 | AA173: 23936.54604 | AB173: -0.008896172514 | AF173: 0.2703451026 | AG173: -0.1414288422
A174: 22 | B174: 2003-03-31 | D174: =VLOOKUP(B175,'P123'!N:T,$C$5) -> SPY | E174: 85.43829064 | F174: 88.11760317 | G174: 273 | H174: 1.168 | I174: 1.168 | J174: 1 | K174: 1 | L174: 0 | M174: 0 | N174: 0 | O174: 0 | P174: 0 | Q174: 0 | R174: 0 | T174: 14.04292244 | U174: 14.04292244 | V174: 14.04292244 | X174: 2003-03-31 | Y174: 19278.43569 | Z174: 23098.77248 | AA174: 24131.22693 | AB174: -0.04278499606 | AF174: 0.269233407 | AG174: -0.1497145359
A175: 23 | B175: 2003-04-01 | D175: =VLOOKUP(B176,'P123'!N:T,$C$5) -> SPY | E175: 88.10671145 | F175: 87.73610357 | G175: 273 | H175: 1.168 | I175: 1.168 | J175: 1 | K175: 1 | L175: 0 | M175: 0 | N175: 0 | O175: 0 | P175: 0 | Q175: 0 | R175: 0 | T175: 14.04292244 | U175: 14.04292244 | V175: 14.04292244 | X175: 2003-04-01 | Y175: 18840.5398 | Z175: 23338.69627 | AA175: 23936.54604 | AB175: -0.02497644264 | AF175: 0.2704223611 | AG175: -0.1424304809
A176: 24 | B176: 2003-04-02 | D176: =VLOOKUP(B177,'P123'!N:T,$C$5) -> SPY | E176: 87.69468307 | F176: 88.38129658 | G176: 273 | H176: 1.168 | I176: 1.168 | J176: 1 | K176: 1 | L176: 0 | M176: 0 | N176: 0 | O176: 0 | P176: 0 | Q176: 0 | R176: 0 | T176: 14.04292244 | U176: 14.04292244 | V176: 14.04292244 | X176: 2003-04-02 | Y176: 19129.71633 | Z176: 24067.17515 | AA176: 24131.22693 | AB176: -0.002654311125 | AF176: 0.2679634001 | AG176: -0.1394942327
A177: 25 | B177: 2003-04-03 | D177: =VLOOKUP(B178,'P123'!N:T,$C$5) -> SPY | E177: 88.38499624 | F177: 90.72805665 | G177: 273 | H177: 1.168 | I177: 1.168 | J177: 1 | K177: 1 | L177: 0 | M177: 0 | N177: 0 | O177: 0 | P177: 0 | Q177: 0 | R177: 0 | T177: 14.04292244 | U177: 14.04292244 | V177: 14.04292244 | X177: 2003-04-03 | Y177: 19592.39879 | Z177: 23954.6914 | AA177: 23954.6914 | AB177: 0 | AF177: 0.2792647113 | AG177: -0.1466523325
A178: 26 | B178: 2003-04-04 | D178: =VLOOKUP(B179,'P123'!N:T,$C$5) -> SPY | E178: 89.92101577 | F178: 87.90106643 | G178: 273 | H178: 1.168 | I178: 1.168 | J178: 1 | K178: 1 | L178: 0 | M178: 0 | N178: 0 | O178: 0 | P178: 0 | Q178: 0 | R178: 0 | T178: 14.04292244 | U178: 14.04292244 | V178: 14.04292244 | X178: 2003-04-04 | Y178: 19498.76067 | Z178: 24143.14689 | AA178: 24143.14689 | AB178: 0 | AF178: 0.2743802472 | AG178: -0.1571872562
A179: 27 | B179: 2003-04-07 | D179: =VLOOKUP(B180,'P123'!N:T,$C$5) -> SPY | E179: 88.32229937 | F179: 87.80874505 | G179: 273 | H179: 1.168 | I179: 1.168 | J179: 1 | K179: 1 | L179: 0 | M179: 0 | N179: 0 | O179: 0 | P179: 0 | Q179: 0 | R179: 0 | T179: 14.04292244 | U179: 14.04292244 | V179: 14.04292244 | X179: 2003-04-07 | Y179: 19614.43129 | Z179: 24562.48023 | AA179: 24562.48023 | AB179: 0 | AF179: 0.2782278868 | AG179: -0.1460010872
A180: 28 | B180: 2003-04-08 | D180: =VLOOKUP(B181,'P123'!N:T,$C$5) -> SPY | E180: 88.77306812 | F180: 87.58560107 | G180: 273 | H180: 1.168 | I180: 1.168 | J180: 1 | K180: 1 | L180: 0 | M180: 0 | N180: 0 | O180: 0 | P180: 0 | Q180: 0 | R180: 0 | T180: 14.04292244 | U180: 14.04292244 | V180: 14.04292244 | X180: 2003-04-08 | Y180: 19578.62848 | Z180: 24126.03065 | AA180: 24143.14689 | AB180: -0.0007089483904 | AF180: 0.2717300995 | AG180: -0.1424777449
A181: 29 | B181: 2003-04-09 | D181: =VLOOKUP(B182,'P123'!N:T,$C$5) -> SPY | E181: 86.52329796 | F181: 87.17800979 | G181: 274 | H181: 1.168 | I181: 1.168 | J181: 1 | K181: 1 | L181: 0 | M181: 0 | N181: 0 | O181: 0 | P181: 0 | Q181: 0 | R181: 0 | T181: 14.04292244 | U181: 14.04292244 | V181: 14.04292244 | X181: 2003-04-09 | Y181: 19608.92316 | Z181: 24249.09052 | AA181: 24562.48023 | AB181: -0.01275887882 | AF181: 0.2679801416 | AG181: -0.1387520624
A182: 30 | B182: 2003-04-10 | D182: =VLOOKUP(B183,'P123'!N:T,$C$5) -> SPY | E182: 87.91762951 | F182: 87.5865849 | G182: 274 | H182: 1.168 | I182: 1.168 | J182: 1 | K182: 1 | L182: 0 | M182: 0 | N182: 0 | O182: 0 | P182: 96.288 | Q182: 1 | R182: 96.52329796 | T182: 14.04292244 | U182: 110.3309224 | V182: 13.80762448 | X182: 2003-04-10 | Y182: 19350.04131 | Z182: 23721.19126 | AA182: 24143.14689 | AB182: -0.01747724239 | AF182: 0.2700639908 | AG182: -0.1464248323
A183: 31 | B183: 2003-04-11 | D183: =VLOOKUP(B184,'P123'!N:T,$C$5) -> SPY | E183: 88.45491892 | F183: 89.66586896 | G183: 274 | H183: 1.168 | I183: 1.168 | J183: 1 | K183: 1 | L183: 0 | M183: 0 | N183: 0 | O183: 0 | P183: 0 | Q183: 0 | R183: 0 | T183: 13.80762448 | U183: 13.80762448 | V183: 13.80762448 | X183: 2003-04-11 | Y183: 19457.44974 | Z183: 24103.23811 | AA183: 24562.48023 | AB183: -0.01869689516 | AF183: 0.2680539778 | AG183: -0.1479228686
A184: 32 | B184: 2003-04-14 | D184: =VLOOKUP(B185,'P123'!N:T,$C$5) -> SPY | E184: 89.31981433 | F184: 89.67116907 | G184: 274 | H184: 1.168 | I184: 1.168 | J184: 1 | K184: 1 | L184: 0 | M184: 0 | N184: 0 | O184: 0 | P184: 0 | Q184: 0 | R184: 0 | T184: 13.80762448 | U184: 13.80762448 | V184: 13.80762448 | X184: 2003-04-14 | Y184: 19377.58193 | Z184: 24250.45541 | AA184: 24250.45541 | AB184: 0 | AF184: 0.2656939624 | AG184: -0.1521309281
A185: 33 | B185: 2003-04-15 | D185: =VLOOKUP(B186,'P123'!N:T,$C$5) -> SPY | E185: 88.97225076 | F185: 88.75374257 | G185: 274 | H185: 1.168 | I185: 1.168 | J185: 1 | K185: 1 | L185: 0 | M185: 0 | N185: 0 | O185: 0 | P185: 0 | Q185: 0 | R185: 0 | T185: 13.80762448 | U185: 13.80762448 | V185: 13.80762448 | X185: 2003-04-15 | Y185: 19776.92096 | Z185: 24487.43675 | AA185: 24562.48023 | AB185: -0.003055207667 | AF185: 0.2727827353 | AG185: -0.1484415159
A186: 34 | B186: 2003-04-16 | D186: =VLOOKUP(B187,'P123'!N:T,$C$5) -> SPY | E186: 88.7240352 | F186: 89.96875972 | G186: 274 | H186: 1.168 | I186: 1.168 | J186: 1 | K186: 1 | L186: 0 | M186: 0 | N186: 0 | O186: 0 | P186: 0 | Q186: 0 | R186: 0 | T186: 13.80762448 | U186: 13.80762448 | V186: 13.80762448 | X186: 2003-04-16 | Y186: 19961.44313 | Z186: 24392.20433 | AA186: 24392.20433 | AB186: 0 | AF186: 0.27189653 | AG186: -0.1437510528
A187: 35 | B187: 2003-04-17 | D187: =VLOOKUP(B188,'P123'!N:T,$C$5) -> SPY | E187: 90.02612484 | F187: 90.59786295 | G187: 274 | H187: 1.168 | I187: 1.168 | J187: 1 | K187: 1 | L187: 0 | M187: 0 | N187: 0 | O187: 0 | P187: 0 | Q187: 0 | R187: 0 | T187: 13.80762448 | U187: 13.80762448 | V187: 13.80762448 | X187: 2003-04-17 | Y187: 19622.69347 | Z187: 24324.19327 | AA187: 24562.48023 | AB187: -0.009701257998 | AF187: 0.2768512448 | AG187: -0.1481249505
A188: 36 | B188: 2003-04-21 | D188: =VLOOKUP(B189,'P123'!N:T,$C$5) -> SPY | E188: 90.07551133 | F188: 91.87758918 | G188: 274 | H188: 1.168 | I188: 1.168 | J188: 1 | K188: 1 | L188: 0 | M188: 0 | N188: 0 | O188: 0 | P188: 0 | Q188: 0 | R188: 0 | T188: 13.80762448 | U188: 13.80762448 | V188: 13.80762448 | X188: 2003-04-21 | Y188: 19914.62407 | Z188: 24680.96583 | AA188: 24680.96583 | AB188: 0 | AF188: 0.2687462073 | AG188: -0.1528402967
A189: 37 | B189: 2003-04-22 | D189: =VLOOKUP(B190,'P123'!N:T,$C$5) -> SPY | E189: 91.91376711 | F189: 91.66096472 | G189: 274 | H189: 1.168 | I189: 1.168 | J189: 1 | K189: 1 | L189: 0 | M189: 0 | N189: 0 | O189: 0 | P189: 0 | Q189: 0 | R189: 0 | T189: 13.80762448 | U189: 13.80762448 | V189: 13.80762448 | X189: 2003-04-22 | Y189: 19933.90251 | Z189: 24694.49773 | AA189: 24694.49773 | AB189: 0 | AF189: 0.2697389321 | AG189: -0.1523047716
A190: 38 | B190: 2003-04-23 | D190: =VLOOKUP(B191,'P123'!N:T,$C$5) -> SPY | E190: 91.18085594 | F190: 90.83524634 | G190: 274 | H190: 1.168 | I190: 1.168 | J190: 1 | K190: 1 | L190: 0 | M190: 0 | N190: 0 | O190: 0 | P190: 0 | Q190: 0 | R190: 0 | T190: 13.80762448 | U190: 13.80762448 | V190: 13.80762448 | X190: 2003-04-23 | Y190: 20308.45497 | Z190: 25198.17981 | AA190: 25198.17981 | AB190: 0 | AF190: 0.2705003734 | AG190: -0.1608364016
A191: 39 | B191: 2003-04-24 | D191: =VLOOKUP(B192,'P123'!N:T,$C$5) -> SPY | E191: 90.53093584 | F191: 90.53483522 | G191: 274 | H191: 1.168 | I191: 1.168 | J191: 1 | K191: 1 | L191: 0 | M191: 0 | N191: 0 | O191: 0 | P191: 0 | Q191: 0 | R191: 0 | T191: 13.80762448 | U191: 13.80762448 | V191: 13.80762448 | X191: 2003-04-24 | Y191: 20495.7312 | Z191: 24997.36215 | AA191: 24997.36215 | AB191: 0 | AF191: 0.2801903959 | AG191: -0.1474754504
A192: 40 | B192: 2003-04-25 | D192: =VLOOKUP(B193,'P123'!N:T,$C$5) -> SPY | E192: 90.38908163 | F192: 91.55129245 | G192: 274 | H192: 1.168 | I192: 1.168 | J192: 1 | K192: 1 | L192: 0 | M192: 0 | N192: 0 | O192: 0 | P192: 0 | Q192: 0 | R192: 0 | T192: 13.80762448 | U192: 13.80762448 | V192: 13.80762448 | X192: 2003-04-25 | Y192: 20313.9631 | Z192: 24819.28404 | AA192: 25198.17981 | AB192: -0.01503663247 | AF192: 0.2730608026 | AG192: -0.1533423068
A193: 41 | B193: 2003-04-28 | D193: =VLOOKUP(B194,'P123'!N:T,$C$5) -> SPY | E193: 91.46940277 | F193: 91.87272225 | G193: 274 | H193: 1.168 | I193: 1.168 | J193: 1 | K193: 1 | L193: 0 | M193: 0 | N193: 0 | O193: 0 | P193: 0 | Q193: 0 | R193: 0 | T193: 13.80762448 | U193: 13.80762448 | V193: 13.80762448 | X193: 2003-04-28 | Y193: 20063.34343 | Z193: 24780.41599 | AA193: 24997.36215 | AB193: -0.008678762175 | AF193: 0.268339366 | AG193: -0.1531440635
A194: 42 | B194: 2003-04-29 | D194: =VLOOKUP(B195,'P123'!N:T,$C$5) -> SPY | E194: 91.94041462 | F194: 92.36441189 | G194: 274 | H194: 1.168 | I194: 1.168 | J194: 1 | K194: 1 | L194: 0 | M194: 0 | N194: 0 | O194: 0 | P194: 0 | Q194: 0 | R194: 0 | T194: 13.80762448 | U194: 13.80762448 | V194: 13.80762448 | X194: 2003-04-29 | Y194: 20410.35527 | Z194: 25076.42398 | AA194: 25198.17981 | AB194: -0.004831929497 | AF194: 0.2678525657 | AG194: -0.1658281207
A195: 43 | B195: 2003-04-30 | D195: =VLOOKUP(B196,'P123'!N:T,$C$5) -> SPY | E195: 91.9483187 | F195: 93.04955501 | G195: 274 | H195: 1.168 | I195: 1.168 | J195: 1 | K195: 1 | L195: 0 | M195: 0 | N195: 0 | O195: 0 | P195: 0 | Q195: 0 | R195: 0 | T195: 13.80762448 | U195: 13.80762448 | V195: 13.80762448 | X195: 2003-04-30 | Y195: 20479.20683 | Z195: 25205.48123 | AA195: 25205.48123 | AB195: 0 | AF195: 0.2664738137 | AG195: -0.1399086287
A196: 44 | B196: 2003-05-01 | D196: =VLOOKUP(B197,'P123'!N:T,$C$5) -> SPY | E196: 92.66041392 | F196: 92.58526957 | G196: 274 | H196: 1.168 | I196: 1.168 | J196: 1 | K196: 1 | L196: 0 | M196: 0 | N196: 0 | O196: 0 | P196: 0 | Q196: 0 | R196: 0 | T196: 13.80762448 | U196: 13.80762448 | V196: 13.80762448 | X196: 2003-05-01 | Y196: 20435.14183 | Z196: 25207.64695 | AA196: 25207.64695 | AB196: 0 | AF196: 0.2743131917 | AG196: -0.1399204527
A197: 45 | B197: 2003-05-02 | D197: =VLOOKUP(B198,'P123'!N:T,$C$5) -> SPY | E197: 93.11073248 | F197: 93.27211072 | G197: 274 | H197: 1.168 | I197: 1.168 | J197: 1 | K197: 1 | L197: 0 | M197: 0 | N197: 0 | O197: 0 | P197: 0 | Q197: 0 | R197: 0 | T197: 13.80762448 | U197: 13.80762448 | V197: 13.80762448 | X197: 2003-05-02 | Y197: 20432.38777 | Z197: 25402.76104 | AA197: 25402.76104 | AB197: 0 | AF197: 0.2723233899 | AG197: -0.1578234944
A198: 46 | B198: 2003-05-05 | D198: =VLOOKUP(B199,'P123'!N:T,$C$5) -> SPY | E198: 93.64032114 | F198: 94.09976094 | G198: 274 | H198: 1.168 | I198: 1.168 | J198: 1 | K198: 1 | L198: 0 | M198: 0 | N198: 0 | O198: 0 | P198: 0 | Q198: 0 | R198: 0 | T198: 13.80762448 | U198: 13.80762448 | V198: 13.80762448 | X198: 2003-05-05 | Y198: 20724.31837 | Z198: 25526.14832 | AA198: 25526.14832 | AB198: 0 | AF198: 0.2709236565 | AG198: -0.1403550482
A199: =IF(D198=D199,A198+1,1) -> 47 | B199: 2003-05-06 | D199: =VLOOKUP(B200,'P123'!N:T,$C$5) -> SPY | E199: 93.78373252 | F199: 92.79251707 | G199: 274 | H199: 1.168 | I199: 1.168 | J199: =IF(D198=D199,J198,VLOOKUP(B200,INDIRECT(D199&"!A:q"),J$2)) -> 1 | K199: =IF(D198=D199,K198,VLOOKUP(B201,INDIRECT(D199&"!A:q"),K$2)) -> 1 | L199: 0 | M199: 0 | N199: 0 | O199: 0 | P199: =IF(ROW()>P$5+7,INDIRECT(P$2&ROW()-P$5),0) -> 0 | Q199: 0 | R199: 0 | T199: 13.80762448 | U199: 13.80762448 | V199: 13.80762448 | X199: =B199 -> 2003-05-06 | Y199: 20685.7615 | Z199: 25671.25562 | AA199: 25671.25562 | AB199: 0 | AF199: 0.2665646636 | AG199: -0.1546524413
A200: 48 | B200: =INDIRECT(B$5&ROW()) -> 2003-05-07 | D200: =VLOOKUP(B201,'P123'!N:T,$C$5) -> SPY | E200: =RAND()*(VLOOKUP(B201,INDIRECT(D200&"!A:q"),E$1)-VLOOKUP(B201,INDIRECT(D200&"!A:q"),E$2))+VLOOKUP(B201,INDIRECT(D200&"!A:q"),E$2) -> 93.09240706 | F200: =RAND()*(VLOOKUP(B202,INDIRECT(D200&"!A:q"),F$1)-VLOOKUP(B202,INDIRECT(D200&"!A:q"),F$2))+VLOOKUP(B202,INDIRECT(D200&"!A:q"),F$2) -> 92.81854725 | G200: =IF(D200=D199,G199,INT((T201*(1-L$1)-L$2)/E200))+Q201 -> 274 | H200: =VLOOKUP(B201,INDIRECT(D200&"!A:q"),H$2) -> 1.168 | I200: 1.168 | J200: 1 | K200: 1 | L200: =IF(D198=D199,0,G199*E199*(1+L$1)+$L$2) -> 0 | M200: 0 | N200: 0 | O200: 0 | P200: 0 | Q200: 0 | R200: 0 | T200: =V199+M200 -> 13.80762448 | U200: =T200+P200 -> 13.80762448 | V200: =U200-L200-R200 -> 13.80762448 | X200: 2003-05-07 | Y200: =VLOOKUP(X199,INDIRECT(Y$3&"!A:R"),7)*$Y$1 -> 20881.29992 | Z200: =E199*G199+V200 -> 25710.55034 | AA200: =IF(Z200>AA198,Z200,AA198) -> 25710.55034 | AB200: =Z200/AA200-1 -> 0 | AF200: 0.2688710232 | AG200: -0.143996685
... 2689 more rows

Sheet Tables
E6: Statistical Analysis of Best(SPY-TLT)
E7: Fixed time trades
E8: Buy-Sell | F8: Open-Open | G8: Open-Close | H8: Close-Open | I8: Close-Close
E9: CAGR | F9: ='SPY-TLT Static'!AE3 -> 0.2684644374 | G9: ='SPY-TLT Static'!AF3 -> 0.2708329926 | H9: ='SPY-TLT Static'!AG3 -> 0.2677336327 | I9: ='SPY-TLT Static'!AH3 -> 0.270113241
E10: D/Down | F10: ='SPY-TLT Static'!AE4 -> -0.1410396435 | G10: ='SPY-TLT Static'!AF4 -> -0.1407403483 | H10: ='SPY-TLT Static'!AG4 -> -0.1457676745 | I10: ='SPY-TLT Static'!AH4 -> -0.1507754141
E12: Random time trades
F13: Average | G13: StdDev. | H13: High | I13: Low
E14: CAGR | F14: ='SPY-TLT Random'!AD3 -> 0.270924327 | G14: ='SPY-TLT Random'!AD6 -> 0.004672675558 | H14: ='SPY-TLT Random'!AD4 -> 0.2853116007 | I14: ='SPY-TLT Random'!AD5 -> 0.2560779439
E15: D/Down | F15: ='SPY-TLT Random'!AE3 -> -0.1483863743 | G15: ='SPY-TLT Random'!AE6 -> 0.006311039028 | H15: ='SPY-TLT Random'!AE4 -> -0.1687737903 | I15: ='SPY-TLT Random'!AE5 -> -0.132977636
E23: Statistical Analysis of Best(SSO-TLT)
E24: Fixed time trades
E25: Buy-Sell | F25: Open-Open | G25: Open-Close | H25: Close-Open | I25: Close-Close
E26: CAGR | F26: ='SSO-TLT Static'!AE3 -> 0.4063466499 | G26: ='SSO-TLT Static'!AF3 -> 0.4125231748 | H26: ='SSO-TLT Static'!AG3 -> 0.4070028899 | I26: ='SSO-TLT Static'!AH3 -> 0.4132122847
E27: D/Down | F27: ='SSO-TLT Static'!AE4 -> -0.2593084593 | G27: ='SSO-TLT Static'!AF4 -> -0.259313445 | H27: ='SSO-TLT Static'!AG4 -> -0.2479537454 | I27: ='SSO-TLT Static'!AH4 -> -0.2479757268
E29: Random time trades
F30: Average | G30: StdDev. | H30: High | I30: Low
E31: CAGR | F31: ='SSO-TLT Random'!AD3 -> 0.4124650128 | G31: ='SSO-TLT Random'!AD6 -> 0.008149861553 | H31: ='SSO-TLT Random'!AD4 -> 0.4421040044 | I31: ='SSO-TLT Random'!AD5 -> 0.3848368838
E32: D/Down | F32: ='SSO-TLT Random'!AE3 -> -0.2484292489 | G32: ='SSO-TLT Random'!AE6 -> 0.01182204018 | H32: ='SSO-TLT Random'!AE4 -> -0.2759467868 | I32: ='SSO-TLT Random'!AE5 -> -0.2123947281

Sheet SSO-TLT Static
D1: Today's | E1: 5 | F1: 5 | K1: Slippage and fee | L1: 0 | M1: 0 | N1: Dividends | Q1: Dividends | Y1: =Y6/Y2 -> 275.4062242 | Z1: =(VLOOKUP(MAX(B:B)-3,X:Z,3)/Z6) -> 52.41037475 | AA1: =MIN(AB:AB) -> -0.2479757268
D2: ETF | E2: 5 | F2: 5 | H2: 13 | I2: 13 | J2: 15 | K2: 15 | L2: 10 | P2: =IF(COLUMN(O5)<27,"",CHAR(64+FLOOR((COLUMN(O5)-1)/26,1)))&CHAR(65+MOD((COLUMN(O5)-1),26)) -> O | Q2: should be | T2: Todays | U2: Todays | Y2: =VLOOKUP(X6,INDIRECT(Y$3&"!A:R"),7) -> 72.62 | Z2: =Z1^(365.25/(MAX(B:B)-B7))-1 -> 0.4132122847 | AA2: =MATCH(AA1,AB:AB,0) -> 1636 | AD2: Buy-Sell | AE2: Open-Open | AF2: Open-Close | AG2: Close-Open | AH2: Close-Cose
D3: Signal | E3: Day+1 | F3: Day+2 | G3: Day+1 | H3: Day+1 | I3: Day+2 | J3: Split+1 | K3: Spli+2 | L3: Day+1 | M3: Day+2 | N3: =SUM(O:O) -> 23523.463 | Q3: atleast | T3: Cash End | U3: Cash for | Y3: SPY | AD3: CAGR | AE3: 0.4063466499 | AF3: 0.4125231748 | AG3: 0.4070028899 | AH3: 0.4132122847
D4: you | E4: Price | F4: Price | G4: qty | H4: div. | I4: div. | L4: Buy | M4: sell | P4: delay | Q4: 50 | T4: After sell | U4: Buying | V4: After buy | Y4: SPY | Z4: Model | AA4: Max | AD4: D/down | AE4: -0.2593084593 | AF4: -0.259313445 | AG4: -0.2479537454 | AH4: -0.2479757268
B5: SPY!A | C5: 3 | D5: buy | J5: @buy | K5: @sell | N5: /share | O5: value | P5: 14 | Q5: before | U5: After Dividend | V5: and Div. | AA5: =MATCH(AA1,AB:AB,0) -> 1636
B6: =INDIRECT(B$5&ROW()+1) -> 2002-07-31 | D6: tomorrow | P6: days | Q6: reinvesting | T6: =U6 -> 20000 | U6: 20000 | X6: =X7 -> 2002-07-31 | Y6: 20000 | Z6: =T6 -> 20000 | AA6: 0
A7: =IF(D6=D7,A6+1,1) -> 1 | B7: =INDIRECT(B$5&ROW()) -> 2002-07-31 | D7: =VLOOKUP(B8,'P123'!N:T,$C$5) -> TLT | E7: =(VLOOKUP(B8,INDIRECT(D7&"!A:q"),E$1)+VLOOKUP(B8,INDIRECT(D7&"!A:q"),E$2))/2 -> 83 | F7: =(VLOOKUP(B9,INDIRECT(D7&"!A:q"),F$1)+VLOOKUP(B9,INDIRECT(D7&"!A:q"),F$2))/2 -> 83.85 | G7: =IF(D7=D6,G6,INT((T8*(1-L$1)-L$2)/E7)) -> 240 | H7: =VLOOKUP(B8,INDIRECT(D7&"!A:q"),H$2) -> 0 | I7: =VLOOKUP(B9,INDIRECT(D7&"!A:q"),H$2) -> 0 | J7: =IF(D6=D7,J6,VLOOKUP(B8,INDIRECT(D7&"!A:q"),J$2)) -> 1 | K7: =IF(D6=D7,K6,VLOOKUP(B9,INDIRECT(D7&"!A:q"),K$2)) -> 1 | P7: =IF(ROW()>P$5+7,INDIRECT(P$2&ROW()-P$5),0) -> 0 | V7: =U6 -> 20000 | X7: =B7 -> 2002-07-31 | Y7: =VLOOKUP(X6,INDIRECT(Y$3&"!A:R"),7)*$Y$1 -> 20000
A8: 2 | B8: =INDIRECT(B$5&ROW()) -> 2002-08-01 | D8: =VLOOKUP(B9,'P123'!N:T,$C$5) -> TLT | E8: 83.85 | F8: 84.22 | G8: =IF(D8=D7,G7,INT((T9*(1-L$1)-L$2)/E8))+Q9 -> 240 | H8: =VLOOKUP(B9,INDIRECT(D8&"!A:q"),H$2) -> 0 | I8: 0 | J8: 1 | K8: 1 | L8: =IF(D6=D7,0,G7*E7*(1+L$1)+$L$2) -> 19930 | P8: 0 | T8: =V7+M8 -> 20000 | U8: =T8+P8 -> 20000 | V8: =U8-L8-R8 -> 70 | X8: 2002-08-01 | Y8: =VLOOKUP(X7,INDIRECT(Y$3&"!A:R"),7)*$Y$1 -> 20000 | Z8: =E7*G7+V8 -> 19990 | AA8: =IF(Z8>AA6,Z8,AA6) -> 19990 | AB8: =Z8/AA8-1 -> 0 | AC8: 0
A9: 3 | B9: 2002-08-02 | D9: =VLOOKUP(B10,'P123'!N:T,$C$5) -> TLT | E9: 84.22 | F9: 83.5 | G9: 240 | H9: 0 | I9: 0 | J9: 1 | K9: 1 | L9: 0 | M9: =IF(D7=D8,0,(K7/J7)*G7*F7/(1+$M$1)-$L$2) -> 0 | N9: =IF(I7<>H7,I7-H7,0) -> 0 | O9: =G7*N9 -> 0 | P9: 0 | Q9: =IF(AND(U9>Q$4,D8=D7),INT((U9*(1-L$1)-L$2)/E8),0) -> 0 | R9: =IF(Q9>0,Q9*E8+$L$2,0) -> 0 | T9: 70 | U9: 70 | V9: 70 | X9: 2002-08-02 | Y9: 19476.72817 | Z9: 20194 | AA9: 20194 | AB9: =Z9/AA9-1 -> 0 | AC9: 0
A10: 4 | B10: 2002-08-05 | D10: =VLOOKUP(B11,'P123'!N:T,$C$5) -> TLT | E10: 83.5 | F10: 83.7 | G10: 240 | H10: 0 | I10: 0 | J10: 1 | K10: 1 | L10: 0 | M10: 0 | N10: 0 | O10: 0 | P10: 0 | Q10: 0 | R10: =IF(Q10>0,Q10*E9+$L$2,0) -> 0 | T10: 70 | U10: 70 | V10: 70 | X10: 2002-08-05 | Y10: 19041.58634 | Z10: 20282.8 | AA10: 20282.8 | AB10: 0 | AC10: 0
A11: 5 | B11: 2002-08-06 | D11: =VLOOKUP(B12,'P123'!N:T,$C$5) -> TLT | E11: 83.7 | F11: 83.7 | G11: 240 | H11: 0 | I11: 0 | J11: 1 | K11: 1 | L11: 0 | M11: 0 | N11: 0 | O11: 0 | P11: 0 | Q11: 0 | R11: 0 | T11: 70 | U11: 70 | V11: 70 | X11: 2002-08-06 | Y11: 18377.85734 | Z11: 20110 | AA11: 20194 | AB11: -0.004159651382 | AC11: -0.004159651382
A12: 6 | B12: 2002-08-07 | D12: =VLOOKUP(B13,'P123'!N:T,$C$5) -> TLT | E12: 83.7 | F12: 84.88 | G12: 240 | H12: 0 | I12: 0 | J12: 1 | K12: 1 | L12: 0 | M12: 0 | N12: 0 | O12: 0 | P12: 0 | Q12: 0 | R12: 0 | T12: 70 | U12: 70 | V12: 70 | X12: 2002-08-07 | Y12: 18997.52134 | Z12: 20158 | AA12: 20282.8 | AB12: -0.006152996628 | AC12: -0.006152996628
A13: 7 | B13: 2002-08-08 | D13: =VLOOKUP(B14,'P123'!N:T,$C$5) -> TLT | E13: 84.88 | F13: 85.4 | G13: 240 | H13: 0 | I13: 0 | J13: 1 | K13: 1 | L13: 0 | M13: 0 | N13: 0 | O13: 0 | P13: 0 | Q13: 0 | R13: 0 | T13: 70 | U13: 70 | V13: 70 | X13: 2002-08-08 | Y13: 19328.00881 | Z13: 20158 | AA13: 20194 | AB13: -0.001782707735 | AC13: -0.001782707735
A14: 8 | B14: 2002-08-09 | D14: =VLOOKUP(B15,'P123'!N:T,$C$5) -> TLT | E14: 85.4 | F14: 86.45 | G14: 240 | H14: 0 | I14: 0 | J14: 1 | K14: 1 | L14: 0 | M14: 0 | N14: 0 | O14: 0 | P14: 0 | Q14: 0 | R14: 0 | T14: 70 | U14: 70 | V14: 70 | X14: 2002-08-09 | Y14: 19953.18094 | Z14: 20441.2 | AA14: 20441.2 | AB14: 0 | AC14: 0
A15: 9 | B15: 2002-08-12 | D15: =VLOOKUP(B16,'P123'!N:T,$C$5) -> TLT | E15: 86.45 | F15: 86.78 | G15: 240 | H15: 0 | I15: 0 | J15: 1 | K15: 1 | L15: 0 | M15: 0 | N15: 0 | O15: 0 | P15: 0 | Q15: 0 | R15: 0 | T15: 70 | U15: 70 | V15: 70 | X15: 2002-08-12 | Y15: 20027.54062 | Z15: 20566 | AA15: 20566 | AB15: 0 | AC15: 0
A16: 10 | B16: 2002-08-13 | D16: =VLOOKUP(B17,'P123'!N:T,$C$5) -> TLT | E16: 86.78 | F16: 86.02 | G16: 240 | H16: 0 | I16: 0 | J16: 1 | K16: 1 | L16: 0 | M16: 0 | N16: 0 | O16: 0 | P16: 0 | Q16: 0 | R16: 0 | T16: 70 | U16: 70 | V16: 70 | X16: 2002-08-13 | Y16: 19881.57532 | Z16: 20818 | AA16: 20818 | AB16: 0 | AC16: 0
A17: 11 | B17: 2002-08-14 | D17: =VLOOKUP(B18,'P123'!N:T,$C$5) -> TLT | E17: 86.02 | F17: 85.06 | G17: 240 | H17: 0 | I17: 0 | J17: 1 | K17: 1 | L17: 0 | M17: 0 | N17: 0 | O17: 0 | P17: 0 | Q17: 0 | R17: 0 | T17: 70 | U17: 70 | V17: 70 | X17: 2002-08-14 | Y17: 19518.03911 | Z17: 20897.2 | AA17: 20897.2 | AB17: 0 | AC17: 0
A18: 12 | B18: 2002-08-15 | D18: =VLOOKUP(B19,'P123'!N:T,$C$5) -> TLT | E18: 85.06 | F18: 85.32 | G18: 240 | H18: 0 | I18: =VLOOKUP(B20,INDIRECT(D18&"!A:q"),I$2) -> 0 | J18: 1 | K18: 1 | L18: 0 | M18: 0 | N18: 0 | O18: 0 | P18: 0 | Q18: 0 | R18: 0 | T18: 70 | U18: 70 | V18: 70 | X18: 2002-08-15 | Y18: 20231.34123 | Z18: 20714.8 | AA18: 20818 | AB18: -0.004957248535 | AC18: -0.004957248535
A19: 13 | B19: 2002-08-16 | D19: =VLOOKUP(B20,'P123'!N:T,$C$5) -> TLT | E19: 85.32 | F19: 86.27 | G19: 240 | H19: 0 | I19: =VLOOKUP(B21,INDIRECT(D19&"!A:q"),H$2) -> 0 | J19: 1 | K19: 1 | L19: 0 | M19: 0 | N19: 0 | O19: 0 | P19: 0 | Q19: 0 | R19: 0 | T19: 70 | U19: 70 | V19: 70 | X19: 2002-08-16 | Y19: 20512.25558 | Z19: 20484.4 | AA19: 20897.2 | AB19: -0.01975384262 | AC19: -0.01975384262
A20: 14 | B20: 2002-08-19 | D20: =VLOOKUP(B21,'P123'!N:T,$C$5) -> TLT | E20: 86.27 | F20: 85.81 | G20: 240 | H20: 0 | I20: =VLOOKUP(B22,INDIRECT(D20&"!A:q"),H$2) -> 0 | J20: 1 | K20: 1 | L20: 0 | M20: 0 | N20: 0 | O20: 0 | P20: 0 | Q20: 0 | R20: 0 | T20: 70 | U20: 70 | V20: 70 | X20: 2002-08-19 | Y20: 20451.66621 | Z20: 20546.8 | AA20: 20818 | AB20: -0.01302718801 | AC20: -0.01302718801
A21: 15 | B21: 2002-08-20 | D21: =VLOOKUP(B22,'P123'!N:T,$C$5) -> TLT | E21: 85.81 | F21: 85.06 | G21: 240 | H21: 0 | I21: =VLOOKUP(B23,INDIRECT(D21&"!A:q"),H$2) -> 0 | J21: 1 | K21: 1 | L21: 0 | M21: 0 | N21: 0 | O21: 0 | P21: 0 | Q21: 0 | R21: 0 | T21: 70 | U21: 70 | V21: 70 | X21: 2002-08-20 | Y21: 20930.87304 | Z21: 20774.8 | AA21: 20897.2 | AB21: -0.005857244033 | AC21: -0.005857244033
A22: 16 | B22: 2002-08-21 | D22: =VLOOKUP(B23,'P123'!N:T,$C$5) -> TLT | E22: 85.06 | F22: 85.9 | G22: 240 | H22: 0 | I22: 0 | J22: 1 | K22: 1 | L22: 0 | M22: 0 | N22: 0 | O22: 0 | P22: 0 | Q22: 0 | R22: 0 | T22: 70 | U22: 70 | V22: 70 | X22: 2002-08-21 | Y22: 20707.794 | Z22: 20664.4 | AA22: 20818 | AB22: -0.007378230378 | AC22: -0.007378230378
A23: 17 | B23: 2002-08-22 | D23: =VLOOKUP(B24,'P123'!N:T,$C$5) -> TLT | E23: 85.9 | F23: 85.98 | G23: 240 | H23: 0 | I23: 0 | J23: 1 | K23: 1 | L23: 0 | M23: 0 | N23: 0 | O23: 0 | P23: 0 | Q23: 0 | R23: 0 | T23: 70 | U23: 70 | V23: 70 | X23: 2002-08-22 | Y23: 21005.23272 | Z23: 20484.4 | AA23: 20897.2 | AB23: -0.01975384262 | AC23: -0.01975384262
A24: 18 | B24: 2002-08-23 | D24: =VLOOKUP(B25,'P123'!N:T,$C$5) -> TLT | E24: 85.98 | F24: 85.44 | G24: 240 | H24: 0 | I24: 0 | J24: 1 | K24: 1 | L24: 0 | M24: 0 | N24: 0 | O24: 0 | P24: 0 | Q24: 0 | R24: 0 | T24: 70 | U24: 70 | V24: 70 | X24: 2002-08-23 | Y24: 21209.03332 | Z24: 20686 | AA24: 20818 | AB24: -0.006340666731 | AC24: -0.006340666731
A25: 19 | B25: 2002-08-26 | D25: =VLOOKUP(B26,'P123'!N:T,$C$5) -> TLT | E25: 85.44 | F25: 85.87 | G25: 240 | H25: 0 | I25: 0 | J25: 1 | K25: 1 | L25: 0 | M25: 0 | N25: 0 | O25: 0 | P25: 0 | Q25: 0 | R25: 0 | T25: 70 | U25: 70 | V25: 70 | X25: 2002-08-26 | Y25: 20754.61305 | Z25: 20705.2 | AA25: 20897.2 | AB25: -0.009187833777 | AC25: -0.009187833777
A26: 20 | B26: 2002-08-27 | D26: =VLOOKUP(B27,'P123'!N:T,$C$5) -> TLT | E26: 85.87 | F26: 86.56 | G26: 240 | H26: 0 | I26: 0 | J26: 1 | K26: 1 | L26: 0 | M26: 0 | N26: 0 | O26: 0 | P26: 0 | Q26: 0 | R26: 0 | T26: 70 | U26: 70 | V26: 70 | X26: 2002-08-27 | Y26: 20897.82429 | Z26: 20575.6 | AA26: 20818 | AB26: -0.01164376981 | AC26: -0.01164376981
A27: 21 | B27: 2002-08-28 | D27: =VLOOKUP(B28,'P123'!N:T,$C$5) -> TLT | E27: 86.56 | F27: 87.08 | G27: 240 | H27: 0 | I27: 0 | J27: 1 | K27: 1 | L27: 0 | M27: 0 | N27: 0 | O27: 0 | P27: 0 | Q27: 0 | R27: 0 | T27: 70 | U27: 70 | V27: 70 | X27: 2002-08-28 | Y27: 20658.22088 | Z27: 20678.8 | AA27: 20897.2 | AB27: -0.01045116092 | AC27: -0.01045116092
A28: 22 | B28: 2002-08-29 | D28: =VLOOKUP(B29,'P123'!N:T,$C$5) -> TLT | E28: 87.08 | F28: 88.04 | G28: 240 | H28: 0 | I28: 0.373 | J28: 1 | K28: 1 | L28: 0 | M28: 0 | N28: 0 | O28: 0 | P28: 0 | Q28: 0 | R28: 0 | T28: 70 | U28: 70 | V28: 70 | X28: 2002-08-29 | Y28: 20206.55467 | Z28: 20844.4 | AA28: 20844.4 | AB28: 0 | AC28: 0
A29: 1 | B29: 2002-08-30 | D29: =VLOOKUP(B30,'P123'!N:T,$C$5) -> SPY | E29: 88.28 | F29: 89.54 | G29: 239 | H29: 0 | I29: 0 | J29: 1 | K29: 1 | L29: 0 | M29: 0 | N29: 0 | O29: 0 | P29: 0 | Q29: 0 | R29: 0 | T29: 70 | U29: 70 | V29: 70 | X29: 2002-08-30 | Y29: 20214.81685 | Z29: 20969.2 | AA29: 20969.2 | AB29: 0 | AC29: 0
A30: 2 | B30: 2002-09-03 | D30: =VLOOKUP(B31,'P123'!N:T,$C$5) -> SPY | E30: 89.54 | F30: 88.78 | G30: 239 | H30: 0 | I30: 0 | J30: 1 | K30: 1 | L30: 21108.92 | M30: 21119.6 | N30: 0.373 | O30: 89.52 | P30: 0 | Q30: 0 | R30: 0 | T30: 21189.6 | U30: 21189.6 | V30: 80.68 | X30: 2002-09-03 | Y30: 20134.94905 | Z30: 21179.6 | AA30: 21179.6 | AB30: 0 | AC30: 0
A31: 3 | B31: 2002-09-04 | D31: =VLOOKUP(B32,'P123'!N:T,$C$5) -> SPY | E31: 88.78 | F31: 90 | G31: 239 | H31: 0 | I31: 0 | J31: 1 | K31: 1 | L31: 0 | M31: 0 | N31: 0 | O31: 0 | P31: 0 | Q31: 0 | R31: 0 | T31: 80.68 | U31: 80.68 | V31: 80.68 | X31: 2002-09-04 | Y31: 19366.56568 | Z31: 21480.74 | AA31: 21480.74 | AB31: 0 | AC31: 0
A32: 4 | B32: 2002-09-05 | D32: =VLOOKUP(B33,'P123'!N:T,$C$5) -> SPY | E32: 90 | F32: 90.66 | G32: 239 | H32: 0 | I32: 0 | J32: 1 | K32: 1 | L32: 0 | M32: 0 | N32: 0 | O32: 0 | P32: 0 | Q32: 0 | R32: 0 | T32: 80.68 | U32: 80.68 | V32: 80.68 | X32: 2002-09-05 | Y32: 19644.72597 | Z32: 21299.1 | AA32: 21299.1 | AB32: 0 | AC32: 0
A33: 5 | B33: 2002-09-06 | D33: =VLOOKUP(B34,'P123'!N:T,$C$5) -> SPY | E33: 90.66 | F33: 91.7 | G33: 239 | H33: 0 | I33: 0 | J33: 1 | K33: 1 | L33: 0 | M33: 0 | N33: 0 | O33: 0 | P33: 0 | Q33: 0 | R33: 0 | T33: 80.68 | U33: 80.68 | V33: 80.68 | X33: 2002-09-06 | Y33: 19476.72817 | Z33: 21590.68 | AA33: 21590.68 | AB33: 0 | AC33: 0
A34: 6 | B34: 2002-09-09 | D34: =VLOOKUP(B35,'P123'!N:T,$C$5) -> SPY | E34: 91.7 | F34: 91.13 | G34: 239 | H34: 0 | I34: 0 | J34: 1 | K34: 1 | L34: 0 | M34: 0 | N34: 0 | O34: 0 | P34: 0 | Q34: 0 | R34: 0 | T34: 80.68 | U34: 80.68 | V34: 80.68 | X34: 2002-09-09 | Y34: 19743.87221 | Z34: 21748.42 | AA34: 21748.42 | AB34: 0 | AC34: 0
A35: 7 | B35: 2002-09-10 | D35: =VLOOKUP(B36,'P123'!N:T,$C$5) -> SPY | E35: 91.13 | F35: 89.45 | G35: 239 | H35: 0 | I35: 0 | J35: 1 | K35: 1 | L35: 0 | M35: 0 | N35: 0 | O35: 0 | P35: 0 | Q35: 0 | R35: 0 | T35: 80.68 | U35: 80.68 | V35: 80.68 | X35: 2002-09-10 | Y35: 19889.83751 | Z35: 21996.98 | AA35: 21996.98 | AB35: 0 | AC35: 0
A36: 8 | B36: 2002-09-11 | D36: =VLOOKUP(B37,'P123'!N:T,$C$5) -> SPY | E36: 89.45 | F36: 89.67 | G36: 239 | H36: 0 | I36: 0 | J36: 1 | K36: 1 | L36: 0 | M36: 0 | N36: 0 | O36: 0 | P36: 0 | Q36: 0 | R36: 0 | T36: 80.68 | U36: 80.68 | V36: 80.68 | X36: 2002-09-11 | Y36: 20118.42468 | Z36: 21860.75 | AA36: 21860.75 | AB36: 0 | AC36: 0
A37: 9 | B37: 2002-09-12 | D37: =VLOOKUP(B38,'P123'!N:T,$C$5) -> SPY | E37: 89.67 | F37: 89.89 | G37: 239 | H37: 0 | I37: 0 | J37: 1 | K37: 1 | L37: 0 | M37: 0 | N37: 0 | O37: 0 | P37: 0 | Q37: 0 | R37: 0 | T37: 80.68 | U37: 80.68 | V37: 80.68 | X37: 2002-09-12 | Y37: 19991.73781 | Z37: 21459.23 | AA37: 21996.98 | AB37: -0.02444653766 | AC37: -0.02444653766
A38: 10 | B38: 2002-09-13 | D38: =VLOOKUP(B39,'P123'!N:T,$C$5) -> SPY | E38: 89.89 | F38: 87.83 | G38: 239 | H38: 0 | I38: 0 | J38: 1 | K38: 1 | L38: 0 | M38: 0 | N38: 0 | O38: 0 | P38: 0 | Q38: 0 | R38: 0 | T38: 80.68 | U38: 80.68 | V38: 80.68 | X38: 2002-09-13 | Y38: 19625.44754 | Z38: 21511.81 | AA38: 21860.75 | AB38: -0.01596194092 | AC38: -0.01596194092
A39: 11 | B39: 2002-09-16 | D39: =VLOOKUP(B40,'P123'!N:T,$C$5) -> SPY | E39: 87.83 | F39: 86.95 | G39: 239 | H39: 0 | I39: 0 | J39: 1 | K39: 1 | L39: 0 | M39: 0 | N39: 0 | O39: 0 | P39: 0 | Q39: 0 | R39: 0 | T39: 80.68 | U39: 80.68 | V39: 80.68 | X39: 2002-09-16 | Y39: 19672.26659 | Z39: 21564.39 | AA39: 21996.98 | AB39: -0.01966588141 | AC39: -0.01966588141
A40: 12 | B40: 2002-09-17 | D40: =VLOOKUP(B41,'P123'!N:T,$C$5) -> SPY | E40: 86.95 | F40: 84.7 | G40: 239 | H40: 0 | I40: 0 | J40: 1 | K40: 1 | L40: 0 | M40: 0 | N40: 0 | O40: 0 | P40: 0 | Q40: 0 | R40: 0 | T40: 80.68 | U40: 80.68 | V40: 80.68 | X40: 2002-09-17 | Y40: 19721.83971 | Z40: 21072.05 | AA40: 21860.75 | AB40: -0.03607835962 | AC40: -0.03607835962
A41: 13 | B41: 2002-09-18 | D41: =VLOOKUP(B42,'P123'!N:T,$C$5) -> SPY | E41: 84.7 | F41: 84.35 | G41: 239 | H41: 0 | I41: 0.378 | J41: 1 | K41: 1 | L41: 0 | M41: 0 | N41: 0 | O41: 0 | P41: 0 | Q41: 0 | R41: 0 | T41: 80.68 | U41: 80.68 | V41: 80.68 | X41: 2002-09-18 | Y41: 19267.41944 | Z41: 20861.73 | AA41: 21996.98 | AB41: -0.05160935728 | AC41: -0.05160935728
A42: 14 | B42: 2002-09-19 | D42: =VLOOKUP(B43,'P123'!N:T,$C$5) -> SPY | E42: 84.35 | F42: 83.66 | G42: 239 | H42: 0.378 | I42: 0.378 | J42: 1 | K42: 1 | L42: 0 | M42: 0 | N42: 0 | O42: 0 | P42: 0 | Q42: 0 | R42: 0 | T42: 80.68 | U42: 80.68 | V42: 80.68 | X42: 2002-09-19 | Y42: 19074.63509 | Z42: 20323.98 | AA42: 21860.75 | AB42: -0.07029813707 | AC42: -0.07029813707
A43: 15 | B43: 2002-09-20 | D43: =VLOOKUP(B44,'P123'!N:T,$C$5) -> SPY | E43: 83.66 | F43: 82.31 | G43: 240 | H43: 0.378 | I43: 0.378 | J43: 1 | K43: 1 | L43: 0 | M43: 0 | N43: 0.378 | O43: 90.342 | P43: 0 | Q43: 0 | R43: 0 | T43: 80.68 | U43: 80.68 | V43: 80.68 | X43: 2002-09-20 | Y43: 18581.65795 | Z43: 20240.33 | AA43: 21996.98 | AB43: -0.07985868969 | AC43: -0.07985868969
A44: 16 | B44: 2002-09-23 | D44: =VLOOKUP(B45,'P123'!N:T,$C$5) -> SPY | E44: 82.31 | F44: 84.35 | G44: 240 | H44: 0.378 | I44: 0.378 | J44: 1 | K44: 1 | L44: 0 | M44: 0 | N44: 0 | O44: 0 | P44: 89.52 | Q44: 1 | R44: 93.66 | T44: 80.68 | U44: 170.2 | V44: 76.54 | X44: 2002-09-23 | Y44: 18587.16607 | Z44: 20154.94 | AA44: 21860.75 | AB44: -0.07803071715 | AC44: -0.07803071715
A45: 17 | B45: 2002-09-24 | D45: =VLOOKUP(B46,'P123'!N:T,$C$5) -> SPY | E45: 84.35 | F45: 85.73 | G45: 240 | H45: 0.378 | I45: 0.378 | J45: 1 | K45: 1 | L45: 0 | M45: 0 | N45: 0 | O45: 0 | P45: 0 | Q45: 0 | R45: 0 | T45: 76.54 | U45: 76.54 | V45: 76.54 | X45: 2002-09-24 | Y45: 18435.69265 | Z45: 19830.94 | AA45: 21996.98 | AB45: -0.09846988087 | AC45: -0.09846988087
A46: 18 | B46: 2002-09-25 | D46: =VLOOKUP(B47,'P123'!N:T,$C$5) -> SPY | E46: 85.73 | F46: 82.75 | G46: 240 | H46: 0.378 | I46: 0.378 | J46: 1 | K46: 1 | L46: 0 | M46: 0 | N46: 0 | O46: 0 | P46: 0 | Q46: 0 | R46: 0 | T46: 76.54 | U46: 76.54 | V46: 76.54 | X46: 2002-09-25 | Y46: 18138.25392 | Z46: 20320.54 | AA46: 21860.75 | AB46: -0.07045549672 | AC46: -0.07045549672
A47: 19 | B47: 2002-09-26 | D47: =VLOOKUP(B48,'P123'!N:T,$C$5) -> SPY | E47: 82.75 | F47: 81.79 | G47: 240 | H47: 0.378 | I47: 0.378 | J47: 1 | K47: 1 | L47: 0 | M47: 0 | N47: 0 | O47: 0 | P47: 0 | Q47: 0 | R47: 0 | T47: 76.54 | U47: 76.54 | V47: 76.54 | X47: 2002-09-26 | Y47: 18587.16607 | Z47: 20651.74 | AA47: 21996.98 | AB47: -0.06115566773 | AC47: -0.06115566773
A48: 20 | B48: 2002-09-27 | D48: =VLOOKUP(B49,'P123'!N:T,$C$5) -> SPY | E48: 81.79 | F48: 85.72 | G48: 240 | H48: 0.378 | I48: 0.378 | J48: 1 | K48: 1 | L48: 0 | M48: 0 | N48: 0 | O48: 0 | P48: 0 | Q48: 0 | R48: 0 | T48: 76.54 | U48: 76.54 | V48: 76.54 | X48: 2002-09-27 | Y48: 18892.86698 | Z48: 19936.54 | AA48: 21860.75 | AB48: -0.08802122526 | AC48: -0.08802122526
A49: 21 | B49: 2002-09-30 | D49: =VLOOKUP(B50,'P123'!N:T,$C$5) -> SPY | E49: 85.72 | F49: 83.15 | G49: 240 | H49: 0.378 | I49: 0.378 | J49: 1 | K49: 1 | L49: 0 | M49: 0 | N49: 0 | O49: 0 | P49: 0 | Q49: 0 | R49: 0 | T49: 76.54 | U49: 76.54 | V49: 76.54 | X49: 2002-09-30 | Y49: 18234.6461 | Z49: 19706.14 | AA49: 21996.98 | AB49: -0.104143387 | AC49: -0.104143387
A50: 22 | B50: 2002-10-01 | D50: =VLOOKUP(B51,'P123'!N:T,$C$5) -> SPY | E50: 83.15 | F50: 82.31 | G50: 240 | H50: 0.378 | I50: 0.378 | J50: 1 | K50: 1 | L50: 0 | M50: 0 | N50: 0 | O50: 0 | P50: 0 | Q50: 0 | R50: 0 | T50: 76.54 | U50: 76.54 | V50: 76.54 | X50: 2002-10-01 | Y50: 18025.33737 | Z50: 20649.34 | AA50: 21860.75 | AB50: -0.05541484167 | AC50: -0.05541484167
A51: 23 | B51: 2002-10-02 | D51: =VLOOKUP(B52,'P123'!N:T,$C$5) -> SPY | E51: 82.31 | F51: 80.8 | G51: 240 | H51: 0.378 | I51: 0.378 | J51: 1 | K51: 1 | L51: 0 | M51: 0 | N51: 0 | O51: 0 | P51: 0 | Q51: 0 | R51: 0 | T51: 76.54 | U51: 76.54 | V51: 76.54 | X51: 2002-10-02 | Y51: 18890.11292 | Z51: 20032.54 | AA51: 21996.98 | AB51: -0.08930498641 | AC51: -0.08930498641
A52: 24 | B52: 2002-10-03 | D52: =VLOOKUP(B53,'P123'!N:T,$C$5) -> SPY | E52: 80.8 | F52: 79.13 | G52: 240 | H52: 0.378 | I52: 0.378 | J52: 1 | K52: 1 | L52: 0 | M52: 0 | N52: 0 | O52: 0 | P52: 0 | Q52: 0 | R52: 0 | T52: 76.54 | U52: 76.54 | V52: 76.54 | X52: 2002-10-03 | Y52: 18322.77609 | Z52: 19830.94 | AA52: 21860.75 | AB52: -0.0928518006 | AC52: -0.0928518006
A53: 25 | B53: 2002-10-04 | D53: =VLOOKUP(B54,'P123'!N:T,$C$5) -> SPY | E53: 79.13 | F53: 80.37 | G53: 240 | H53: 0.378 | I53: 0.378 | J53: 1 | K53: 1 | L53: 0 | M53: 0 | N53: 0 | O53: 0 | P53: 0 | Q53: 0 | R53: 0 | T53: 76.54 | U53: 76.54 | V53: 76.54 | X53: 2002-10-04 | Y53: 18138.25392 | Z53: 19468.54 | AA53: 21996.98 | AB53: -0.1149448697 | AC53: -0.1149448697
A54: 26 | B54: 2002-10-07 | D54: =VLOOKUP(B55,'P123'!N:T,$C$5) -> SPY | E54: 80.37 | F54: 78.1 | G54: 240 | H54: 0.378 | I54: 0.378 | J54: 1 | K54: 1 | L54: 0 | M54: 0 | N54: 0 | O54: 0 | P54: 0 | Q54: 0 | R54: 0 | T54: 76.54 | U54: 76.54 | V54: 76.54 | X54: 2002-10-07 | Y54: 17805.01239 | Z54: 19067.74 | AA54: 21860.75 | AB54: -0.1277636861 | AC54: -0.1277636861
A55: 27 | B55: 2002-10-08 | D55: =VLOOKUP(B56,'P123'!N:T,$C$5) -> SPY | E55: 78.1 | F55: 80.63 | G55: 240 | H55: 0.378 | I55: 0.378 | J55: 1 | K55: 1 | L55: 0 | M55: 0 | N55: 0 | O55: 0 | P55: 0 | Q55: 0 | R55: 0 | T55: 76.54 | U55: 76.54 | V55: 76.54 | X55: 2002-10-08 | Y55: 17438.72212 | Z55: 19365.34 | AA55: 21996.98 | AB55: -0.1196364228 | AC55: -0.1196364228
A56: 28 | B56: 2002-10-09 | D56: =VLOOKUP(B57,'P123'!N:T,$C$5) -> SPY | E56: 80.63 | F56: 84.16 | G56: 241 | H56: 0.378 | I56: 0.378 | J56: 1 | K56: 1 | L56: 0 | M56: 0 | N56: 0 | O56: 0 | P56: 0 | Q56: 0 | R56: 0 | T56: 76.54 | U56: 76.54 | V56: 76.54 | X56: 2002-10-09 | Y56: 17711.37428 | Z56: 18820.54 | AA56: 21860.75 | AB56: -0.1390716238 | AC56: -0.1390716238
A57: 29 | B57: 2002-10-10 | D57: =VLOOKUP(B58,'P123'!N:T,$C$5) -> SPY | E57: 84.16 | F57: 84.63 | G57: 241 | H57: 0.378 | I57: 0.378 | J57: 1 | K57: 1 | L57: 0 | M57: 0 | N57: 0 | O57: 0 | P57: 90.342 | Q57: 1 | R57: 90.63 | T57: 76.54 | U57: 166.882 | V57: 76.252 | X57: 2002-10-10 | Y57: 17210.13495 | Z57: 19508.082 | AA57: 21996.98 | AB57: -0.1131472593 | AC57: -0.1131472593
A58: 30 | B58: 2002-10-11 | D58: =VLOOKUP(B59,'P123'!N:T,$C$5) -> SPY | E58: 84.63 | F58: 88.7 | G58: 241 | H58: 0.378 | I58: 0.378 | J58: 1 | K58: 1 | L58: 0 | M58: 0 | N58: 0 | O58: 0 | P58: 0 | Q58: 0 | R58: 0 | T58: 76.252 | U58: 76.252 | V58: 76.252 | X58: 2002-10-11 | Y58: 17769.20958 | Z58: 20358.812 | AA58: 21860.75 | AB58: -0.06870477911 | AC58: -0.06870477911
A59: 31 | B59: 2002-10-14 | D59: =VLOOKUP(B60,'P123'!N:T,$C$5) -> SPY | E59: 88.7 | F59: 86.55 | G59: 241 | H59: 0.378 | I59: 0.378 | J59: 1 | K59: 1 | L59: 0 | M59: 0 | N59: 0 | O59: 0 | P59: 0 | Q59: 0 | R59: 0 | T59: 76.252 | U59: 76.252 | V59: 76.252 | X59: 2002-10-14 | Y59: 18545.85514 | Z59: 20472.082 | AA59: 21996.98 | AB59: -0.06932306162 | AC59: -0.06932306162
A60: 32 | B60: 2002-10-15 | D60: =VLOOKUP(B61,'P123'!N:T,$C$5) -> SPY | E60: 86.55 | F60: 88.27 | G60: 241 | H60: 0.378 | I60: 0.378 | J60: 1 | K60: 1 | L60: 0 | M60: 0 | N60: 0 | O60: 0 | P60: 0 | Q60: 0 | R60: 0 | T60: 76.252 | U60: 76.252 | V60: 76.252 | X60: 2002-10-15 | Y60: 18650.5095 | Z60: 21452.952 | AA60: 21860.75 | AB60: -0.01865434626 | AC60: -0.01865434626
A61: 33 | B61: 2002-10-16 | D61: =VLOOKUP(B62,'P123'!N:T,$C$5) -> SPY | E61: 88.27 | F61: 88.64 | G61: 241 | H61: 0.378 | I61: 0.378 | J61: 1 | K61: 1 | L61: 0 | M61: 0 | N61: 0 | O61: 0 | P61: 0 | Q61: 0 | R61: 0 | T61: 76.252 | U61: 76.252 | V61: 76.252 | X61: 2002-10-16 | Y61: 19545.57973 | Z61: 20934.802 | AA61: 21996.98 | AB61: -0.04828744673 | AC61: -0.04828744673
A62: 34 | B62: 2002-10-17 | D62: =VLOOKUP(B63,'P123'!N:T,$C$5) -> SPY | E62: 88.64 | F62: 90.17 | G62: 241 | H62: 0.378 | I62: 0.378 | J62: 1 | K62: 1 | L62: 0 | M62: 0 | N62: 0 | O62: 0 | P62: 0 | Q62: 0 | R62: 0 | T62: 76.252 | U62: 76.252 | V62: 76.252 | X62: 2002-10-17 | Y62: 19071.88102 | Z62: 21349.322 | AA62: 21860.75 | AB62: -0.02339480576 | AC62: -0.02339480576
A63: 35 | B63: 2002-10-18 | D63: =VLOOKUP(B64,'P123'!N:T,$C$5) -> SPY | E63: 90.17 | F63: 89.52 | G63: 241 | H63: 0.378 | I63: 0.378 | J63: 1 | K63: 1 | L63: 0 | M63: 0 | N63: 0 | O63: 0 | P63: 0 | Q63: 0 | R63: 0 | T63: 76.252 | U63: 76.252 | V63: 76.252 | X63: 2002-10-18 | Y63: 19451.94161 | Z63: 21438.492 | AA63: 21996.98 | AB63: -0.02538930344 | AC63: -0.02538930344
A64: 36 | B64: 2002-10-21 | D64: =VLOOKUP(B65,'P123'!N:T,$C$5) -> SPY | E64: 89.52 | F64: 90.2 | G64: 241 | H64: 0.378 | I64: 0.378 | J64: 1 | K64: 1 | L64: 0 | M64: 0 | N64: 0 | O64: 0 | P64: 0 | Q64: 0 | R64: 0 | T64: 76.252 | U64: 76.252 | V64: 76.252 | X64: 2002-10-21 | Y64: 19534.56348 | Z64: 21807.222 | AA64: 21860.75 | AB64: -0.002448589367 | AC64: -0.002448589367
A65: 37 | B65: 2002-10-22 | D65: =VLOOKUP(B66,'P123'!N:T,$C$5) -> SPY | E65: 90.2 | F65: 88.36 | G65: 241 | H65: 0.378 | I65: 0.378 | J65: 1 | K65: 1 | L65: 0 | M65: 0 | N65: 0 | O65: 0 | P65: 0 | Q65: 0 | R65: 0 | T65: 76.252 | U65: 76.252 | V65: 76.252 | X65: 2002-10-22 | Y65: 19870.55907 | Z65: 21650.572 | AA65: 21996.98 | AB65: -0.01574797995 | AC65: -0.01574797995
A66: 38 | B66: 2002-10-23 | D66: =VLOOKUP(B67,'P123'!N:T,$C$5) -> SPY | E66: 88.36 | F66: 90.2 | G66: 241 | H66: 0.378 | I66: 0.378 | J66: 1 | K66: 1 | L66: 0 | M66: 0 | N66: 0 | O66: 0 | P66: 0 | Q66: 0 | R66: 0 | T66: 76.252 | U66: 76.252 | V66: 76.252 | X66: 2002-10-23 | Y66: 19727.34784 | Z66: 21814.452 | AA66: 21860.75 | AB66: -0.002117859634 | AC66: -0.002117859634
A67: 39 | B67: 2002-10-24 | D67: =VLOOKUP(B68,'P123'!N:T,$C$5) -> SPY | E67: 90.2 | F67: 89.61 | G67: 241 | H67: 0.378 | I67: 0.378 | J67: 1 | K67: 1 | L67: 0 | M67: 0 | N67: 0 | O67: 0 | P67: 0 | Q67: 0 | R67: 0 | T67: 76.252 | U67: 76.252 | V67: 76.252 | X67: 2002-10-24 | Y67: 19876.0672 | Z67: 21371.012 | AA67: 21996.98 | AB67: -0.02845699728 | AC67: -0.02845699728
A68: 1 | B68: 2002-10-25 | D68: =VLOOKUP(B69,'P123'!N:T,$C$5) -> TLT | E68: 85.26 | F68: 86.37 | G68: 253 | H68: 0.716 | I68: 0.716 | J68: 1 | K68: 1 | L68: 0 | M68: 0 | N68: 0 | O68: 0 | P68: 0 | Q68: 0 | R68: 0 | T68: 76.252 | U68: 76.252 | V68: 76.252 | X68: 2002-10-25 | Y68: 19471.22005 | Z68: 21814.452 | AA68: 21860.75 | AB68: -0.002117859634 | AC68: -0.002117859634
A69: 2 | B69: 2002-10-28 | D69: =VLOOKUP(B70,'P123'!N:T,$C$5) -> TLT | E69: 86.37 | F69: 86.34 | G69: 253 | H69: 0.716 | I69: 0.716 | J69: 1 | K69: 1 | L69: 21580.78 | M69: 21586.01 | N69: 0 | O69: 0 | P69: 0 | Q69: 0 | R69: 0 | T69: 21662.262 | U69: 21662.262 | V69: 81.482 | X69: 2002-10-28 | Y69: 19876.0672 | Z69: 21652.262 | AA69: 21996.98 | AB69: -0.01567115122 | AC69: -0.01567115122
A70: 3 | B70: 2002-10-29 | D70: =VLOOKUP(B71,'P123'!N:T,$C$5) -> TLT | E70: 86.34 | F70: 86.73 | G70: 253 | H70: 0.716 | I70: 0.716 | J70: 1 | K70: 1 | L70: 0 | M70: 0 | N70: 0 | O70: 0 | P70: 0 | Q70: 0 | R70: 0 | T70: 81.482 | U70: 81.482 | V70: 81.482 | X70: 2002-10-29 | Y70: 19746.62627 | Z70: 21933.092 | AA70: 21933.092 | AB70: 0 | AC70: 0
A71: =IF(D70=D71,A70+1,1) -> 4 | B71: 2002-10-30 | D71: =VLOOKUP(B72,'P123'!N:T,$C$5) -> TLT | E71: =(VLOOKUP(B72,INDIRECT(D71&"!A:q"),E$1)+VLOOKUP(B72,INDIRECT(D71&"!A:q"),E$2))/2 -> 86.73 | F71: =(VLOOKUP(B73,INDIRECT(D71&"!A:q"),F$1)+VLOOKUP(B73,INDIRECT(D71&"!A:q"),F$2))/2 -> 85.98 | G71: 253 | H71: 0.716 | I71: 1.105 | J71: =IF(D70=D71,J70,VLOOKUP(B72,INDIRECT(D71&"!A:q"),J$2)) -> 1 | K71: =IF(D70=D71,K70,VLOOKUP(B73,INDIRECT(D71&"!A:q"),K$2)) -> 1 | L71: 0 | M71: 0 | N71: 0 | O71: 0 | P71: =IF(ROW()>P$5+7,INDIRECT(P$2&ROW()-P$5),0) -> 0 | Q71: 0 | R71: 0 | T71: 81.482 | U71: 81.482 | V71: 81.482 | X71: =B71 -> 2002-10-30 | Y71: 19518.03911 | Z71: 21925.502 | AA71: 21996.98 | AB71: -0.00324944606 | AC71: -0.00324944606
A72: 5 | B72: =INDIRECT(B$5&ROW()) -> 2002-10-31 | D72: =VLOOKUP(B73,'P123'!N:T,$C$5) -> TLT | E72: 85.98 | F72: 85.6 | G72: =IF(D72=D71,G71,INT((T73*(1-L$1)-L$2)/E72))+Q73 -> 253 | H72: =VLOOKUP(B73,INDIRECT(D72&"!A:q"),H$2) -> 1.105 | I72: 1.105 | J72: 1 | K72: 1 | L72: =IF(D70=D71,0,G71*E71*(1+L$1)+$L$2) -> 0 | M72: 0 | N72: 0 | O72: 0 | P72: 0 | Q72: 0 | R72: 0 | T72: =V71+M72 -> 81.482 | U72: =T72+P72 -> 81.482 | V72: =U72-L72-R72 -> 81.482 | X72: 2002-10-31 | Y72: =VLOOKUP(X71,INDIRECT(Y$3&"!A:R"),7)*$Y$1 -> 19708.0694 | Z72: =E71*G71+V72 -> 22024.172 | AA72: =IF(Z72>AA70,Z72,AA70) -> 22024.172 | AB72: 0 | AC72: 0
A73: 6 | B73: 2002-11-01 | D73: =VLOOKUP(B74,'P123'!N:T,$C$5) -> TLT | E73: 85.6 | F73: 85.27 | G73: 253 | H73: 1.105 | I73: 1.105 | J73: 1 | K73: 1 | L73: 0 | M73: =IF(D71=D72,0,(K71/J71)*G71*F71/(1+$M$1)-$L$2) -> 0 | N73: =IF(I71<>H71,I71-H71,0) -> 0.389 | O73: =G71*N73 -> 98.417 | P73: 0 | Q73: =IF(AND(U73>Q$4,D72=D71),INT((U73*(1-L$1)-L$2)/E72),0) -> 0 | R73: 0 | T73: 81.482 | U73: 81.482 | V73: 81.482 | X73: 2002-11-01 | Y73: 19507.02286 | Z73: 21834.422 | AA73: 21996.98 | AB73: =Z73/AA73-1 -> -0.007390014447 | AC73: -0.007390014447
A74: 7 | B74: 2002-11-04 | D74: =VLOOKUP(B75,'P123'!N:T,$C$5) -> TLT | E74: 85.27 | F74: 85.61 | G74: 253 | H74: 1.105 | I74: 1.105 | J74: 1 | K74: 1 | L74: 0 | M74: 0 | N74: 0 | O74: 0 | P74: 0 | Q74: 0 | R74: =IF(Q74>0,Q74*E73+$L$2,0) -> 0 | T74: 81.482 | U74: 81.482 | V74: 81.482 | X74: 2002-11-04 | Y74: 19892.59157 | Z74: 21738.282 | AA74: 22024.172 | AB74: -0.01298073771 | AC74: -0.01298073771
A75: 8 | B75: 2002-11-05 | D75: =VLOOKUP(B76,'P123'!N:T,$C$5) -> TLT | E75: 85.61 | F75: 87.73 | G75: 253 | H75: 1.105 | I75: 1.105 | J75: 1 | K75: 1 | L75: 0 | M75: 0 | N75: 0 | O75: 0 | P75: 0 | Q75: 0 | R75: 0 | T75: 81.482 | U75: 81.482 | V75: 81.482 | X75: 2002-11-05 | Y75: 20082.62187 | Z75: 21654.792 | AA75: 21996.98 | AB75: -0.01555613543 | AC75: -0.01555613543
A76: 9 | B76: 2002-11-06 | D76: =VLOOKUP(B77,'P123'!N:T,$C$5) -> TLT | E76: 87.73 | F76: 88.44 | G76: 253 | H76: 1.105 | I76: 1.105 | J76: 1 | K76: 1 | L76: 0 | M76: 0 | N76: 0 | O76: 0 | P76: 0 | Q76: 0 | R76: 0 | T76: 81.482 | U76: 81.482 | V76: 81.482 | X76: 2002-11-06 | Y76: 20242.35748 | Z76: 21740.812 | AA76: 22024.172 | AB76: -0.01286586392 | AC76: -0.01286586392
A77: 10 | B77: 2002-11-07 | D77: =VLOOKUP(B78,'P123'!N:T,$C$5) -> TLT | E77: 88.44 | F77: 88.92 | G77: 253 | H77: 1.105 | I77: 1.105 | J77: 1 | K77: 1 | L77: 0 | M77: 0 | N77: 0 | O77: 0 | P77: 0 | Q77: 0 | R77: 0 | T77: 81.482 | U77: 81.482 | V77: 81.482 | X77: 2002-11-07 | Y77: 20503.99339 | Z77: 22277.172 | AA77: 22277.172 | AB77: 0 | AC77: 0
A78: 11 | B78: 2002-11-08 | D78: =VLOOKUP(B79,'P123'!N:T,$C$5) -> TLT | E78: 88.92 | F78: 88.41 | G78: 253 | H78: 1.105 | I78: 1.105 | J78: 1 | K78: 1 | L78: 0 | M78: 0 | N78: 0 | O78: 0 | P78: 0 | Q78: 0 | R78: 0 | T78: 81.482 | U78: 81.482 | V78: 81.482 | X78: 2002-11-08 | Y78: 20000 | Z78: 22456.802 | AA78: 22456.802 | AB78: 0 | AC78: 0
A79: 12 | B79: 2002-11-11 | D79: =VLOOKUP(B80,'P123'!N:T,$C$5) -> TLT | E79: 88.41 | F79: 88.6 | G79: 253 | H79: 1.105 | I79: 1.105 | J79: 1 | K79: 1 | L79: 0 | M79: 0 | N79: 0 | O79: 0 | P79: 0 | Q79: 0 | R79: 0 | T79: 81.482 | U79: 81.482 | V79: 81.482 | X79: 2002-11-11 | Y79: 19754.88846 | Z79: 22578.242 | AA79: 22578.242 | AB79: 0 | AC79: 0
A80: 13 | B80: 2002-11-12 | D80: =VLOOKUP(B81,'P123'!N:T,$C$5) -> TLT | E80: 88.6 | F80: 86.76 | G80: 253 | H80: 1.105 | I80: 1.105 | J80: 1 | K80: 1 | L80: 0 | M80: 0 | N80: 0 | O80: 0 | P80: 0 | Q80: 0 | R80: 0 | T80: 81.482 | U80: 81.482 | V80: 81.482 | X80: 2002-11-12 | Y80: 19449.18755 | Z80: 22449.212 | AA80: 22456.802 | AB80: -0.0003379822292 | AC80: -0.0003379822292
A81: 14 | B81: 2002-11-13 | D81: =VLOOKUP(B82,'P123'!N:T,$C$5) -> TLT | E81: 86.76 | F81: 87.11 | G81: 253 | H81: 1.105 | I81: 1.105 | J81: 1 | K81: 1 | L81: 0 | M81: 0 | N81: 0 | O81: 0 | P81: 0 | Q81: 0 | R81: 0 | T81: 81.482 | U81: 81.482 | V81: 81.482 | X81: 2002-11-13 | Y81: 19603.41504 | Z81: 22497.282 | AA81: 22578.242 | AB81: -0.003585753045 | AC81: -0.003585753045
A82: 15 | B82: 2002-11-14 | D82: =VLOOKUP(B83,'P123'!N:T,$C$5) -> TLT | E82: 87.11 | F82: 87.5 | G82: 253 | H82: 1.105 | I82: 1.105 | J82: 1 | K82: 1 | L82: 0 | M82: 0 | N82: 0 | O82: 0 | P82: 0 | Q82: 0 | R82: 0 | T82: 81.482 | U82: 81.482 | V82: 81.482 | X82: 2002-11-14 | Y82: 19622.69347 | Z82: 22031.762 | AA82: 22456.802 | AB82: -0.01892700483 | AC82: -0.01892700483
A83: 16 | B83: 2002-11-15 | D83: =VLOOKUP(B84,'P123'!N:T,$C$5) -> TLT | E83: 87.5 | F83: 87.82 | G83: 253 | H83: 1.105 | I83: 1.105 | J83: 1 | K83: 1 | L83: 0 | M83: 0 | N83: 0 | O83: 0 | P83: 0 | Q83: 0 | R83: 0 | T83: 81.482 | U83: 81.482 | V83: 81.482 | X83: 2002-11-15 | Y83: 19994.49188 | Z83: 22120.312 | AA83: 22578.242 | AB83: -0.02028191566 | AC83: -0.02028191566
A84: 17 | B84: 2002-11-18 | D84: =VLOOKUP(B85,'P123'!N:T,$C$5) -> TLT | E84: 87.82 | F84: 86.96 | G84: 253 | H84: 1.105 | I84: 1.105 | J84: 1 | K84: 1 | L84: 0 | M84: 0 | N84: 0 | O84: 0 | P84: 0 | Q84: 0 | R84: 0 | T84: 81.482 | U84: 81.482 | V84: 81.482 | X84: 2002-11-18 | Y84: 20143.21124 | Z84: 22218.982 | AA84: 22456.802 | AB84: -0.01059010985 | AC84: -0.01059010985
A85: 18 | B85: 2002-11-19 | D85: =VLOOKUP(B86,'P123'!N:T,$C$5) -> TLT | E85: 86.96 | F85: 86.12 | G85: 253 | H85: 1.105 | I85: =VLOOKUP(B87,INDIRECT(D85&"!A:q"),H$2) -> 1.105 | J85: 1 | K85: 1 | L85: 0 | M85: 0 | N85: 0 | O85: 0 | P85: 0 | Q85: 0 | R85: 0 | T85: 81.482 | U85: 81.482 | V85: 81.482 | X85: 2002-11-19 | Y85: 19939.41063 | Z85: 22299.942 | AA85: 22578.242 | AB85: -0.01232602609 | AC85: -0.01232602609
A86: 19 | B86: 2002-11-20 | D86: =VLOOKUP(B87,'P123'!N:T,$C$5) -> TLT | E86: 86.12 | F86: 86.04 | G86: 254 | H86: 1.105 | I86: 1.105 | J86: 1 | K86: 1 | L86: 0 | M86: 0 | N86: 0 | O86: 0 | P86: 0 | Q86: 0 | R86: 0 | T86: 81.482 | U86: 81.482 | V86: 81.482 | X86: 2002-11-20 | Y86: 19911.87001 | Z86: 22082.362 | AA86: 22456.802 | AB86: -0.01667378997 | AC86: -0.01667378997
A87: 20 | B87: 2002-11-21 | D87: =VLOOKUP(B88,'P123'!N:T,$C$5) -> TLT | E87: 86.04 | F87: 85.88 | G87: 254 | H87: 1.105 | I87: 1.105 | J87: 1 | K87: 1 | L87: 0 | M87: 0 | N87: 0 | O87: 0 | P87: 98.417 | Q87: 1 | R87: 96.12 | T87: 81.482 | U87: 179.899 | V87: 83.779 | X87: 2002-11-21 | Y87: 20355.27403 | Z87: 21958.259 | AA87: 22578.242 | AB87: -0.02745931238 | AC87: -0.02745931238
A88: 21 | B88: 2002-11-22 | D88: =VLOOKUP(B89,'P123'!N:T,$C$5) -> TLT | E88: 85.88 | F88: 86.96 | G88: 254 | H88: 1.105 | I88: 1.105 | J88: 1 | K88: 1 | L88: 0 | M88: 0 | N88: 0 | O88: 0 | P88: 0 | Q88: 0 | R88: 0 | T88: 83.779 | U88: 83.779 | V88: 83.779 | X88: 2002-11-22 | Y88: 20735.33462 | Z88: 21937.939 | AA88: 22456.802 | AB88: -0.0231049372 | AC88: -0.0231049372
A89: 22 | B89: 2002-11-25 | D89: =VLOOKUP(B90,'P123'!N:T,$C$5) -> TLT | E89: 86.96 | F89: 85 | G89: 254 | H89: 1.105 | I89: 1.105 | J89: 1 | K89: 1 | L89: 0 | M89: 0 | N89: 0 | O89: 0 | P89: 0 | Q89: 0 | R89: 0 | T89: 83.779 | U89: 83.779 | V89: 83.779 | X89: 2002-11-25 | Y89: 20586.61526 | Z89: 21897.299 | AA89: 22578.242 | AB89: -0.03015925686 | AC89: -0.03015925686
A90: 23 | B90: 2002-11-26 | D90: =VLOOKUP(B91,'P123'!N:T,$C$5) -> TLT | E90: 85 | F90: 85.55 | G90: 254 | H90: 1.105 | I90: 1.105 | J90: 1 | K90: 1 | L90: 0 | M90: 0 | N90: 0 | O90: 0 | P90: 0 | Q90: 0 | R90: 0 | T90: 83.779 | U90: 83.779 | V90: 83.779 | X90: 2002-11-26 | Y90: 20600.38557 | Z90: 22171.619 | AA90: 22456.802 | AB90: -0.0126991813 | AC90: -0.0126991813
A91: 24 | B91: 2002-11-27 | D91: =VLOOKUP(B92,'P123'!N:T,$C$5) -> TLT | E91: 85.55 | F91: 85.24 | G91: 254 | H91: 1.105 | I91: 1.494 | J91: 1 | K91: 1 | L91: 0 | M91: 0 | N91: 0 | O91: 0 | P91: 0 | Q91: 0 | R91: 0 | T91: 83.779 | U91: 83.779 | V91: 83.779 | X91: 2002-11-27 | Y91: 20209.30873 | Z91: 21673.779 | AA91: 22578.242 | AB91: -0.04005905331 | AC91: -0.04005905331
A92: 25 | B92: 2002-11-29 | D92: =VLOOKUP(B93,'P123'!N:T,$C$5) -> TLT | E92: 85.24 | F92: 85.36 | G92: 254 | H92: 1.494 | I92: 1.494 | J92: 1 | K92: 1 | L92: 0 | M92: 0 | N92: 0 | O92: 0 | P92: 0 | Q92: 0 | R92: 0 | T92: 83.779 | U92: 83.779 | V92: 83.779 | X92: 2002-11-29 | Y92: 20776.64555 | Z92: 21813.479 | AA92: 22456.802 | AB92: -0.02864713328 | AC92: -0.02864713328
A93: 26 | B93: 2002-12-02 | D93: =VLOOKUP(B94,'P123'!N:T,$C$5) -> TLT | E93: 85.36 | F93: 85.8 | G93: 254 | H93: 1.494 | I93: 1.494 | J93: 1 | K93: 1 | L93: 0 | M93: 0 | N93: 0.389 | O93: 98.806 | P93: 0 | Q93: 0 | R93: 0 | T93: 83.779 | U93: 83.779 | V93: 83.779 | X93: 2002-12-02 | Y93: 20710.54806 | Z93: 21734.739 | AA93: 22578.242 | AB93: -0.03735910883 | AC93: -0.03735910883
A94: 27 | B94: 2002-12-03 | D94: =VLOOKUP(B95,'P123'!N:T,$C$5) -> TLT | E94: 85.8 | F94: 86.02 | G94: 254 | H94: 1.494 | I94: 1.494 | J94: 1 | K94: 1 | L94: 0 | M94: 0 | N94: 0 | O94: 0 | P94: 0 | Q94: 0 | R94: 0 | T94: 83.779 | U94: 83.779 | V94: 83.779 | X94: 2002-12-03 | Y94: 20743.59681 | Z94: 21765.219 | AA94: 22456.802 | AB94: -0.03079614809 | AC94: -0.03079614809
A95: 28 | B95: 2002-12-04 | D95: =VLOOKUP(B96,'P123'!N:T,$C$5) -> TLT | E95: 86.02 | F95: 86.17 | G95: 254 | H95: 1.494 | I95: 1.494 | J95: 1 | K95: 1 | L95: 0 | M95: 0 | N95: 0 | O95: 0 | P95: 0 | Q95: 0 | R95: 0 | T95: 83.779 | U95: 83.779 | V95: 83.779 | X95: 2002-12-04 | Y95: 20465.43652 | Z95: 21876.979 | AA95: 22578.242 | AB95: -0.03105923836 | AC95: -0.03105923836
A96: 29 | B96: 2002-12-05 | D96: =VLOOKUP(B97,'P123'!N:T,$C$5) -> TLT | E96: 86.17 | F96: 86.65 | G96: 254 | H96: 1.494 | I96: 1.494 | J96: 1 | K96: 1 | L96: 0 | M96: 0 | N96: 0 | O96: 0 | P96: 0 | Q96: 0 | R96: 0 | T96: 83.779 | U96: 83.779 | V96: 83.779 | X96: 2002-12-05 | Y96: 20374.55246 | Z96: 21932.859 | AA96: 22456.802 | AB96: -0.02333114929 | AC96: -0.02333114929
A97: 30 | B97: 2002-12-06 | D97: =VLOOKUP(B98,'P123'!N:T,$C$5) -> TLT | E97: 86.65 | F97: 86.88 | G97: 254 | H97: 1.494 | I97: 1.494 | J97: 1 | K97: 1 | L97: 0 | M97: 0 | N97: 0 | O97: 0 | P97: 0 | Q97: 0 | R97: 0 | T97: 83.779 | U97: 83.779 | V97: 83.779 | X97: 2002-12-06 | Y97: 20148.71936 | Z97: 21970.959 | AA97: 22578.242 | AB97: -0.02689682394 | AC97: -0.02689682394
A98: 31 | B98: 2002-12-09 | D98: =VLOOKUP(B99,'P123'!N:T,$C$5) -> TLT | E98: 86.88 | F98: 87.46 | G98: 254 | H98: 1.494 | I98: 1.494 | J98: 1 | K98: 1 | L98: 0 | M98: 0 | N98: 0 | O98: 0 | P98: 0 | Q98: 0 | R98: 0 | T98: 83.779 | U98: 83.779 | V98: 83.779 | X98: 2002-12-09 | Y98: 20280.91435 | Z98: 22092.879 | AA98: 22456.802 | AB98: -0.01620546861 | AC98: -0.01620546861
A99: 32 | B99: 2002-12-10 | D99: =VLOOKUP(B100,'P123'!N:T,$C$5) -> TLT | E99: 87.46 | F99: 87.38 | G99: 254 | H99: 1.494 | I99: 1.494 | J99: 1 | K99: 1 | L99: 0 | M99: 0 | N99: 0 | O99: 0 | P99: 0 | Q99: 0 | R99: 0 | T99: 83.779 | U99: 83.779 | V99: 83.779 | X99: 2002-12-10 | Y99: 19721.83971 | Z99: 22151.299 | AA99: 22578.242 | AB99: -0.01890948817 | AC99: -0.01890948817
A100: 33 | B100: 2002-12-11 | D100: =VLOOKUP(B101,'P123'!N:T,$C$5) -> TLT | E100: 87.38 | F100: 86.53 | G100: 254 | H100: 1.494 | I100: 1.494 | J100: 1 | K100: 1 | L100: 0 | M100: 0 | N100: 0 | O100: 0 | P100: 0 | Q100: 0 | R100: 0 | T100: 83.779 | U100: 83.779 | V100: 83.779 | X100: 2002-12-11 | Y100: 19988.98375 | Z100: 22298.619 | AA100: 22456.802 | AB100: -0.007043879177 | AC100: -0.007043879177
A101: 34 | B101: 2002-12-12 | D101: =VLOOKUP(B102,'P123'!N:T,$C$5) -> TLT | E101: 86.53 | F101: 85.88 | G101: 254 | H101: 1.494 | I101: 1.494 | J101: 1 | K101: 1 | L101: 0 | M101: 0 | N101: 0 | O101: 0 | P101: 0 | Q101: 0 | R101: 0 | T101: 83.779 | U101: 83.779 | V101: 83.779 | X101: 2002-12-12 | Y101: 20005.50812 | Z101: 22278.299 | AA101: 22578.242 | AB101: -0.01328460382 | AC101: -0.01328460382
A102: 35 | B102: 2002-12-13 | D102: =VLOOKUP(B103,'P123'!N:T,$C$5) -> TLT | E102: 85.88 | F102: 85.88 | G102: 254 | H102: 1.494 | I102: 1.494 | J102: 1 | K102: 1 | L102: 0 | M102: 0 | N102: 0 | O102: 0 | P102: 0 | Q102: 0 | R102: 0 | T102: 83.779 | U102: 83.779 | V102: 83.779 | X102: 2002-12-13 | Y102: 20002.75406 | Z102: 22062.399 | AA102: 22456.802 | AB102: -0.01756274112 | AC102: -0.01756274112
A103: 36 | B103: 2002-12-16 | D103: =VLOOKUP(B104,'P123'!N:T,$C$5) -> TLT | E103: 85.88 | F103: 86.55 | G103: 254 | H103: 1.494 | I103: 1.494 | J103: 1 | K103: 1 | L103: 0 | M103: 0 | N103: 0 | O103: 0 | P103: 0 | Q103: 0 | R103: 0 | T103: 83.779 | U103: 83.779 | V103: 83.779 | X103: 2002-12-16 | Y103: 19688.79097 | Z103: 21897.299 | AA103: 22578.242 | AB103: -0.03015925686 | AC103: -0.03015925686
A104: 37 | B104: 2002-12-17 | D104: =VLOOKUP(B105,'P123'!N:T,$C$5) -> TLT | E104: 86.55 | F104: 87.32 | G104: 254 | H104: 1.494 | I104: 1.494 | J104: 1 | K104: 1 | L104: 0 | M104: 0 | N104: 0 | O104: 0 | P104: 0 | Q104: 0 | R104: 0 | T104: 83.779 | U104: 83.779 | V104: 83.779 | X104: 2002-12-17 | Y104: 20198.29248 | Z104: 21897.299 | AA104: 22456.802 | AB104: -0.02491463388 | AC104: -0.02491463388
A105: 38 | B105: 2002-12-18 | D105: =VLOOKUP(B106,'P123'!N:T,$C$5) -> TLT | E105: 87.32 | F105: 87.38 | G105: 254 | H105: 1.494 | I105: 1.494 | J105: 1 | K105: 1 | L105: 0 | M105: 0 | N105: 0 | O105: 0 | P105: 0 | Q105: 0 | R105: 0 | T105: 83.779 | U105: 83.779 | V105: 83.779 | X105: 2002-12-18 | Y105: 20022.0325 | Z105: 22067.479 | AA105: 22578.242 | AB105: -0.02262191184 | AC105: -0.02262191184
A106: 39 | B106: 2002-12-19 | D106: =VLOOKUP(B107,'P123'!N:T,$C$5) -> TLT | E106: 87.38 | F106: 87.4 | G106: 255 | H106: 1.494 | I106: 1.494 | J106: 1 | K106: 1 | L106: 0 | M106: 0 | N106: 0 | O106: 0 | P106: 0 | Q106: 0 | R106: 0 | T106: 83.779 | U106: 83.779 | V106: 83.779 | X106: 2002-12-19 | Y106: 19787.93721 | Z106: 22263.059 | AA106: 22456.802 | AB106: -0.008627363772 | AC106: -0.008627363772
A107: 40 | B107: 2002-12-20 | D107: =VLOOKUP(B108,'P123'!N:T,$C$5) -> TLT | E107: 87.4 | F107: 87.89 | G107: 255 | H107: 1.494 | I107: 1.494 | J107: 1 | K107: 1 | L107: 0 | M107: 0 | N107: 0 | O107: 0 | P107: 98.806 | Q107: 1 | R107: 97.38 | T107: 83.779 | U107: 182.585 | V107: 85.205 | X107: 2002-12-20 | Y107: 19647.48003 | Z107: 22367.105 | AA107: 22578.242 | AB107: -0.009351348081 | AC107: -0.009351348081
A108: 41 | B108: 2002-12-23 | D108: =VLOOKUP(B109,'P123'!N:T,$C$5) -> TLT | E108: 87.89 | F108: 88.06 | G108: 255 | H108: 1.494 | I108: 1.494 | J108: 1 | K108: 1 | L108: 0 | M108: 0 | N108: 0 | O108: 0 | P108: 0 | Q108: 0 | R108: 0 | T108: 85.205 | U108: 85.205 | V108: 85.205 | X108: 2002-12-23 | Y108: 19928.39438 | Z108: 22372.205 | AA108: 22456.802 | AB108: -0.003767099162 | AC108: -0.003767099162
A109: 42 | B109: 2002-12-24 | D109: =VLOOKUP(B110,'P123'!N:T,$C$5) -> TLT | E109: 88.06 | F109: 89.03 | G109: 255 | H109: 1.494 | I109: 1.494 | J109: 1 | K109: 1 | L109: 0 | M109: 0 | N109: 0 | O109: 0 | P109: 0 | Q109: 0 | R109: 0 | T109: 85.205 | U109: 85.205 | V109: 85.205 | X109: 2002-12-24 | Y109: 19933.90251 | Z109: 22497.155 | AA109: 22578.242 | AB109: -0.003591377929 | AC109: -0.003591377929
A110: 43 | B110: 2002-12-26 | D110: =VLOOKUP(B111,'P123'!N:T,$C$5) -> TLT | E110: 89.03 | F110: 89.24 | G110: 255 | H110: 1.494 | I110: 1.494 | J110: 1 | K110: 1 | L110: 0 | M110: 0 | N110: 0 | O110: 0 | P110: 0 | Q110: 0 | R110: 0 | T110: 85.205 | U110: 85.205 | V110: 85.205 | X110: 2002-12-26 | Y110: 19787.93721 | Z110: 22540.505 | AA110: 22540.505 | AB110: 0 | AC110: 0
A111: 44 | B111: 2002-12-27 | D111: =VLOOKUP(B112,'P123'!N:T,$C$5) -> TLT | E111: 89.24 | F111: 88.57 | G111: 255 | H111: 1.494 | I111: 1.94 | J111: 1 | K111: 1 | L111: 0 | M111: 0 | N111: 0 | O111: 0 | P111: 0 | Q111: 0 | R111: 0 | T111: 85.205 | U111: 85.205 | V111: 85.205 | X111: 2002-12-27 | Y111: 19796.19939 | Z111: 22787.855 | AA111: 22787.855 | AB111: 0 | AC111: 0
A112: 45 | B112: 2002-12-30 | D112: =VLOOKUP(B113,'P123'!N:T,$C$5) -> TLT | E112: 88.57 | F112: 86.28 | G112: 255 | H112: 1.94 | I112: 1.94 | J112: 1 | K112: 1 | L112: 0 | M112: 0 | N112: 0 | O112: 0 | P112: 0 | Q112: 0 | R112: 0 | T112: 85.205 | U112: 85.205 | V112: 85.205 | X112: 2002-12-30 | Y112: 19350.04131 | Z112: 22841.405 | AA112: 22841.405 | AB112: 0 | AC112: 0
A113: 46 | B113: 2002-12-31 | D113: =VLOOKUP(B114,'P123'!N:T,$C$5) -> TLT | E113: 86.28 | F113: 86.48 | G113: 255 | H113: 1.94 | I113: 1.94 | J113: 1 | K113: 1 | L113: 0 | M113: 0 | N113: 0.446 | O113: 113.73 | P113: 0 | Q113: 0 | R113: 0 | T113: 85.205 | U113: 85.205 | V113: 85.205 | X113: 2002-12-31 | Y113: 19512.53098 | Z113: 22670.555 | AA113: 22787.855 | AB113: -0.005147478778 | AC113: -0.005147478778
A114: 47 | B114: 2003-01-02 | D114: =VLOOKUP(B115,'P123'!N:T,$C$5) -> TLT | E114: 86.48 | F114: 86.25 | G114: 255 | H114: 1.94 | I114: 1.94 | J114: 1 | K114: 1 | L114: 0 | M114: 0 | N114: 0 | O114: 0 | P114: 0 | Q114: 0 | R114: 0 | T114: 85.205 | U114: 85.205 | V114: 85.205 | X114: 2003-01-02 | Y114: 19540.07161 | Z114: 22086.605 | AA114: 22841.405 | AB114: -0.03304525269 | AC114: -0.03304525269
A115: 48 | B115: 2003-01-03 | D115: =VLOOKUP(B116,'P123'!N:T,$C$5) -> TLT | E115: 86.25 | F115: 86.56 | G115: 255 | H115: 1.94 | I115: 1.94 | J115: 1 | K115: 1 | L115: 0 | M115: 0 | N115: 0 | O115: 0 | P115: 0 | Q115: 0 | R115: 0 | T115: 85.205 | U115: 85.205 | V115: 85.205 | X115: 2003-01-03 | Y115: 20167.9978 | Z115: 22137.605 | AA115: 22787.855 | AB115: -0.0285349367 | AC115: -0.0285349367
A116: 49 | B116: 2003-01-06 | D116: =VLOOKUP(B117,'P123'!N:T,$C$5) -> TLT | E116: 86.56 | F116: 86.99 | G116: 255 | H116: 1.94 | I116: 1.94 | J116: 1 | K116: 1 | L116: 0 | M116: 0 | N116: 0 | O116: 0 | P116: 0 | Q116: 0 | R116: 0 | T116: 85.205 | U116: 85.205 | V116: 85.205 | X116: 2003-01-06 | Y116: 20228.58717 | Z116: 22078.955 | AA116: 22841.405 | AB116: -0.03338017079 | AC116: -0.03338017079
A117: 50 | B117: 2003-01-07 | D117: =VLOOKUP(B118,'P123'!N:T,$C$5) -> TLT | E117: 86.99 | F117: 85.32 | G117: 255 | H117: 1.94 | I117: 1.94 | J117: 1 | K117: 1 | L117: 0 | M117: 0 | N117: 0 | O117: 0 | P117: 0 | Q117: 0 | R117: 0 | T117: 85.205 | U117: 85.205 | V117: 85.205 | X117: 2003-01-07 | Y117: 20586.61526 | Z117: 22158.005 | AA117: 22787.855 | AB117: -0.027639723 | AC117: -0.027639723
A118: 51 | B118: 2003-01-08 | D118: =VLOOKUP(B119,'P123'!N:T,$C$5) -> TLT | E118: 85.32 | F118: 85.54 | G118: 255 | H118: 1.94 | I118: 1.94 | J118: 1 | K118: 1 | L118: 0 | M118: 0 | N118: 0 | O118: 0 | P118: 0 | Q118: 0 | R118: 0 | T118: 85.205 | U118: 85.205 | V118: 85.205 | X118: 2003-01-08 | Y118: 20534.28807 | Z118: 22267.655 | AA118: 22841.405 | AB118: -0.02511885762 | AC118: -0.02511885762
A119: 52 | B119: 2003-01-09 | D119: =VLOOKUP(B120,'P123'!N:T,$C$5) -> TLT | E119: 85.54 | F119: 85.68 | G119: 255 | H119: 1.94 | I119: 1.94 | J119: 1 | K119: 1 | L119: 0 | M119: 0 | N119: 0 | O119: 0 | P119: 0 | Q119: 0 | R119: 0 | T119: 85.205 | U119: 85.205 | V119: 85.205 | X119: 2003-01-09 | Y119: 20239.60342 | Z119: 21841.805 | AA119: 22787.855 | AB119: -0.04151553536 | AC119: -0.04151553536
A120: 53 | B120: 2003-01-10 | D120: =VLOOKUP(B121,'P123'!N:T,$C$5) -> TLT | E120: 85.68 | F120: 85.98 | G120: 255 | H120: 1.94 | I120: 1.94 | J120: 1 | K120: 1 | L120: 0 | M120: 0 | N120: 0 | O120: 0 | P120: 0 | Q120: 0 | R120: 0 | T120: 85.205 | U120: 85.205 | V120: 85.205 | X120: 2003-01-10 | Y120: 20553.56651 | Z120: 21897.905 | AA120: 22841.405 | AB120: -0.04130656586 | AC120: -0.04130656586
A121: 54 | B121: 2003-01-13 | D121: =VLOOKUP(B122,'P123'!N:T,$C$5) -> TLT | E121: 85.98 | F121: 86.4 | G121: 255 | H121: 1.94 | I121: 1.94 | J121: 1 | K121: 1 | L121: 0 | M121: 0 | N121: 0 | O121: 0 | P121: 0 | Q121: 0 | R121: 0 | T121: 85.205 | U121: 85.205 | V121: 85.205 | X121: 2003-01-13 | Y121: 20608.64776 | Z121: 21933.605 | AA121: 22787.855 | AB121: -0.03748707371 | AC121: -0.03748707371
A122: 55 | B122: 2003-01-14 | D122: =VLOOKUP(B123,'P123'!N:T,$C$5) -> TLT | E122: 86.4 | F122: 86.52 | G122: 255 | H122: 1.94 | I122: 1.94 | J122: 1 | K122: 1 | L122: 0 | M122: 0 | N122: 0 | O122: 0 | P122: 0 | Q122: 0 | R122: 0 | T122: 85.205 | U122: 85.205 | V122: 85.205 | X122: 2003-01-14 | Y122: 20603.13963 | Z122: 22010.105 | AA122: 22841.405 | AB122: -0.0363944337 | AC122: -0.0363944337
A123: 56 | B123: 2003-01-15 | D123: =VLOOKUP(B124,'P123'!N:T,$C$5) -> TLT | E123: 86.52 | F123: 86.95 | G123: 255 | H123: 1.94 | I123: 1.94 | J123: 1 | K123: 1 | L123: 0 | M123: 0 | N123: 0 | O123: 0 | P123: 0 | Q123: 0 | R123: 0 | T123: 85.205 | U123: 85.205 | V123: 85.205 | X123: 2003-01-15 | Y123: 20669.23712 | Z123: 22117.205 | AA123: 22787.855 | AB123: -0.0294301504 | AC123: -0.0294301504
A124: 57 | B124: 2003-01-16 | D124: =VLOOKUP(B125,'P123'!N:T,$C$5) -> TLT | E124: 86.95 | F124: 87.45 | G124: 255 | H124: 1.94 | I124: 1.94 | J124: 1 | K124: 1 | L124: 0 | M124: 0 | N124: 0 | O124: 0 | P124: 0 | Q124: 0 | R124: 0 | T124: 85.205 | U124: 85.205 | V124: 85.205 | X124: 2003-01-16 | Y124: 20462.68246 | Z124: 22147.805 | AA124: 22841.405 | AB124: -0.03036590788 | AC124: -0.03036590788
A125: 58 | B125: 2003-01-17 | D125: =VLOOKUP(B126,'P123'!N:T,$C$5) -> TLT | E125: 87.45 | F125: 87.88 | G125: 255 | H125: 1.94 | I125: 1.94 | J125: 1 | K125: 1 | L125: 0 | M125: 0 | N125: 0 | O125: 0 | P125: 0 | Q125: 0 | R125: 0 | T125: 85.205 | U125: 85.205 | V125: 85.205 | X125: 2003-01-17 | Y125: 20377.30653 | Z125: 22257.455 | AA125: 22787.855 | AB125: -0.02327555621 | AC125: -0.02327555621
A126: 59 | B126: 2003-01-21 | D126: =VLOOKUP(B127,'P123'!N:T,$C$5) -> TLT | E126: 87.88 | F126: 87.45 | G126: 257 | H126: 1.94 | I126: 1.94 | J126: 1 | K126: 1 | L126: 0 | M126: 0 | N126: 0 | O126: 0 | P126: 0 | Q126: 0 | R126: 0 | T126: 85.205 | U126: 85.205 | V126: 85.205 | X126: 2003-01-21 | Y126: 20077.11374 | Z126: 22384.955 | AA126: 22841.405 | AB126: -0.01998344673 | AC126: -0.01998344673
A127: 60 | B127: 2003-01-22 | D127: =VLOOKUP(B128,'P123'!N:T,$C$5) -> TLT | E127: 87.45 | F127: 87.97 | G127: 257 | H127: 1.94 | I127: 1.94 | J127: 1 | K127: 1 | L127: 0 | M127: 0 | N127: 0 | O127: 0 | P127: 113.73 | Q127: 2 | R127: 185.76 | T127: 85.205 | U127: 198.935 | V127: 13.175 | X127: 2003-01-22 | Y127: 19765.90471 | Z127: 22598.335 | AA127: 22787.855 | AB127: -0.008316710809 | AC127: -0.008316710809
A128: 61 | B128: 2003-01-23 | D128: =VLOOKUP(B129,'P123'!N:T,$C$5) -> TLT | E128: 87.97 | F128: 87.65 | G128: 257 | H128: 1.94 | I128: 1.94 | J128: 1 | K128: 1 | L128: 0 | M128: 0 | N128: 0 | O128: 0 | P128: 0 | Q128: 0 | R128: 0 | T128: 13.175 | U128: 13.175 | V128: 13.175 | X128: 2003-01-23 | Y128: 19526.30129 | Z128: 22487.825 | AA128: 22841.405 | AB128: -0.01547978331 | AC128: -0.01547978331
A129: 62 | B129: 2003-01-24 | D129: =VLOOKUP(B130,'P123'!N:T,$C$5) -> TLT | E129: 87.65 | F129: 87.65 | G129: 257 | H129: 1.94 | I129: 1.94 | J129: 1 | K129: 1 | L129: 0 | M129: 0 | N129: 0 | O129: 0 | P129: 0 | Q129: 0 | R129: 0 | T129: 13.175 | U129: 13.175 | V129: 13.175 | X129: 2003-01-24 | Y129: 19644.72597 | Z129: 22621.465 | AA129: 22787.855 | AB129: -0.007301696452 | AC129: -0.007301696452
A130: 63 | B130: 2003-01-27 | D130: =VLOOKUP(B131,'P123'!N:T,$C$5) -> TLT | E130: 87.65 | F130: 87.17 | G130: 257 | H130: 1.94 | I130: 1.94 | J130: 1 | K130: 1 | L130: 0 | M130: 0 | N130: 0 | O130: 0 | P130: 0 | Q130: 0 | R130: 0 | T130: 13.175 | U130: 13.175 | V130: 13.175 | X130: 2003-01-27 | Y130: 19129.71633 | Z130: 22539.225 | AA130: 22841.405 | AB130: -0.01322948391 | AC130: -0.01322948391
A131: 64 | B131: 2003-01-28 | D131: =VLOOKUP(B132,'P123'!N:T,$C$5) -> TLT | E131: 87.17 | F131: 87.82 | G131: 257 | H131: 1.94 | I131: 1.94 | J131: 1 | K131: 1 | L131: 0 | M131: 0 | N131: 0 | O131: 0 | P131: 0 | Q131: 0 | R131: 0 | T131: 13.175 | U131: 13.175 | V131: 13.175 | X131: 2003-01-28 | Y131: 18868.08042 | Z131: 22539.225 | AA131: 22787.855 | AB131: -0.01091063639 | AC131: -0.01091063639
A132: 65 | B132: 2003-01-29 | D132: =VLOOKUP(B133,'P123'!N:T,$C$5) -> TLT | E132: 87.82 | F132: 88.06 | G132: 257 | H132: 1.94 | I132: 1.94 | J132: 1 | K132: 1 | L132: 0 | M132: 0 | N132: 0 | O132: 0 | P132: 0 | Q132: 0 | R132: 0 | T132: 13.175 | U132: 13.175 | V132: 13.175 | X132: 2003-01-29 | Y132: 19008.53759 | Z132: 22415.865 | AA132: 22841.405 | AB132: -0.01863020248 | AC132: -0.01863020248
A133: 66 | B133: 2003-01-30 | D133: =VLOOKUP(B134,'P123'!N:T,$C$5) -> TLT | E133: 88.06 | F133: 87.88 | G133: 257 | H133: 1.94 | I133: 2.248 | J133: 1 | K133: 1 | L133: 0 | M133: 0 | N133: 0 | O133: 0 | P133: 0 | Q133: 0 | R133: 0 | T133: 13.175 | U133: 13.175 | V133: 13.175 | X133: 2003-01-30 | Y133: 19151.74883 | Z133: 22582.915 | AA133: 22787.855 | AB133: -0.008993387048 | AC133: -0.008993387048
A134: 67 | B134: 2003-01-31 | D134: =VLOOKUP(B135,'P123'!N:T,$C$5) -> TLT | E134: 87.88 | F134: 88.27 | G134: 257 | H134: 2.248 | I134: 2.248 | J134: 1 | K134: 1 | L134: 0 | M134: 0 | N134: 0 | O134: 0 | P134: 0 | Q134: 0 | R134: 0 | T134: 13.175 | U134: 13.175 | V134: 13.175 | X134: 2003-01-31 | Y134: 18697.32856 | Z134: 22644.595 | AA134: 22841.405 | AB134: -0.00861637014 | AC134: -0.00861637014
A135: =IF(D134=D135,A134+1,1) -> 68 | B135: 2003-02-03 | D135: =VLOOKUP(B136,'P123'!N:T,$C$5) -> TLT | E135: =(VLOOKUP(B136,INDIRECT(D135&"!A:q"),E$1)+VLOOKUP(B136,INDIRECT(D135&"!A:q"),E$2))/2 -> 88.27 | F135: =(VLOOKUP(B137,INDIRECT(D135&"!A:q"),F$1)+VLOOKUP(B137,INDIRECT(D135&"!A:q"),F$2))/2 -> 87.51 | G135: 257 | H135: 2.248 | I135: 2.248 | J135: =IF(D134=D135,J134,VLOOKUP(B136,INDIRECT(D135&"!A:q"),J$2)) -> 1 | K135: =IF(D134=D135,K134,VLOOKUP(B137,INDIRECT(D135&"!A:q"),K$2)) -> 1 | L135: 0 | M135: 0 | N135: 0.308 | O135: 79.156 | P135: =IF(ROW()>P$5+7,INDIRECT(P$2&ROW()-P$5),0) -> 0 | Q135: 0 | R135: 0 | T135: 13.175 | U135: 13.175 | V135: 13.175 | X135: =B135 -> 2003-02-03 | Y135: 19058.11071 | Z135: 22598.335 | AA135: 22787.855 | AB135: -0.008316710809 | AC135: -0.008316710809
A136: 69 | B136: =INDIRECT(B$5&ROW()) -> 2003-02-04 | D136: =VLOOKUP(B137,'P123'!N:T,$C$5) -> TLT | E136: 87.51 | F136: 88.22 | G136: =IF(D136=D135,G135,INT((T137*(1-L$1)-L$2)/E136))+Q137 -> 257 | H136: =VLOOKUP(B137,INDIRECT(D136&"!A:q"),H$2) -> 2.248 | I136: 2.248 | J136: 1 | K136: 1 | L136: =IF(D134=D135,0,G135*E135*(1+L$1)+$L$2) -> 0 | M136: 0 | N136: 0 | O136: 0 | P136: 0 | Q136: 0 | R136: 0 | T136: =V135+M136 -> 13.175 | U136: =T136+P136 -> 13.175 | V136: =U136-L136-R136 -> 13.175 | X136: 2003-02-04 | Y136: =VLOOKUP(X135,INDIRECT(Y$3&"!A:R"),7)*$Y$1 -> 19096.66758 | Z136: =E135*G135+V136 -> 22698.565 | AA136: =IF(Z136>AA134,Z136,AA134) -> 22841.405 | AB136: -0.006253555769 | AC136: -0.006253555769
A137: 70 | B137: 2003-02-05 | D137: =VLOOKUP(B138,'P123'!N:T,$C$5) -> TLT | E137: 88.22 | F137: 88.42 | G137: 257 | H137: 2.248 | I137: 2.248 | J137: 1 | K137: 1 | L137: 0 | M137: =IF(D135=D136,0,(K135/J135)*G135*F135/(1+$M$1)-$L$2) -> 0 | N137: =IF(I135<>H135,I135-H135,0) -> 0 | O137: =G135*N137 -> 0 | P137: 0 | Q137: =IF(AND(U137>Q$4,D136=D135),INT((U137*(1-L$1)-L$2)/E136),0) -> 0 | R137: 0 | T137: 13.175 | U137: 13.175 | V137: 13.175 | X137: 2003-02-05 | Y137: 18906.63729 | Z137: 22503.245 | AA137: 22787.855 | AB137: =Z137/AA137-1 -> -0.01248954761 | AC137: -0.01248954761
A138: 71 | B138: 2003-02-06 | D138: =VLOOKUP(B139,'P123'!N:T,$C$5) -> TLT | E138: 88.42 | F138: 87.8 | G138: 257 | H138: 2.248 | I138: 2.248 | J138: 1 | K138: 1 | L138: 0 | M138: 0 | N138: 0 | O138: 0 | P138: 0 | Q138: 0 | R138: =IF(Q138>0,Q138*E137+$L$2,0) -> 0 | T138: 13.175 | U138: 13.175 | V138: 13.175 | X138: 2003-02-06 | Y138: 18790.96668 | Z138: 22685.715 | AA138: 22841.405 | AB138: -0.006816130619 | AC138: -0.006816130619
A139: 72 | B139: 2003-02-07 | D139: =VLOOKUP(B140,'P123'!N:T,$C$5) -> TLT | E139: 87.8 | F139: 87.78 | G139: 257 | H139: 2.248 | I139: 2.248 | J139: 1 | K139: 1 | L139: 0 | M139: 0 | N139: 0 | O139: 0 | P139: 0 | Q139: 0 | R139: 0 | T139: 13.175 | U139: 13.175 | V139: 13.175 | X139: 2003-02-07 | Y139: 18702.83668 | Z139: 22737.115 | AA139: 22787.855 | AB139: -0.002226624665 | AC139: -0.002226624665
A140: 73 | B140: 2003-02-10 | D140: =VLOOKUP(B141,'P123'!N:T,$C$5) -> TLT | E140: 87.78 | F140: 88.09 | G140: 257 | H140: 2.248 | I140: 2.248 | J140: 1 | K140: 1 | L140: 0 | M140: 0 | N140: 0 | O140: 0 | P140: 0 | Q140: 0 | R140: 0 | T140: 13.175 | U140: 13.175 | V140: 13.175 | X140: 2003-02-10 | Y140: 18474.24952 | Z140: 22577.775 | AA140: 22841.405 | AB140: -0.01154175936 | AC140: -0.01154175936
A141: 74 | B141: 2003-02-11 | D141: =VLOOKUP(B142,'P123'!N:T,$C$5) -> TLT | E141: 88.09 | F141: 88.57 | G141: 257 | H141: 2.248 | I141: 2.248 | J141: 1 | K141: 1 | L141: 0 | M141: 0 | N141: 0 | O141: 0 | P141: 0 | Q141: 0 | R141: 0 | T141: 13.175 | U141: 13.175 | V141: 13.175 | X141: 2003-02-11 | Y141: 18603.69044 | Z141: 22572.635 | AA141: 22787.855 | AB141: -0.00944450454 | AC141: -0.00944450454
A142: 75 | B142: 2003-02-12 | D142: =VLOOKUP(B143,'P123'!N:T,$C$5) -> TLT | E142: 88.57 | F142: 87.81 | G142: 257 | H142: 2.248 | I142: 2.248 | J142: 1 | K142: 1 | L142: 0 | M142: 0 | N142: 0 | O142: 0 | P142: 0 | Q142: 0 | R142: 0 | T142: 13.175 | U142: 13.175 | V142: 13.175 | X142: 2003-02-12 | Y142: 18477.00358 | Z142: 22652.305 | AA142: 22841.405 | AB142: -0.00827882523 | AC142: -0.00827882523
A143: 76 | B143: 2003-02-13 | D143: =VLOOKUP(B144,'P123'!N:T,$C$5) -> TLT | E143: 87.81 | F143: 87.92 | G143: 257 | H143: 2.248 | I143: 2.248 | J143: 1 | K143: 1 | L143: 0 | M143: 0 | N143: 0 | O143: 0 | P143: 0 | Q143: 0 | R143: 0 | T143: 13.175 | U143: 13.175 | V143: 13.175 | X143: 2003-02-13 | Y143: 18182.31892 | Z143: 22775.665 | AA143: 22787.855 | AB143: -0.000534934069 | AC143: -0.000534934069
A144: 77 | B144: 2003-02-14 | D144: =VLOOKUP(B145,'P123'!N:T,$C$5) -> TLT | E144: 87.92 | F144: 88.52 | G144: 257 | H144: 2.248 | I144: 2.248 | J144: 1 | K144: 1 | L144: 0 | M144: 0 | N144: 0 | O144: 0 | P144: 0 | Q144: 0 | R144: 0 | T144: 13.175 | U144: 13.175 | V144: 13.175 | X144: 2003-02-14 | Y144: 18237.40017 | Z144: 22580.345 | AA144: 22841.405 | AB144: -0.01142924439 | AC144: -0.01142924439
A145: 78 | B145: 2003-02-18 | D145: =VLOOKUP(B146,'P123'!N:T,$C$5) -> TLT | E145: 88.52 | F145: 88.82 | G145: 257 | H145: 2.248 | I145: 2.248 | J145: 1 | K145: 1 | L145: 0 | M145: 0 | N145: 0 | O145: 0 | P145: 0 | Q145: 0 | R145: 0 | T145: 13.175 | U145: 13.175 | V145: 13.175 | X145: 2003-02-18 | Y145: 18633.98513 | Z145: 22608.615 | AA145: 22787.855 | AB145: -0.007865593317 | AC145: -0.007865593317
A146: 79 | B146: 2003-02-19 | D146: =VLOOKUP(B147,'P123'!N:T,$C$5) -> TLT | E146: 88.82 | F146: 88.3 | G146: 257 | H146: 2.248 | I146: 2.248 | J146: 1 | K146: 1 | L146: 0 | M146: 0 | N146: 0 | O146: 0 | P146: 0 | Q146: 0 | R146: 0 | T146: 13.175 | U146: 13.175 | V146: 13.175 | X146: 2003-02-19 | Y146: 18961.71853 | Z146: 22762.815 | AA146: 22841.405 | AB146: -0.003440681517 | AC146: -0.003440681517
A147: 80 | B147: 2003-02-20 | D147: =VLOOKUP(B148,'P123'!N:T,$C$5) -> TLT | E147: 88.3 | F147: 88.72 | G147: 257 | H147: 2.248 | I147: 2.248 | J147: 1 | K147: 1 | L147: 0 | M147: 0 | N147: 0 | O147: 0 | P147: 0 | Q147: 0 | R147: 0 | T147: 13.175 | U147: 13.175 | V147: 13.175 | X147: 2003-02-20 | Y147: 18862.57229 | Z147: 22839.915 | AA147: 22839.915 | AB147: 0 | AC147: 0
A148: 81 | B148: 2003-02-21 | D148: =VLOOKUP(B149,'P123'!N:T,$C$5) -> TLT | E148: 88.72 | F148: 89.13 | G148: 257 | H148: 2.248 | I148: 2.248 | J148: 1 | K148: 1 | L148: 0 | M148: 0 | N148: 0 | O148: 0 | P148: 0 | Q148: 0 | R148: 0 | T148: 13.175 | U148: 13.175 | V148: 13.175 | X148: 2003-02-21 | Y148: 18675.29606 | Z148: 22706.275 | AA148: 22841.405 | AB148: -0.005916010858 | AC148: -0.005916010858
A149: 82 | B149: 2003-02-24 | D149: =VLOOKUP(B150,'P123'!N:T,$C$5) -> TLT | E149: 89.13 | F149: 89.75 | G149: 257 | H149: 2.248 | I149: =VLOOKUP(B151,INDIRECT(D149&"!A:q"),H$2) -> 2.248 | J149: 1 | K149: 1 | L149: 0 | M149: 0 | N149: 0 | O149: 0 | P149: 79.156 | Q149: 0 | R149: 0 | T149: 13.175 | U149: 92.331 | V149: 92.331 | X149: 2003-02-24 | Y149: 18862.57229 | Z149: 22893.371 | AA149: 22893.371 | AB149: 0 | AC149: 0
A150: 83 | B150: 2003-02-25 | D150: =VLOOKUP(B151,'P123'!N:T,$C$5) -> TLT | E150: 89.75 | F150: 89.9 | G150: 257 | H150: 2.248 | I150: 2.248 | J150: 1 | K150: 1 | L150: 0 | M150: 0 | N150: 0 | O150: 0 | P150: 0 | Q150: 0 | R150: 0 | T150: 92.331 | U150: 92.331 | V150: 92.331 | X150: 2003-02-25 | Y150: 18556.87139 | Z150: 22998.741 | AA150: 22998.741 | AB150: 0 | AC150: 0
A151: 84 | B151: 2003-02-26 | D151: =VLOOKUP(B152,'P123'!N:T,$C$5) -> TLT | E151: 89.9 | F151: 90.47 | G151: 257 | H151: 2.248 | I151: 2.248 | J151: 1 | K151: 1 | L151: 0 | M151: 0 | N151: 0 | O151: 0 | P151: 0 | Q151: 0 | R151: 0 | T151: 92.331 | U151: 92.331 | V151: 92.331 | X151: 2003-02-26 | Y151: 18705.59075 | Z151: 23158.081 | AA151: 23158.081 | AB151: 0 | AC151: 0
A152: 85 | B152: 2003-02-27 | D152: =VLOOKUP(B153,'P123'!N:T,$C$5) -> TLT | E152: 90.47 | F152: 90.24 | G152: 257 | H152: 2.248 | I152: 2.588 | J152: 1 | K152: 1 | L152: 0 | M152: 0 | N152: 0 | O152: 0 | P152: 0 | Q152: 0 | R152: 0 | T152: 92.331 | U152: 92.331 | V152: 92.331 | X152: 2003-02-27 | Y152: 18432.93858 | Z152: 23196.631 | AA152: 23196.631 | AB152: 0 | AC152: 0
A153: 1 | B153: 2003-02-28 | D153: =VLOOKUP(B154,'P123'!N:T,$C$5) -> SPY | E153: 84.09 | F153: 82.75 | G153: 276 | H153: 0.814 | I153: 0.814 | J153: 1 | K153: 1 | L153: 0 | M153: 0 | N153: 0 | O153: 0 | P153: 0 | Q153: 0 | R153: 0 | T153: 92.331 | U153: 92.331 | V153: 92.331 | X153: 2003-02-28 | Y153: 18678.05012 | Z153: 23343.121 | AA153: 23343.121 | AB153: 0 | AC153: 0
A154: 2 | B154: 2003-03-03 | D154: =VLOOKUP(B155,'P123'!N:T,$C$5) -> SPY | E154: 82.75 | F154: 83.45 | G154: 276 | H154: 0.814 | I154: 0.814 | J154: 1 | K154: 1 | L154: 23218.84 | M154: 23181.68 | N154: 0.34 | O154: 87.38 | P154: 0 | Q154: 0 | R154: 0 | T154: 23274.011 | U154: 23274.011 | V154: 55.171 | X154: 2003-03-03 | Y154: 18801.98292 | Z154: 23264.011 | AA154: 23264.011 | AB154: 0 | AC154: 0
